Workbook

Sheet Menu
B1: MOVIMENTO FINANCEIRO ALIMENTA E GOLDENPARK
B2: CONCILIAÇÃO BANCÁRIA 2016 | G2: JAN A DEZ | K2: 2016 | N2: BANCO MENSAL
G3: RESULTADO POR FILIAL CUSTOS E FATURAMENTOS 2016 | K3: DIVERSOS
M4: 01- dia do trabalho - 26 Corpus Cristi
C5: Itaú Alimenta | E5: HSBC Goldenpark | G5: Buriti - Relat. anual detalhado | I5: Sampla - Relat. anual detalhado | K5: Pessoal - Relat. anual Detalhado | M5: 2016-05-01
M6: DOM | N6: SEG | O6: TER | P6: QUA | Q6: QUI | R6: SEX | S6: SAB
M7: 1900-01-01 | N7: 1900-01-02 | O7: 1900-01-03 | P7: 1900-01-04 | Q7: 1900-01-05 | R7: 1900-01-06 | S7: 1900-01-07
C8: Itaú CNS - Conta Encerrada | E8: HSBC - CNS - Conta Inativa | G8: Outlet - Relat. anual detalhado | I8: ADM Alimenta Relat anual detalhado | K8: Juros e Amortização | M8: 1900-01-08 | N8: 1900-01-09 | O8: 1900-01-10 | P8: 1900-01-11 | Q8: 1900-01-12 | R8: 1900-01-13 | S8: 1900-01-14
M9: 1900-01-15 | N9: 1900-01-16 | O9: 1900-01-17 | P9: 1900-01-18 | Q9: 1900-01-19 | R9: 1900-01-20 | S9: 1900-01-21
M10: 1900-01-22 | N10: 1900-01-23 | O10: 1900-01-24 | P10: 1900-01-25 | Q10: 1900-01-26 | R10: 1900-01-27 | S10: 1900-01-28
C11: Itaú Goldenpark - Conta Inativa | E11: HSBC Alimenta - Conta Inativa | G11: ADM Golden - Relat. anual detalhado | I11: Sub Menu Controle de Faturamento | K11: Demonstrativo de resultado Anual | M11: 1900-01-29 | N11: 1900-01-30 | O11: 1900-01-31
C14: Extratos 2016 - Itaú / HSBC | G14: Livre | I14: Livre | K14: Livre | M14: Sub Menu Contas a Pagar | Q14: Sub Menu Acordos
C17: Acesse as contas | G17: Livre | I17: Livre | K17: Livre | M17: Natalie - Controle de C/C | Q17: Pendências
B20: =NOW() -> 2016-05-09T22:25:49.540
B21: Osmar Bueno

Sheet Itaú - Alimenta
A2: Empresa: | B2: Alimenta Serviços ltda | D2: Banco: | E2: Itaú S/A. | H2: Crédito | J2: =E4501 -> 1847079.3
A3: C.N.P.J n.º: | B3: 06.128.893/0001-31 | D3: Agencia n° | E3: 0429 | H3: Débito | J3: =D4501 -> 1848582.259
A4: Endereço: | B4: Av. Pacaembu, 746 Pacaembu São Paulo - SP | D4: Conta Corrente n.º: | E4: 58.903-9 | H4: Devolução DOC | J4: 0
B5: CEP 01234-000 | H5: Juros | J5: =D1084+D1092+D1107 -> 41.5
A6: Valor do saldo anterior 31/12/2015 | C6: 576.19 | D6: Referente o ano de: | E6: 2016 | H6: Amortização | J6: 0
A7: Valor final do saldo Extrato Bancário | C7: =C6+E4501-D4501 -> -926.769 | H7: Devolução CH | J7: 0
F9: SALDO
A10: Data | B10: Discrição (nome do credor) | C10: Histórico | D10: Débito | E10: Crédito | F10: =C6 -> 576.19 | G10: Filial Saída | H10: NF n° ou caixa de | I10: Emissão ou depósito | J10: Vencim. | K10: Tipo de pgto e entrada
A11: 2016-01-04 | B11: Depósito em dinheiro | E11: 5455 | F11: =IF(E11>0,F10+E11,IF(D11>0,F10-D11," ")) -> 6031.19 | H11: Caixa de | I11: 2015-12-31 | K11: Buriti
A12: 2016-01-04 | B12: Depósito em dinheiro | E12: 1785.5 | F12: =IF(E12>0,F11+E12,IF(D12>0,F11-D12," ")) -> 7816.69 | H12: Caixa de | I12: 2016-01-01 | K12: Buriti
A13: 2016-01-04 | B13: Depósito em dinheiro | E13: 7437.5 | F13: =IF(E13>0,F12+E13,IF(D13>0,F12-D13," ")) -> 15254.19 | H13: Caixa de | I13: 2016-01-03 | K13: Buriti
A14: 2016-01-04 | B14: Depósito em dinheiro | E14: 10838 | F14: 26092.19 | H14: Caixa de | I14: 2015-12-30 | K14: Buriti
A15: 2016-01-04 | B15: Depósito em dinheiro | E15: 10580 | F15: 36672.19 | H15: Caixa de | I15: 2016-01-02 | K15: Buriti
A16: 2016-01-04 | B16: Grilo e Irmão Ltda | C16: Ficha avulsa e cheque list 02/02 | D16: 900 | F16: 35772.19 | G16: outlet jan | H16: 4429 | I16: 2015-11-18 | J16: 2016-01-02 | K16: Boleto
A17: 2016-01-04 | B17: VBI Byteway informática Ltda | C17: Duas Impressora novos Guiches 02/02 | D17: 400 | F17: 35372.19 | G17: buriti jan | H17: 4101 | I17: 2015-11-26 | J17: 2016-01-03 | K17: Boleto
A18: 2016-01-04 | B18: Tokio Marine Brasil Seguradora | C18: Seguro valores Buriti 05/07 | D18: 448.81 | F18: 34923.38 | G18: Buriti jan | H18: 71075011 | I18: 2015-08-12 | J18: 2016-01-03 | K18: Boleto
A19: 2016-01-04 | B19: Maria Inês F. Sbrisa | C19: Condomínio 01/2016 | D19: 736 | F19: 34187.38 | G19: adm Golden jan | H19: 498175 | I19: 2015-12-07 | J19: 2016-01-03 | K19: Boleto
A20: 2016-01-04 | B20: Tokio Marine Seguradora | C20: Endoço Para Outlet Bandeirantes 01/02 | D20: 838.97 | F20: 33348.41 | G20: Outlet jan | J20: 2016-01-04 | K20: Boleto
A21: 2016-01-04 | B21: Nelson Rodrigues Brito Alves | C21: Acerto caixas de 28/12/15a03/01/16 | D21: 4676 | F21: 28672.41 | G21: Outlet jan | J21: 2016-01-04 | K21: Transferência
A22: 2016-01-04 | B22: Natalie Lima Hornos | C22: Depósito em C/C a pedido do Edson | D22: 28600 | F22: 72.41 | J22: 2016-01-04 | K22: Transferência
A23: 2016-01-04 | B23: Tarifa cartão PJ | D23: 5 | F23: 67.41
A24: 2016-01-05 | B24: Depósito em dinheiro | E24: 7133 | F24: 7200.41 | H24: Caixa de | I24: 2016-01-04 | K24: Buriti
A25: 2016-01-05 | B25: Depósito em dinheiro | E25: 0.5 | F25: 7200.91 | H25: Caixa de | I25: 2016-01-03 | K25: Buriti
A26: 2016-01-05 | B26: NF 014 | C26: Sampla ref. 2° quinz. De 12/2015 | E26: 10893.02 | F26: 18093.93
A27: 2016-01-05 | B27: Nelson Rodrigues Brito Alves | C27: Para entregar ao Edson (Faxineira) | D27: 170 | F27: 17923.93 | G27: Pessoal jan | J27: 2016-01-05 | K27: Transferência
A28: 2016-01-05 | B28: AP&C Consultoria e Assessoria | C28: Honorários ref. mês 12/2015 | D28: 1400 | F28: 16523.93 | G28: adm Golden jan | H28: 3496 | I28: 2015-10-23 | J28: 2016-01-05 | K28: Boleto
A29: 2016-01-05 | B29: AP&C Consultoria e Assessoria | C29: Honorários ref. mês 12/2015 | D29: 1700 | F29: 14823.93 | G29: ADM Alim jan | H29: 3472 | I29: 2015-10-23 | J29: 2016-01-05 | K29: Boleto
A30: 2016-01-05 | B30: Dial Rádio comunicação | C30: Locação de rádios | D30: 260 | F30: 14563.93 | G30: Outlet jan | H30: 1396 | I30: 2015-12-08 | J30: 2016-01-05 | K30: Boleto
A31: 2016-01-05 | B31: Universo Online S/A | C31: Renovação provedor Alim. Anual | D31: 257.44 | F31: 14306.49 | G31: ADM Alim jan | H31: 319754979 | I31: 2015-12-13 | J31: 2016-01-05 | K31: Boleto
A32: 2016-01-05 | B32: Carlos Alberto Duarte Lopes - ME | C32: Hortifrut | D32: 858.25 | F32: 13448.24 | G32: Sampla Jan | H32: vide com. | J32: 2016-01-05 | K32: Doc-c
A33: 2016-01-05 | B33: I Park estacionamentos Ltda | C33: Ref. movimento de 02/01/2016 | D33: 5260 | F33: 8188.24 | G33: Outlet jan | J33: 2016-01-05 | K33: Transferência
A34: 2016-01-05 | B34: I Park estacionamentos Ltda | C34: Ref. movimento de 03/01/2016 | D34: 1195 | F34: 6993.24 | G34: Outlet jan | J34: 2016-01-05 | K34: Transferência
A35: 2016-01-05 | B35: Natalie Lima Hornos | C35: Depósito em C/C a pedido do Edson | D35: 6950 | F35: 43.24 | J35: 2016-01-05 | K35: Transferência
A36: 2016-01-05 | B36: Tarifa Doc Sispag | D36: 8.5 | F36: 34.74
A37: 2016-01-06 | B37: Depósito em dinheiro | C37: Devolução Ntalalie | E37: 6000 | F37: 6034.74
A38: 2016-01-06 | B38: Depósito em dinheiro | E38: 5337.34 | F38: 11372.08 | H38: Caixa de | I38: 2016-01-05 | K38: Buriti
A39: 2016-01-06 | B39: Depósito em dinheiro | C39: Devolução Ntalalie | E39: 50000 | F39: 61372.08
A40: 2016-01-06 | B40: Cond. Buriti Shopping Guará | C40: Aluguel repasse ref. 12/15 | D40: 61287.97 | F40: 84.11 | G40: Buriti jan | J40: 2016-01-06 | K40: Transferência
A41: 2016-01-06 | B41: Tarifa max conta PJ | D41: 37.5 | E41: 0 | F41: 46.61
A42: 2016-01-07 | B42: Depósito em dinheiro | E42: 6345.65 | F42: 6392.26 | H42: caixa de | I42: 2016-01-06 | K42: Buriti
A43: 2016-01-07 | B43: Depósito em dinheiro | C43: Devolução Ntalalie | E43: 31400 | F43: 37792.26
A44: 2016-01-07 | B44: Janderson Araujo | C44: Reembolso passagem Carol 03/03 | D44: 130.06 | F44: 37662.2 | G44: Pessoal jan | J44: 2016-01-07 | K44: Transferência
A45: 2016-01-07 | B45: Janderson Araujo | C45: Reembolso Óculos Carol 03/10 | D45: 63 | F45: 37599.2 | G45: Pessoal jan | J45: 2016-01-07 | K45: Transferência
A46: 2016-01-07 | B46: Janderson Araujo | C46: Depósito em C/C a pedido do Edson 03/10 | D46: 122.19 | F46: 37477.01 | G46: Pessoal jan | J46: 2016-01-07 | K46: Transferência
A47: 2016-01-07 | B47: Tokio Marine Seguradora | C47: endosso Bolsao 1 - 07/07 | D47: 826.39 | F47: 36650.62 | G47: Outlet jan | J47: 2016-01-07 | K47: Boleto
A48: 2016-01-07 | B48: Nelson Rodrigues Brito Alves | C48: Reembolso de KM ref. mês 12/2015 | D48: 1926.6 | F48: 34724.02 | G48: ADM Golden jan | J48: 2016-01-07 | K48: Transferência
A49: 2016-01-07 | B49: FGTS | C49: Competência 12/2015 | D49: 2142.32 | F49: 32581.7 | G49: Buriti jan | J49: 2016-01-07 | K49: Boleto
A50: 2016-01-07 | B50: FGTS | C50: Competência 12/2015 | D50: 1042.55 | F50: 31539.15 | G50: Outlet jan | J50: 2016-01-07 | K50: Boleto
A51: 2016-01-07 | B51: FGTS | C51: Competência 12/2015 | D51: 544.06 | F51: 30995.09 | G51: ADM Golden jan | J51: 2016-01-07 | K51: Boleto
A52: 2016-01-07 | B52: FGTS | C52: Competência 12/2015 | D52: 568.84 | F52: 30426.25 | G52: Sampla jan | J52: 2016-01-07 | K52: Boleto
A53: 2016-01-07 | B53: FGTS | C53: Competência 12/2015 | D53: 437.06 | F53: 29989.19 | G53: ADM Alim jan | J53: 2016-01-07 | K53: Boleto
A54: 2016-01-07 | B54: Edson Siqueira Hornos | C54: Para cobrir C/C | D54: 64 | F54: 29925.19 | G54: Pessoal jan | J54: 2016-01-07 | K54: Transferência
A55: 2016-01-07 | B55: Lucas de França Rangel | C55: férias per.aquis.07/10/14 a 06/10/15 | D55: 1564.55 | F55: 28360.64 | G55: Buriti jan | J55: 2016-01-07 | K55: Transferência
A56: 2016-01-07 | B56: Rodrigo Luiz Teixeira da Silva | C56: Pagamento de salário | D56: 1173.4 | F56: 27187.24 | G56: Buriti jan | J56: 2016-01-07 | K56: Transferência
A57: 2016-01-07 | B57: Graziela Aparecida de Oliveira | C57: Pagamento de salário | D57: 1158.4 | F57: 26028.84 | G57: Buriti jan | J57: 2016-01-07 | K57: Transferência
A58: 2016-01-07 | B58: Maria de Fátima Bassanello Filha | C58: Pagamento de salário | D58: 989.4 | F58: 25039.44 | G58: Buriti jan | J58: 2016-01-07 | K58: Transferência
A59: 2016-01-07 | B59: Julio Cesar dos Santos Florenzano | C59: Pagamento de salário | D59: 1054.4 | F59: 23985.04 | G59: Buriti jan | J59: 2016-01-07 | K59: Transferência
A60: 2016-01-07 | B60: Danilo Rodrigues da Mota | C60: Pagamento de salário | D60: 948.8 | F60: 23036.24 | G60: Buriti jan | J60: 2016-01-07 | K60: Transferência
A61: 2016-01-07 | B61: Roberta Cristina X. dos Santos | C61: Pagamento de salário | D61: 895 | F61: 22141.24 | G61: Buriti jan | J61: 2016-01-07 | K61: Transferência
A62: 2016-01-07 | B62: Micheli Cristina Maximino Santos | C62: Pagamento de salário | D62: 978.4 | F62: 21162.84 | G62: Buriti jan | J62: 2016-01-07 | K62: Transferência
A63: 2016-01-07 | B63: Lucas de França Rangel | C63: Pagamento de salário | D63: 912.4 | F63: 20250.44 | G63: Buriti jan | J63: 2016-01-07 | K63: Transferência
A64: 2016-01-07 | B64: José Marcos Dias Gonçalves Costa | C64: Pagamento de salário | D64: 987.4 | F64: 19263.04 | G64: Buriti jan | J64: 2016-01-07 | K64: Transferência
A65: 2016-01-07 | B65: Victor Fellipe de Oliveira Galvão | C65: Pagamento de salário | D65: 1137.4 | F65: 18125.64 | G65: Buriti jan | J65: 2016-01-07 | K65: Transferência
A66: 2016-01-07 | B66: Sueli Moreira da Silva | C66: Pagamento de salário | D66: 853.4 | F66: 17272.24 | G66: Buriti jan | J66: 2016-01-07 | K66: Transferência
A67: 2016-01-07 | B67: André de Oliveira Lemos | C67: Pagamento de salário | D67: 868.4 | F67: 16403.84 | G67: Buriti jan | J67: 2016-01-07 | K67: Transferência
A68: 2016-01-07 | B68: Edilaine Cristina Fernandes | C68: Pagamento de salário | D68: 849 | F68: 15554.84 | G68: Buriti jan | J68: 2016-01-07 | K68: Transferência
A69: 2016-01-07 | B69: Domicio Mariano da Silva | C69: Pagamento de salário | D69: 1277.79 | F69: 14277.05 | G69: Outlet jan | J69: 2016-01-07 | K69: Transferência
A70: 2016-01-07 | B70: Fernando Ferreira Amaral | C70: Pagamento de salário | D70: 1090.79 | F70: 13186.26 | G70: Outlet jan | J70: 2016-01-07 | K70: Transferência
A71: 2016-01-07 | B71: Daniely Florêncio de carvalho | C71: Pagamento de salário | D71: 1089.79 | F71: 12096.47 | G71: Outlet jan | J71: 2016-01-07 | K71: Transferência
A72: 2016-01-07 | B72: Elcely MAria Menezes | C72: Pagamento de salário | D72: 1206.79 | F72: 10889.68 | G72: Outlet jan | J72: 2016-01-07 | K72: Transferência
A73: 2016-01-07 | B73: Andressa Lopes de Paiva | C73: Pagamento de salário | D73: 1155.79 | F73: 9733.89 | G73: Outlet jan | J73: 2016-01-07 | K73: Transferência
A74: 2016-01-07 | B74: Mário Almeida Santos | C74: Pagamento de salário | D74: 1054.73 | F74: 8679.16 | G74: Outlet jan | J74: 2016-01-07 | K74: Transferência
A75: 2016-01-07 | B75: Antonio Desterro de S. Pereira | C75: Pagamento de salário | D75: 747.73 | F75: 7931.43 | G75: Outlet jan | J75: 2016-01-07 | K75: Transferência
A76: 2016-01-07 | B76: Geciara dos Santos | C76: pagamento de salário | D76: 926.4 | F76: 7005.03 | G76: ADM Golden jan | J76: 2016-01-07 | K76: Transferência
A77: 2016-01-07 | B77: Nelson Rodrigues Brito Alves | C77: pagamento de salário | D77: 2046 | F77: =IF(E77>0,F76+E77,IF(D77>0,F76-D77," ")) -> 4959.03 | G77: ADM Golden jan | J77: 2016-01-07 | K77: Transferência
A78: 2016-01-07 | B78: Iraci Soares dos Santos Silva | C78: Pagamento de salário | D78: 856.4 | F78: 4102.63 | G78: Sampla jan | J78: 2016-01-07 | K78: Transferência
A79: 2016-01-07 | B79: Roseane Cirilo Cavalcante | C79: Pagamento de salário | D79: 177 | F79: 3925.63 | G79: Sampla jan | J79: 2016-01-07 | K79: Transferência
A80: 2016-01-07 | B80: Geovana Batista | C80: Pagamento de salário | D80: 789.2 | F80: 3136.43 | G80: Sampla jan | J80: 2016-01-07 | K80: Transferência
A81: 2016-01-07 | B81: Célia Félix de Souza | C81: Pagamento de salário | D81: 848.3 | F81: 2288.13 | G81: Sampla jan | J81: 2016-01-07 | K81: Transferência
A82: 2016-01-07 | B82: Osmar Bueno Gonçalves | C82: Pagamento de salário | D82: 2234.9 | F82: 53.23 | G82: ADM Alim jan | J82: 2016-01-07 | K82: Transferência
A83: 2016-01-08 | B83: Depósito em dinheiro | E83: 6451.5 | F83: 6504.73 | H83: Caixa de | I83: 2016-01-07 | K83: Buriti
A84: 2016-01-08 | B84: Depósito em dinheiro | E84: 20 | F84: 6524.73 | H84: caixa de | I84: 2016-01-08 | K84: Buriti
A85: 2016-01-08 | B85: Fatima Araujo Lima | C85: acordo saida das Empresas 36/60 | D85: 2787.55 | F85: 3737.18 | G85: ADM Alim jan | J85: 2016-01-08 | K85: Transferência
A86: 2016-01-08 | B86: Luciene de Alencar | C86: Assessoria de serviço de nutrição | D86: 2295 | F86: 1442.18 | G86: Sampla jan | J86: 2016-01-08 | K86: Ted-c
A87: 2016-01-08 | B87: Investline Factoring Grilo e Irmão | C87: 10.000 tickts para retrovisor | D87: 1080 | F87: 362.18 | G87: Outlet jan | H87: 4515 | I87: 2015-12-11 | J87: 2016-01-08 | K87: Boleto
A88: 2016-01-08 | B88: Sodexso Pass do Brasil | C88: Cesta Básica | D88: 344.4 | F88: 17.78 | G88: Sampla jan | H88: 9639777 | I88: 2016-01-08 | J88: 2016-01-08 | K88: Boleto
A89: 2016-01-08 | B89: Tarifa Ted Sispag | D89: 8.5 | F89: 9.28
A90: 2016-01-11 | B90: Depósito em dinheiro | E90: 337 | F90: 346.28 | H90: Caixa de | I90: 2016-01-09 | K90: Outlet
A91: 2016-01-11 | B91: Depósito em dinheiro | E91: 8194 | F91: 8540.28 | H91: Caixa de | I91: 2016-01-10 | K91: Buriti
A92: 2016-01-11 | B92: Depósito em dinheiro | E92: 9044.5 | F92: 17584.78 | H92: Caixa de | I92: 2016-01-09 | K92: Buriti
A93: 2016-01-11 | B93: Depósito em dinheiro | E93: 6993.25 | F93: 24578.03 | H93: Caixa de | I93: 2016-01-08 | K93: Buriti
A94: 2016-01-11 | B94: Depósito em dinheiro | C94: Devolução Ntalalie | E94: 15200 | F94: 39778.03
A95: 2016-01-11 | B95: Luciene de Alencar | C95: Reembolso de KM ref. mês 12/2015 | D95: 213.2 | F95: 39564.83 | G95: Sampla jan | J95: 2016-01-09 | K95: Doc-c
A96: 2016-01-11 | B96: Luciene de Alencar | C96: Reembolso de Caixinha ref mês | D96: 267.74 | F96: 39297.09 | G96: Sampla jan | J96: 2016-01-10 | K96: Doc-c
A97: 2016-01-11 | B97: Edson Siqueira Hornos | C97: Para cobrir Sem parar | D97: 411.87 | F97: 38885.22 | G97: ADM Golden jan | J97: 2016-01-10 | K97: Boleto
A98: 2016-01-11 | B98: WPS Brasil Ltda | C98: Atendimento hora técnica | D98: 1354.92 | F98: 37530.3 | G98: Buriti jan | H98: 22032 | I98: 2015-12-11 | J98: 2016-01-10 | K98: Boleto
A99: 2016-01-11 | B99: Cond. Edif. Marquez de M. Alegre | C99: Cond. Apto Edson ref 01/2016 | D99: 897.16 | F99: 36633.14 | G99: Pessoal jan | H99: 00352501 | I99: 2015-12-16 | J99: 2016-01-10 | K99: Boleto
A100: 2016-01-11 | B100: Amede Ass. Médica na empresa | C100: Exame ad, Antonio e Mario e dem. Enoque | D100: 120 | F100: 36513.14 | G100: Outlet jan | H100: 3332 | I100: 2015-12-18 | J100: 2016-01-10 | K100: Boleto
A101: 2016-01-11 | B101: Cond. Cachoeiro do Imarata | C101: Ref. sítio de Ita tiba 01/2016 | D101: 440 | F101: 36073.14 | G101: Pessoal jan | H101: 208781 | I101: 2015-12-22 | J101: 2016-01-10 | K101: Boleto
A102: 2016-01-11 | B102: Sindicato trab. Ref. col. Afins Itaq | C102: Mensalidade associativa 13° Salário | D102: 26.5 | F102: 36046.64 | G102: Sampla jan | J102: 2016-01-10 | K102: Boleto
A103: 2016-01-11 | B103: Sindicato trab. Ref. col. Afins Itaq | C103: Mensalidade associativa | D103: 26.5 | F103: 36020.14 | G103: Sampla jan | J103: 2016-01-10 | K103: Boleto
A104: 2016-01-11 | B104: Sindicato trab. Ref. col. Afins Itaq | C104: Contrib. Da categoria 13° sal. | D104: 58.5 | F104: 35961.64 | G104: Sampla jan | J104: 2016-01-10 | K104: Boleto
A105: 2016-01-11 | B105: Sindicato trab. Ref. col. Afins Itaq | C105: Contrib. Da categoria | D105: 58.5 | F105: 35903.14 | G105: Sampla jan | J105: 2016-01-10 | K105: Boleto
A106: 2016-01-11 | B106: Sindicato trab. Ref. col. Afins Itaq | C106: Uniodonto | D106: 26 | F106: 35877.14 | G106: Sampla jan | J106: 2016-01-10 | K106: Boleto
A107: 2016-01-11 | B107: Sindicato trab. Ref. col. Afins Itaq | C107: Subsídio de benefício | D107: 55 | F107: 35822.14 | G107: Sampla jan | J107: 2016-01-10 | K107: Boleto
A108: 2016-01-11 | B108: ICMS - Vlr. Dep. na C/C do Nelson | C108: PEP-Prog.Esp.Parc.ICMS Fco rocha 17/120 | D108: 3292.41 | F108: 32529.73 | G108: ADM Alim jan | J108: 2016-01-11 | K108: Boleto
A109: 2016-01-11 | B109: ICMS - Vlr. Dep. na C/C do Nelson | C109: Parcelamento ICM S Sampla parc. 17/120 | D109: 840.79 | F109: 31688.94 | G109: Sampla jan | J109: 2016-01-11 | K109: Boleto
A110: 2016-01-11 | B110: AES Eletropaulo | C110: Ref. janeiro 2016 | D110: 223.05 | F110: 31465.89 | G110: ADM Golden jan | J110: 2016-01-11 | K110: Boleto
A111: 2016-01-11 | B111: AES Eletropaulo | C111: Conta ref. a jan/2016 | D111: 66.92 | F111: 31398.97 | G111: Pessoal jan | J111: 2016-01-11 | K111: Boleto
A112: 2016-01-11 | B112: IPVA 2016 | C112: Lexus 01/03 | D112: 259.57 | F112: 31139.4 | G112: Pessoal jan | J112: 2016-01-11 | K112: Boleto
A113: 2016-01-11 | B113: Cond. Buriti Shopping Guará | C113: Aluguel 01a10/01/16=R$69.788,40X40% | D113: 27915.36 | F113: 3224.04 | G113: Buriti jan | J113: 2016-01-11 | K113: Transferência
A114: 2016-01-11 | B114: Alvaro Jim Natsume | C114: Sinistro Toyota Filder Placa HDT-3884 | D114: 500 | F114: 2724.04 | G114: Outlet jan | I114: Vide coment. | J114: 2016-01-11 | K114: doc-c
A115: 2016-01-11 | B115: Nelson Rodrigues Brito Alves | C115: Para acerto do caixa de 10/01/2016 | D115: 2671.5 | F115: 52.54 | G115: Outlet jan | J115: 2016-01-11 | K115: Transferência
A116: 2016-01-11 | B116: Tarifa Doc Sispag | D116: 25.5 | F116: 27.04
A117: 2016-01-12 | B117: Depósito em dinheiro | E117: 8718.31 | F117: 8745.35 | H117: Caixa de | I117: 2016-01-11 | K117: Buriti
A118: 2016-01-12 | B118: I Park estacionamentos Ltda | C118: Ref. movimento de 09/01/2016 | D118: 4635 | F118: 4110.35 | G118: Outlet jan | J118: 2016-01-12 | K118: Transferência
A119: 2016-01-12 | B119: Cortes de Ouro Com. D alim. Ltda | C119: Carnes para unidade | D119: 2818.4 | F119: 1291.95 | G119: Sampla jan | H119: 47 | I119: 2015-12-28 | J119: 2016-01-12 | K119: Transferência
A120: 2016-01-12 | B120: Condomínio Edifício Renata | C120: Condom. De Dezembro de 2015 | D120: 750.72 | F120: 541.23 | G120: ADM Golden jan | J120: 2016-01-12 | K120: Boleto
A121: 2016-01-12 | B121: Nelson Rodrigues Brito Alves | C121: Para entregar ao Edson (Faxineira) | D121: 170 | F121: 371.23 | G121: Pessoal jan | J121: 2016-01-12 | K121: Transferência
A122: 2015-01-12 | B122: Natalie Lima Hornos | C122: Depósito em C/C a pedido do Edson | D122: 300 | F122: 71.23 | J122: 2016-01-12 | K122: Transferência
A123: 2016-01-13 | B123: Depósito em dinheiro | E123: 6254.89 | F123: 6326.12 | H123: Caixa de | I123: 2016-01-12 | K123: Buriti
A124: 2016-01-13 | B124: I Park estacionamentos Ltda | C124: Ref. movimento de 10/01/2016 | D124: 2245 | F124: 4081.12 | G124: Outlet jan | J124: 2016-01-13 | K124: Transferência
A125: 2016-01-13 | B125: Maria Angêla Paschoralin | C125: Sinistro Mercedes Placa HDI-3174 | D125: 950 | F125: 3131.12 | G125: Outlet jan | J125: 2016-01-13 | K125: doc-c
A126: 2016-01-13 | B126: Fatima Araujo Lima | C126: Reembolso Pneus Pegeout 03/04 | D126: 270 | F126: 2861.12 | G126: Pessoal jan | J126: 2016-01-13 | K126: Transferência
A127: 2016-01-13 | B127: Natalie Lima Hornos | C127: Depósito em C/C a pedido do Edson | D127: 2800 | F127: 61.12
A128: 2016-01-13 | B128: Tarifa Doc Sispag | D128: 8.5 | F128: 52.62
A129: 2016-01-14 | B129: Depósito em dinheiro | E129: 6605.5 | F129: 6658.12 | H129: Caixa de | I129: 2016-01-13 | K129: Buriti
A130: 2016-01-14 | B130: Natalie Lima Hornos | C130: Depósito em C/C a pedido do Edson | D130: 6600 | F130: 58.12 | J130: 2016-01-14 | K130: Transferência
A131: 2016-01-15 | B131: Depósito em dinheiro | E131: 6129 | F131: 6187.12 | H131: Caixa de | I131: 2016-01-14 | K131: Buriti
A132: 2016-01-15 | B132: INSS | C132: Stefanie -Facultativo compet. 12/2015 | D132: 157.6 | F132: 6029.52 | G132: Pessoal jan | J132: 2016-01-15 | K132: Transferência
A133: 2016-01-15 | B133: SEEG - Sind. Empreg. Estac. S.P. | C133: Contrib. Assistencial | D133: 208 | F133: 5821.52 | G133: Buriti jan | J133: 2016-01-15 | K133: Boleto
A134: 2016-01-15 | B134: SEEG - Sind. Empreg. Estac. S.P. | C134: Contrib. Assistencial | D134: 128 | F134: 5693.52 | G134: Outlet jan | J134: 2016-01-15 | K134: Boleto
A135: 2016-01-15 | B135: Dario Lima de Macedo | C135: Sinistro Sandero Placa ERW-5398 | D135: 350 | F135: 5343.52 | G135: Outlet jan | J135: 2016-01-15 | K135: doc-c
A136: 2016-01-15 | B136: Net virtua e tv | C136: Mês de referência 12/2015 | D136: 187.8 | F136: 5155.72 | G136: Pessoal jan | J136: 2016-01-15 | K136: Boleto
A137: 2016-01-15 | B137: Natalie Lima Hornos | C137: Depósito em C/C a pedido do Edson | D137: 5100 | F137: 55.72 | J137: 2016-01-15 | K137: Transferência
A138: 2016-01-15 | B138: Tarifa Doc Sispag | D138: 8.5 | F138: 47.22
A139: 2016-01-18 | B139: Depósito em dinheiro | E139: 379 | F139: 426.22 | H139: Caixa de | I139: 2016-01-16 | K139: Outlet
A140: 2016-01-18 | B140: Depósito em dinheiro | E140: 8220 | F140: 8646.22 | H140: Caixa de | I140: 2016-01-16 | K140: Buriti
A141: 2016-01-18 | B141: Depósito em dinheiro | E141: 7538 | F141: =IF(E141>0,F140+E141,IF(D141>0,F140-D141," ")) -> 16184.22 | H141: Caixa de | I141: 2016-01-17 | K141: Buriti
A142: 2016-01-18 | B142: Depósito em dinheiro | E142: 7413 | F142: 23597.22 | H142: Caixa de | I142: 2016-01-15 | K142: Buriti
A143: 2016-01-18 | B143: Papelaria Vale do Jordão Ltda | C143: Ficha avulsa Outlet 02/03 | D143: 500 | F143: 23097.22 | G143: Outlet jan | H143: 2219 | I143: 2015-11-16 | J143: 2016-01-16 | K143: Boleto
A144: 2016-01-18 | B144: Maria Inês Francischinelli Sbrissa | C144: Aluguel escritório | D144: 2455.3 | F144: 20641.92 | G144: ADM Golden jan | J144: 2016-01-16 | K144: Ted-c
A145: 2016-01-18 | B145: WPS Brasil Ltda | C145: Conserto de duas imressoras | D145: 3127.48 | F145: 17514.44 | G145: Buriti jan | H145: 22183 | I145: 2015-12-17 | J145: 2016-01-16 | K145: Boleto
A146: 2016-01-18 | B146: Ester Maria Costa Sampaio | C146: Renovatória Buriti 3° faze sentença 02/06 | D146: 1500 | F146: 16014.44 | G146: Buriti jan | J146: 2016-01-17 | K146: Ted-c
A147: 2016-01-18 | B147: Comgas | C147: Mês de referência 01/2016 | D147: 23.7 | F147: 15990.74 | G147: Pessoal jan | J147: 2016-01-17 | K147: Boleto
A148: 2016-01-18 | B148: Prefeitura Municipal de Guaratin | C148: Parcelamento ISS Buriti 23/36 | D148: 2764.52 | F148: 13226.22 | G148: Buriti jan | J148: 2016-01-18 | K148: Boleto
A149: 2016-01-18 | B149: Caroline Hornos Araujo | C149: Devol. Emptréstimo compra Azera 01/26 | D149: 1111 | F149: 12115.22 | G149: Pessoal jan | J149: 2016-01-18 | K149: Transferência
A150: 2016-01-18 | B150: Caroline Hornos Araujo | C150: Celular IPHONE6S - Diretor 01/10 | D150: 429.9 | F150: 11685.32 | G150: Pessoal jan | J150: 2016-01-18 | K150: Transferência
A151: 2016-01-18 | B151: Igreja Batista de Agua Branca | C151: Dízimo Edson Siqueira Hornos | D151: 537 | F151: 11148.32 | G151: Pessoal jan | J151: 2016-01-18 | K151: Transferência
A152: 2016-01-18 | B152: Nelson Rodrigues Brito Alves | C152: Para acerto do caixa de 17/01/2016 | D152: 1310.5 | F152: 9837.82 | G152: Outlet jan | J152: 2016-01-18 | K152: Transferência
A153: 2016-01-18 | B153: I Park estacionamentos Ltda | C153: Ref. movimento de 16/01/2016 | D153: 4712.5 | F153: 5125.32 | G153: Outlet jan | J153: 2016-01-18 | K153: Transferência
A154: 2016-01-18 | B154: I Park estacionamentos Ltda | C154: Ref. Movimento de 17/01/2016 | D154: 3330 | F154: 1795.32 | G154: Outlet jan | J154: 2016-01-18 | K154: Transferência
A155: 2016-01-18 | B155: Natalie Lima Hornos | C155: Depósito em C/C a pedido do Edson | D155: 1750 | F155: 45.32 | J155: 2016-01-18 | K155: Transferência
A156: 2016-01-18 | B156: Tarifa Ted Sispag | D156: 17 | F156: 28.32
A157: 2016-01-19 | B157: Depósito em dinheiro | E157: 6955.5 | F157: 6983.82 | K157: Buriti
A158: 2016-01-19 | B158: Transferência de valores | C158: Do HSBC Golden para cá | E158: 37500 | F158: 44483.82
A159: 2016-01-19 | B159: Investline Factoring Grilo e Irmão | C159: 5.000 ticket de retrov. +100bloco che.list | D159: 1190 | F159: 43293.82 | G159: Outlet jan | H159: 4548 | I159: 2016-01-09 | J159: 2016-01-19 | K159: Boleto
A160: 2016-01-19 | B160: Impakto sistema de limpeza e des | C160: Material de higiene e lim peza | D160: 861.38 | F160: 42432.44 | G160: Sampla jan | H160: 9221 | I160: 2015-12-22 | J160: 2016-01-19 | K160: Boleto
A161: 2016-01-19 | B161: ICMS | C161: Competência 12/2015 | D161: 1953.68 | F161: 40478.76 | G161: Sampla jan | J161: 2016-01-19 | K161: Boleto
A162: 2016-01-19 | B162: Net virtua | C162: Mês de referência dezembro/2015 | D162: 144.9 | F162: 40333.86 | G162: ADM Golden jan | J162: 2016-01-19 | K162: Boleto
A163: 2016-01-19 | B163: Nelson Rodrigues Brito Alves | C163: Para entregar ao Edson (Faxineira) | D163: 170 | F163: 40163.86 | G163: Pessoal jan | J163: 2016-01-19 | K163: Transferência
A164: 2016-01-19 | B164: Natalie Lima Hornos | C164: Depósito em C/C a pedido do Edson | D164: 40100 | F164: 63.86 | J164: 2016-01-19 | K164: Transferência
A165: 2016-01-20 | B165: Depósito em dinheiro | E165: 5187 | F165: 5250.86 | H165: Caixa de | I165: 2016-01-19 | K165: Buriti
A166: 2016-01-20 | B166: NF 015 | C166: Sampla ref. 1° quinz. De 01/2016 | E166: 13246.8 | F166: 18497.66
A167: 2016-01-20 | B167: Devolução Natalie | E167: 9300 | F167: 27797.66
A168: 2016-01-20 | B168: Rodrigo Luiz Teixeira da Silva | C168: Adiantamento de salário | D168: 754 | F168: 27043.66 | G168: Buriti jan | J168: 2016-01-20 | K168: Transferência
A169: 2016-01-20 | B169: Graziela Aparecida de Oliveira | C169: Adiantamento de salário | D169: 581 | F169: 26462.66 | G169: Buriti jan | J169: 2016-01-20 | K169: Transferência
A170: 2016-01-20 | B170: Maria de Fátima Bassanello Filha | C170: Adiantamento de salário | D170: 516 | F170: 25946.66 | G170: Buriti jan | J170: 2016-01-20 | K170: Transferência
A171: 2016-01-20 | B171: Julio Cesar dos Santos Florenzano | C171: Adiantamento de salário | D171: 516 | F171: 25430.66 | G171: Buriti jan | J171: 2016-01-20 | K171: Transferência
A172: 2016-01-20 | B172: Danilo Rodrigues da Mota | C172: Adiantamento de salário | D172: 516 | F172: 24914.66 | G172: Buriti jan | J172: 2016-01-20 | K172: Transferência
A173: 2016-01-20 | B173: Roberta Cristina X. dos Santos | C173: Adiantamento de salário | D173: 516 | F173: 24398.66 | G173: Buriti jan | J173: 2016-01-20 | K173: Transferência
A174: 2016-01-20 | B174: Micheli Cristina Maximino Santos | C174: Adiantamento de salário | D174: 516 | F174: 23882.66 | G174: Buriti jan | J174: 2016-01-20 | K174: Transferência
A175: 2016-01-20 | B175: Lucas de França Rangel | C175: Adiantamento de salário | D175: 100 | F175: 23782.66 | G175: Buriti jan | J175: 2016-01-20 | K175: Transferência
A176: 2016-01-20 | B176: José Marcos Dias Gonçalves Costa | C176: Adiantamento de salário | D176: 516 | F176: 23266.66 | G176: Buriti jan | J176: 2016-01-20 | K176: Transferência
A177: 2016-01-20 | B177: Victor Fellipe de Oliveira Galvão | C177: Adiantamento de salário | D177: 581 | F177: 22685.66 | G177: Buriti jan | J177: 2016-01-20 | K177: Transferência
A178: 2016-01-20 | B178: Sueli Moreira da Silva | C178: Adiantamento de salário | D178: 516 | F178: 22169.66 | G178: Buriti jan | J178: 2016-01-20 | K178: Transferência
A179: 2016-01-20 | B179: André de Oliveira Lemos | C179: Adiantamento de salário | D179: 516 | F179: 21653.66 | G179: Buriti jan | J179: 2016-01-20 | K179: Transferência
A180: 2016-01-20 | B180: Edilaine Cristina Fernandes | C180: Adiantamento de salário | D180: 516 | F180: 21137.66 | G180: Buriti jan | J180: 2016-01-20 | K180: Transferência
A181: 2016-01-20 | B181: Domicio Mariano da Silva | C181: Adiantamento de salário | D181: 516 | F181: 20621.66 | G181: Outlet jan | J181: 2016-01-20 | K181: Transferência
A182: 2016-01-20 | B182: Fernando Ferreira Amaral | C182: Adiantamento de salário | D182: 516 | F182: 20105.66 | G182: Outlet jan | J182: 2016-01-20 | K182: Transferência
A183: 2016-01-20 | B183: Daniely Florêncio de carvalho | C183: Adiantamento de salário | D183: 516 | F183: 19589.66 | G183: Outlet jan | J183: 2016-01-20 | K183: Transferência
A184: 2016-01-20 | B184: Elcely MAria Menezes | C184: Adiantamento de salário | D184: 516 | F184: 19073.66 | G184: Outlet jan | J184: 2016-01-20 | K184: Transferência
A185: 2016-01-20 | B185: Andressa Lopes de Paiva | C185: Adiantamento de salário | D185: 516 | F185: 18557.66 | G185: Outlet jan | J185: 2016-01-20 | K185: Transferência
A186: 2016-01-20 | B186: Antonio Desterro de S. Pereira | C186: Adiantamento de salário | D186: 516 | F186: 18041.66 | G186: Outlet jan | J186: 2016-01-20 | K186: Transferência
A187: 2016-01-20 | B187: Mário Almeida Santos | C187: Adiantamento de salário | D187: 590 | F187: 17451.66 | G187: Outlet jan | J187: 2016-01-20 | K187: Transferência
A188: 2016-01-20 | B188: Geciara dos Santos | C188: Adiantamento de salário | D188: 609 | F188: 16842.66 | G188: ADM Golden jan | J188: 2016-01-20 | K188: Transferência
A189: 2016-01-20 | B189: Nelson Rodrigues Brito Alves | C189: Adiantamento de salário | D189: 1212 | F189: 15630.66 | G189: ADM Golden jan | J189: 2016-01-20 | K189: Transferência
A190: 2016-01-20 | B190: Iraci Soares dos Santos Silva | C190: Adiantamento de salário | D190: 499 | F190: 15131.66 | G190: Sampla jan | J190: 2016-01-20 | K190: Transferência
A191: 2016-01-20 | B191: Roseane Cirilo Cavalcante | C191: Adiantamento de salário | D191: 450 | F191: 14681.66 | G191: Sampla jan | J191: 2016-01-20 | K191: Transferência
A192: 2016-01-20 | B192: Geovana Batista | C192: Adiantamento de salário | D192: 450 | F192: 14231.66 | G192: Sampla jan | J192: 2016-01-20 | K192: Transferência
A193: 2016-01-20 | B193: Célia Félix de Souza | C193: Adiantamento de salário | D193: 450 | F193: 13781.66 | G193: Sampla jan | J193: 2016-01-20 | K193: Transferência
A194: 2016-01-20 | B194: Osmar Bueno Gonçalves | C194: Adiantamento de salário | D194: 1354 | F194: 12427.66 | G194: ADM Alim jan | J194: 2016-01-20 | K194: Transferência
A195: 2016-01-20 | B195: Ligia Maria Mac-Knight Pedroso | C195: Dentista 02/03 | D195: 549.33 | F195: 11878.33 | G195: Pessoal jan | J195: 2016-01-20 | K195: doc-c
A196: 2016-01-20 | B196: DARF | C196: IR sobre pró-labóre | D196: 167.99 | F196: 11710.34 | G196: ADM Golden jan | J196: 2016-01-20 | K196: Boleto
A197: 2016-01-20 | B197: DARF | C197: IR Sobre folha de pgto e 13° Nelson | D197: 193.64 | F197: 11516.7 | G197: ADM Golden jan | J197: 2016-01-20 | K197: Boleto
A198: 2016-01-20 | B198: DARF | C198: IR Sobre folha de pgto e 13° Osmar | D198: 205.98 | F198: 11310.72 | G198: ADM Alim jan | J198: 2016-01-20 | K198: Boleto
A199: 2016-01-20 | B199: INSS | C199: Competência 12/2015 | D199: 6944.19 | F199: 4366.53 | G199: Buriti jan | J199: 2016-01-20 | K199: Boleto
A200: 2016-01-20 | B200: INSS | C200: Competência 12/2015 | D200: 700.29 | F200: 3666.24 | G200: Outlet jan | J200: 2016-01-20 | K200: Boleto
A201: 2016-01-20 | B201: INSS | C201: Competência 12/2015 | D201: 303.08 | F201: 3363.16 | G201: ADM Golden jan | J201: 2016-01-20 | K201: Boleto
A202: 2016-01-20 | B202: INSS | C202: Competência 12/2015 | D202: 1865.52 | F202: 1497.64 | G202: Sampla jan | J202: 2016-01-20 | K202: Boleto
... 963 more rows

Sheet Itaú - CNS
A1: Empresa: | B1: CNS comunicação Ltda | D1: Banco: | E1: Itaú S/A. | H1: Crédito | J1: =E749 -> 0
A2: C.N.P.J n.º: | B2: 05.312.107/0001-99 | D2: Agencia n° | E2: 0429 | H2: Débito | J2: =D749 -> 0
A3: Endereço: | B3: Av. Pacaembu, 746 Pacaembu São Paulo - SP | D3: Conta Corrente n.º: | E3: 58.907-0 | H3: Devolução DOC | J3: 0
B4: CEP 01234-000 | H4: Juros | J4: =D10+D11 -> 0
A5: Valor do saldo anterior | C5: 0 | D5: Referente o mês de: | E5: 2016-03-01 | H5: Amortização | J5: 0
A6: Valor final do saldo Extrato Bancário | C6: =C5+E749-D749 -> 0 | H6: Devolução CH | J6: 0
A9: Data | B9: Discrição (nome do credor) | C9: Histórico | D9: Débito | E9: Crédito | F9: Saldo | G9: Filial Saída | H9: NF n° ou caixa de | I9: Emissão ou depósito | J9: Vencim. | K9: Tipo de pgto e entrada
F10: =C5-D10+E10 -> 0
F11: =F10-D11+E11 -> 0
F12: =F11-D12+E12 -> 0
F13: 0
F14: 0
F15: 0
F16: 0
F17: 0
F18: 0
F19: 0
F20: 0
F21: 0
F22: 0
F23: 0
F24: 0
F25: 0
F26: 0
F27: 0
F28: 0
F29: 0
F30: 0
F31: 0
F32: 0
F33: 0
F34: 0
F35: 0
F36: 0
F37: 0
F38: 0
F39: 0
F40: 0
F41: 0
F42: 0
F43: 0
F44: 0
F45: 0
F46: 0
F47: 0
F48: 0
F49: 0
F50: 0
F51: 0
F52: 0
F53: 0
F54: 0
F55: 0
F56: 0
F57: 0
F58: 0
F59: 0
F60: 0
F61: 0
F62: 0
F63: 0
F64: 0
F65: 0
F66: 0
F67: 0
F68: 0
F69: 0
F70: 0
F71: 0
F72: 0
F73: 0
F74: 0
F75: 0
F76: =F75-D76+E76 -> 0
F77: 0
F78: 0
F79: 0
F80: 0
F81: 0
F82: 0
F83: 0
F84: 0
F85: 0
F86: 0
F87: 0
F88: 0
F89: 0
F90: 0
F91: 0
F92: 0
F93: 0
F94: 0
F95: 0
F96: 0
F97: 0
F98: 0
F99: 0
F100: 0
F101: 0
F102: 0
F103: 0
F104: 0
F105: 0
F106: 0
F107: 0
F108: 0
F109: 0
F110: 0
F111: 0
F112: 0
F113: 0
F114: 0
F115: 0
F116: 0
F117: 0
F118: 0
F119: 0
F120: 0
F121: 0
F122: 0
F123: 0
F124: 0
F125: 0
F126: 0
F127: 0
F128: 0
F129: 0
F130: 0
F131: 0
F132: 0
F133: 0
F134: 0
F135: 0
F136: 0
F137: 0
F138: 0
F139: 0
F140: =F139-D140+E140 -> 0
F141: 0
F142: 0
F143: 0
F144: 0
F145: 0
F146: 0
F147: 0
F148: 0
F149: 0
F150: 0
F151: 0
F152: 0
F153: 0
F154: 0
F155: 0
F156: 0
F157: 0
F158: 0
F159: 0
F160: 0
F161: 0
F162: 0
F163: 0
F164: 0
F165: 0
F166: 0
F167: 0
F168: 0
F169: 0
F170: 0
F171: 0
F172: 0
F173: 0
F174: 0
F175: 0
F176: 0
F177: 0
F178: 0
F179: 0
F180: 0
F181: 0
F182: 0
F183: 0
F184: 0
F185: 0
F186: 0
F187: 0
F188: 0
F189: 0
F190: 0
F191: 0
F192: 0
F193: 0
F194: 0
F195: 0
F196: 0
F197: 0
F198: 0
F199: 0
F200: 0
F201: 0
F202: 0
... 547 more rows

Sheet Itaú -Golden
A1: Empresa: | B1: Goldenpark estacionamentos | D1: Banco: | E1: Itaú S/A. | H1: Crédito | J1: =E749 -> 0
A2: C.N.P.J n.º: | B2: 05.843.775/0001-42 | D2: Agencia n° | E2: 0429 | H2: Débito | J2: =D749 -> 0
A3: Endereço: | B3: Av. Pacaembu, 746 Pacaembu São Paulo - SP | D3: Conta Corrente n.º: | E3: 58.905-4 | H3: Devolução DOC | J3: 0
B4: CEP 01234-000 | H4: Juros
A5: Valor do saldo anterior | C5: 0 | D5: Referente o mês de: | H5: Amortização | J5: 0
A6: Valor final do saldo Extrato Bancário | C6: =C5+E749-D749 -> 0 | H6: Devolução CH | J6: 0
A9: Data | B9: Discrição (nome do credor) | C9: Histórico | D9: Débito | E9: Crédito | F9: Saldo | G9: Filial Saída | H9: NF n° ou caixa de | I9: Emissão ou depósito | J9: Vencim. | K9: Tipo de pgto e entrada
F10: =C5-D10+E10 -> 0
F11: =F10-D11+E11 -> 0
F12: =F11-D12+E12 -> 0
F13: =F12-D13+E13 -> 0
F14: =F13-D14+E14 -> 0
F15: =F14-D15+E15 -> 0
F16: 0
F17: 0
F18: 0
F19: 0
F20: 0
F21: 0
F22: 0
F23: 0
F24: 0
F25: 0
F26: 0
F27: 0
F28: 0
F29: 0
F30: 0
F31: 0
F32: 0
F33: 0
F34: 0
F35: 0
F36: 0
F37: 0
F38: 0
F39: 0
F40: 0
F41: 0
F42: 0
F43: 0
F44: 0
F45: 0
F46: 0
F47: 0
F48: 0
F49: 0
F50: 0
F51: 0
F52: 0
F53: 0
F54: 0
F55: 0
F56: 0
F57: 0
F58: 0
F59: 0
F60: 0
F61: 0
F62: 0
F63: 0
F64: 0
F65: 0
F66: 0
F67: 0
F68: 0
F69: 0
F70: 0
F71: 0
F72: 0
F73: 0
F74: 0
F75: 0
F76: 0
F77: 0
F78: 0
F79: =F78-D79+E79 -> 0
F80: 0
F81: 0
F82: 0
F83: 0
F84: 0
F85: 0
F86: 0
F87: 0
F88: 0
F89: 0
F90: 0
F91: 0
F92: 0
F93: 0
F94: 0
F95: 0
F96: 0
F97: 0
F98: 0
F99: 0
F100: 0
F101: 0
F102: 0
F103: 0
F104: 0
F105: 0
F106: 0
F107: 0
F108: 0
F109: 0
F110: 0
F111: 0
F112: 0
F113: 0
F114: 0
F115: 0
F116: 0
F117: 0
F118: 0
F119: 0
F120: 0
F121: 0
F122: 0
F123: 0
F124: 0
F125: 0
F126: 0
F127: 0
F128: 0
F129: 0
F130: 0
F131: 0
F132: 0
F133: 0
F134: 0
F135: 0
F136: 0
F137: 0
F138: 0
F139: 0
F140: 0
F141: 0
F142: 0
F143: =F142-D143+E143 -> 0
F144: 0
F145: 0
F146: 0
F147: 0
F148: 0
F149: 0
F150: 0
F151: 0
F152: 0
F153: 0
F154: 0
F155: 0
F156: 0
F157: 0
F158: 0
F159: 0
F160: 0
F161: 0
F162: 0
F163: 0
F164: 0
F165: 0
F166: 0
F167: 0
F168: 0
F169: 0
F170: 0
F171: 0
F172: 0
F173: 0
F174: 0
F175: 0
F176: 0
F177: 0
F178: 0
F179: 0
F180: 0
F181: 0
F182: 0
F183: 0
F184: 0
F185: 0
F186: 0
F187: 0
F188: 0
F189: 0
F190: 0
F191: 0
F192: 0
F193: 0
F194: 0
F195: 0
F196: 0
F197: 0
F198: 0
F199: 0
F200: 0
F201: 0
F202: 0
... 547 more rows

Sheet HSBC Alimenta
A1: Empresa: | B1: Alimenta serviços Ltda | D1: Banco: | E1: HSBC | H1: Crédito | J1: =E749 -> 0
A2: C.N.P.J n.º: | B2: 06.128.893/0001-31 | D2: Agencia n° | E2: 0213 | H2: Débito | J2: =D749 -> 0
A3: Endereço: | B3: Av. Pacaembu, 746 Pacaembu São Paulo - SP | D3: Conta Corrente n.º: | E3: 14.618-30 | H3: Devolução DOC | J3: 0
B4: CEP 01234-000 | H4: Juros
A5: Valor do saldo anterior | D5: Referente o mês de: | H5: Amortização | J5: 0
A6: Valor final do saldo Extrato Bancário | C6: =C5+E749-D749 -> 0 | H6: Devolução CH | J6: 0
A9: Data | B9: Discrição (nome do credor) | C9: Histórico | D9: Débito | E9: Crédito | F9: Saldo | G9: Filial Saída | H9: NF n° ou caixa de | I9: Emissão ou depósito | J9: Vencim. | K9: Tipo de pgto e entrada
F10: =C5-D10+E10 -> 0
F11: =F10-D11+E11 -> 0
F12: =F11-D12+E12 -> 0
F13: =F12-D13+E13 -> 0
F14: =F13-D14+E14 -> 0
F15: =F14-D15+E15 -> 0
F16: 0
F17: 0
F18: 0
F19: 0
F20: 0
F21: 0
F22: 0
F23: 0
F24: 0
F25: 0
F26: 0
F27: 0
F28: 0
F29: 0
F30: 0
F31: 0
F32: 0
F33: 0
F34: 0
F35: 0
F36: 0
F37: 0
F38: 0
F39: 0
F40: 0
F41: 0
F42: 0
F43: 0
F44: 0
F45: 0
F46: 0
F47: 0
F48: 0
F49: 0
F50: 0
F51: 0
F52: 0
F53: 0
F54: 0
F55: 0
F56: 0
F57: 0
F58: 0
F59: 0
F60: 0
F61: 0
F62: 0
F63: 0
F64: 0
F65: 0
F66: 0
F67: 0
F68: 0
F69: 0
F70: 0
F71: 0
F72: 0
F73: 0
F74: 0
F75: 0
F76: 0
F77: 0
F78: 0
F79: =F78-D79+E79 -> 0
F80: 0
F81: 0
F82: 0
F83: 0
F84: 0
F85: 0
F86: 0
F87: 0
F88: 0
F89: 0
F90: 0
F91: 0
F92: 0
F93: 0
F94: 0
F95: 0
F96: 0
F97: 0
F98: 0
F99: 0
F100: 0
F101: 0
F102: 0
F103: 0
F104: 0
F105: 0
F106: 0
F107: 0
F108: 0
F109: 0
F110: 0
F111: 0
F112: 0
F113: 0
F114: 0
F115: 0
F116: 0
F117: 0
F118: 0
F119: 0
F120: 0
F121: 0
F122: 0
F123: 0
F124: 0
F125: 0
F126: 0
F127: 0
F128: 0
F129: 0
F130: 0
F131: 0
F132: 0
F133: 0
F134: 0
F135: 0
F136: 0
F137: 0
F138: 0
F139: 0
F140: 0
F141: 0
F142: 0
F143: =F142-D143+E143 -> 0
F144: 0
F145: 0
F146: 0
F147: 0
F148: 0
F149: 0
F150: 0
F151: 0
F152: 0
F153: 0
F154: 0
F155: 0
F156: 0
F157: 0
F158: 0
F159: 0
F160: 0
F161: 0
F162: 0
F163: 0
F164: 0
F165: 0
F166: 0
F167: 0
F168: 0
F169: 0
F170: 0
F171: 0
F172: 0
F173: 0
F174: 0
F175: 0
F176: 0
F177: 0
F178: 0
F179: 0
F180: 0
F181: 0
F182: 0
F183: 0
F184: 0
F185: 0
F186: 0
F187: 0
F188: 0
F189: 0
F190: 0
F191: 0
F192: 0
F193: 0
F194: 0
F195: 0
F196: 0
F197: 0
F198: 0
F199: 0
F200: 0
F201: 0
F202: 0
... 547 more rows

Sheet HSBC CNS
A1: Empresa: | B1: CNS comunicação Ltda | D1: Banco: | E1: HSBC | H1: Crédito | J1: =E749 -> 0
A2: C.N.P.J n.º: | B2: 05.312.107/0001-99 | D2: Agencia n° | E2: 0213 | H2: Débito | J2: =D749 -> 0
A3: Endereço: | B3: Av. Pacaembu, 746 Pacaembu São Paulo - SP | D3: Conta Corrente n.º: | E3: 15.108-40 | H3: Devolução DOC | J3: 0
B4: CEP 01234-000 | H4: Juros | J4: =D10 -> 0
A5: Valor do saldo anterior | C5: 0 | D5: Referente o mês de: | H5: Amortização | J5: 0
A6: Valor final do saldo Extrato Bancário | C6: =C5+E749-D749 -> 0 | H6: Devolução CH | J6: 0
A9: Data | B9: Discrição (nome do credor) | C9: Histórico | D9: Débito | E9: Crédito | F9: Saldo | G9: Filial Saída | H9: NF n° ou caixa de | I9: Emissão ou depósito | J9: Vencim. | K9: Tipo de pgto e entrada
F10: =C5-D10+E10 -> 0
F11: =F10-D11+E11 -> 0
F12: =F11-D12+E12 -> 0
F13: =F12-D13+E13 -> 0
F14: =F13-D14+E14 -> 0
F15: =F14-D15+E15 -> 0
F16: 0
F17: 0
F18: 0
F19: 0
F20: 0
F21: 0
F22: 0
F23: 0
F24: 0
F25: 0
F26: 0
F27: 0
F28: 0
F29: 0
F30: 0
F31: 0
F32: 0
F33: 0
F34: 0
F35: 0
F36: 0
F37: 0
F38: 0
F39: 0
F40: 0
F41: 0
F42: 0
F43: 0
F44: 0
F45: 0
F46: 0
F47: 0
F48: 0
F49: 0
F50: 0
F51: 0
F52: 0
F53: 0
F54: 0
F55: 0
F56: 0
F57: 0
F58: 0
F59: 0
F60: 0
F61: 0
F62: 0
F63: 0
F64: 0
F65: 0
F66: 0
F67: 0
F68: 0
F69: 0
F70: 0
F71: 0
F72: 0
F73: 0
F74: 0
F75: 0
F76: 0
F77: =F76-D77+E77 -> 0
F78: 0
F79: 0
F80: 0
F81: 0
F82: 0
F83: 0
F84: 0
F85: 0
F86: 0
F87: 0
F88: 0
F89: 0
F90: 0
F91: 0
F92: 0
F93: 0
F94: 0
F95: 0
F96: 0
F97: 0
F98: 0
F99: 0
F100: 0
F101: 0
F102: 0
F103: 0
F104: 0
F105: 0
F106: 0
F107: 0
F108: 0
F109: 0
F110: 0
F111: 0
F112: 0
F113: 0
F114: 0
F115: 0
F116: 0
F117: 0
F118: 0
F119: 0
F120: 0
F121: 0
F122: 0
F123: 0
F124: 0
F125: 0
F126: 0
F127: 0
F128: 0
F129: 0
F130: 0
F131: 0
F132: 0
F133: 0
F134: 0
F135: 0
F136: 0
F137: 0
F138: 0
F139: 0
F140: 0
F141: =F140-D141+E141 -> 0
F142: 0
F143: 0
F144: 0
F145: 0
F146: 0
F147: 0
F148: 0
F149: 0
F150: 0
F151: 0
F152: 0
F153: 0
F154: 0
F155: 0
F156: 0
F157: 0
F158: 0
F159: 0
F160: 0
F161: 0
F162: 0
F163: 0
F164: 0
F165: 0
F166: 0
F167: 0
F168: 0
F169: 0
F170: 0
F171: 0
F172: 0
F173: 0
F174: 0
F175: 0
F176: 0
F177: 0
F178: 0
F179: 0
F180: 0
F181: 0
F182: 0
F183: 0
F184: 0
F185: 0
F186: 0
F187: 0
F188: 0
F189: 0
F190: 0
F191: 0
F192: 0
F193: 0
F194: 0
F195: 0
F196: 0
F197: 0
F198: 0
F199: 0
F200: 0
F201: 0
F202: 0
... 547 more rows

Sheet HSBC Golden
B2: Empresa: | C2: Goldenpark estacionamentos | E2: Banco: | F2: HSBC | I2: Crédito | K2: =F4501 -> 292941.88
B3: C.N.P.J n.º: | C3: 05.843.775/0001-42 | E3: Agencia n° | F3: 0213 | I3: Débito | K3: =E4501 -> 292850.27
B4: Endereço: | C4: Av. Pacaembu, 746 Pacaembu São Paulo - SP | E4: Conta Corrente n.º: | F4: 14.728-08 | I4: Devolução DOC | K4: 0
C5: CEP 01234-000 | I5: Juros | K5: =E59 -> 8.2
B6: Valor do saldo anterior 31/12/2015 | D6: 105.22 | E6: Referente ano de: | F6: 2016 | I6: Amortização | K6: 0
B7: Valor final do saldo Extrato Bancário | D7: =D6+F750-E750 -> 105.22 | I7: Devolução CH | K7: 0
G9: SALDO
B10: Data | C10: Discrição (nome do credor) | D10: Histórico | E10: Débito | F10: Crédito | G10: =D6 -> 105.22 | H10: Filial Saída | I10: NF n° ou caixa de | J10: Emissão ou depósito | K10: Vencim. | L10: Tipo de pgto e entrada
B11: 2016-01-18 | C11: NF 365 | D11: I Park normal | F11: 15644.55 | G11: =IF(F11>0,G10+F11,IF(E11>0,G10-E11," ")) -> 15749.77
B12: 2016-01-18 | C12: NF 366 | D12: I Park extra | F12: 21906.4 | G12: =IF(F12>0,G11+F12,IF(E12>0,G11-E12," ")) -> 37656.17
B13: 2016-01-19 | C13: Transferência de valores | D13: Para Itaú Alimenta | E13: 37500 | G13: 156.17
B14: 2016-01-20 | C14: Tarifa Ted Internet | E14: 8.2 | G14: 147.97
B15: 2016-01-21 | C15: NF 361 | D15: Outlet normal | F15: 24961.77 | G15: 25109.74
B16: 2016-01-21 | C16: NF 363 | D16: Outlet Bolsão normal | F16: 13379.52 | G16: 38489.26
B17: 2016-01-21 | C17: NF 364 | D17: Outlet Bolsão extra | F17: 6099.12 | G17: 44588.38
B18: 2016-01-21 | C18: NF 367 | D18: Bandeirantes extra | F18: 3731.84 | G18: 48320.22
B19: 2016-01-21 | C19: Transferência de valores | D19: Para Itaú Alimenta | E19: 48172.25 | G19: 147.97
B20: 2016-01-22 | C20: Tarifa Ted Internet | E20: 8.2 | G20: 139.77
B21: 2016-01-26 | C21: Tarifa conect Bank mensal | E21: 47.15 | G21: 92.62
B22: 2016-01-28 | C22: NF 362 | D22: Outlet extra | F22: 22328.79 | G22: 22421.41
B23: 2016-01-29 | C23: Transferência de valores | D23: Para Itaú Alimenta | E23: 22300 | G23: 121.41
B24: 2016-02-01 | C24: Tarifa Ted Internet | E24: 8.2 | G24: 113.21
B25: 2016-02-10 | C25: Depósito em cheque | D25: Crédito da Tókio Marine ref. Encerram. Águia | F25: 1259.14 | G25: 1372.35
B26: 2016-02-11 | C26: Transferência de valores | D26: Para Ítaú Alimenta | E26: 1259.14 | G26: 113.21
B27: 2016-02-15 | C27: Tarifa Ted Internet | E27: 8.2 | G27: 105.01
B28: 2016-02-19 | C28: NF 374 | D28: I Park normal | F28: 15644.55 | G28: 15749.56
B29: 2016-02-19 | C29: NF 375 | D29: I Park extra | F29: 16893.92 | G29: 32643.48
B30: 2016-02-22 | C30: Transferência de valores | D30: Para Itaú Alimenta | E30: 32538.47 | G30: 105.01
B31: 2016-02-22 | C31: NF 368 | D31: Outlet Normal | F31: 21374.88 | G31: 21479.89
B32: 2016-02-22 | C32: NF 370 | D32: Outlet extra | F32: 16161.47 | G32: 37641.36
B33: 2016-02-22 | C33: NF 371 | D33: Bolsão Normal | F33: 13824.36 | G33: 51465.72
B34: 2016-02-22 | C34: NF 372 | D34: Bolsão Extra | F34: 3809.75 | G34: 55275.47
B35: 2016-02-22 | C35: NF 373 | D35: Bandeirantes extra | F35: 1237.57 | G35: 56513.04
B36: 2016-02-22 | C36: Transferência de valores | D36: Para Itaú Alimenta | E36: 56300 | G36: 213.04
B37: 2016-02-23 | C37: Tatifa Ted internet | E37: 8.2 | G37: 204.84
B38: 2016-02-24 | C38: Tarifa Ted internet | E38: 8.2 | G38: 196.64
B39: 2016-02-25 | C39: Tarifa conect Bank mensal | E39: 47.15 | G39: 149.49
B40: 2016-03-17 | C40: NF 381 | D40: I Park Normal | F40: 15644.55 | G40: 15794.04
B41: 2016-03-17 | C41: NF 382 | D41: I Park extra | F41: 7121.92 | G41: 22915.96
B42: 2016-02-17 | C42: Transferência de valores | D42: Para Itaú Alimenta | E42: 22700 | G42: 215.96
B43: 2016-03-18 | C43: Tarifa Ted internet | E43: 16.4 | G43: 199.56
B44: 2016-03-28 | C44: Tarifa conect Bank mensal | E44: 47.15 | G44: 152.41
B45: 2016-04-15 | C45: NF 387 | D45: I Park Normal | F45: 15644.55 | G45: 15796.96
B46: 2016-04-15 | C46: NF 388 | D46: I Park extra | F46: 8978.57 | G46: 24775.53
B47: 2016-04-18 | C47: Transferência de valores | D47: Para Itaú Alimenta | E47: 24623.12 | G47: 152.41
B48: 2016-04-18 | C48: NF 383 | D48: Outlet Normal | F48: 21374.85 | G48: 21527.26
B49: 2016-04-18 | C49: NF 386 | D49: Outlet Bolsão Extra | F49: 2442.97 | G49: 23970.23
B50: 2016-04-19 | C50: Transferência de valores | D50: Para Itaú Alimenta | E50: 23817.82 | G50: 152.41
B51: 2016-04-19 | C51: Tarifa Ted Internet | E51: 8.2 | G51: 144.21
B52: 2016-04-20 | C52: Tarifa Ted Internet | E52: 8.2 | G52: 136.01
B53: 2016-04-22 | C53: NF 384 | D53: Outlet Bolsão Extra | F53: 9652.47 | G53: 9788.48
B54: 2016-04-22 | C54: Transferência de valores | D54: Para Itaú Alimenta | E54: 9652.47 | G54: 136.01
B55: 2016-04-25 | C55: Tarifa conect Bank mensal | E55: 47.15 | G55: 88.86
B56: 2016-04-25 | C56: Tarifa Ted Internet | E56: 8.2 | G56: 80.66
B57: 2016-04-29 | C57: NF 385 | D57: Outlet bolsão normal | F57: 13824.37 | G57: 13905.03
B58: 2016-04-29 | C58: Transferência de valores | D58: Para Itaú Alimenta | E58: 13700 | G58: 205.03
B59: 2016-05-02 | C59: Tarifa Ted Internet | E59: 8.2 | G59: 196.83
G76: =IF(F76>0,G75+F76,IF(E76>0,G75-E76," ")) -> 
G140: =IF(F140>0,G139+F140,IF(E140>0,G139-E140," ")) -> 
G204: =IF(F204>0,G203+F204,IF(E204>0,G203-E204," ")) -> 
G268: =IF(F268>0,G267+F268,IF(E268>0,G267-E268," ")) -> 
G332: =IF(F332>0,G331+F332,IF(E332>0,G331-E332," ")) -> 
G396: =IF(F396>0,G395+F396,IF(E396>0,G395-E396," ")) -> 
G460: =IF(F460>0,G459+F460,IF(E460>0,G459-E460," ")) -> 
G524: =IF(F524>0,G523+F524,IF(E524>0,G523-E524," ")) -> 
G588: =IF(F588>0,G587+F588,IF(E588>0,G587-E588," ")) -> 
G652: =IF(F652>0,G651+F652,IF(E652>0,G651-E652," ")) -> 
G716: =IF(F716>0,G715+F716,IF(E716>0,G715-E716," ")) -> 
G780: =IF(F780>0,G779+F780,IF(E780>0,G779-E780," ")) -> 
G844: =IF(F844>0,G843+F844,IF(E844>0,G843-E844," ")) -> 
G908: =IF(F908>0,G907+F908,IF(E908>0,G907-E908," ")) -> 
G972: =IF(F972>0,G971+F972,IF(E972>0,G971-E972," ")) -> 
G1036: =IF(F1036>0,G1035+F1036,IF(E1036>0,G1035-E1036," ")) -> 
G1100: =IF(F1100>0,G1099+F1100,IF(E1100>0,G1099-E1100," ")) -> 
G1164: =IF(F1164>0,G1163+F1164,IF(E1164>0,G1163-E1164," ")) -> 
G1228: =IF(F1228>0,G1227+F1228,IF(E1228>0,G1227-E1228," ")) -> 
G1292: =IF(F1292>0,G1291+F1292,IF(E1292>0,G1291-E1292," ")) -> 
G1356: =IF(F1356>0,G1355+F1356,IF(E1356>0,G1355-E1356," ")) -> 
G1420: =IF(F1420>0,G1419+F1420,IF(E1420>0,G1419-E1420," ")) -> 
G1484: =IF(F1484>0,G1483+F1484,IF(E1484>0,G1483-E1484," ")) -> 
G1548: =IF(F1548>0,G1547+F1548,IF(E1548>0,G1547-E1548," ")) -> 
G1612: =IF(F1612>0,G1611+F1612,IF(E1612>0,G1611-E1612," ")) -> 
G1676: =IF(F1676>0,G1675+F1676,IF(E1676>0,G1675-E1676," ")) -> 
G1740: =IF(F1740>0,G1739+F1740,IF(E1740>0,G1739-E1740," ")) -> 
G1804: =IF(F1804>0,G1803+F1804,IF(E1804>0,G1803-E1804," ")) -> 
G1868: =IF(F1868>0,G1867+F1868,IF(E1868>0,G1867-E1868," ")) -> 
G1932: =IF(F1932>0,G1931+F1932,IF(E1932>0,G1931-E1932," ")) -> 
G1996: =IF(F1996>0,G1995+F1996,IF(E1996>0,G1995-E1996," ")) -> 
G2060: =IF(F2060>0,G2059+F2060,IF(E2060>0,G2059-E2060," ")) -> 
G2124: =IF(F2124>0,G2123+F2124,IF(E2124>0,G2123-E2124," ")) -> 
G2188: =IF(F2188>0,G2187+F2188,IF(E2188>0,G2187-E2188," ")) -> 
G2252: =IF(F2252>0,G2251+F2252,IF(E2252>0,G2251-E2252," ")) -> 
G2316: =IF(F2316>0,G2315+F2316,IF(E2316>0,G2315-E2316," ")) -> 
G2380: =IF(F2380>0,G2379+F2380,IF(E2380>0,G2379-E2380," ")) -> 
G2444: =IF(F2444>0,G2443+F2444,IF(E2444>0,G2443-E2444," ")) -> 
G2508: =IF(F2508>0,G2507+F2508,IF(E2508>0,G2507-E2508," ")) -> 
G2572: =IF(F2572>0,G2571+F2572,IF(E2572>0,G2571-E2572," ")) -> 
G2636: =IF(F2636>0,G2635+F2636,IF(E2636>0,G2635-E2636," ")) -> 
G2700: =IF(F2700>0,G2699+F2700,IF(E2700>0,G2699-E2700," ")) -> 
G2764: =IF(F2764>0,G2763+F2764,IF(E2764>0,G2763-E2764," ")) -> 
G2828: =IF(F2828>0,G2827+F2828,IF(E2828>0,G2827-E2828," ")) -> 
G2892: =IF(F2892>0,G2891+F2892,IF(E2892>0,G2891-E2892," ")) -> 
G2956: =IF(F2956>0,G2955+F2956,IF(E2956>0,G2955-E2956," ")) -> 
G3020: =IF(F3020>0,G3019+F3020,IF(E3020>0,G3019-E3020," ")) -> 
G3084: =IF(F3084>0,G3083+F3084,IF(E3084>0,G3083-E3084," ")) -> 
G3148: =IF(F3148>0,G3147+F3148,IF(E3148>0,G3147-E3148," ")) -> 
G3212: =IF(F3212>0,G3211+F3212,IF(E3212>0,G3211-E3212," ")) -> 
G3276: =IF(F3276>0,G3275+F3276,IF(E3276>0,G3275-E3276," ")) -> 
G3340: =IF(F3340>0,G3339+F3340,IF(E3340>0,G3339-E3340," ")) -> 
G3404: =IF(F3404>0,G3403+F3404,IF(E3404>0,G3403-E3404," ")) -> 
G3468: =IF(F3468>0,G3467+F3468,IF(E3468>0,G3467-E3468," ")) -> 
G3532: =IF(F3532>0,G3531+F3532,IF(E3532>0,G3531-E3532," ")) -> 
G3596: =IF(F3596>0,G3595+F3596,IF(E3596>0,G3595-E3596," ")) -> 
G3660: =IF(F3660>0,G3659+F3660,IF(E3660>0,G3659-E3660," ")) -> 
G3724: =IF(F3724>0,G3723+F3724,IF(E3724>0,G3723-E3724," ")) -> 
G3788: =IF(F3788>0,G3787+F3788,IF(E3788>0,G3787-E3788," ")) -> 
G3852: =IF(F3852>0,G3851+F3852,IF(E3852>0,G3851-E3852," ")) -> 
G3916: =IF(F3916>0,G3915+F3916,IF(E3916>0,G3915-E3916," ")) -> 
G3980: =IF(F3980>0,G3979+F3980,IF(E3980>0,G3979-E3980," ")) -> 
G4044: =IF(F4044>0,G4043+F4044,IF(E4044>0,G4043-E4044," ")) -> 
G4108: =IF(F4108>0,G4107+F4108,IF(E4108>0,G4107-E4108," ")) -> 
G4172: =IF(F4172>0,G4171+F4172,IF(E4172>0,G4171-E4172," ")) -> 
G4236: =IF(F4236>0,G4235+F4236,IF(E4236>0,G4235-E4236," ")) -> 
G4300: =IF(F4300>0,G4299+F4300,IF(E4300>0,G4299-E4300," ")) -> 
G4364: =IF(F4364>0,G4363+F4364,IF(E4364>0,G4363-E4364," ")) -> 
G4428: =IF(F4428>0,G4427+F4428,IF(E4428>0,G4427-E4428," ")) -> 
G4492: =IF(F4492>0,G4491+F4492,IF(E4492>0,G4491-E4492," ")) -> 
E4501: =SUM(E11:E4500) -> 292850.27 | F4501: =SUM(F11:F4500) -> 292941.88

Sheet Juros e Amort
A1: 2016-05-01 | B1: EMPRESA | C1: JUROS | D1: AMORTIZAÇÃO
B2: Alimenta | C2: ='Itaú - Alimenta'!J5+'HSBC Alimenta'!J4 -> 41.5 | D2: ='Itaú - Alimenta'!J6+'HSBC Alimenta'!J5 -> 0
C3: ='Itaú - CNS'!J4+'HSBC CNS'!J4 -> 0 | D3: ='Itaú - CNS'!J5+'HSBC CNS'!J5 -> 0
B4: GOLDEN | C4: ='Itaú -Golden'!J4+'HSBC Golden'!K5 -> 8.2 | D4: ='Itaú -Golden'!J5+'HSBC Golden'!K6 -> 0
B5: TOTAL | C5: =SUM(C2:C4) -> 49.7 | D5: =SUM(D2:D4) -> 0

Sheet Custo Assolan (hidden)
C1: ALIMENTA SERVIÇOS LTDA
C2: RESULTADO POR FILIAL 12/2012
C4: Filial - | D4: ASSOLAN
A5: 1 - RECEITAS | G5: =G7+G8+G9+G10+G11+G12+G13+G14+G15+G16 -> 0
A6: Nota fiscal | B6: Histórico | G6: VALOR
A17: 2- DESPESAS OPERACIONAIS | G17: =D186 -> 0
A18: 3- DESPESAS ADMINISTRATIVAS | G18: =#REF!/4 -> 
A19: 4- RESULTADO LIQUIDO | G19: =G5-G17-G18 -> 
A20: Data | B20: Discrição (nome do credor) | C20: Histórico | D20: Valor | E20: NF N° | F20: EMISSÃO | G20: VENC. | H20: OBS.
A186: TOTAL | D186: =SUM(D21:D185) -> 0

Sheet Custo Sotrec (hidden)
C1: ALIMENTA SERVIÇOS LTDA
C2: RESULTADO POR FILIAL 12/2012
C4: Filial - | D4: SOTREC
A5: 1 - RECEITAS | G5: =G7+G8+G9+G10+G11+G12+G13+G14+G15+G16 -> 0
A6: Nota fiscal | B6: Histórico | G6: VALOR
A17: 2- DESPESAS OPERACIONAIS | G17: =D186 -> 0
A18: 3- DESPESAS ADMINISTRATIVAS | G18: =#REF!/4 -> 
A19: 4- RESULTADO LIQUIDO | G19: =G5-G17-G18 -> 
A20: Data | B20: Discrição (nome do credor) | C20: Histórico | D20: Valor | E20: NF N° | F20: EMISSÃO | G20: VENC. | H20: OBS.
A186: TOTAL | D186: =SUM(D21:D185) -> 0

Sheet Itatiba (hidden)
C1: CNS COMUNICAÇÃO LTDA RELATÓRIO MENSAL DETALHADO 04/2015 - FILIAL Itatiba
A5: 1 - RECEITAS | G5: =G7+G8 -> 0
A6: Nota fiscal | B6: Histórico | G6: VALOR
G8: 0
A9: 2- DESPESAS OPERACIONAIS | G9: =D178 -> 0
A10: 3- DESPESAS ADMINISTRATIVAS
A11: 4- RESULTADO LIQUIDO | G11: =G5-G9-G10 -> 0
A12: Data | B12: Discrição (nome do credor) | C12: Histórico | D12: Valor | E12: NF N° | F12: EMISSÃO | G12: VENC. | H12: OBS.
B178: TOTAL | D178: =SUM(D13:D177) -> 0
B181: Receitas | C181: Despesas
B182: 6912.5 | C182: 5562.91 | D182: Janeiro
C183: 17915.1 | D183: Fevereiro
D184: Março
D185: Abril
D186: Maio
D187: Junho
D188: Julho
D189: Agosto
D190: Setembro
D191: Outubro
D192: Novembro
D193: Dezembro

Sheet Res. Anual
A1: DEMONSTRATIVO DE RESULTADO ANUAL UNIFICADO 2016
A2: RECEITAS
A3: FILIAIS | B3: Janeiro | C3: Fevereiro | D3: Março | E3: Abril | F3: Maio | G3: Junho | H3: Julho | I3: Agosto | J3: Setembro | K3: Outubro | L3: Novembro | M3: Dezembro | N3: Média
A4: Sampla | B4: ='sampla jan'!F4 -> 24139.82 | C4: ='sampla fev'!F4 -> 25990.35 | D4: ='sampla mar'!F4 -> 31281.07 | E4: ='sampla abr'!F4 -> 33165.95 | F4: ='sampla mai'!F4 -> 0 | G4: ='sampla Jun'!F4 -> 0 | H4: ='sampla Jul'!F4 -> 0 | I4: ='sampla ago'!F4 -> 0 | J4: ='sampla set'!F4 -> 0 | K4: ='sampla out'!F4 -> 0 | L4: ='sampla nov'!F4 -> 0 | M4: ='sampla dez'!F4 -> 0 | N4: =(AVERAGE(B4:M4)) -> 9548.099167
A5: Buriti | B5: ='Buriti jan'!F4 -> 209707.19 | C5: ='Buriti fev'!F4 -> 216782.09 | D5: ='Buriti mar'!F4 -> 186833.7 | E5: ='Buriti abr'!F4 -> 166278 | F5: ='Buriti mai'!F4 -> 0 | G5: ='Buriti jun'!F4 -> 0 | H5: ='Buriti jul'!F4 -> 0 | I5: ='Buriti ago'!F4 -> 0 | J5: ='Buriti set'!F4 -> 0 | K5: ='Buriti out'!F4 -> 0 | L5: ='Buriti nov'!F4 -> 0 | M5: ='Buriti dez'!F4 -> 0 | N5: =(AVERAGE(B5:M5)) -> 64966.74833
A6: Outlet | B6: ='outlet jan'!F4 -> 108051.95 | C6: ='outlet fev'!F4 -> 93316.2 | D6: ='outlet mar'!F4 -> 68557.6 | E6: ='outlet abr'!F4 -> 71917.78 | F6: ='outlet mai'!F4 -> 0 | G6: ='outlet jun'!F4 -> 0 | H6: ='outlet jul'!F5 -> 0 | I6: ='outlet ago'!F4 -> 0 | J6: ='outlet set'!F4 -> 0 | K6: ='outlet out'!F4 -> 0 | L6: ='outlet nov'!F4 -> 0 | M6: ='outlet dez'!F4 -> 0 | N6: 28486.96083
A9: Total das receitas | B9: =SUM(B4:B8) -> 341898.96 | C9: 336088.64 | D9: 286672.37 | E9: 271361.73 | F9: 0 | G9: 0 | H9: 0 | I9: 0 | J9: 0 | K9: 0 | L9: 0 | M9: 0
A11: DESPESAS OPERACIONAIS
A12: FILIAIS | B12: Janeiro | C12: Fevereiro | D12: Março | E12: Abril | F12: Maio | G12: Junho | H12: Julho | I12: Agosto | J12: Setembro | K12: Outubro | L12: Novembro | M12: Dezembro | N12: Média
A13: Sampla | B13: ='sampla jan'!D178 -> 26315.19 | C13: ='sampla fev'!D178 -> 20103.77 | D13: ='sampla mar'!D178 -> 32079.45 | E13: ='sampla abr'!D178 -> 22503.99 | F13: ='sampla mai'!D178 -> 6983.57 | G13: ='sampla Jun'!D178 -> 0 | H13: ='sampla Jul'!D178 -> 0 | I13: ='sampla ago'!D178 -> 0 | J13: ='sampla set'!D178 -> 0 | K13: ='sampla out'!D178 -> 0 | L13: ='sampla nov'!D178 -> 0 | M13: ='sampla dez'!D178 -> 0 | N13: =AVERAGE(B13:M13) -> 8998.830833
A14: ADM Alimenta | B14: ='ADM Alim jan'!D178 -> 18651.65 | C14: ='ADM Alim fev'!D178 -> 20519.91 | D14: ='ADM Alim mar'!D178 -> 27382.78 | E14: ='ADM Alim abr'!D178 -> 21651.63 | F14: ='ADM Alim Mai'!D178 -> 1914.63 | G14: ='ADM Alim jun'!D178 -> 0 | H14: ='ADM Alim jul'!D178 -> 0 | I14: ='ADM Alim ago'!D178 -> 0 | J14: ='ADM Alim set'!D178 -> 0 | K14: ='ADM Alim out'!D178 -> 0 | L14: ='ADM Alim nov'!D178 -> 0 | M14: ='ADM Alim dez'!D178 -> 0 | N14: =AVERAGE(B14:M14) -> 7510.05
A15: Buriti | B15: ='Buriti jan'!D178 -> 196553.69 | C15: ='Buriti fev'!D178 -> 176314.48 | D15: ='Buriti mar'!D178 -> 161384.15 | E15: ='Buriti abr'!D178 -> 136353.46 | F15: ='Buriti mai'!D178 -> 304.51 | G15: ='Buriti jun'!D178 -> 615.09 | H15: ='Buriti jul'!D178 -> 0 | I15: ='Buriti ago'!D178 -> 0 | J15: ='Buriti set'!D178 -> 0 | K15: ='Buriti out'!D178 -> 0 | L15: ='Buriti nov'!D178 -> 0 | M15: ='Buriti dez'!D178 -> 0 | N15: 55960.44833
A16: Outlet | B16: ='outlet jan'!D178 -> 65198.24 | C16: ='outlet fev'!D178 -> 64140.13 | D16: ='outlet mar'!D178 -> 42510.35 | E16: ='outlet abr'!D178 -> 56527.469 | F16: ='outlet mai'!D178 -> 8032 | G16: ='outlet jun'!D178 -> 0 | H16: ='outlet jul'!D178 -> 0 | I16: ='outlet ago'!D178 -> 0 | J16: ='outlet set'!D178 -> 0 | K16: ='outlet out'!D178 -> 0 | L16: ='outlet nov'!D178 -> 0 | M16: ='outlet dez'!D178 -> 0 | N16: 19700.68242
A17: ADM Golden | B17: ='ADM Golden jan'!D178 -> 22051.17 | C17: ='ADM Golden fev'!D178 -> 14687.89 | D17: ='ADM Golden mar'!D178 -> 12466.61 | E17: ='ADM Golden abr'!D178 -> 22315.99 | F17: ='ADM Golden mai'!D178 -> 6599.25 | G17: ='ADM Golden jun'!D178 -> 0 | H17: ='ADM Golden jul'!D178 -> 0 | I17: ='ADM Golden ago'!D178 -> 0 | J17: ='ADM Golden set'!D178 -> 0 | K17: ='ADM Golden out'!D178 -> 0 | L17: ='ADM Golden nov'!D178 -> 0 | M17: ='ADM Golden dez'!D178 -> 0 | N17: 6510.075833
A18: Pessoal | B18: ='pessoal jan'!D178 -> 10610.31 | C18: ='pessoal fev'!D178 -> 14430.63 | D18: ='pessoal mar'!D178 -> 17712.88 | E18: ='pessoal abr'!D178 -> 15228.7 | F18: ='pessoal mai'!D178 -> 2101.34 | G18: ='pessoal jun'!D178 -> 0 | H18: ='pessoal jul'!D178 -> 0 | I18: ='pessoal ago'!D178 -> 0 | J18: ='pessoal set'!D178 -> 0 | K18: ='pessoal out'!D178 -> 0 | L18: ='pessoal nov'!D178 -> 0 | M18: ='pessoal dez'!D178 -> 0 | N18: 5006.988333
A22: Total das despesas | B22: =SUM(B13:B21) -> 339380.25 | C22: =SUM(C13:C21) -> 310196.81 | D22: 293536.22 | E22: 274581.239 | F22: 25935.3 | G22: 615.09 | H22: 0 | I22: 0 | J22: 0 | K22: 0 | L22: 0 | M22: 0
A24: RESULTADO RECEITAS - DESPESAS OPERACIONAL
A25: FILIAIS | B25: Janeiro | C25: Fevereiro | D25: Março | E25: Abril | F25: Maio | G25: Junho | H25: Julho | I25: Agosto | J25: Setembro | K25: Outubro | L25: Novembro | M25: Dezembro | N25: Média
A26: Sampla | B26: =B4-B13 -> -2175.37 | C26: 5886.58 | D26: -798.38 | E26: 10661.96 | F26: -6983.57 | G26: 0 | H26: 0 | I26: 0 | J26: 0 | K26: 0 | L26: 0 | M26: 0 | N26: =AVERAGE(B26:M26) -> 549.2683333
A27: Buriti | B27: =B5-B15 -> 13153.5 | C27: 40467.61 | D27: 25449.55 | E27: 29924.54 | F27: -304.51 | G27: -615.09 | H27: 0 | I27: 0 | J27: 0 | K27: 0 | L27: 0 | M27: 0 | N27: =AVERAGE(B27:M27) -> 9006.3
A28: Outlet | B28: =B6-B16 -> 42853.71 | C28: 29176.07 | D28: 26047.25 | E28: 15390.311 | F28: -8032 | G28: 0 | H28: 0 | I28: 0 | J28: 0 | K28: 0 | L28: 0 | M28: 0 | N28: 8786.278417
A31: Total dos resultados | B31: =SUM(B26:B30) -> 53831.84 | C31: 75530.26 | D31: 50698.42 | E31: 55976.811 | F31: -15320.08 | G31: -615.09 | H31: 0 | I31: 0 | J31: 0 | K31: 0 | L31: 0 | M31: 0

Sheet Pendencia
A1: Pendências
P2: Obs. Todos os parcelamentos
P3: da Golden com vencimento
P4: 30/10/2014 foram cancelados
P5: ou seja a partir de 10/2014
P6: parc. De Pis/cofins/IRPJ e CSLL
P7: Não tem mais.
A9: Data | B9: Discrição (nome do credor) | C9: Histórico | D9: Débito | E9: Filial Saída | F9: NF n° ou caixa de | G9: Emissão ou depósito | H9: Vencim. | I9: Tipo de pgto e entrada | J9: Vencido a ... Dias
A10: A | B10: Prefeitura Municipal de Guara. | C10: ISS ref. Mês jan/2014 | D10: 5198.87 | E10: Buriti | H10: 2014-02-10 | I10: Boleto | J10: =H10-TODAY() -> -819
A11: A | B11: Prefeitura Municipal de Guara. | C11: ISS Competência 04/2014 | D11: 7078.81 | E11: Buriti | H11: 2014-05-10 | I11: Boleto | J11: -730 | S11: Transferência
A12: A | B12: PIS | C12: Competência 04/2014 | D12: 2227.69 | E12: ADM Golden | H12: 2014-05-23 | I12: Boleto | J12: -717 | S12: Boleto
A13: A | B13: Cofins | C13: Competência 04/2014 | D13: 10258.2 | E13: ADM Golden | H13: 2014-05-23 | I13: Boleto | J13: -717 | S13: Doc-c
A14: A | B14: Panificadora Boa Sorte | C14: Acordo parcela 11/36 | D14: 1000 | E14: ADM Alim | H14: 2014-05-24 | I14: Ted-c | J14: -716 | S14: Ted-c
A15: A | B15: Eneida Schiavon Lourenço | C15: defesa Itaú x CNS parcela 04/10 | D15: 1444.45 | E15: ADM CNS | H15: 2014-06-10 | I15: Doc-c | J15: -699
A16: A | B16: Prefeitura Municipal de Guara. | C16: ISS Competência 05/2014 | D16: 7320.64 | E16: Buriti | H16: 2014-06-23 | I16: Boleto | J16: -686
A17: A | B17: PIS | C17: Competência 05/2014 | D17: 106.11 | E17: ADM Alim | H17: 2014-06-25 | I17: Boleto | J17: -684
A18: A | B18: Cofins | C18: Competência 05/2014 | D18: 488.75 | E18: ADM Alim | H18: 2014-06-25 | I18: Boleto | J18: -684
A19: A | B19: PIS | C19: Competência 05/2014 | D19: 2985.68 | E19: ADM Golden | H19: 2014-06-25 | I19: Boleto | J19: -684
A20: A | B20: Cofins | C20: Competência 05/2014 | D20: 648.8 | E20: ADM Golden | H20: 2014-06-25 | I20: Boleto | J20: -684
A21: A | B21: DARF | C21: Parcelamento COFINS - 03/48 | D21: 517.34 | E21: ADM Golden | H21: 2014-06-30 | I21: Boleto | J21: -679
A22: A | B22: DARF | C22: Parcelamento COFINS - 03/60 | D22: 1086.06 | E22: ADM Golden | H22: 2014-06-30 | I22: Boleto | J22: -679
A23: A | B23: DARF | C23: Parcelamento COFINS - 03/60 | D23: 691.31 | E23: ADM Golden | H23: 2014-06-30 | I23: Boleto | J23: -679
A24: A | B24: DARF | C24: Parcelamento PIS - 03/03 | D24: 606.85 | E24: ADM Golden | H24: 2014-06-30 | I24: Boleto | J24: -679
A25: A | B25: DARF | C25: Parcelamento PIS - 03/23 | D25: 518.74 | E25: ADM Golden | H25: 2014-06-30 | I25: Boleto | J25: -679
A26: A | B26: DARF | C26: Parcelamento PIS - 03/17 | D26: 529.87 | E26: ADM Golden | H26: 2014-06-30 | I26: Boleto | J26: -679
A27: A | B27: DARF | C27: Parcelamento IRPJ - 03/60 | D27: 821.78 | E27: ADM Golden | H27: 2014-06-30 | I27: Boleto | J27: -679
A28: A | B28: DARF | C28: Parcelamento IRPJ - 03/60 | D28: 763.48 | E28: ADM Golden | H28: 2014-06-30 | I28: Boleto | J28: -679
A29: A | B29: DARF | C29: Parcelamento C. Social - 03/43 | D29: 516.96 | E29: ADM Golden | H29: 2014-06-30 | I29: Boleto | J29: -679
A30: A | B30: DARF | C30: Parcelamento C. Social - 03/38 | D30: 511.88 | E30: ADM Golden | H30: 2014-06-30 | I30: Boleto | J30: -679
A31: A | B31: Prefeitura Município São Paulo | C31: Parc.ISS -Simples Nac.parte prefeit.-12/60 | D31: 274.11 | E31: ADM CNS | H31: 2014-06-30 | I31: Boleto | J31: -679
A32: A | B32: Prefeitura Municipal de Guara. | C32: ISS Competência 06/2014 | D32: 6885.52 | E32: Buriti | H32: 2014-07-10 | I32: Boleto | J32: -669
A33: A | B33: PIS | C33: Competência 06/2014 | D33: 1057.1 | E33: ADM Golden | H33: 2014-07-25 | I33: Boleto | J33: -654
A34: A | B34: Cofins | C34: Competência 06/2014 | D34: 4866.54 | E34: ADM Golden | H34: 2014-07-25 | I34: Boleto | J34: -654
A35: A | B35: DARF | C35: IRPJ - Lucro Real Balanço | D35: 23610.85 | E35: ADM Golden | H35: 2014-07-31 | I35: Boleto | J35: -648
A36: A | B36: DARF | C36: CSLL-Demais PJ q/apuram IRPJ c/base luc. | D36: 9530.23 | E36: ADM Golden | H36: 2014-07-31 | I36: Boleto | J36: -648
A37: A | B37: Prefeitura Municipal de Guara. | C37: ISS Competência 07/2014 | D37: 7129.62 | E37: Buriti | H37: 2014-08-08 | I37: Boleto | J37: -640
A38: A | B38: DARF | C38: Parcelamento C. Social - 05/38 | D38: 525.16 | E38: ADM Golden | H38: 2014-08-29 | I38: Boleto | J38: -619
A39: A | B39: DARF | C39: Parcelamento C. Social - 05/43 | D39: 530.36 | E39: ADM Golden | H39: 2014-08-29 | I39: Boleto | J39: -619
A40: A | B40: DARF | C40: Parcelamento IRPJ - 05/60 | D40: 783.28 | E40: ADM Golden | H40: 2014-08-29 | I40: Boleto | J40: -619
A41: A | B41: DARF | C41: Parcelamento IRPJ - 05/60 | D41: 843.08 | E41: ADM Golden | H41: 2014-08-29 | I41: Boleto | J41: -619
A42: A | B42: DARF | C42: Parcelamento PIS - 05/17 | D42: 543.59 | E42: ADM Golden | H42: 2014-08-29 | I42: Boleto | J42: -619
A43: A | B43: DARF | C43: Parcelamento PIS - 05/23 | D43: 532.2 | E43: ADM Golden | H43: 2014-08-29 | I43: Boleto | J43: -619
A44: A | B44: DARF | C44: Parcelamento COFINS - 05/60 | D44: 709.23 | E44: ADM Golden | H44: 2014-08-29 | I44: Boleto | J44: -619
A45: A | B45: DARF | C45: Parcelamento COFINS - 05/60 | D45: 1114.22 | E45: ADM Golden | H45: 2014-08-29 | I45: Boleto | J45: -619
A46: A | B46: DARF | C46: Parcelamento COFINS - 05/48 | D46: 538.44 | E46: ADM Golden | H46: 2014-08-29 | I46: Boleto | J46: -619
A47: A | B47: DARF | C47: Sobre Aluguel escritório | D47: 166.57 | E47: ADM Golden | H47: 2014-09-19 | I47: Boleto | J47: -598
A48: A | B48: ICMS | C48: Competência 08/2014 | D48: 2082.3 | E48: Sampla | H48: 2014-09-19 | I48: Boleto | J48: -598
A49: A | B49: PIS | C49: Competência 08/2014 | D49: 1603.07 | E49: ADM Golden | H49: 2014-09-25 | I49: Boleto | J49: -592
A50: A | B50: Cofins | C50: Competência 08/2014 | D50: 6836.65 | E50: ADM Golden | H50: 2014-09-25 | I50: Boleto | J50: -592
A51: A | B51: PIS | C51: Competência 08/2014 | D51: 173.2 | E51: ADM Alim | H51: 2014-09-25 | I51: Boleto | J51: -592
A52: A | B52: Cofins | C52: Competência 08/2014 | D52: 798.12 | E52: ADM Alim | H52: 2014-09-25 | I52: Boleto | J52: -592
A53: A | B53: DARF | C53: Parcelamento COFINS - 06/48 | D53: 554.2 | E53: ADM Golden | H53: 2014-09-30 | I53: Boleto | J53: -587
A54: A | B54: DARF | C54: Parcelamento COFINS - 06/60 | D54: 1123.5 | E54: ADM Golden | H54: 2014-09-30 | I54: Boleto | J54: -587
A55: A | B55: DARF | C55: Parcelamento COFINS - 06/60 | D55: 715.14 | E55: ADM Golden | H55: 2014-09-30 | I55: Boleto | J55: -587
A56: A | B56: DARF | C56: Parcelamento PIS - 06/23 | D56: 536.62 | E56: ADM Golden | H56: 2014-09-30 | I56: Boleto | J56: -587
A57: A | B57: DARF | C57: Parcelamento PIS - 06/17 | D57: 548.13 | E57: ADM Golden | H57: 2014-09-30 | I57: Boleto | J57: -587
A58: A | B58: DARF | C58: Parcelamento IRPJ - 06/60 | D58: 850.1 | E58: ADM Golden | H58: 2014-09-30 | I58: Boleto | J58: -587
A59: A | B59: DARF | C59: Parcelamento IRPJ - 06/60 | D59: 789.81 | E59: ADM Golden | H59: 2014-09-30 | I59: Boleto | J59: -587
A60: A | B60: DARF | C60: Parcelamento C. Social - 06/43 | D60: 534.78 | E60: ADM Golden | H60: 2014-09-30 | I60: Boleto | J60: -587
A61: A | B61: DARF | C61: Parcelamento C. Social - 06/38 | D61: 529.54 | E61: ADM Golden | H61: 2014-09-30 | I61: Boleto | J61: -587
A62: A | B62: DARF | C62: Exec.Fiscal-Dív. ativa Alim. -Previd. 02/60 | D62: 918.82 | E62: ADM Alim | H62: 2014-09-30 | I62: Boleto | J62: -587
A63: A | B63: ICMS | C63: Parcelamento ICM S Sampla parc. 02/120 | D63: 840.67 | E63: Sampla | H63: 2014-10-10 | I63: Boleto | J63: -577
A64: A | B64: ICMS | C64: PEP-Prog.Esp.Parc.ICMS Fco rocha 02/120 | D64: 3292.37 | E64: ADM Alim | F64: 156720 | H64: 2014-10-10 | I64: Boleto | J64: -577
A65: A | B65: Prefeitura Municipal de Guara. | C65: ISS competência 09/2014 | D65: 6017.55 | E65: Buriti | H65: 2014-10-13 | I65: Boleto | J65: -574
A66: A | B66: Cofins | C66: Competência 09/2014 | D66: 4305.64 | E66: ADM Golden | H66: 2014-10-24 | I66: Boleto | J66: -563
A67: A | B67: Pis | C67: Competência 09/2014 | D67: 935.37 | E67: ADM Golden | H67: 2014-10-24 | I67: Boleto | J67: -563
A68: A | B68: DARF | C68: IRPJ - Lucro Real Balanço | D68: 9607.88 | E68: ADM Golden | H68: 2014-10-31 | I68: Boleto | J68: -556
A69: A | B69: DARF | C69: CSLL-Demais PJ q/apuram IRPJ c/base luc. | D69: 23852.24 | E69: ADM Golden | H69: 2014-10-31 | I69: Boleto | J69: -556
A70: A | B70: Prefeitura Municipal de Guara. | C70: ISS competência 10/2014 | D70: 6385.2 | E70: Buriti | F70: 162468 | G70: 2014-11-05 | H70: 2014-11-10 | I70: Boleto | J70: -546
A71: A | B71: Pis | C71: Competência 10/2014 | D71: 905.51 | E71: ADM Golden | H71: 2014-11-25 | I71: Boleto | J71: -531
A72: A | B72: Cofins | C72: Competência 10/2014 | D72: 988.54 | E72: ADM Alim | H72: 2014-11-25 | I72: Boleto | J72: -531
A73: A | B73: PIS | C73: Competência 10/2014 | D73: 214.69 | E73: ADM Alim | H73: 2014-11-25 | I73: Boleto | J73: -531
A74: A | B74: Cofins | C74: Competência 10/2014 | D74: 4167.71 | E74: ADM Golden | H74: 2014-11-25 | I74: Boleto | J74: =H74-TODAY() -> -531
A75: A | B75: Prefeitura Municipal de Guara. | C75: ISS competência 11/2014 | D75: 7500.12 | E75: Buriti | F75: 164275 | G75: 2014-12-08 | H75: 2014-12-10 | I75: Boleto | J75: -516
A76: A | B76: ICMS | C76: PEP-Prog.Esp.Parc.ICMS Fco rocha 04/120 | D76: 3292.37 | E76: ADM Alim | H76: 2014-12-10 | I76: Boleto | J76: -516
A77: A | B77: ICMS | C77: Parcelamento ICM S Sampla parc. 04/120 | D77: 840.67 | E77: Sampla | H77: 2014-12-10 | I77: Boleto | J77: -516
A78: A | B78: Cofins | C78: Competência 11/2014 | D78: 9566.84 | E78: ADM Golden | H78: 2014-12-24 | I78: Boleto | J78: -502
A79: A | B79: Pis | C79: Competência 11/2014 | D79: 2077.67 | E79: ADM Golden | H79: 2014-12-24 | I79: Boleto | J79: -502
A80: A | B80: DARF | C80: Ref. Parc. Alimenta 5 proc. 02/180 | D80: 1783.5 | E80: ADM Alim | H80: 2014-12-30 | I80: Boleto | J80: -496
A81: A | B81: Prefeitura Municipal de Guara. | C81: ISS Competência 12/2014 | D81: =9151.2+342.92 -> 9494.12 | E81: Buriti | H81: 2015-01-09 | I81: Boleto | J81: -486
A82: A | B82: Cofins | C82: Competência 12/2014 | D82: 9210.33 | E82: ADM Golden | H82: 2015-01-23 | I82: Boleto | J82: -472
A83: A | B83: Pis | C83: Competência 12/2014 | D83: 2000.36 | E83: ADM Golden | H83: 2015-01-23 | I83: Boleto | J83: -472
A84: A | B84: DARF | C84: IRPJ - Lucro Real Balanço 03/03 | D84: 10724.27 | E84: ADM Golden | H84: 2015-01-30 | I84: Boleto | J84: -465
A85: A | B85: DARF | C85: CSLL-Demais PJ -IRPJ c/base luc. 03/03 | D85: 4580.74 | E85: ADM Golden | H85: 2015-01-30 | I85: Boleto | J85: -465
A86: A | B86: Prefeitura Municipal de Guara. | C86: ISS ref. Mês jan/2015 | D86: 7033.33 | E86: Buriti | H86: 2015-02-10 | I86: Boleto | J86: -454
A87: A | B87: PIS | C87: Competência 01/2015 | D87: 1858.84 | E87: ADM Golden | H87: 2015-02-25 | I87: Boleto | J87: -439
A88: A | B88: Cofins | C88: Competência 01/2015 | D88: 8556.19 | E88: ADM Golden | H88: 2015-02-25 | I88: Boleto | J88: -439
A89: A | B89: PIS | C89: Competência 01/2015 | D89: 14.72 | E89: ADM CNS | H89: 2015-02-25 | I89: Boleto | J89: -439
A90: A | B90: Cofins | C90: Competência 01/2015 | D90: 67.92 | E90: ADM CNS | H90: 2015-02-25 | I90: Boleto | J90: -439
A91: A | B91: DARF | C91: IRPJ - Lucro Real Balanço | D91: 10831.51 | E91: ADM Golden | H91: 2015-02-27 | I91: Boleto | J91: -437
A92: A | B92: DARF | C92: CSLL-Demais PJ q/apuram IRPJ c/base luc. | D92: 4626.55 | E92: ADM Golden | H92: 2015-02-27 | I92: Boleto | J92: -437
A93: A | B93: Prefeitura Municipal de Guaratin | C93: ISS competência 02/2015 | D93: 6122.56 | E93: Buriti | H93: 2015-03-23 | I93: Boleto | J93: -413
A94: A | B94: PIS | C94: Darf PIS- Golden | D94: 2081.18 | E94: ADM Golden | H94: 2015-03-25 | I94: Boleto | J94: -411
A95: A | B95: Cofins | C95: Darf COFINS- Golden | D95: 9581.29 | E95: ADM Golden | H95: 2015-03-25 | I95: Boleto | J95: -411
A96: A | B96: DARF | C96: IRPJ - Lucro Real Balanço 4° trim. 2014 | D96: 10919.44 | E96: ADM Golden | H96: 2015-03-31 | I96: Boleto | J96: -405
A97: A | B97: DARF | C97: CSLL-Demais PJ -IRPJ c/base luc. 4° trim14 | D97: 4664.1 | E97: ADM Golden | H97: 2015-03-31 | I97: Boleto | J97: -405
A98: A | B98: Prefeitura Municipal de Guaratin | C98: ISS competência 03/2015 | D98: 5933 | E98: Buriti | H98: 2015-04-10 | I98: Boleto | J98: -395
A99: A | B99: PIS | C99: Competência 03/2015 | D99: 1775.87 | E99: ADM Golden | H99: 2015-04-24 | I99: Boleto | J99: -381
A100: A | B100: Cofins | C100: Competência 03/2015 | D100: 8175.48 | E100: ADM Golden | H100: 2015-04-24 | I100: Boleto | J100: -381
A101: A | B101: DARF | C101: IRPJ - Lucro Real Balanço 01/03 | D101: 15400.2 | E101: ADM Golden | H101: 2015-04-30 | I101: Boleto | J101: -375
A102: A | B102: DARF | C102: CSLL-Demais PJ -IRPJ c/base luc. 01/03 | D102: 6264.07 | E102: ADM Golden | H102: 2015-04-30 | I102: Boleto | J102: -375
A103: A | B103: DARF | C103: CSLL-Demais PJ -IRPJ c/base luc. 02/03 | D103: 6326.71 | E103: ADM Golden | H103: 2015-04-30 | I103: Boleto | J103: -375
A104: A | B104: Prefeitura Municipal de Guaratin | C104: ISS Competência 04/2015 | D104: 6265.81 | E104: Buriti | H104: 2015-05-10 | I104: Boleto | J104: -365
A105: A | B105: DARF | C105: IRPJ - Lucro Real Balanço 02/03 | D105: 15554.2 | E105: ADM Golden | H105: 2015-05-29 | I105: Boleto | J105: -346
A106: A | B106: Prefeitura Municipal de Guaratin | C106: ISS competência 05/2015 | D106: 5838.02 | E106: Buriti | H106: 2015-06-10 | I106: Boleto | J106: -334
A107: A | B107: PIS | C107: Competência 05/2015 | D107: 1624.62 | E107: ADM Golden | H107: 2015-06-25 | I107: Boleto | J107: -319
A108: A | B108: Cofins | C108: Competência 05/2015 | D108: 7479.05 | E108: ADM Golden | H108: 2015-06-25 | I108: Boleto | J108: -319
A109: A | B109: DARF | C109: IRPJ - Lucro Real Balanço 03/03 | D109: 15706.67 | E109: ADM Golden | H109: 2015-06-30 | I109: Boleto | J109: -314
A110: A | B110: DARF | C110: CSLL-Demais PJ -IRPJ c/base luc. 03/03 | D110: 6388.74 | E110: ADM Golden | H110: 2015-06-30 | I110: Boleto | J110: -314
A111: A | B111: Prefeitura Municipal de Guaratin | C111: ISS competência 06/2015 | D111: 5363.11 | E111: Buriti | H111: 2015-07-10 | I111: Boleto | J111: -304
A112: A | B112: Cofins | C112: Competência 06/2015 | D112: 5504.56 | E112: ADM Golden | H112: 2015-07-24 | I112: Boleto | J112: -290
A113: A | B113: PIS | C113: Competência 06/2015 | D113: 1174.44 | E113: ADM Golden | H113: 2015-07-24 | I113: Boleto | J113: -290
A114: A | B114: DARF | C114: IRPJ - Lucro Real Balanço 1/3 -2° trim.15 | D114: 15696.54 | E114: ADM Golden | H114: 2015-07-31 | I114: Boleto | J114: -283
A115: A | B115: DARF | C115: CSLL- PJ -IRPJ c/base luc. 1/3- 2° trim. 15 | D115: 6017.53 | E115: ADM Golden | H115: 2015-07-31 | I115: Boleto | J115: -283
A116: A | B116: Prefeitura Municipal de Guaratin | C116: ISS competência 07/2015 | D116: 6266.25 | E116: ADM Golden | H116: 2015-08-10 | I116: Boleto | J116: -273
A117: A | B117: SEEG-Sind. empreg. Estac. E gar. SP | C117: Contribuição assistencial | D117: 112 | E117: Outlet | H117: 2015-08-10 | I117: Boleto | J117: -273
A118: A | B118: SEEG-Sind. empreg. Estac. E gar. SP | C118: Contribuição assistencial | D118: 176 | E118: Buriti | H118: 2015-08-10 | I118: Boleto | J118: -273
A119: A | B119: Cofins | C119: Competência 07/2015 | D119: 8618.09 | E119: ADM Golden | H119: 2015-08-25 | I119: Boleto | J119: -258
A120: A | B120: PIS | C120: Competência 07/2015 | D120: 1871.98 | E120: Buriti | H120: 2015-08-25 | I120: Boleto | J120: -258
A121: A | B121: ICMS - Vlr. Dep. na C/C do Nelson | C121: PEP-Prog.Esp.Parc.ICMS Fco rocha 13/120 | D121: 3292.41 | E121: ADM Alim | H121: 2015-09-10 | I121: Boleto | J121: -242
A122: A | B122: ICMS - Vlr. Dep. na C/C do Nelson | C122: Parcelamento ICM S Sampla parc. 13/120 | D122: 840.79 | E122: Sampla | H122: 2015-09-10 | I122: Boleto | J122: -242
A123: A | B123: Prefeitura Municipal de Guaratin | C123: ISS 08/2015 | D123: 4738.08 | E123: Buriti | H123: 2015-09-10 | I123: Boleto | J123: -242
A124: A | B124: SEEG - Sindicato Estacionamentos | C124: Contribuição assistencial 08/2015 | D124: 112 | E124: Outlet | H124: 2015-09-10 | I124: Boleto | J124: -242
A125: A | B125: SEEG - Sindicato Estacionamentos | C125: Contribuição assistencial 08/2016 | D125: 192 | E125: Buriti | H125: 2015-09-10 | I125: Boleto | J125: -242
A126: A | B126: Sind Trab Empresas Refeições Coletivas | C126: Contribuição da categoria 08/2015 | D126: 39 | E126: Sampla | H126: 2015-09-10 | I126: Boleto | J126: -242
A127: A | B127: Sind Trab Empresas Refeições Coletivas | C127: uniodonto 08/2015 | D127: 26 | E127: Sampla | H127: 2015-09-10 | I127: Boleto | J127: -242
A128: A | B128: Sind Trab Empresas Refeições Coletivas | C128: subsidio de beneficio 08/2015 | D128: 44 | E128: Sampla | H128: 2015-09-10 | I128: Boleto | J128: -242
A129: A | B129: Sind Trab Empresas Refeições Coletivas | C129: associativa 08/2015 | D129: 26.5 | E129: Sampla | H129: 2015-09-10 | I129: Boleto | J129: -242
A130: A | B130: Cofins | C130: Competência 08/2015 | D130: 4956.46 | E130: ADM Golden | H130: 2015-09-25 | I130: Boleto | J130: -227
A131: A | B131: PIS | C131: Competência 08/2015 | D131: 1077.05 | E131: ADM Golden | H131: 2015-09-25 | I131: Boleto | J131: -227
A132: A | B132: PIS | C132: Competência 09/2015 | D132: 1553.61 | E132: ADM Golden | H132: 2015-10-23 | I132: Boleto | J132: -199
A133: A | B133: Cofins | C133: Competência 09/2015 | D133: 7151.3 | E133: ADM Golden | H133: 2015-10-23 | I133: Boleto | J133: -199
A134: A | B134: DARF | C134: IRPJ - Lucro Real Balanço 1/3 -3° trim.15 | D134: 32123.63 | E134: ADM Golden | H134: 2015-10-30 | I134: Boleto | J134: -192
A135: A | B135: DARF | C135: CSLL- PJ -IRPJ c/base luc. 1/3- 3° trim. 15 | D135: 11710.31 | E135: ADM Golden | H135: 2015-10-30 | I135: Boleto | J135: -192
A136: A | B136: Prefeitura Municipal de Guaratin | C136: ISS Compet. 10/2015 | D136: 5810.2 | E136: Buriti | H136: 2015-11-10 | I136: Boleto | J136: -181
A137: A | B137: DARF | C137: Cofins competência10/2015 | D137: 8214.67 | E137: ADM Golden | H137: 2015-11-25 | I137: Boleto | J137: -166
A138: A | B138: DARF | C138: Pis competência10/2015 | D138: 1784.4 | E138: ADM Golden | H138: 2015-11-25 | I138: Boleto | J138: =H138-TODAY() -> -166
A139: A | B139: Prefeitura Municipal de Guaratin | C139: ISS Compet. 11/2015 | D139: 6008.97 | E139: Buriti | H139: 2015-12-10 | I139: Boleto | J139: -151
A140: A | B140: DARF | C140: Pis competência11/2015 | D140: 1547.34 | E140: ADM Golden | H140: 2015-12-24 | I140: Boleto | J140: -137
A141: A | B141: DARF | C141: Cofins competência11/2015 | D141: 7121.92 | E141: ADM Golden | H141: 2015-12-24 | I141: Boleto | J141: -137
A142: A | B142: Prefeitura Municipal de Guaratin | C142: ISS Compet. 12/2015 | D142: 9934.24 | E142: Buriti | H142: 2016-01-10 | I142: Boleto | J142: -120
A143: A | B143: DARF | C143: Pis competência12//2015 | D143: 2926.66 | E143: ADM Golden | H143: 2016-01-22 | I143: Boleto | J143: -108
A144: A | B144: DARF | C144: Cofins competência12/2015 | D144: 13474.61 | E144: ADM Golden | H144: 2016-01-22 | I144: Boleto | J144: -108
A145: A | B145: DARF | C145: IRPJ - Lucro Real Balanço -4° trim. 2015 | D145: 44931.83 | E145: ADM Golden | H145: 2016-01-29 | I145: Boleto | J145: -101
A146: A | B146: DARF | C146: CSLL- PJ -IRPJ c/base luc. -4° trim. 2015 | D146: 16055.97 | E146: ADM Golden | H146: 2016-01-29 | I146: Boleto | J146: -101
A147: A | B147: Prefeitura Municipal de Guaratin | C147: ISS Compet. 01/2016 | D147: 6291.27 | E147: Buriti | H147: 2016-02-10 | I147: Boleto | J147: -89
A148: A | B148: DARF | C148: Pis competência01//2016 | D148: 1747.85 | E148: ADM Golden | H148: 2016-02-25 | I148: Boleto | J148: -74
A149: A | B149: DARF | C149: Cofins competência01/2016 | D149: 8042.72 | E149: ADM Golden | H149: 2016-02-25 | I149: Boleto | J149: -74
A150: A | B150: Prefeitura Municipal de Guaratin | C150: ISS Compet. 02/2016 | D150: 6504.32 | E150: Buriti | H150: 2016-03-10 | I150: Boleto | J150: -60
A151: A | B151: DARF | C151: Pis competência02//2016 | D151: 1987.79 | E151: Buriti | H151: 2016-03-24 | I151: Boleto | J151: -46
A152: A | B152: DARF | C152: Cofins competência02/2016 | D152: 9149.3 | E152: Buriti | H152: 2016-03-24 | I152: Boleto | J152: -46
A153: A | B153: Prefeitura Municipal de Guaratin | C153: ISS Compet. 03/2016 | D153: 5605.08 | E153: Buriti | H153: 2016-04-10 | I153: Boleto | J153: -29
A154: A | B154: DARF | C154: IRPJ - Lucro Real Balanço -1° trim. 2016 | D154: 39989.41 | E154: ADM Golden | H154: 2016-04-29 | I154: Boleto | J154: -10
A155: A | B155: DARF | C155: CSLL- PJ -IRPJ c/base luc. -1° trim. 2016 | D155: 13728.52 | E155: ADM Golden | H155: 2016-04-29 | I155: Boleto | J155: -10
A156: A | J156: -42499
A157: A | J157: -42499
A158: A | J158: -42499
A159: A | J159: -42499
A160: A | J160: -42499
A161: A | J161: -42499
A162: A | J162: -42499
A163: A | J163: -42499
A164: A | J164: -42499
A165: A | J165: -42499
A166: A | J166: -42499
A167: A | J167: -42499
A168: A | J168: -42499
A169: A | J169: -42499
A170: A | J170: -42499
A171: A | J171: -42499
A172: A | J172: -42499
A173: A | J173: -42499
A174: A | J174: -42499
A175: A | J175: -42499
A176: A | J176: -42499
A177: A | J177: -42499
A178: A | J178: -42499
A179: A | J179: -42499
A180: A | J180: -42499
A181: A | J181: -42499
A182: A | J182: -42499
A183: A | J183: -42499
A184: A | J184: -42499
A185: A | J185: -42499
A186: A | J186: -42499
A187: A | J187: -42499
A188: A | J188: -42499
A189: A | J189: -42499
A190: A | J190: -42499
A191: A | J191: -42499
A192: A | J192: -42499
A193: A | J193: -42499
A194: A | J194: -42499
A195: A | J195: -42499
A196: A | J196: -42499
A197: A | J197: -42499
A198: A | J198: -42499
A199: A | J199: -42499
A200: A | J200: -42499
A201: A | J201: -42499
... 12 more rows

Sheet Menu Extratos
B2: Extratos ITAÚ e HSBC 2016
C5: Janeiro | E5: Fevereiro | G5: Março
C7: Abril | E7: Maio | G7: Junho
C9: Julho | E9: Agosto | G9: Setembro
C11: Outubro | E11: Novembro | G11: Dezembro
D15: Voltar ao menu principal
C181: TOTAL | E181: =SUM(E16:E180) -> 0
C184: Receitas | D184: Despesas
C185: 209707.19 | D185: 196553.69 | E185: Janeiro
E186: Fevereiro
E187: Março
E188: Abril
E189: Maio
E190: Junho
E191: Julho
E192: Agosto
E193: Setembro
E194: Outubro
E195: Novembro
E196: Dezembro

Sheet Extr. Jan
E2: Voltar ao menu principal | G2: Voltar ao menu extratos
J10: HSBC Bank Brasil S.A. - Banco Múltiplo
A11: Nome: | D11: ALIMENTA SERVICOS LTDA | E11: Agência/Conta: | F11: 0429/ 58903-9 | J11: Conta Corrente
J12: Extrato por Período
A13: Data: | D13: 01/02/2016 | E13: Horário: | F13: 08:56:46h
A15: Extrato de Conta Corrente | F15: 01/01/2016 a 31/01/2016
J16: Operador: golden1.edson
A17: Data | D17: Lançamento | E17: Valor (R$) | F17: Saldo (R$) | J17: Agência/Conta: 0213-14728-08 GOLDEN PARKING ESTACIONAMENTO E SERVICOS LTDA
A18: 30/12 | D18: SALDO ANTERIOR | F18: 150 | J18: Período: 01/01/2016 a 29/01/2016
A19: 04/01 | D19: SISPAG FORNECEDORES | E19: -1136
A20: 04/01 | D20: SISPAG FORNECEDORES | E20: -33276
A21: 04/01 | B21: D | D21: SISPAG FORNECEDORES | E21: -2187.78 | J21: Média de investimentos
A22: 04/01 | D22: TEC DEPOSITO DINHEIRO | E22: 5455 | J22: Nov | K22: 82,13
A23: 04/01 | D23: TEC DEPOSITO DINHEIRO | E23: 1785.5
A24: 04/01 | D24: TEC DEPOSITO DINHEIRO | E24: 7437.5 | J24: Isenção de tarifas
A25: 04/01 | D25: TEC DEPOSITO DINHEIRO | E25: 10838 | J25: Pacote mês de Dezembro | K25: 0,00 %
A26: 04/01 | D26: TEC DEPOSITO DINHEIRO | E26: 10580 | K26: Movimentação em Contas
A27: 04/01 | D27: TAR CARTAO PJ | E27: -5 | J27: Data | K27: Conta Corrente | N27: Valor
A28: 04/01 | D28: SDO CTA/APL AUTOMATICAS | F28: 67.41 | J28: 31/12 | K28: Saldo anterior | N28: 105,22 | O28: C
A29: 05/01 | D29: SISPAG FORNECEDORES | E29: -13575 | J29: 18/01 | K29: CREDITO TED | L29: 0213 | M29: 0440856 | N29: 37.550,95 | O29: C
A30: 05/01 | B30: D | D30: SISPAG FORNECEDORES | E30: -858.25 | K30: Saldo disponível | N30: 37.656,17 | O30: C
A31: 05/01 | B31: D | D31: SISPAG FORNECEDORES | E31: -3617.44 | J31: 19/01 | K31: EMISSAO DE TED | L31: 0213 | M31: 0649504 | N31: -37.500,00 | O31: D
A32: 05/01 | D32: TAR DOC SISPAG | E32: -8.5 | K32: Saldo disponível | N32: 156,17 | O32: C
A33: 05/01 | D33: TEC DEPOSITO DINHEIRO | E33: 7133 | J33: 20/01 | K33: TEDINTERNET | L33: 0213 | M33: 0000000 | N33: -8,20 | O33: D
A34: 05/01 | D34: TEC DEPOSITO DINHEIRO | E34: 0.5 | K34: Saldo disponível | N34: 147,97 | O34: C
A35: 05/01 | D35: SISPAG SAMPLA BR IN COR | E35: 10893.02 | J35: 21/01 | K35: CREDITO TED | L35: 0213 | M35: 0755992 | N35: 48.172,25 | O35: C
A36: 05/01 | D36: S A L D O | F36: 34.74 | K36: EMISSAO DE TED | L36: 0213 | M36: 0873081 | N36: -48.172,25 | O36: D
A37: 06/01 | D37: SISPAG FORNECEDORES | E37: -61287.97 | K37: Saldo disponível | N37: 147,97 | O37: C
A38: 06/01 | D38: TEC DEPOSITO DINHEIRO | E38: 6000 | J38: 22/01 | K38: TEDINTERNET | L38: 0213 | M38: 0000000 | N38: -8,20 | O38: D
A39: 06/01 | D39: TEC DEPOSITO DINHEIRO | E39: 5337.34 | K39: Saldo disponível | N39: 139,77 | O39: C
A40: 06/01 | D40: TBI 0737.03264-9 C/C | E40: 50000 | J40: 26/01 | K40: TAR CONNECTBANK MENSAL | L40: 0213 | M40: 0000000 | N40: -47,15 | O40: D
A41: 06/01 | D41: TAR MAXCTA PJ MENS 12/15 | E41: -37.5 | K41: Saldo disponível | N41: 92,62 | O41: C
A42: 06/01 | D42: S A L D O | F42: 46.61 | J42: 28/01 | K42: CREDITO TED | L42: 0213 | M42: 0221289 | N42: 22.328,79 | O42: C
A43: 07/01 | D43: SISPAG TRIBUTOS | E43: -4734.83 | K43: Saldo disponível | N43: 22.421,41 | O43: C
A44: 07/01 | D44: SISPAG FORNECEDORES | E44: -32177.81 | J44: 29/01 | K44: EMISSAO DE TED | L44: 0213 | M44: 0746781 | N44: -22.300,00 | O44: D
A45: 07/01 | B45: D | D45: SISPAG FORNECEDORES | E45: -826.39 | J45: Saldo em 29/01/2016
A46: 07/01 | D46: TEC DEPOSITO DINHEIRO | E46: 6345.65 | J46: Saldo disponível | K46: 121.41 | O46: C
A47: 07/01 | D47: TBI 0737.03264-9 C/C | E47: 31400 | J47: Saldo indisponível | K47: 0
A48: 07/01 | D48: S A L D O | F48: 53.23 | J48: Saldo total | K48: 121.41 | O48: C
A49: 08/01 | D49: SISPAG FORNECEDORES | E49: -344.4
A50: 08/01 | D50: SISPAG FORNECEDORES | E50: -2787.55
A51: 08/01 | D51: SISPAG FORNECEDORES TED | E51: -2295
A52: 08/01 | B52: D | D52: SISPAG FORNECEDORES | E52: -1080
A53: 08/01 | D53: TAR TED SISPAG | E53: -8.5
A54: 08/01 | D54: TEC DEPOSITO DINHEIRO | E54: 6451.5
A55: 08/01 | D55: TEC DEPOSITO DINHEIRO | E55: 20
A56: 08/01 | D56: S A L D O | F56: 9.28
A57: 11/01 | D57: SISPAG TRIBUTOS | E57: -259.57
A58: 11/01 | D58: SISPAG FORNECEDORES | E58: -2503.08
A59: 11/01 | D59: SISPAG FORNECEDORES | E59: -289.97
A60: 11/01 | D60: SISPAG FORNECEDORES | E60: -35131.93
A61: 11/01 | B61: D | D61: SISPAG FORNECEDORES | E61: -980.94
A62: 11/01 | B62: D | D62: SISPAG FORNECEDORES | E62: -560
A63: 11/01 | D63: TAR DOC SISPAG | E63: -25.5
A64: 11/01 | D64: TEC DEPOSITO DINHEIRO | E64: 337
A65: 11/01 | D65: TEC DEPOSITO DINHEIRO | E65: 8194
A66: 11/01 | D66: TEC DEPOSITO DINHEIRO | E66: 9044.5
A67: 11/01 | D67: TEC DEPOSITO DINHEIRO | E67: 6993.25
A68: 11/01 | D68: TBI 0737.03264-9 C/C | E68: 15200
A69: 11/01 | D69: S A L D O | F69: 27.04
A70: 12/01 | D70: SISPAG FORNECEDORES | E70: -750.72
A71: 12/01 | D71: SISPAG FORNECEDORES | E71: -7923.4
A72: 12/01 | D72: TEC DEPOSITO DINHEIRO | E72: 8718.31
A73: 12/01 | D73: S A L D O | F73: 71.23
A74: 13/01 | D74: SISPAG FORNECEDORES | E74: -5315
A75: 13/01 | B75: D | D75: SISPAG FORNECEDORES | E75: -950
A76: 13/01 | D76: TAR DOC SISPAG | E76: -8.5
A77: 13/01 | D77: TEC DEPOSITO DINHEIRO | E77: 6254.89
A78: 13/01 | D78: S A L D O | F78: 52.62
A79: 14/01 | D79: SISPAG FORNECEDORES | E79: -6600
A80: 14/01 | D80: TEC DEPOSITO DINHEIRO | E80: 6605.5
A81: 14/01 | D81: S A L D O | F81: 58.12
A82: 15/01 | D82: SISPAG TRIBUTOS | E82: -157.6
A83: 15/01 | D83: SISPAG FORNECEDORES | E83: -187.8
A84: 15/01 | D84: SISPAG FORNECEDORES | E84: -5100
A85: 15/01 | B85: D | D85: SISPAG FORNECEDORES | E85: -350
A86: 15/01 | B86: D | D86: SISPAG FORNECEDORES | E86: -336
A87: 15/01 | D87: TAR DOC SISPAG | E87: -8.5
A88: 15/01 | D88: TEC DEPOSITO DINHEIRO | E88: 6129
A89: 15/01 | D89: S A L D O | F89: 47.22
A90: 18/01 | D90: SISPAG FORNECEDORES | E90: -23.7
A91: 18/01 | D91: SISPAG FORNECEDORES | E91: -3127.48
A92: 18/01 | D92: SISPAG FORNECEDORES | E92: -13180.9
A93: 18/01 | D93: SISPAG FORNECEDORES TED | E93: -3955.3
A94: 18/01 | B94: D | D94: SISPAG FORNECEDORES | E94: -3264.52
A95: 18/01 | D95: TAR TED SISPAG | E95: -17
A96: 18/01 | D96: TEC DEPOSITO DINHEIRO | E96: 379
A97: 18/01 | D97: TEC DEPOSITO DINHEIRO | E97: 8220
A98: 18/01 | D98: TEC DEPOSITO DINHEIRO | E98: 7538
A99: 18/01 | D99: TEC DEPOSITO DINHEIRO | E99: 7413
A100: 18/01 | D100: S A L D O | F100: 28.32
A101: 19/01 | D101: SISPAG TRIBUTOS | E101: -1953.68
A102: 19/01 | D102: SISPAG FORNECEDORES | E102: -144.9
A103: 19/01 | D103: SISPAG FORNECEDORES | E103: -861.38
A104: 19/01 | D104: SISPAG FORNECEDORES | E104: -40270
A105: 19/01 | B105: D | D105: SISPAG FORNECEDORES | E105: -1190
A106: 19/01 | D106: TEC DEPOSITO DINHEIRO | E106: 6955.5
A107: 19/01 | D107: TED 399.0213GOLDEN ESTAC | E107: 37500
A108: 19/01 | D108: S A L D O | F108: 63.86
A109: 20/01 | D109: SISPAG TRIBUTOS | E109: -612.31
A110: 20/01 | D110: SISPAG TRIBUTOS | E110: -11171.62
A111: 20/01 | D111: SISPAG FORNECEDORES | E111: -15370
A112: 20/01 | B112: D | D112: SISPAG FORNECEDORES | E112: -549.33
A113: 20/01 | D113: TAR DOC SISPAG | E113: -8.5
A114: 20/01 | D114: TEC DEPOSITO DINHEIRO | E114: 5187
A115: 20/01 | D115: SISPAG SAMPLA BR IN COR | E115: 13246.8
A116: 20/01 | D116: TBI 0737.03264-9 C/C | E116: 9300
A117: 20/01 | D117: S A L D O | F117: 85.9
A118: 21/01 | D118: SISPAG FORNECEDORES | E118: -76407.04
A119: 21/01 | D119: SISPAG FORNECEDORES TED | E119: -1711.78
A120: 21/01 | D120: TAR TED SISPAG | E120: -17
A121: 21/01 | D121: TEC DEPOSITO DINHEIRO | E121: 6621.39
A122: 21/01 | D122: TBI 0737.03264-9 C/C | E122: 23300
A123: 21/01 | D123: TED 399.0213GOLDEN ESTAC | E123: 48172.25
A124: 21/01 | D124: S A L D O | F124: 43.72
A125: 22/01 | D125: SISPAG TRIBUTOS | E125: -1805.13
A126: 22/01 | D126: SISPAG FORNECEDORES | E126: -3600
A127: 22/01 | D127: TEC DEPOSITO DINHEIRO | E127: 5421
A128: 22/01 | D128: S A L D O | F128: 59.59
A129: 26/01 | D129: SISPAG FORNECEDORES | E129: -90.78
A130: 26/01 | D130: SISPAG FORNECEDORES | E130: -31431.5
A131: 26/01 | D131: SISPAG FORNECEDORES TED | E131: -490
A132: 26/01 | B132: D | D132: SISPAG FORNECEDORES | E132: -9685.05
A133: 26/01 | D133: TAR TED SISPAG | E133: -8.5
A134: 26/01 | D134: TEC DEPOSITO DINHEIRO | E134: 6694
A135: 26/01 | D135: TEC DEPOSITO DINHEIRO | E135: 5469.5
A136: 26/01 | D136: TEC DEPOSITO DINHEIRO | E136: 7116
A137: 26/01 | D137: TEC DEPOSITO DINHEIRO | E137: 160
A138: 26/01 | D138: TEC DEPOSITO DINHEIRO | E138: 5427.82
A139: 26/01 | D139: TBI 0737.03264-9 C/C | E139: 17000
A140: 26/01 | D140: TAR ENV EXTRAT CONS01/16 | E140: -7
A141: 26/01 | D141: SDO CTA/APL AUTOMATICAS | F141: 214.08
A142: 27/01 | D142: SISPAG FORNECEDORES | E142: -220.25
A143: 27/01 | D143: SISPAG FORNECEDORES | E143: -1847.63
A144: 27/01 | B144: D | D144: SISPAG FORNECEDORES | E144: -2898.18
A145: 27/01 | D145: TEC DEPOSITO DINHEIRO | E145: 4370
A146: 27/01 | D146: TBI 0737.03264-9 C/C | E146: 400
A147: 27/01 | D147: S A L D O | F147: 18.02
A148: 28/01 | D148: SISPAG FORNECEDORES | E148: -5213.95
A149: 28/01 | D149: TEC DEPOSITO DINHEIRO | E149: 5212
A150: 28/01 | D150: S A L D O | F150: 16.07
A151: 29/01 | D151: SISPAG TRIBUTOS | E151: -3218.64
A152: 29/01 | D152: SISPAG FORNECEDORES | E152: -371
A153: 29/01 | D153: SISPAG FORNECEDORES | E153: -40279.49
A154: 29/01 | D154: TEC DEPOSITO DINHEIRO | E154: 5035.5
A155: 29/01 | D155: TBI 0737.03264-9 C/C | E155: 16600
A156: 29/01 | D156: TED 399.0213GOLDEN ESTAC | E156: 22300
A157: 31/01 | D157: S A L D O | F157: 82.44

Sheet Extr. fev
E2: Voltar ao menu principal | G2: Voltar ao menu extratos
J6: HSBC Bank Brasil S.A. - Banco Múltiplo
J7: Conta Corrente
J8: Extrato por Período
B10: Nome: | E10: ALIMENTA SERVICOS LTDA | F10: Agência/Conta: | G10: 0429/ 58903-9
B12: Data: | E12: 06/05/2016 | F12: Horário: | G12: 10:33:28h | J12: Operador: golden1.edson
J13: Agência/Conta: 0213-14728-08 GOLDEN PARKING ESTACIONAMENTO E SERVICOS LTDA
B14: Extrato de Conta Corrente | G14: 01/02/2016 a 29/02/2016 | J14: Período: 01/02/2016 a 29/02/2016
B16: Data | E16: Lançamento | F16: Valor (R$) | G16: Saldo (R$) | J16: Isenção de tarifas
B17: 05/02 | E17: SALDO ANTERIOR | G17: 31.59 | J17: Pacote mês de Janeiro | N17: 0,00 %
B18: 10/02 | E18: SISPAG TRIBUTOS | F18: -217.49
B19: 10/02 | E19: SISPAG FORNECEDORES | F19: -1021.66 | K19: Movimentação em contas
B20: 10/02 | E20: SISPAG FORNECEDORES | F20: -200.53 | J20: Data | K20: Conta corrente | N20: Valor
B21: 10/02 | E21: SISPAG FORNECEDORES | F21: -58188.47 | J21: 29/01 | K21: Saldo anterior | N21: 121,41 | O21: C
B22: 10/02 | E22: SISPAG FORNECEDORES TED | F22: -252.62 | J22: 01/02 | K22: TEDINTERNET | L22: 0000 | M22: 0000000 | N22: -8,20 | O22: D
B23: 10/02 | C23: D | E23: SISPAG FORNECEDORES | F23: -988.71 | K23: Saldo Total | N23: 113,21 | O23: C
B24: 10/02 | E24: TAR TED SISPAG | F24: -17 | J24: 10/02 | K24: DP BLQ01 BCOS 000889 | L24: 0000 | M24: 0006369 | N24: 1.259,14 | O24: C
B25: 10/02 | E25: TEC DEPOSITO DINHEIRO | F25: 8912 | K25: Saldo Total | N25: 1.372,35 | O25: C
B26: 10/02 | E26: TEC DEPOSITO DINHEIRO | F26: 12148.4 | J26: 12/02 | K26: EMISSAO DE TED | L26: 0000 | M26: 0886149 | N26: -1.259,14 | O26: D
B27: 10/02 | E27: TEC DEPOSITO DINHEIRO | F27: 9458.5 | K27: Saldo Total | N27: 113,21 | O27: C
B28: 10/02 | E28: TEC DEPOSITO DINHEIRO | F28: 8554.5 | J28: 15/02 | K28: TEDINTERNET | L28: 0000 | M28: 0000000 | N28: -8,20 | O28: D
B29: 10/02 | E29: TEC DEPOSITO DINHEIRO | F29: 10012.24 | K29: Saldo Total | N29: 105,01 | O29: C
B30: 10/02 | E30: TBI 0737.03264-9 C/C | F30: 200 | J30: 19/02 | K30: CREDITO TED | L30: 0000 | M30: 0251238 | N30: 32.538,47 | O30: C
B31: 10/02 | E31: TBI 0737.03264-9 C/C | F31: 11600 | K31: Saldo Total | N31: 32.643,48 | O31: C
B32: 10/02 | E32: S A L D O | G32: 30.75 | J32: 22/02 | K32: CREDITO TED | L32: 0000 | M32: 0392431 | N32: 56.408,03 | O32: C
B33: 11/02 | E33: SISPAG TRIBUTOS | F33: -259.57 | K33: EMISSAO DE TED | L33: 0000 | M33: 0957570 | N33: -32.538,47 | O33: D
B34: 11/02 | E34: SISPAG FORNECEDORES | F34: -32475.19 | K34: Saldo Total | N34: 56.513,04 | O34: C
B35: 11/02 | C35: D | E35: SISPAG FORNECEDORES | F35: -550 | J35: 23/02 | K35: EMISSAO DE TED | L35: 0000 | M35: 0543917 | N35: -56.300,00 | O35: D
B36: 11/02 | E36: TEC DEPOSITO DINHEIRO | F36: 8720.5 | K36: TEDINTERNET | L36: 0000 | M36: 0000000 | N36: -8,20 | O36: D
B37: 11/02 | E37: CEI 000682 DINHEIRO | F37: 6 | K37: Saldo Total | N37: 204,84 | O37: C
B38: 11/02 | E38: TBI 0737.03264-9 C/C | F38: 24600 | J38: 24/02 | K38: TEDINTERNET | L38: 0000 | M38: 0000000 | N38: -8,20 | O38: D
B39: 11/02 | E39: S A L D O | G39: 72.49 | K39: Saldo Total | N39: 196,64 | O39: C
B40: 12/02 | E40: SISPAG FORNECEDORES | F40: -8576.6 | J40: 25/02 | K40: TAR CONNECTBANK MENSAL | L40: 0000 | M40: 0000000 | N40: -47,15 | O40: D
B41: 12/02 | E41: TEC DEPOSITO DINHEIRO | F41: 7305.5
B42: 12/02 | E42: TED 399.0213GOLDEN ESTAC | F42: 1259.14 | J42: Saldo em 29/02/2016
B43: 12/02 | E43: S A L D O | G43: 60.53 | J43: Saldo disponível | N43: 149,49 | O43: C
B44: 15/02 | E44: SISPAG TRIBUTOS | F44: -176 | J44: Saldo indisponível | N44: 0,00
B45: 15/02 | E45: SISPAG FORNECEDORES | F45: -1155.72 | J45: Saldo total | N45: 149,49 | O45: C
B46: 15/02 | E46: SISPAG FORNECEDORES | F46: -29598.94
B47: 15/02 | E47: SISPAG FORNECEDORES TED | F47: -580 | J47: Data | K47: Conta investimento | N47: Valor
B48: 15/02 | E48: TAR TED SISPAG | F48: -8.5 | J48: 29/01 | K48: Saldo anterior | N48: 0,00 | O48: C
B49: 15/02 | E49: TEC DEPOSITO DINHEIRO | F49: 8284.5
B50: 15/02 | E50: TEC DEPOSITO DINHEIRO | F50: 12884
B51: 15/02 | E51: TEC DEPOSITO DINHEIRO | F51: 10340
B52: 15/02 | E52: S A L D O | G52: 49.87
B53: 16/02 | E53: SISPAG FORNECEDORES | F53: -31.88
B54: 16/02 | E54: SISPAG FORNECEDORES | F54: -3500
B55: 16/02 | E55: SISPAG FORNECEDORES TED | F55: -2455.3
B56: 16/02 | C56: D | E56: SISPAG FORNECEDORES | F56: -500
B57: 16/02 | E57: TAR TED SISPAG | F57: -8.5
B58: 16/02 | E58: TEC DEPOSITO DINHEIRO | F58: 6514
B59: 16/02 | E59: S A L D O | G59: 68.19
B60: 17/02 | E60: SISPAG FORNECEDORES | F60: -3915.2
B61: 17/02 | E61: SISPAG FORNECEDORES TED | F61: -1500
B62: 17/02 | E62: TAR TED SISPAG | F62: -8.5
B63: 17/02 | E63: TEC DEPOSITO DINHEIRO | F63: 5413.5
B64: 17/02 | E64: S A L D O | G64: 57.99
B65: 18/02 | E65: SISPAG FORNECEDORES | F65: -3516.1
B66: 18/02 | C66: D | E66: SISPAG FORNECEDORES | F66: -2764.52
B67: 18/02 | E67: TEC DEPOSITO DINHEIRO | F67: 5080.5
B68: 18/02 | E68: TBI 0737.03264-9 C/C | F68: 1200
B69: 18/02 | E69: S A L D O | G69: 57.87
B70: 19/02 | E70: SISPAG TRIBUTOS | F70: -886.93
B71: 19/02 | E71: SISPAG TRIBUTOS | F71: -96.23
B72: 19/02 | E72: SISPAG TRIBUTOS | F72: -961.55
B73: 19/02 | E73: SISPAG TRIBUTOS | F73: -4935.01
B74: 19/02 | E74: SISPAG FORNECEDORES | F74: -199.3
B75: 19/02 | E75: SISPAG FORNECEDORES | F75: -13360
B76: 19/02 | E76: TEC DEPOSITO DINHEIRO | F76: 4978
B77: 19/02 | E77: SISPAG SAMPLA BR IN COR | F77: 12362.85
B78: 19/02 | E78: TBI 0737.03264-9 C/C | F78: 3100
B79: 19/02 | E79: S A L D O | G79: 59.7
B80: 22/02 | E80: SISPAG FORNECEDORES | F80: -59011.38
B81: 22/02 | E81: SISPAG FORNECEDORES TED | F81: -1702.58
B82: 22/02 | E82: TAR TED SISPAG | F82: -25.5
B83: 22/02 | E83: TEC DEPOSITO DINHEIRO | F83: 10056
B84: 22/02 | E84: TEC DEPOSITO DINHEIRO | F84: 11554
B85: 22/02 | E85: TEC DEPOSITO DINHEIRO | F85: 6577
B86: 22/02 | E86: TED 399.0213GOLDEN ESTAC | F86: 32538.47
B87: 22/02 | E87: S A L D O | G87: 45.71
B88: 23/02 | E88: SISPAG FORNECEDORES | F88: -55000
B89: 23/02 | E89: SISPAG FORNECEDORES TED | F89: -680
B90: 23/02 | C90: D | E90: SISPAG FORNECEDORES | F90: -5688.11
B91: 23/02 | E91: TAR TED SISPAG | F91: -8.5
B92: 23/02 | E92: TEC DEPOSITO DINHEIRO | F92: 5103
B93: 23/02 | E93: TED 399.0213GOLDEN ESTAC | F93: 56300
B94: 23/02 | E94: S A L D O | G94: 72.1
B95: 24/02 | E95: SISPAG FORNECEDORES | F95: -3520
B96: 24/02 | E96: ESTORNO DEP DINHEIRO | F96: -3424.5
B97: 24/02 | E97: TEC DEPOSITO DINHEIRO | F97: 3424.5
B98: 24/02 | E98: TEC DEPOSITO DINHEIRO | F98: 3454.5
B99: 24/02 | E99: S A L D O | G99: 6.6
B100: 25/02 | E100: SISPAG TRIBUTOS | F100: -134.76
B101: 25/02 | E101: SISPAG TRIBUTOS | F101: -2954.45
B102: 25/02 | E102: SISPAG TRIBUTOS | F102: -773.03
B103: 25/02 | E103: SISPAG TRIBUTOS | F103: -730.81
B104: 25/02 | E104: SISPAG FORNECEDORES | F104: -3641.2
B105: 25/02 | C105: D | E105: SISPAG FORNECEDORES | F105: -699.64
B106: 25/02 | E106: TEC DEPOSITO DINHEIRO | F106: 3835.16
B107: 25/02 | E107: TBI 0737.03264-9 C/C | F107: 5150
B108: 25/02 | E108: TAR ENV EXTRAT CONS02/16 | F108: -10
B109: 25/02 | E109: S A L D O | G109: 47.87
B110: 26/02 | E110: SISPAG FORNECEDORES | F110: -3459.42
B111: 26/02 | C111: D | E111: SISPAG FORNECEDORES | F111: -880
B112: 26/02 | E112: TEC DEPOSITO DINHEIRO | F112: 4316.5
B113: 26/02 | E113: S A L D O | G113: 24.95
B114: 29/02 | E114: SISPAG TRIBUTOS | F114: -3248.34
B115: 29/02 | E115: SISPAG FORNECEDORES | F115: -20.04
B116: 29/02 | E116: SISPAG FORNECEDORES | F116: -90.78
B117: 29/02 | E117: SISPAG FORNECEDORES | F117: -51465.17
B118: 29/02 | E118: SISPAG FORNECEDORES TED | F118: -3390
B119: 29/02 | C119: D | E119: SISPAG FORNECEDORES | F119: -474.68
B120: 29/02 | E120: TAR TED SISPAG | F120: -17
B121: 29/02 | E121: TEC DEPOSITO DINHEIRO | F121: 9086
B122: 29/02 | E122: TEC DEPOSITO DINHEIRO | F122: 4989
B123: 29/02 | E123: TEC DEPOSITO DINHEIRO | F123: 10316
B124: 29/02 | E124: TBI 0737.03264-9 C/C | F124: 34350
B125: 29/02 | E125: S A L D O | G125: 59.94

Sheet Extr. mar
E2: Voltar ao menu principal | G2: Voltar ao menu extratos
J6: HSBC Bank Brasil S.A. - Banco Múltiplo
J7: Conta Corrente
J8: Extrato por Período
B11: Nome: | E11: ALIMENTA SERVICOS LTDA | F11: Agência/Conta: | G11: 0429/ 58903-9
J12: Operador: golden1.edson
B13: Data: | E13: 06/05/2016 | F13: Horário: | G13: 10:34:18h | J13: Agência/Conta: 0213-14728-08 GOLDEN PARKING ESTACIONAMENTO E SERVICOS LTDA
J14: Período: 01/03/2016 a 31/03/2016
B15: Extrato de Conta Corrente | G15: 01/03/2016 a 31/03/2016
J16: Isenção de tarifas
B17: Data | E17: Lançamento | F17: Valor (R$) | G17: Saldo (R$) | J17: Pacote mês de Janeiro | N17: 0,00 %
B18: 29/02 | E18: SALDO ANTERIOR | G18: 59.94
B19: 01/03 | E19: SISPAG FORNECEDORES | F19: -1197.23 | K19: Movimentação em contas
B20: 01/03 | E20: SISPAG FORNECEDORES | F20: -210.5 | J20: Data | K20: Conta corrente | N20: Valor
B21: 01/03 | E21: SISPAG FORNECEDORES | F21: -3270 | J21: 29/02 | K21: Saldo anterior | N21: 149,49 | O21: C
B22: 01/03 | E22: TEC DEPOSITO DINHEIRO | F22: 4698 | J22: 16/03 | K22: CREDITO TED | L22: 0000 | M22: 0703021 | N22: 22.766,47 | O22: C
B23: 01/03 | E23: TAR CARTAO PJ | F23: -5.5 | K23: Saldo Total | N23: 22.915,96 | O23: C
B24: 01/03 | E24: S A L D O | G24: 74.71 | J24: 17/03 | K24: CREDITO TED | L24: 0000 | M24: 0807524 | N24: 45.791,16 | O24: C
B25: 02/03 | E25: SISPAG FORNECEDORES | F25: -1596 | K25: EMISSAO DE TED | L25: 0000 | M25: 0711422 | N25: -22.700,00 | O25: D
B26: 02/03 | C26: D | E26: SISPAG FORNECEDORES | F26: -3515.83 | K26: EMISSAO DE TED | L26: 0000 | M26: 0728571 | N26: -45.791,16 | O26: D
B27: 02/03 | E27: TEC DEPOSITO DINHEIRO | F27: 4925 | K27: Saldo Total | N27: 215,96 | O27: C
B28: 02/03 | E28: TBI 0737.03264-9 C/C | F28: 150 | J28: 18/03 | K28: TEDINTERNET | L28: 0000 | M28: 0000000 | N28: -8,20 | O28: D
B29: 02/03 | E29: S A L D O | G29: 37.88 | K29: TEDINTERNET | L29: 0000 | M29: 0000000 | N29: -8,20 | O29: D
B30: 03/03 | E30: SISPAG FORNECEDORES | F30: -736 | K30: Saldo Total | N30: 199,56 | O30: C
B31: 03/03 | E31: SISPAG FORNECEDORES | F31: -2950 | J31: 28/03 | K31: TAR CONNECTBANK MENSAL | L31: 0000 | M31: 0000000 | N31: -47,15 | O31: D
B32: 03/03 | C32: D | E32: SISPAG FORNECEDORES | F32: -919.81
B33: 03/03 | E33: TEC DEPOSITO DINHEIRO | F33: 4623.45 | J33: Saldo em 31/03/2016
B34: 03/03 | E34: TAR MAXCTA PJ MENS 02/16 | F34: -43 | J34: Saldo disponível | N34: 152,41 | O34: C
B35: 03/03 | E35: S A L D O | G35: 12.52 | J35: Saldo indisponível | N35: 0,00
B36: 04/03 | E36: SISPAG FORNECEDORES | F36: -25382.73 | J36: Saldo total | N36: 152,41 | O36: C
B37: 04/03 | E37: SISPAG FORNECEDORES TED | F37: -350
B38: 04/03 | E38: TAR TED SISPAG | F38: -8.5 | J38: Data | K38: Conta investimento | N38: Valor
B39: 04/03 | E39: TEC DEPOSITO DINHEIRO | F39: 4932.66 | J39: 29/02 | K39: Saldo anterior | N39: 0,00 | O39: C
B40: 04/03 | E40: SISPAG SAMPLA BR IN COR | F40: 14769.6
B41: 04/03 | E41: TBI 0737.03264-9 C/C | F41: 6100
B42: 04/03 | E42: S A L D O | G42: 73.55
B43: 07/03 | E43: SISPAG TRIBUTOS | F43: -3293.62
B44: 07/03 | E44: SISPAG FORNECEDORES | F44: -1692.02
B45: 07/03 | E45: SISPAG FORNECEDORES | F45: -42634.63
B46: 07/03 | E46: SISPAG FORNECEDORES TED | F46: -3582.02
B47: 07/03 | C47: D | E47: SISPAG FORNECEDORES | F47: -4194.4
B48: 07/03 | E48: TAR TED SISPAG | F48: -17
B49: 07/03 | E49: TEC DEPOSITO DINHEIRO | F49: 6426.15
B50: 07/03 | E50: TEC DEPOSITO DINHEIRO | F50: 9950
B51: 07/03 | E51: TEC DEPOSITO DINHEIRO | F51: 12264.5
B52: 07/03 | E52: TBI 0737.03264-9 C/C | F52: 26750
B53: 07/03 | E53: S A L D O | G53: 50.51
B54: 08/03 | E54: SISPAG FORNECEDORES | F54: -256.98
B55: 08/03 | E55: SISPAG FORNECEDORES | F55: -4900
B56: 08/03 | E56: TEC DEPOSITO DINHEIRO | F56: 5167.5
B57: 08/03 | E57: S A L D O | G57: 61.03
B58: 09/03 | E58: SISPAG TRIBUTOS | F58: -217.49
B59: 09/03 | E59: SISPAG FORNECEDORES | F59: -3820
B60: 09/03 | E60: SISPAG FORNECEDORES TED | F60: -321.77
B61: 09/03 | E61: TAR TED SISPAG | F61: -17
B62: 09/03 | E62: ESTORNO DEP DINHEIRO | F62: -4365.45
B63: 09/03 | E63: TEC DEPOSITO DINHEIRO | F63: 4365.45
B64: 09/03 | E64: TEC DEPOSITO DINHEIRO | F64: 4365.45
B65: 09/03 | E65: S A L D O | G65: 50.22
B66: 10/03 | E66: SISPAG FORNECEDORES | F66: -1021.66
B67: 10/03 | E67: SISPAG FORNECEDORES | F67: -8350.08
B68: 10/03 | C68: D | E68: SISPAG FORNECEDORES | F68: -816
B69: 10/03 | E69: TEC DEPOSITO DINHEIRO | F69: 4480
B70: 10/03 | E70: TBI 0737.03264-9 C/C | F70: 4550
B71: 10/03 | E71: TBI 0737.03264-9 C/C | F71: 1150
B72: 10/03 | E72: S A L D O | G72: 42.48
B73: 11/03 | E73: SISPAG TRIBUTOS | F73: -259.57
B74: 11/03 | E74: SISPAG FORNECEDORES | F74: -27853.85
B75: 11/03 | E75: INT DPVAT-SP CMO-1331 | F75: -105.65
B76: 11/03 | E76: TEC DEPOSITO DINHEIRO | F76: 3721.5
B77: 11/03 | E77: TBI 0737.03264-9 C/C | F77: 24600
B78: 11/03 | E78: S A L D O | G78: 144.91
B79: 14/03 | E79: SISPAG FORNECEDORES | F79: -26.05
B80: 14/03 | E80: SISPAG FORNECEDORES | F80: -23730.17
B81: 14/03 | C81: D | E81: SISPAG FORNECEDORES | F81: -880
B82: 14/03 | E82: TEC DEPOSITO DINHEIRO | F82: 10452.5
B83: 14/03 | E83: TEC DEPOSITO DINHEIRO | F83: 8902.5
B84: 14/03 | E84: TEC DEPOSITO DINHEIRO | F84: 5188.5
B85: 14/03 | E85: S A L D O | G85: 52.19
B86: 15/03 | E86: SISPAG TRIBUTOS | F86: -176
B87: 15/03 | E87: SISPAG FORNECEDORES | F87: -660.57
B88: 15/03 | E88: SISPAG FORNECEDORES | F88: -3348.09
B89: 15/03 | E89: TEC DEPOSITO DINHEIRO | F89: 4206.84
B90: 15/03 | E90: S A L D O | G90: 74.37
B91: 16/03 | E91: SISPAG FORNECEDORES | F91: -1461.72
B92: 16/03 | E92: SISPAG FORNECEDORES | F92: -99.86
B93: 16/03 | E93: SISPAG FORNECEDORES | F93: -350
B94: 16/03 | E94: SISPAG FORNECEDORES TED | F94: -2455.3
B95: 16/03 | E95: TAR TED SISPAG | F95: -8.5
B96: 16/03 | E96: TEC DEPOSITO DINHEIRO | F96: 3235.5
B97: 16/03 | E97: TBI 0737.03264-9 C/C | F97: 1100
B98: 16/03 | E98: S A L D O | G98: 34.49
B99: 17/03 | E99: SISPAG FORNECEDORES | F99: -221.01
B100: 17/03 | E100: SISPAG FORNECEDORES | F100: -70591.16
B101: 17/03 | E101: SISPAG FORNECEDORES TED | F101: -1500
B102: 17/03 | E102: TAR TED SISPAG | F102: -8.5
B103: 17/03 | E103: TEC DEPOSITO DINHEIRO | F103: 3869.5
B104: 17/03 | E104: TED 399.0213GOLDEN ESTAC | F104: 45791.16
B105: 17/03 | E105: TED 399.0213GOLDEN ESTAC | F105: 22700
B106: 17/03 | E106: S A L D O | G106: 74.48
B107: 18/03 | E107: SISPAG TRIBUTOS | F107: -315.68
B108: 18/03 | E108: SISPAG TRIBUTOS | F108: -4877.96
B109: 18/03 | E109: SISPAG TRIBUTOS | F109: -3131.12
B110: 18/03 | E110: SISPAG FORNECEDORES | F110: -32551.47
B111: 18/03 | C111: D | E111: SISPAG FORNECEDORES | F111: -2764.52
B112: 18/03 | E112: TEC DEPOSITO DINHEIRO | F112: 3732
B113: 18/03 | E113: SISPAG SAMPLA BR IN COR | F113: 16511.47
B114: 18/03 | E114: TBI 0737.03264-9 C/C | F114: 23400
B115: 18/03 | E115: S A L D O | G115: 77.2
B116: 21/03 | E116: SISPAG FORNECEDORES | F116: -32428.11
B117: 21/03 | E117: SISPAG FORNECEDORES TED | F117: -5906.79
B118: 21/03 | E118: TAR TED SISPAG | F118: -34
B119: 21/03 | E119: TEC DEPOSITO DINHEIRO | F119: 662
B120: 21/03 | E120: TEC DEPOSITO DINHEIRO | F120: 4906.87
B121: 21/03 | E121: TEC DEPOSITO DINHEIRO | F121: 7508
B122: 21/03 | E122: TEC DEPOSITO DINHEIRO | F122: 9650.5
B123: 21/03 | E123: TBI 0737.03264-9 C/C | F123: 15600
B124: 21/03 | E124: S A L D O | G124: 35.67
B125: 22/03 | E125: SISPAG FORNECEDORES | F125: -355
B126: 22/03 | E126: SISPAG FORNECEDORES | F126: -4020
B127: 22/03 | E127: TEC DEPOSITO DINHEIRO | F127: 4390.11
B128: 22/03 | E128: S A L D O | G128: 50.78
B129: 23/03 | E129: SISPAG FORNECEDORES | F129: -900
B130: 23/03 | C130: D | E130: SISPAG FORNECEDORES | F130: -2776.99
B131: 23/03 | E131: TEC DEPOSITO DINHEIRO | F131: 3671
B132: 23/03 | E132: S A L D O | G132: 44.79
B133: 24/03 | E133: SISPAG TRIBUTOS | F133: -3106.43
B134: 24/03 | E134: SISPAG FORNECEDORES | F134: -90.78
B135: 24/03 | E135: SISPAG FORNECEDORES | F135: -650
B136: 24/03 | C136: D | E136: SISPAG FORNECEDORES | F136: -251.07
B137: 24/03 | E137: TEC DEPOSITO DINHEIRO | F137: 4086.69
B138: 24/03 | E138: S A L D O | G138: 33.2
B139: 28/03 | E139: SISPAG TRIBUTOS | F139: -134.76
B140: 28/03 | E140: SISPAG FORNECEDORES | F140: -911.31
B141: 28/03 | E141: SISPAG FORNECEDORES | F141: -35083.2
B142: 28/03 | E142: TEC DEPOSITO DINHEIRO | F142: 761.42
B143: 28/03 | E143: TEC DEPOSITO DINHEIRO | F143: 8414
B144: 28/03 | E144: TEC DEPOSITO DINHEIRO | F144: 7649.85
B145: 28/03 | E145: TEC DEPOSITO DINHEIRO | F145: 6350
B146: 28/03 | E146: TEC DEPOSITO DINHEIRO | F146: 12968
B147: 28/03 | E147: TAR ENV EXTRAT CONS03/16 | F147: -10
B148: 28/03 | E148: S A L D O | G148: 37.2
B149: 29/03 | E149: SISPAG TRIBUTOS | F149: -402.79
B150: 29/03 | E150: SISPAG FORNECEDORES | F150: -5269.6
B151: 29/03 | E151: TEC DEPOSITO DINHEIRO | F151: 5683
B152: 29/03 | E152: S A L D O | G152: 47.81
B153: 30/03 | E153: SISPAG TRIBUTOS | F153: -3276.37
B154: 30/03 | E154: SISPAG FORNECEDORES | F154: -13.87
B155: 30/03 | E155: SISPAG FORNECEDORES | F155: -45496.77
B156: 30/03 | C156: D | E156: SISPAG FORNECEDORES | F156: -4254.87
B157: 30/03 | E157: TEC DEPOSITO DINHEIRO | F157: 3071.5
B158: 30/03 | E158: TBI 0737.03264-9 C/C | F158: 49950
B159: 30/03 | E159: S A L D O | G159: 27.43
B160: 31/03 | E160: SISPAG TRIBUTOS | F160: -2983.99
B161: 31/03 | E161: SISPAG FORNECEDORES | F161: -4028.38
B162: 31/03 | C162: D | E162: SISPAG FORNECEDORES | F162: -657.65
B163: 31/03 | E163: INT MULTA SP 000149381 | F163: -68.1
B164: 31/03 | E164: TEC DEPOSITO DINHEIRO | F164: 3755.5
B165: 31/03 | E165: TBI 0737.03264-9 C/C | F165: 4000
B166: 31/03 | E166: S A L D O | G166: 44.81

Sheet Extr. abr
E2: Voltar ao menu principal | G2: Voltar ao menu extratos
J6: HSBC Bank Brasil S.A. - Banco Múltiplo
J7: Conta Corrente
J8: Extrato por Período
B11: Nome: | E11: ALIMENTA SERVICOS LTDA | F11: Agência/Conta: | G11: 0429/ 58903-9
J12: Operador: golden1.edson
B13: Data: | E13: 06/05/2016 | F13: Horário: | G13: 10:35:18h | J13: Agência/Conta: 0213-14728-08 GOLDEN PARKING ESTACIONAMENTO E SERVICOS LTDA
J14: Período: 01/04/2016 a 29/04/2016
B15: Extrato de Conta Corrente | G15: 01/04/2016 a 30/04/2016
B17: Data | E17: Lançamento | F17: Valor (R$) | G17: Saldo (R$) | J17: Média de investimentos
B18: 31/03 | E18: SALDO ANTERIOR | G18: 44.81 | J18: Fev | K18: 83,36
B19: 01/04 | E19: SISPAG FORNECEDORES | F19: -1
B20: 01/04 | E20: BLOQUEIO JUDICIAL | F20: -44.81 | J20: Isenção de tarifas
B21: 01/04 | E21: TBI 0737.03264-9 C/C | F21: 1 | J21: Pacote mês de Março | K21: 0,00 %
B22: 01/04 | E22: TBI 0737.03264-9 C/C | F22: 1 | K22: Movimentação em Contas
B23: 01/04 | E23: S A L D O | G23: 1 | J23: Data | K23: Conta Corrente | N23: Valor
B24: 04/04 | E24: SISPAG FORNECEDORES | F24: -736 | J24: 31/03 | K24: Saldo anterior | N24: 152,41 | O24: C
B25: 04/04 | E25: SISPAG FORNECEDORES | F25: -21350 | J25: 15/04 | K25: CREDITO TED | L25: 0213 | M25: 0464640 | N25: 24.623,12 | O25: C
B26: 04/04 | E26: TEC DEPOSITO DINHEIRO | F26: 35.2 | K26: Saldo disponível | N26: 24.775,53 | O26: C
B27: 04/04 | E27: TEC DEPOSITO DINHEIRO | F27: 167.5 | J27: 18/04 | K27: CREDITO TED | L27: 0213 | M27: 0620149 | N27: 23.817,82 | O27: C
B28: 04/04 | E28: TEC DEPOSITO DINHEIRO | F28: 5634.5 | K28: EMISSAO DE TED | L28: 0213 | M28: 0781864 | N28: -24.623,12 | O28: D
B29: 04/04 | E29: TEC DEPOSITO DINHEIRO | F29: 9541 | K29: Saldo disponível | N29: 23.970,23 | O29: C
B30: 04/04 | E30: TEC DEPOSITO DINHEIRO | F30: 6715 | J30: 19/04 | K30: EMISSAO DE TED | L30: 0213 | M30: 0844009 | N30: -23.817,82 | O30: D
B31: 04/04 | E31: TAR CARTAO PJ | F31: -5.5 | K31: TEDINTERNET | L31: 0213 | M31: 0000000 | N31: -8,20 | O31: D
B32: 04/04 | E32: S A L D O | G32: 2.7 | K32: Saldo disponível | N32: 144,21 | O32: C
B33: 05/04 | E33: SISPAG FORNECEDORES | F33: -15059.05 | J33: 20/04 | K33: TEDINTERNET | L33: 0213 | M33: 0000000 | N33: -8,20 | O33: D
B34: 05/04 | E34: SISPAG FORNECEDORES TED | F34: -1689.13 | K34: Saldo disponível | N34: 136,01 | O34: C
B35: 05/04 | C35: D | E35: SISPAG FORNECEDORES | F35: -4324.4 | J35: 22/04 | K35: CREDITO TED | L35: 0213 | M35: 0997586 | N35: 9.652,47 | O35: C
B36: 05/04 | E36: TAR TED SISPAG | F36: -9 | K36: EMISSAO DE TED | L36: 0213 | M36: 0590500 | N36: -9.652,47 | O36: D
B37: 05/04 | E37: TEC DEPOSITO DINHEIRO | F37: 4436.74 | K37: Saldo disponível | N37: 136,01 | O37: C
B38: 05/04 | E38: SISPAG SAMPLA BR IN COR | F38: 16656.27 | J38: 25/04 | K38: TAR CONNECTBANK MENSAL | L38: 0213 | M38: 0000000 | N38: -47,15 | O38: D
B39: 05/04 | E39: S A L D O | G39: 14.13 | K39: TEDINTERNET | L39: 0213 | M39: 0000000 | N39: -8,20 | O39: D
B40: 06/04 | E40: SISPAG FORNECEDORES | F40: -47152.57 | K40: Saldo disponível | N40: 80,66 | O40: C
B41: 06/04 | E41: TEC DEPOSITO DINHEIRO | F41: 3768 | J41: 28/04 | K41: CREDITO TED | L41: 0213 | M41: 0473302 | N41: 13.824,37 | O41: C
B42: 06/04 | E42: TBI 0737.03264-9 C/C | F42: 43400 | K42: Saldo disponível | N42: 13.905,03 | O42: C
B43: 06/04 | E43: S A L D O | G43: 29.56 | J43: 29/04 | K43: EMISSAO DE TED | L43: 0213 | M43: 0944313 | N43: -13.700,00 | O43: D
B44: 07/04 | E44: SISPAG TRIBUTOS | F44: -3266.26 | J44: Saldo em 29/04/2016
B45: 07/04 | E45: SISPAG FORNECEDORES | F45: -2846.99 | J45: Saldo disponível | K45: 205.03 | O45: C
B46: 07/04 | E46: SISPAG FORNECEDORES TED | F46: -2295 | J46: Saldo indisponível | K46: 0
B47: 07/04 | E47: TAR TED SISPAG | F47: -9 | J47: Saldo total | K47: 205.03 | O47: C
B48: 07/04 | E48: TEC DEPOSITO DINHEIRO | F48: 5066
B49: 07/04 | E49: TBI 0737.03264-9 C/C | F49: 3330
B50: 07/04 | E50: S A L D O | G50: 8.31
B51: 08/04 | E51: SISPAG TRIBUTOS | F51: -217.49
B52: 08/04 | E52: SISPAG FORNECEDORES | F52: -263.47
B53: 08/04 | E53: SISPAG FORNECEDORES | F53: -7226.3
B54: 08/04 | E54: SISPAG FORNECEDORES TED | F54: -1931.54
B55: 08/04 | C55: D | E55: SISPAG FORNECEDORES | F55: -870
B56: 08/04 | E56: INT LICENC SP 000701393 | F56: -80.07
B57: 08/04 | E57: TAR TED SISPAG | F57: -9
B58: 08/04 | E58: TEC DEPOSITO DINHEIRO | F58: 4685
B59: 08/04 | E59: TBI 0737.03264-9 C/C | F59: 5920
B60: 08/04 | E60: S A L D O | G60: 15.44
B61: 11/04 | E61: SISPAG FORNECEDORES | F61: -987.05
B62: 11/04 | E62: SISPAG FORNECEDORES | F62: -31172.02
B63: 11/04 | E63: SISPAG FORNECEDORES TED | F63: -581.74
B64: 11/04 | C64: D | E64: SISPAG FORNECEDORES | F64: -5596.56
B65: 11/04 | E65: TAR TED SISPAG | F65: -27
B66: 11/04 | E66: TEC DEPOSITO DINHEIRO | F66: 805
B67: 11/04 | E67: TEC DEPOSITO DINHEIRO | F67: 2826.2
B68: 11/04 | E68: TEC DEPOSITO DINHEIRO | F68: 7294.5
B69: 11/04 | E69: TEC DEPOSITO DINHEIRO | F69: 5445.5
B70: 11/04 | E70: TEC DEPOSITO DINHEIRO | F70: 96
B71: 11/04 | E71: TBI 0737.03264-9 C/C | F71: 21890
B72: 11/04 | E72: DESBLOQUEIO JUDICIAL | F72: 44.81
B73: 11/04 | E73: TAR MAXCTA PJ MENS 03/16 | F73: -43
B74: 11/04 | E74: S A L D O | G74: 10.08
B75: 12/04 | E75: SISPAG FORNECEDORES | F75: -101.04
B76: 12/04 | E76: SISPAG FORNECEDORES | F76: -4570
B77: 12/04 | E77: SISPAG FORNECEDORES TED | F77: -350
B78: 12/04 | E78: TAR TED SISPAG | F78: -9
B79: 12/04 | E79: TEC DEPOSITO DINHEIRO | F79: 5046.5
B80: 12/04 | E80: S A L D O | G80: 26.54
B81: 13/04 | E81: SISPAG FORNECEDORES | F81: -105
B82: 13/04 | E82: SISPAG FORNECEDORES | F82: -3634.4
B83: 13/04 | E83: TEC DEPOSITO DINHEIRO | F83: 3744
B84: 13/04 | E84: S A L D O | G84: 31.14
B85: 14/04 | E85: SISPAG FORNECEDORES | F85: -44.06
B86: 14/04 | E86: SISPAG FORNECEDORES | F86: -4509.28
B87: 14/04 | E87: TEC DEPOSITO DINHEIRO | F87: 4541.5
B88: 14/04 | E88: S A L D O | G88: 19.3
B89: 15/04 | E89: SISPAG TRIBUTOS | F89: -501.69
B90: 15/04 | E90: SISPAG TRIBUTOS | F90: -176
B91: 15/04 | E91: SISPAG FORNECEDORES | F91: -659.57
B92: 15/04 | E92: SISPAG FORNECEDORES | F92: -2716.64
B93: 15/04 | E93: TEC DEPOSITO DINHEIRO | F93: 3859.5
B94: 15/04 | E94: TBI 0737.03264-9 C/C | F94: 200
B95: 15/04 | E95: S A L D O | G95: 24.9
B96: 18/04 | E96: SISPAG FORNECEDORES | F96: -1111
B97: 18/04 | E97: SISPAG FORNECEDORES | F97: -189.99
B98: 18/04 | E98: SISPAG FORNECEDORES | F98: -36200.92
B99: 18/04 | E99: SISPAG FORNECEDORES TED | F99: -3955.3
B100: 18/04 | C100: D | E100: SISPAG FORNECEDORES | F100: -2764.52
B101: 18/04 | E101: TAR TED SISPAG | F101: -18
B102: 18/04 | E102: TEC DEPOSITO DINHEIRO | F102: 5032.5
B103: 18/04 | E103: TEC DEPOSITO DINHEIRO | F103: 8732.5
B104: 18/04 | E104: TEC DEPOSITO DINHEIRO | F104: 5837.5
B105: 18/04 | E105: TED 399.0213GOLDEN ESTAC | F105: 24623.12
B106: 18/04 | E106: S A L D O | G106: 10.79
B107: 19/04 | E107: SISPAG TRIBUTOS | F107: -2500.28
B108: 19/04 | E108: SISPAG FORNECEDORES | F108: -25474.95
B109: 19/04 | E109: TEC DEPOSITO DINHEIRO | F109: 4179.5
B110: 19/04 | E110: TED 399.0213GOLDEN ESTAC | F110: 23817.82
B111: 19/04 | E111: S A L D O | G111: 32.88
B112: 20/04 | E112: SISPAG TRIBUTOS | F112: -6595.77
B113: 20/04 | E113: SISPAG TRIBUTOS | F113: -680.64
B114: 20/04 | E114: SISPAG FORNECEDORES | F114: -14020
B115: 20/04 | E115: SISPAG FORNECEDORES TED | F115: -2504.38
B116: 20/04 | E116: TAR TED SISPAG | F116: -27
B117: 20/04 | E117: TEC DEPOSITO DINHEIRO | F117: 3987.5
B118: 20/04 | E118: SISPAG SAMPLA BR IN COR | F118: 16509.68
B119: 20/04 | E119: TBI 0737.03264-9 C/C | F119: 3300
B120: 20/04 | E120: S A L D O | G120: 2.27
B121: 22/04 | E121: SISPAG FORNECEDORES | F121: -20098
B122: 22/04 | C122: D | E122: SISPAG FORNECEDORES | F122: -307.54
B123: 22/04 | C123: D | E123: SISPAG FORNECEDORES | F123: -3444.48
B124: 22/04 | E124: TAR DOC SISPAG | F124: -9
B125: 22/04 | E125: TEC DEPOSITO DINHEIRO | F125: 5254
B126: 22/04 | E126: TEC DEPOSITO DINHEIRO | F126: 7980.5
B127: 22/04 | E127: TBI 0737.03264-9 C/C | F127: 980
B128: 22/04 | E128: TED 399.0213GOLDEN ESTAC | F128: 9652.47
B129: 22/04 | E129: S A L D O | G129: 10.22
B130: 25/04 | E130: SISPAG TRIBUTOS | F130: -10603.18
B131: 25/04 | E131: SISPAG TRIBUTOS | F131: -134.76
B132: 25/04 | E132: SISPAG FORNECEDORES | F132: -24006
B133: 25/04 | C133: D | E133: SISPAG FORNECEDORES | F133: -400.17
B134: 25/04 | E134: TEC DEPOSITO DINHEIRO | F134: 4691.7
B135: 25/04 | E135: TEC DEPOSITO DINHEIRO | F135: 3668.12
B136: 25/04 | E136: TEC DEPOSITO DINHEIRO | F136: 3562
B137: 25/04 | E137: TEC DEPOSITO DINHEIRO | F137: 917
B138: 25/04 | E138: TEC DEPOSITO DINHEIRO | F138: 7604.5
B139: 25/04 | E139: TEC DEPOSITO DINHEIRO | F139: 5276.5
B140: 25/04 | E140: TEC DEPOSITO DINHEIRO | F140: 7936
B141: 25/04 | E141: TBI 0737.03264-9 C/C | F141: 1500
B142: 25/04 | E142: TAR ENV EXTRAT CONS04/16 | F142: -10
B143: 25/04 | E143: S A L D O | G143: 11.93
B144: 26/04 | E144: SISPAG TRIBUTOS | F144: -30.63
B145: 26/04 | E145: SISPAG FORNECEDORES | F145: -2479.47
B146: 26/04 | C146: D | E146: SISPAG FORNECEDORES | F146: -1294.96
B147: 26/04 | E147: TEC DEPOSITO DINHEIRO | F147: 3809
B148: 26/04 | E148: S A L D O | G148: 15.87
B149: 27/04 | E149: SISPAG FORNECEDORES | F149: -19.2
B150: 27/04 | E150: SISPAG FORNECEDORES | F150: -90.78
B151: 27/04 | E151: SISPAG FORNECEDORES | F151: -3300
B152: 27/04 | E152: TEC DEPOSITO DINHEIRO | F152: 3411.5
B153: 27/04 | E153: TEC DEPOSITO DINHEIRO | F153: 8
B154: 27/04 | E154: S A L D O | G154: 25.39
B155: 28/04 | E155: SISPAG FORNECEDORES | F155: -3232.3
B156: 28/04 | E156: TEC DEPOSITO DINHEIRO | F156: 3236.87
B157: 28/04 | E157: S A L D O | G157: 29.96
B158: 29/04 | E158: SISPAG TRIBUTOS | F158: -3018.26
B159: 29/04 | E159: SISPAG TRIBUTOS | F159: -3308.87
B160: 29/04 | E160: SISPAG FORNECEDORES | F160: -35450.4
B161: 29/04 | C161: D | E161: SISPAG FORNECEDORES | F161: -474.68
B162: 29/04 | E162: TEC DEPOSITO DINHEIRO | F162: 4504.5
B163: 29/04 | E163: TBI 0737.03264-9 C/C | F163: 24050
B164: 29/04 | E164: TED 399.0213GOLDEN ESTAC | F164: 13700
B165: 29/04 | E165: S A L D O | G165: 32.25

Sheet Extr. mai
E2: Voltar ao menu principal | G2: Voltar ao menu extratos

Sheet Extr. jun
E2: Voltar ao menu principal | G2: Voltar ao menu extratos

Sheet Extr. jul
E2: Voltar ao menu principal | G2: Voltar ao menu extratos

Sheet Extr. ago
E2: Voltar ao menu principal | G2: Voltar ao menu extratos

Sheet Extr. set
E2: Voltar ao menu principal | G2: Voltar ao menu extratos

Sheet Extr. out
E2: Voltar ao menu principal | G2: Voltar ao menu extratos

Sheet Extr. nov
E2: Voltar ao menu principal | G2: Voltar ao menu extratos

Sheet Extr.dez
E2: Voltar ao menu principal | G2: Voltar ao menu extratos

Sheet Menu Parcelam
B1: ACORDOS E PARCELAMENTOS
B2: Acordo Fátima saída das empresas judicial | E2: Acordo Massao Fukuda | H2: Acordo Santander x Golden Judicial | K2: Parcelamento PIS Dívida ativa (2) | N2: Parcelamento Previd. Alimenta | Q2: AZUL | R2: ATIVO
Q3: VERDE | R3: LIQUIDADO
Q4: VERMELHO | R4: CANCELADO
B5: Acordo Fátima Itaú C/C - Pessoal | E5: Parcelamento ISS Simples Nacional | H5: Honor. Dra. Eneida Itaú X Golden | K5: Parcelamento PIS Dívida ativa (3) | N5: Parcelamento ICMS Sampla | Q5: ROXO | R5: PENDENTE
B8: Acordo RW | E8: Acordo Multinox | H8: Honor. Dra. Eneida Itaú CNS | K8: Parcelamento IRPJ Dívida ativa | N8: Parcelamento 5 proc. Alimenta
B11: Acordo Lídia | E11: Honor. Dra. Eneida Sant. x Golden | H11: Parcelam. COFINS Dívida ativa | K11: Parcelamento IRPJ Dívida ativa (2) | N11: Parcelamento INSS Alimenta | Q11: Livre
B14: Acordo Boa Sorte | E14: Honor. Dra. Eneida Sant. x Golden 10% | H14: Parcelam. COFINS Dívida ativa (2) | K14: Parcelam. Contrib. Social Dív. ativa | N14: Devolução Carol. AZERA | Q14: Livre
B17: Acordo Erik | E17: Acordo Brito e Alvares Alvorada | H17: Parcelam. COFINS Dívida ativa (3) | K17: Parcelam. Contrib. Social Dív. Ativa (2) | N17: Parcelamento INSS Alimenta (2) | Q17: Livre
B20: Acordo Marina Boni | E20: Acordo Impakto - Judicial | H20: Parcelamento PIS - Dívida Ativa | K20: Parcelamento ICMS Fco, da Rocha | N20: Acordo Sindicato-SEEG- Golden | Q20: Livre

Sheet Fátima saida empresas judicial
A1: FÁTIMA SAÍDA EMPRESAS (JUDICIAL) VALOR DA PARCELA 2.500,00 | F1: N° | G1: Acordo feito 01/04/2013
A2: NF | B2: VALOR | C2: JUROS | D2: TOTAL | E2: SALDO DEV. | G2: DATAS | H2: VLR. PARCELA | I2: PAGO DIA
B3: =2500*60 -> 150000 | D3: =SUM(B3:C3) -> 150000 | E3: =D63-H3 -> 147500 | F3: 3 | G3: 2013-04-10 | H3: =2210+290 -> 2500 | I3: 2013-04-23
D4: =SUM(B4:C4) -> 0 | E4: =D63-H3-H4 -> 145000 | F4: 4 | G4: 2013-05-10 | H4: 2500 | I4: 2013-05-16
D5: 0 | E5: =D63-H3-H4-H5 -> 142500 | F5: 5 | G5: 2013-06-10 | H5: 2500 | I5: 2013-06-14
D6: 0 | E6: =D63-H3-H4-H5-H6 -> 140000 | F6: 6 | G6: 2013-07-10 | H6: 2500 | I6: 2013-07-10
D7: 0 | E7: =D63-H3-H4-H5-H6-H7 -> 137500 | F7: 7 | G7: 2013-08-10 | H7: 2500 | I7: 2013-08-12
D8: 0 | E8: =D63-H3-H4-H5-H6-H7-H8 -> 135000 | F8: 8 | G8: 2013-09-10 | H8: 2500 | I8: 2013-09-10
D9: 0 | E9: =D63-H3-H4-H5-H6-H7-H8-H9 -> 132500 | F9: 9 | G9: 2013-10-10 | H9: 2500 | I9: 2013-10-16
D10: 0 | E10: =D63-H3-H4-H5-H6-H7-H8-H9-H10 -> 130000 | F10: 10 | G10: 2013-11-10 | H10: 2500 | I10: 2013-11-11
D11: 0 | E11: =D63-H3-H4-H5-H6-H7-H8-H9-H10-H11 -> 127500 | F11: 11 | G11: 2013-12-10 | H11: 2500 | I11: 2013-12-10
D12: 0 | E12: =D63-H3-H4-H5-H6-H7-H8-H9-H10-H11-H12 -> 125000 | F12: 12 | G12: 2014-01-10 | H12: 2500 | I12: 2014-01-10
D13: 0 | E13: =D63-H3-H4-H5-H6-H7-H8-H9-H10-H11-H12-H13 -> 122358.5 | F13: 13 | G13: 2014-02-10 | H13: =2500+141.5 -> 2641.5 | I13: 2014-02-10
D14: 0 | E14: =D63-H3-H4-H5-H6-H7-H8-H9-H10-H11-H12-H13-H14 -> 119717 | F14: 14 | G14: 2014-03-10 | H14: 2641.5 | I14: 2014-03-10
D15: 0 | E15: =D63-H3-H4-H5-H6-H7-H8-H9-H10-H11-H12-H13-H14-H15 -> 117075.5 | F15: 15 | G15: 2014-04-10 | H15: 2641.5 | I15: 2014-04-10
D16: 0 | E16: =D63-H3-H4-H5-H6-H7-H8-H9-H10-H11-H12-H13-H14-H15-H16 -> 114434 | F16: 16 | G16: 2014-05-10 | H16: 2641.5 | I16: 2014-05-12
D17: 0 | E17: =D63-H3-H4-H5-H6-H7-H8-H9-H10-H11-H12-H13-H14-H15-H16-H17 -> 111792.5 | F17: 17 | G17: 2014-06-10 | H17: 2641.5 | I17: 2014-06-10
D18: 0 | E18: =D63-H3-H4-H5-H6-H7-H8-H9-H10-H11-H12-H13-H14-H15-H16-H17-H18 -> 109151 | F18: 18 | G18: 2014-07-10 | H18: 2641.5 | I18: 2014-07-10
D19: 0 | E19: =D63-H3-H4-H5-H6-H7-H8-H9-H10-H11-H12-H13-H14-H15-H16-H17-H18-H19 -> 106509.5 | F19: 19 | G19: 2014-08-10 | H19: 2641.5 | I19: 2014-08-11
D20: 0 | E20: =D63-H3-H4-H5-H6-H7-H8-H9-H10-H11-H12-H13-H14-H15-H16-H17-H18-H19-H20 -> 103868 | F20: 20 | G20: 2014-09-10 | H20: 2641.5 | I20: 2014-09-10
D21: 0 | E21: =D63-H3-H4-H5-H6-H7-H8-H9-H10-H11-H12-H13-H14-H15-H16-H17-H18-H19-H20-H21 -> 101226.5 | F21: 21 | G21: 2014-10-10 | H21: 2641.5 | I21: 2014-10-10
D22: 0 | E22: =D63-H3-H4-H5-H6-H7-H8-H9-H10-H11-H12-H13-H14-H15-H16-H17-H18-H19-H20-H21-H22 -> 98585 | F22: 22 | G22: 2014-11-10 | H22: 2641.5 | I22: 2014-11-10
D23: 0 | E23: =D63-H3-H4-H5-H6-H7-H8-H9-H10-H11-H12-H13-H14-H15-H16-H17-H18-H19-H20-H21-H22-H23 -> 95943.5 | F23: 23 | G23: 2014-12-10 | H23: 2641.5 | I23: 2014-12-10
D24: 0 | E24: =D63-H3-H4-H5-H6-H7-H8-H9-H10-H11-H12-H13-H14-H15-H16-H17-H18-H19-H20-H21-H22-H23-H24 -> 93302 | F24: 24 | G24: 2015-01-10 | H24: 2641.5 | I24: 2015-01-12
D25: 0 | E25: =D63-H3-H4-H5-H6-H7-H8-H9-H10-H11-H12-H13-H14-H15-H16-H17-H18-H19-H20-H21-H22-H23-H24-H25 -> 90514.45 | F25: 25 | G25: 2015-02-10 | H25: 2787.55 | I25: 2015-02-11
D26: 0 | E26: =D63-H3-H4-H5-H6-H7-H8-H9-H10-H11-H12-H13-H14-H15-H16-H17-H18-H19-H20-H21-H22-H23-H24-H25-H26 -> 87726.9 | F26: 26 | G26: 2015-03-10 | H26: 2787.55 | I26: 2015-03-10
D27: 0 | E27: =D63-H3-H4-H5-H6-H7-H8-H9-H10-H11-H12-H13-H14-H15-H16-H17-H18-H19-H20-H21-H22-H23-H24-H25-H26-H27 -> 84939.35 | F27: 27 | G27: 2015-04-10 | H27: 2787.55 | I27: 2015-04-10
D28: 0 | E28: =D63-H3-H4-H5-H6-H7-H8-H9-H10-H11-H12-H13-H14-H15-H16-H17-H18-H19-H20-H21-H22-H23-H24-H25-H26-H27-H28 -> 82151.8 | F28: 28 | G28: 2015-05-10 | H28: 2787.55 | I28: 2015-05-11
D29: 0 | E29: =D63-H3-H4-H5-H6-H7-H8-H9-H10-H11-H12-H13-H14-H15-H16-H17-H18-H19-H20-H21-H22-H23-H24-H25-H26-H27-H28-H29 -> 79364.25 | F29: 29 | G29: 2015-06-10 | H29: 2787.55 | I29: 2015-05-11
D30: 0 | E30: =D63-H3-H4-H5-H6-H7-H8-H9-H10-H11-H12-H13-H14-H15-H16-H17-H18-H19-H20-H21-H22-H23-H24-H25-H26-H27-H28-H29-H30 -> 76576.7 | F30: 30 | G30: 2015-07-10 | H30: 2787.55 | I30: 2015-07-10
D31: 0 | E31: =D63-H3-H4-H5-H6-H7-H8-H9-H10-H11-H12-H13-H14-H15-H16-H17-H18-H19-H20-H21-H22-H23-H24-H25-H26-H27-H28-H29-H30-H31 -> 73789.15 | F31: 31 | G31: 2015-08-10 | H31: 2787.55 | I31: 2015-08-11
D32: 0 | E32: =D63-H3-H4-H5-H6-H7-H8-H9-H10-H11-H12-H13-H14-H15-H16-H17-H18-H19-H20-H21-H22-H23-H24-H25-H26-H27-H28-H29-H30-H31-H32 -> 71001.6 | F32: 32 | G32: 2015-09-10 | H32: 2787.55 | I32: 2015-09-11
D33: 0 | E33: =D63-H3-H4-H5-H6-H7-H8-H9-H10-H11-H12-H13-H14-H15-H16-H17-H18-H19-H20-H21-H22-H23-H24-H25-H26-H27-H28-H29-H30-H31-H32-H33 -> 68214.05 | F33: 33 | G33: 2015-10-10 | H33: =600+2187.55 -> 2787.55 | I33: 29/09/E09/10/15
D34: 0 | E34: =D63-H3-H4-H5-H6-H7-H8-H9-H10-H11-H12-H13-H14-H15-H16-H17-H18-H19-H20-H21-H22-H23-H24-H25-H26-H27-H28-H29-H30-H31-H32-H33-H34 -> 65426.492 | F34: 34 | G34: 2015-11-10 | H34: 2787.558 | I34: 10/11/20158
D35: 0 | E35: =D63-H3-H4-H5-H6-H7-H8-H9-H10-H11-H12-H13-H14-H15-H16-H17-H18-H19-H20-H21-H22-H23-H24-H25-H26-H27-H28-H29-H30-H31-H32-H33-H34-H35 -> 62638.942 | F35: 35 | G35: 2015-12-10 | H35: 2787.55 | I35: 2015-12-10
D36: 0 | E36: =D63-H3-H4-H5-H6-H7-H8-H9-H10-H11-H12-H13-H14-H15-H16-H17-H18-H19-H20-H21-H22-H23-H24-H25-H26-H27-H28-H29-H30-H31-H32-H33-H34-H35-H36 -> 59851.392 | F36: 36 | G36: 2016-01-10 | H36: 2787.55 | I36: 2016-01-08
D37: 0 | E37: =D63-H3-H4-H5-H6-H7-H8-H9-H10-H11-H12-H13-H14-H15-H16-H17-H18-H19-H20-H21-H22-H23-H24-H25-H26-H27-H28-H29-H30-H31-H32-H33-H34-H35-H36-H37 -> 56758.292 | F37: 37 | G37: 2016-02-10 | H37: =2787.55+305.55 -> 3093.1 | I37: 2016-02-10
D38: 0 | E38: =D63-H3-H4-H5-H6-H7-H8-H9-H10-H11-H12-H13-H14-H15-H16-H17-H18-H19-H20-H21-H22-H23-H24-H25-H26-H27-H28-H29-H30-H31-H32-H33-H34-H35-H36-H37-H38 -> 53665.192 | F38: 38 | G38: 2016-03-10 | H38: 3093.1 | I38: 2016-03-10
D39: 0 | E39: =D63-H3-H4-H5-H6-H7-H8-H9-H10-H11-H12-H13-H14-H15-H16-H17-H18-H19-H20-H21-H22-H23-H24-H25-H26-H27-H28-H29-H30-H31-H32-H33-H34-H35-H36-H37-H38-H39 -> 50572.092 | F39: 39 | G39: 2016-04-10 | H39: 3093.1 | I39: 2016-04-08
D40: 0 | E40: =D63-H3-H4-H5-H6-H7-H8-H9-H10-H11-H12-H13-H14-H15-H16-H17-H18-H19-H20-H21-H22-H23-H24-H25-H26-H27-H28-H29-H30-H31-H32-H33-H34-H35-H36-H37-H38-H39-H40 -> 50572.092 | F40: 40 | G40: 2016-05-10
D41: 0 | E41: =D63-H3-H4-H5-H6-H7-H8-H9-H10-H11-H12-H13-H14-H15-H16-H17-H18-H19-H20-H21-H22-H23-H24-H25-H26-H27-H28-H29-H30-H31-H32-H33-H34-H35-H36-H37-H38-H39-H40-H41 -> 50572.092 | F41: 41 | G41: 2016-06-10
D42: 0 | E42: =D63-H3-H4-H5-H6-H7-H8-H9-H10-H11-H12-H13-H14-H15-H16-H17-H18-H19-H20-H21-H22-H23-H24-H25-H26-H27-H28-H29-H30-H31-H32-H33-H34-H35-H36-H37-H38-H39-H40-H41-H42 -> 50572.092 | F42: 42 | G42: 2016-07-10
D43: 0 | E43: =D63-H3-H4-H5-H6-H7-H8-H9-H10-H11-H12-H13-H14-H15-H16-H17-H18-H19-H20-H21-H22-H23-H24-H25-H26-H27-H28-H29-H30-H31-H32-H33-H34-H35-H36-H37-H38-H39-H40-H41-H42-H43 -> 50572.092 | F43: 43 | G43: 2016-08-10
D44: 0 | E44: =D63-H3-H4-H5-H6-H7-H8-H9-H10-H11-H12-H13-H14-H15-H16-H17-H18-H19-H20-H21-H22-H23-H24-H25-H26-H27-H28-H29-H30-H31-H32-H33-H34-H35-H36-H37-H38-H39-H40-H41-H42-H43 -> 50572.092 | F44: 44 | G44: 2016-09-10
D45: 0 | E45: =D63-H3-H4-H5-H6-H7-H8-H9-H10-H11-H12-H13-H14-H15-H16-H17-H18-H19-H20-H21-H22-H23-H24-H25-H26-H27-H28-H29-H30-H31-H32-H33-H34-H35-H36-H37-H38-H39-H40-H41-H42-H44 -> 50572.092 | F45: 45 | G45: 2016-10-10
D46: 0 | E46: =D63-H3-H4-H5-H6-H7-H8-H9-H10-H11-H12-H13-H14-H15-H16-H17-H18-H19-H20-H21-H22-H23-H24-H25-H26-H27-H28-H29-H30-H31-H32-H33-H34-H35-H36-H37-H38-H39-H40-H41-H42-H45 -> 50572.092 | F46: 46 | G46: 2016-11-10
D47: 0 | E47: =D63-H3-H4-H5-H6-H7-H8-H9-H10-H11-H12-H13-H14-H15-H16-H17-H18-H19-H20-H21-H22-H23-H24-H25-H26-H27-H28-H29-H30-H31-H32-H33-H34-H35-H36-H37-H38-H39-H40-H41-H42-H46 -> 50572.092 | F47: 47 | G47: 2016-12-10
D48: 0 | E48: =D63-H3-H4-H5-H6-H7-H8-H9-H10-H11-H12-H13-H14-H15-H16-H17-H18-H19-H20-H21-H22-H23-H24-H25-H26-H27-H28-H29-H30-H31-H32-H33-H34-H35-H36-H37-H38-H39-H40-H41-H42-H47 -> 50572.092 | F48: 48 | G48: 2017-01-10
D49: 0 | E49: =D63-H3-H4-H5-H6-H7-H8-H9-H10-H11-H12-H13-H14-H15-H16-H17-H18-H19-H20-H21-H22-H23-H24-H25-H26-H27-H28-H29-H30-H31-H32-H33-H34-H35-H36-H37-H38-H39-H40-H41-H42-H48 -> 50572.092 | F49: 49 | G49: 2017-02-10
D50: 0 | E50: =D63-H3-H4-H5-H6-H7-H8-H9-H10-H11-H12-H13-H14-H15-H16-H17-H18-H19-H20-H21-H22-H23-H24-H25-H26-H27-H28-H29-H30-H31-H32-H33-H34-H35-H36-H37-H38-H39-H40-H41-H42-H49 -> 50572.092 | F50: 50 | G50: 2017-03-10
D51: 0 | E51: =D63-H3-H4-H5-H6-H7-H8-H9-H10-H11-H12-H13-H14-H15-H16-H17-H18-H19-H20-H21-H22-H23-H24-H25-H26-H27-H28-H29-H30-H31-H32-H33-H34-H35-H36-H37-H38-H39-H40-H41-H42-H50 -> 50572.092 | F51: 51 | G51: 2017-04-10
D52: 0 | E52: =D63-H3-H4-H5-H6-H7-H8-H9-H10-H11-H12-H13-H14-H15-H16-H17-H18-H19-H20-H21-H22-H23-H24-H25-H26-H27-H28-H29-H30-H31-H32-H33-H34-H35-H36-H37-H38-H39-H40-H41-H42-H51 -> 50572.092 | F52: 52 | G52: 2017-05-10
D53: 0 | E53: =D63-H3-H4-H5-H6-H7-H8-H9-H10-H11-H12-H13-H14-H15-H16-H17-H18-H19-H20-H21-H22-H23-H24-H25-H26-H27-H28-H29-H30-H31-H32-H33-H34-H35-H36-H37-H38-H39-H40-H41-H42-H52 -> 50572.092 | F53: 53 | G53: 2017-06-10
D54: 0 | E54: =D63-H3-H4-H5-H6-H7-H8-H9-H10-H11-H12-H13-H14-H15-H16-H17-H18-H19-H20-H21-H22-H23-H24-H25-H26-H27-H28-H29-H30-H31-H32-H33-H34-H35-H36-H37-H38-H39-H40-H41-H42-H53 -> 50572.092 | F54: 54 | G54: 2017-07-10
D55: 0 | E55: =D63-H3-H4-H5-H6-H7-H8-H9-H10-H11-H12-H13-H14-H15-H16-H17-H18-H19-H20-H21-H22-H23-H24-H25-H26-H27-H28-H29-H30-H31-H32-H33-H34-H35-H36-H37-H38-H39-H40-H41-H42-H54 -> 50572.092 | F55: 55 | G55: 2017-08-10
D56: 0 | E56: =D63-H3-H4-H5-H6-H7-H8-H9-H10-H11-H12-H13-H14-H15-H16-H17-H18-H19-H20-H21-H22-H23-H24-H25-H26-H27-H28-H29-H30-H31-H32-H33-H34-H35-H36-H37-H38-H39-H40-H41-H42-H55 -> 50572.092 | F56: 56 | G56: 2017-09-10 | H56: 1853.36 | I56: 2015-04-27
D57: 0 | E57: =D63-H3-H4-H5-H6-H7-H8-H9-H10-H11-H12-H13-H14-H15-H16-H17-H18-H19-H20-H21-H22-H23-H24-H25-H26-H27-H28-H29-H30-H31-H32-H33-H34-H35-H36-H37-H38-H39-H40-H41-H42-H56 -> 48718.732 | F57: 57 | G57: 2017-10-10 | H57: 1853.36 | I57: 2015-02-27
D58: 0 | E58: =D63-H3-H4-H5-H6-H7-H8-H9-H10-H11-H12-H13-H14-H15-H16-H17-H18-H19-H20-H21-H22-H23-H24-H25-H26-H27-H28-H29-H30-H31-H32-H33-H34-H35-H36-H37-H38-H39-H40-H41-H42-H57 -> 48718.732 | F58: 58 | G58: 2017-11-10 | H58: 2641.5 | I58: 2014-12-15
D59: 0 | E59: =D63-H3-H4-H5-H6-H7-H8-H9-H10-H11-H12-H13-H14-H15-H16-H17-H18-H19-H20-H21-H22-H23-H24-H25-H26-H27-H28-H29-H30-H31-H32-H33-H34-H35-H36-H37-H38-H39-H40-H41-H42-H58 -> 47930.592 | F59: 59 | G59: 2017-12-10 | H59: 2641.5 | I59: 2014-08-18
D60: 0 | E60: =D63-H3-H4-H5-H6-H7-H8-H9-H10-H11-H12-H13-H14-H15-H16-H17-H18-H19-H20-H21-H22-H23-H24-H25-H26-H27-H28-H29-H30-H31-H32-H33-H34-H35-H36-H37-H38-H39-H40-H41-H42-H59 -> 47930.592 | F60: 60 | G60: 2018-01-10 | H60: 2500 | I60: 2013-12-17
D61: 0 | E61: =D63-H3-H4-H5-H6-H7-H8-H9-H10-H11-H12-H13-H14-H15-H16-H17-H18-H19-H20-H21-H22-H23-H24-H25-H26-H27-H28-H29-H30-H31-H32-H33-H34-H35-H36-H37-H38-H39-H40-H41-H42-H60 -> 48072.092 | F61: 0 | G61: 2018-02-10
D62: 0 | E62: =D63-H3-H4-H5-H6-H7-H8-H9-H10-H11-H12-H13-H14-H15-H16-H17-H18-H19-H20-H21-H22-H23-H24-H25-H26-H27-H28-H29-H30-H31-H32-H33-H34-H35-H36-H37-H38-H39-H40-H41-H42-H61 -> 50572.092 | F62: 0 | G62: 2018-03-10
A63: TOTAL | B63: =SUM(B3:B62) -> 150000 | C63: =SUM(C3:C62) -> 0 | D63: =SUM(D3:D62) -> 150000 | G63: Total | H63: =SUM(H3:H62) -> 110917.628
A65: DADOS PARA DEPÓSITO E CONTATO
A66: Banco | B66: Itaú S/A. | E66: Contato | G66: Fátima
A67: Agência | B67: 0737 | E67: Tel. | G67: 3865 3512 - 9-9905 4694
A68: C/C | B68: 01925-7 | E68: CPF | G68: 050.311.468-50
A69: Em nome de | B69: Fátima Araújo Lima | E69: e-mail | G69: fatimalima58@gmail.com

Sheet Fátima acordo Itaú
A1: FÁTIMA ACORDO COM ITAÚ - VALOR DA PARCELA R$655,08 | F1: N° | G1: Acordo feito 00/07/2012
A2: N° Contrato | B2: VALOR | C2: JUROS | D2: TOTAL | E2: SALDO DEV. | G2: DATAS | H2: VLR. PARCELA | I2: PAGO DIA
A3: 163083181/59278556 | B3: =655.08*24 -> 15721.92 | D3: =SUM(B3:C3) -> 15721.92 | E3: =D63-H3 -> 15066.84 | F3: 1° | G3: 2012-07-25 | H3: 655.08 | I3: 2012-07-25
D4: =SUM(B4:C4) -> 0 | E4: =D63-H3-H4 -> 14411.76 | F4: 2° | G4: 2012-08-25 | H4: 655.08 | I4: 2012-08-27
D5: 0 | E5: =D63-H3-H4-H5 -> 13756.68 | F5: 3° | G5: 2012-09-25 | H5: 655.08 | I5: 2012-09-26
D6: 0 | E6: =D63-H3-H4-H5-H6 -> 13101.6 | F6: 4° | G6: 2012-10-25 | H6: 655.08 | I6: 2012-10-25
D7: 0 | E7: =D63-H3-H4-H5-H6-H7 -> 12446.52 | F7: 5° | G7: 2012-11-25 | H7: 655.08 | I7: 2012-11-23
D8: 0 | E8: =D63-H3-H4-H5-H6-H7-H8 -> 11791.44 | F8: 6° | G8: 2012-12-25 | H8: 655.08 | I8: 2012-12-24
D9: 0 | E9: =D63-H3-H4-H5-H6-H7-H8-H9 -> 11136.36 | F9: 7° | G9: 2013-01-25 | H9: 655.08 | I9: 2013-01-28
D10: 0 | E10: =D63-H3-H4-H5-H6-H7-H8-H9-H10 -> 10481.28 | F10: 8° | G10: 2013-02-25 | H10: 655.08 | I10: 2013-02-25
D11: 0 | E11: =D63-H3-H4-H5-H6-H7-H8-H9-H10-H11 -> 9826.2 | F11: 9° | G11: 2013-03-25 | H11: 655.08 | I11: 2013-03-25
D12: 0 | E12: =D63-H3-H4-H5-H6-H7-H8-H9-H10-H11-H12 -> 9171.12 | F12: 10° | G12: 2013-04-25 | H12: 655.08 | I12: 2013-04-25
D13: 0 | E13: =D63-H3-H4-H5-H6-H7-H8-H9-H10-H11-H12-H13 -> 8516.04 | F13: 11° | G13: 2013-05-25 | H13: 655.08 | I13: 2013-05-25
D14: 0 | E14: =D63-H3-H4-H5-H6-H7-H8-H9-H10-H11-H12-H13-H14 -> 7860.96 | F14: 12° | G14: 2013-06-25 | H14: 655.08 | I14: 2013-06-25
D15: 0 | E15: =D63-H3-H4-H5-H6-H7-H8-H9-H10-H11-H12-H13-H14-H15 -> 7205.88 | F15: 13° | G15: 2013-07-25 | H15: 655.08 | I15: 2013-07-25
D16: 0 | E16: =D63-H3-H4-H5-H6-H7-H8-H9-H10-H11-H12-H13-H14-H15-H16 -> 6540.8 | F16: 14° | G16: 2013-08-25 | H16: 665.08 | I16: 2013-08-26
D17: 0 | E17: =D63-H3-H4-H5-H6-H7-H8-H9-H10-H11-H12-H13-H14-H15-H16-H17 -> 5875.72 | F17: 15° | G17: 2013-09-25 | H17: 665.08 | I17: 2013-09-25
D18: 0 | E18: =D63-H3-H4-H5-H6-H7-H8-H9-H10-H11-H12-H13-H14-H15-H16-H17-H18 -> 5210.64 | F18: 16° | G18: 2013-10-25 | H18: 665.08 | I18: 2013-10-25
D19: 0 | E19: =D63-H3-H4-H5-H6-H7-H8-H9-H10-H11-H12-H13-H14-H15-H16-H17-H18-H19 -> 4555.56 | F19: 17° | G19: 2013-11-25 | H19: 655.08 | I19: 2013-11-25
D20: 0 | E20: =D63-H3-H4-H5-H6-H7-H8-H9-H10-H11-H12-H13-H14-H15-H16-H17-H18-H19-H20 -> 3900.48 | F20: 18° | G20: 2013-12-25 | H20: 655.08 | I20: 2013-12-20
D21: 0 | E21: =D63-H3-H4-H5-H6-H7-H8-H9-H10-H11-H12-H13-H14-H15-H16-H17-H18-H19-H20-H21 -> 3245.4 | F21: 19° | G21: 2014-01-25 | H21: 655.08 | I21: 2014-01-24
D22: 0 | E22: =D63-H3-H4-H5-H6-H7-H8-H9-H10-H11-H12-H13-H14-H15-H16-H17-H18-H19-H20-H21-H22 -> 2590.32 | F22: 20° | G22: 2014-02-25 | H22: 655.08 | I22: 2014-02-25
D23: 0 | E23: =D63-H3-H4-H5-H6-H7-H8-H9-H10-H11-H12-H13-H14-H15-H16-H17-H18-H19-H20-H21-H22-H23 -> 1935.24 | F23: 21° | G23: 2014-03-25 | H23: 655.08 | I23: 2014-03-25
D24: 0 | E24: =D63-H3-H4-H5-H6-H7-H8-H9-H10-H11-H12-H13-H14-H15-H16-H17-H18-H19-H20-H21-H22-H23-H24 -> 1280.16 | F24: 22° | G24: 2014-04-25 | H24: 655.08 | I24: 2014-04-25
D25: 0 | E25: =D63-H3-H4-H5-H6-H7-H8-H9-H10-H11-H12-H13-H14-H15-H16-H17-H18-H19-H20-H21-H22-H23-H24-H25 -> 625.08 | F25: 23° | G25: 2014-05-25 | H25: 655.08 | I25: 2014-05-26
D26: 0 | E26: =D63-H3-H4-H5-H6-H7-H8-H9-H10-H11-H12-H13-H14-H15-H16-H17-H18-H19-H20-H21-H22-H23-H24-H25-H26 -> -30 | F26: 24° | G26: 2014-06-25 | H26: 655.08 | I26: 2014-06-25
D27: 0
D28: 0
D29: 0
D30: 0
D31: 0
D32: 0
D33: 0
D34: 0
D35: 0
D36: 0
D37: 0
D38: 0
D39: 0
D40: 0
D41: 0
D42: 0
D43: 0
D44: 0
D45: 0
D46: 0
D47: 0
D48: 0
D49: 0
D50: 0
D51: 0
D52: 0
D53: 0
D54: 0
D55: 0
D56: 0
D57: 0
D58: 0
D59: 0
D60: 0
D61: 0
D62: 0
A63: TOTAL | B63: =SUM(B3:B62) -> 15721.92 | C63: =SUM(C3:C62) -> 0 | D63: =SUM(D3:D62) -> 15721.92 | G63: Total | H63: =SUM(H3:H62) -> 15751.92
A65: DADOS PARA DEPÓSITO E CONTATO
A66: Banco | B66: Itaú S/A. | E66: Contato | G66: Fátima
A67: Agência | B67: 0737 | E67: Tel. | G67: 3865 3512 - 9-9905 4694
A68: C/C | B68: 01925-7 | E68: CPF | G68: 050.311.468-50
A69: Em nome de | B69: Fátima Araújo Lima | E69: e-mail | G69: fatimalima58@gmail.com

Sheet Acordo RW
A1: COMERCIAL DE PROD. ALIMENT. RW - VALOR DA PARCELA 300,00 | F1: N° | G1: Acordo feito 16/07/2013
A2: NF | B2: VALOR | C2: JUROS | D2: TOTAL | E2: SALDO DEV. | G2: DATAS | H2: VLR. PARCELA | I2: PAGO DIA
A3: 10613 | B3: 1425.2 | D3: =SUM(B3:C3) -> 1425.2 | E3: =D39-H3 -> 2700 | F3: 1° | G3: 2013-07-17 | H3: 300 | I3: 2013-07-17
A4: 10839 | B4: 736 | D4: =SUM(B4:C4) -> 736 | E4: =D39-H3-H4 -> 2400 | F4: 2° | G4: 2013-08-17 | H4: 300 | I4: 2013-08-19
A5: 105846 | B5: 431.2 | D5: 431.2 | E5: =D39-H3-H4-H5 -> 2100 | F5: 3° | G5: 2013-09-17 | H5: 300 | I5: 2013-09-17
C6: 407.6 | D6: 407.6 | E6: =D39-H3-H4-H5-H6 -> 1800 | F6: 4° | G6: 2013-10-17 | H6: 300 | I6: 2013-10-16
D7: 0 | E7: =D39-H3-H4-H5-H6-H7 -> 1500 | F7: 5° | G7: 2013-11-17 | H7: 300 | I7: 2013-11-18
D8: 0 | E8: =D39-H3-H4-H5-H6-H7-H8 -> 1200 | F8: 6° | G8: 2013-12-17 | H8: 300 | I8: 2013-12-17
D9: 0 | E9: =D39-H3-H4-H5-H6-H7-H8-H9 -> 900 | F9: 7° | G9: 2014-01-17 | H9: 300 | I9: 2014-01-17
D10: 0 | E10: =D39-H3-H4-H5-H6-H7-H8-H9-H10 -> 600 | F10: 8° | G10: 2014-02-17 | H10: 300 | I10: 2014-02-17
D11: 0 | E11: =D39-H3-H4-H5-H6-H7-H8-H9-H10-H11 -> 300 | F11: 9° | G11: 2014-03-17 | H11: 300 | I11: 2014-03-17
D12: 0 | E12: =D39-H3-H4-H5-H6-H7-H8-H9-H10-H11-H12 -> -4.547473509e-13 | F12: 10° | G12: 2014-04-17 | H12: 300 | I12: 2014-04-17
D13: 0 | E13: =D39-H3-H4-H5-H6-H7-H8-H9-H10-H11-H12-H13 -> -4.547473509e-13
D14: 0 | E14: =D39-H3-H4-H5-H6-H7-H8-H9-H10-H11-H12-H13-H14 -> -4.547473509e-13
D15: 0 | E15: =D39-H3-H4-H5-H6-H7-H8-H9-H10-H11-H12-H13-H14-H15 -> -4.547473509e-13
D16: 0 | E16: =D39-H3-H4-H5-H6-H7-H8-H9-H10-H11-H12-H13-H14-H15-H16 -> -4.547473509e-13
D17: 0 | E17: =D39-H3-H4-H5-H6-H7-H8-H9-H10-H11-H12-H13-H14-H15-H16-H17 -> -4.547473509e-13
D18: 0 | E18: =D39-H3-H4-H5-H6-H7-H8-H9-H10-H11-H12-H13-H14-H15-H16-H17-H18 -> -4.547473509e-13
D19: 0 | E19: =D39-H3-H4-H5-H6-H7-H8-H9-H10-H11-H12-H13-H14-H15-H16-H17-H18-H19 -> -4.547473509e-13
D20: 0 | E20: =D39-H3-H4-H5-H6-H7-H8-H9-H10-H11-H12-H13-H14-H15-H16-H17-H18-H19-H20 -> -4.547473509e-13
D21: 0 | E21: =D39-H3-H4-H5-H6-H7-H8-H9-H10-H11-H12-H13-H14-H15-H16-H17-H18-H19-H20-H21 -> -4.547473509e-13
D22: 0 | E22: =D39-H3-H4-H5-H6-H7-H8-H9-H10-H11-H12-H13-H14-H15-H16-H17-H18-H19-H20-H21-H22 -> -4.547473509e-13
D23: 0 | E23: =D39-H3-H4-H5-H6-H7-H8-H9-H10-H11-H12-H13-H14-H15-H16-H17-H18-H19-H20-H21-H22-H23 -> -4.547473509e-13
D24: 0 | E24: =D39-H3-H4-H5-H6-H7-H8-H9-H10-H11-H12-H13-H14-H15-H16-H17-H18-H19-H20-H21-H22-H23-H24 -> -4.547473509e-13
D25: 0 | E25: =D39-H3-H4-H5-H6-H7-H8-H9-H10-H11-H12-H13-H14-H15-H16-H17-H18-H19-H20-H21-H22-H23-H24-H25 -> -4.547473509e-13
D26: 0 | E26: =D39-H3-H4-H5-H6-H7-H8-H9-H10-H11-H12-H13-H14-H15-H16-H17-H18-H19-H20-H21-H22-H23-H24-H25-H26 -> -4.547473509e-13
D27: 0 | E27: =D39-H3-H4-H5-H6-H7-H8-H9-H10-H11-H12-H13-H14-H15-H16-H17-H18-H19-H20-H21-H22-H23-H24-H25-H26-H27 -> -4.547473509e-13
D28: 0 | E28: =D39-H3-H4-H5-H6-H7-H8-H9-H10-H11-H12-H13-H14-H15-H16-H17-H18-H19-H20-H21-H22-H23-H24-H25-H26-H27-H28 -> -4.547473509e-13
D29: 0 | E29: =D39-H3-H4-H5-H6-H7-H8-H9-H10-H11-H12-H13-H14-H15-H16-H17-H18-H19-H20-H21-H22-H23-H24-H25-H26-H27-H28-H29 -> -4.547473509e-13
D30: 0 | E30: =D39-H3-H4-H5-H6-H7-H8-H9-H10-H11-H12-H13-H14-H15-H16-H17-H18-H19-H20-H21-H22-H23-H24-H25-H26-H27-H28-H29-H30 -> -4.547473509e-13
D31: 0 | E31: =D39-H3-H4-H5-H6-H7-H8-H9-H10-H11-H12-H13-H14-H15-H16-H17-H18-H19-H20-H21-H22-H23-H24-H25-H26-H27-H28-H29-H30-H31 -> -4.547473509e-13
D32: 0 | E32: =D39-H3-H4-H5-H6-H7-H8-H9-H10-H11-H12-H13-H14-H15-H16-H17-H18-H19-H20-H21-H22-H23-H24-H25-H26-H27-H28-H29-H30-H31-H32 -> -4.547473509e-13
D33: 0 | E33: =D39-H3-H4-H5-H6-H7-H8-H9-H10-H11-H12-H13-H14-H15-H16-H17-H18-H19-H20-H21-H22-H23-H24-H25-H26-H27-H28-H29-H30-H31-H32-H33 -> -4.547473509e-13
D34: 0 | E34: =D39-H3-H4-H5-H6-H7-H8-H9-H10-H11-H12-H13-H14-H15-H16-H17-H18-H19-H20-H21-H22-H23-H24-H25-H26-H27-H28-H29-H30-H31-H32-H33-H34 -> -4.547473509e-13
D35: 0 | E35: =D39-H3-H4-H5-H6-H7-H8-H9-H10-H11-H12-H13-H14-H15-H16-H17-H18-H19-H20-H21-H22-H23-H24-H25-H26-H27-H28-H29-H30-H31-H32-H33-H34-H35 -> -4.547473509e-13
D36: 0 | E36: =D39-H3-H4-H5-H6-H7-H8-H9-H10-H11-H12-H13-H14-H15-H16-H17-H18-H19-H20-H21-H22-H23-H24-H25-H26-H27-H28-H29-H30-H31-H32-H33-H34-H35-H36 -> -4.547473509e-13
D37: 0 | E37: =D39-H3-H4-H5-H6-H7-H8-H9-H10-H11-H12-H13-H14-H15-H16-H17-H18-H19-H20-H21-H22-H23-H24-H25-H26-H27-H28-H29-H30-H31-H32-H33-H34-H35-H36-H37 -> -4.547473509e-13
D38: 0 | E38: =D39-H3-H4-H5-H6-H7-H8-H9-H10-H11-H12-H13-H14-H15-H16-H17-H18-H19-H20-H21-H22-H23-H24-H25-H26-H27-H28-H29-H30-H31-H32-H33-H34-H35-H36-H37-H38 -> -4.547473509e-13
A39: TOTAL | B39: =SUM(B3:B38) -> 2592.4 | C39: =SUM(C3:C38) -> 407.6 | D39: =SUM(D3:D38) -> 3000 | G39: Total | H39: =SUM(H3:H38) -> 3000
A41: DADOS PARA DEPÓSITO E CONTATO
A42: Banco | B42: ITAÚ S/A - (Banco 341) | E42: Contato | G42: Azevedo ou Luciene
A43: Agência | B43: 0875 | E43: Tel. | G43: 01562 - 3295 5300 ou 9971 7455
A44: C/C | B44: 26381-6 | E44: CNPJ | G44: 05.094.507/0001-75
A45: Em nome de | B45: Comercial de produtos alimentícios RW | E45: e-mail

Sheet Acordo Lidia
A1: LIDIA DE OLIVEIRA HORNOS - VALOR DA PARCELA 950,41 | F1: N° | G1: Acordo feito 28/03/2013
A2: NF | B2: VALOR | C2: JUROS | D2: TOTAL | E2: SALDO DEV. | G2: DATAS | H2: VLR. PARCELA | I2: PAGO DIA
B3: 556.07 | C3: 394.34 | D3: =SUM(B3:C3) -> 950.41 | E3: =D39-H3 -> 33264.35 | F3: 1° | G3: 2013-03-28 | H3: 950.41 | I3: 2013-03-28
B4: 564.41 | C4: 386 | D4: =SUM(B4:C4) -> 950.41 | E4: =D39-H3-H4 -> 32313.94 | F4: 2° | G4: 2013-04-28 | H4: 950.41 | I4: 2013-04-29
B5: 572.88 | C5: 377.53 | D5: 950.41 | E5: =D39-H3-H4-H5 -> 31363.53 | F5: 3° | G5: 2013-05-28 | H5: 950.41 | I5: 2013-05-28
B6: 581.47 | C6: 368.94 | D6: 950.41 | E6: =D39-H3-H4-H5-H6 -> 30413.12 | F6: 4° | G6: 2013-06-28 | H6: 950.41 | I6: 2013-06-28
B7: 590.19 | C7: 360.22 | D7: 950.41 | E7: =D39-H3-H4-H5-H6-H7 -> 29462.71 | F7: 5° | G7: 2013-07-28 | H7: 950.41 | I7: 2013-07-29
B8: 599.04 | C8: 351.37 | D8: 950.41 | E8: =D39-H3-H4-H5-H6-H7-H8 -> 29462.71 | F8: 6° | G8: 2013-08-28
B9: 608.03 | C9: 342.38 | D9: 950.41 | E9: =D39-H3-H4-H5-H6-H7-H8-H9 -> 29462.71 | F9: 7° | G9: 2013-09-28
B10: 617.15 | C10: 333.26 | D10: 950.41 | E10: =D39-H3-H4-H5-H6-H7-H8-H9-H10 -> 29462.71 | F10: 8° | G10: 2013-10-28
B11: 626.41 | C11: 324 | D11: 950.41 | E11: =D39-H3-H4-H5-H6-H7-H8-H9-H10-H11 -> 29462.71 | F11: 9° | G11: 2013-11-28
B12: 635.8 | C12: 314.61 | D12: 950.41 | E12: =D39-H3-H4-H5-H6-H7-H8-H9-H10-H11-H12 -> 29462.71 | F12: 10° | G12: 2013-12-28
B13: 645.34 | C13: 305.07 | D13: 950.41 | E13: =D39-H3-H4-H5-H6-H7-H8-H9-H10-H11-H12-H13 -> 29462.71 | F13: 11° | G13: 2014-01-28
B14: 655.02 | C14: 295.39 | D14: 950.41 | E14: =D39-H3-H4-H5-H6-H7-H8-H9-H10-H11-H12-H13-H14 -> 29462.71 | F14: 12° | G14: 2014-02-28
B15: 664.85 | C15: 285.56 | D15: 950.41 | E15: =D39-H3-H4-H5-H6-H7-H8-H9-H10-H11-H12-H13-H14-H15 -> 29462.71 | F15: 13° | G15: 2014-03-28
B16: 674.82 | C16: 275.59 | D16: 950.41 | E16: =D39-H3-H4-H5-H6-H7-H8-H9-H10-H11-H12-H13-H14-H15-H16 -> 29462.71 | F16: 14° | G16: 2014-04-28
B17: 684.94 | C17: 265.47 | D17: 950.41 | E17: =D39-H3-H4-H5-H6-H7-H8-H9-H10-H11-H12-H13-H14-H15-H16-H17 -> 29462.71 | F17: 15° | G17: 2014-05-28
B18: 695.22 | C18: 255.19 | D18: 950.41 | E18: =D39-H3-H4-H5-H6-H7-H8-H9-H10-H11-H12-H13-H14-H15-H16-H17-H18 -> 29462.71 | F18: 16° | G18: 2014-06-28
B19: 705.64 | C19: 244.77 | D19: 950.41 | E19: =D39-H3-H4-H5-H6-H7-H8-H9-H10-H11-H12-H13-H14-H15-H16-H17-H18-H19 -> 29462.71 | F19: 17° | G19: 2014-07-28
B20: 716.23 | C20: 234.18 | D20: 950.41 | E20: =D39-H3-H4-H5-H6-H7-H8-H9-H10-H11-H12-H13-H14-H15-H16-H17-H18-H19-H20 -> 29462.71 | F20: 18° | G20: 2014-08-28
B21: 726.97 | C21: 223.44 | D21: 950.41 | E21: =D39-H3-H4-H5-H6-H7-H8-H9-H10-H11-H12-H13-H14-H15-H16-H17-H18-H19-H20-H21 -> 29462.71 | F21: 19° | G21: 2014-09-28
B22: 737.88 | C22: 212.53 | D22: 950.41 | E22: =D39-H3-H4-H5-H6-H7-H8-H9-H10-H11-H12-H13-H14-H15-H16-H17-H18-H19-H20-H21-H22 -> 29462.71 | F22: 20° | G22: 2014-10-28
B23: 748.94 | C23: 201.47 | D23: 950.41 | E23: =D39-H3-H4-H5-H6-H7-H8-H9-H10-H11-H12-H13-H14-H15-H16-H17-H18-H19-H20-H21-H22-H23 -> 29462.71 | F23: 21° | G23: 2014-11-28
B24: 760.18 | C24: 190.23 | D24: 950.41 | E24: =D39-H3-H4-H5-H6-H7-H8-H9-H10-H11-H12-H13-H14-H15-H16-H17-H18-H19-H20-H21-H22-H23-H24 -> 29462.71 | F24: 22° | G24: 2014-12-28
B25: 771.58 | C25: 178.83 | D25: 950.41 | E25: =D39-H3-H4-H5-H6-H7-H8-H9-H10-H11-H12-H13-H14-H15-H16-H17-H18-H19-H20-H21-H22-H23-H24-H25 -> 29462.71 | F25: 23° | G25: 2015-01-28
B26: 783.15 | C26: 167.26 | D26: 950.41 | E26: =D39-H3-H4-H5-H6-H7-H8-H9-H10-H11-H12-H13-H14-H15-H16-H17-H18-H19-H20-H21-H22-H23-H24-H25-H26 -> 29462.71 | F26: 24° | G26: 2015-02-28
B27: 794.9 | C27: 155.51 | D27: 950.41 | E27: =D39-H3-H4-H5-H6-H7-H8-H9-H10-H11-H12-H13-H14-H15-H16-H17-H18-H19-H20-H21-H22-H23-H24-H25-H26-H27 -> 29462.71 | F27: 25° | G27: 2015-03-28
B28: 806.83 | C28: 143.58 | D28: 950.41 | E28: =D39-H3-H4-H5-H6-H7-H8-H9-H10-H11-H12-H13-H14-H15-H16-H17-H18-H19-H20-H21-H22-H23-H24-H25-H26-H27-H28 -> 29462.71 | F28: 26° | G28: 2015-04-28
B29: 818.93 | C29: 131.48 | D29: 950.41 | E29: =D39-H3-H4-H5-H6-H7-H8-H9-H10-H11-H12-H13-H14-H15-H16-H17-H18-H19-H20-H21-H22-H23-H24-H25-H26-H27-H28-H29 -> 29462.71 | F29: 27° | G29: 2015-05-28
B30: 831.21 | C30: 119.2 | D30: 950.41 | E30: =D39-H3-H4-H5-H6-H7-H8-H9-H10-H11-H12-H13-H14-H15-H16-H17-H18-H19-H20-H21-H22-H23-H24-H25-H26-H27-H28-H29-H30 -> 29462.71 | F30: 27° | G30: 2015-06-28
B31: 843.68 | C31: 106.73 | D31: 950.41 | E31: =D39-H3-H4-H5-H6-H7-H8-H9-H10-H11-H12-H13-H14-H15-H16-H17-H18-H19-H20-H21-H22-H23-H24-H25-H26-H27-H28-H29-H30-H31 -> 29462.71 | F31: 29° | G31: 2015-07-28
B32: 856.34 | C32: 94.07 | D32: 950.41 | E32: =D39-H3-H4-H5-H6-H7-H8-H9-H10-H11-H12-H13-H14-H15-H16-H17-H18-H19-H20-H21-H22-H23-H24-H25-H26-H27-H28-H29-H30-H31-H32 -> 29462.71 | F32: 30° | G32: 2015-08-28
B33: 869.18 | C33: 81.23 | D33: 950.41 | E33: =D39-H3-H4-H5-H6-H7-H8-H9-H10-H11-H12-H13-H14-H15-H16-H17-H18-H19-H20-H21-H22-H23-H24-H25-H26-H27-H28-H29-H30-H31-H32-H33 -> 29462.71 | F33: 31° | G33: 2015-09-28
B34: 882.22 | C34: 68.19 | D34: 950.41 | E34: =D39-H3-H4-H5-H6-H7-H8-H9-H10-H11-H12-H13-H14-H15-H16-H17-H18-H19-H20-H21-H22-H23-H24-H25-H26-H27-H28-H29-H30-H31-H32-H33-H34 -> 29462.71 | F34: 32° | G34: 2015-10-28
B35: 895.45 | C35: 54.96 | D35: 950.41 | E35: =D39-H3-H4-H5-H6-H7-H8-H9-H10-H11-H12-H13-H14-H15-H16-H17-H18-H19-H20-H21-H22-H23-H24-H25-H26-H27-H28-H29-H30-H31-H32-H33-H34-H35 -> 29462.71 | F35: 33° | G35: 2015-11-28
B36: 908.88 | C36: 41.53 | D36: 950.41 | E36: =D39-H3-H4-H5-H6-H7-H8-H9-H10-H11-H12-H13-H14-H15-H16-H17-H18-H19-H20-H21-H22-H23-H24-H25-H26-H27-H28-H29-H30-H31-H32-H33-H34-H35-H36 -> 29462.71 | F36: 34° | G36: 2015-12-28
B37: 922.52 | C37: 27.89 | D37: 950.41 | E37: =D39-H3-H4-H5-H6-H7-H8-H9-H10-H11-H12-H13-H14-H15-H16-H17-H18-H19-H20-H21-H22-H23-H24-H25-H26-H27-H28-H29-H30-H31-H32-H33-H34-H35-H36-H37 -> 29462.71 | F37: 35° | G37: 2016-01-28
B38: 936.35 | C38: 14.06 | D38: 950.41 | E38: =D39-H3-H4-H5-H6-H7-H8-H9-H10-H11-H12-H13-H14-H15-H16-H17-H18-H19-H20-H21-H22-H23-H24-H25-H26-H27-H28-H29-H30-H31-H32-H33-H34-H35-H36-H37-H38 -> 29462.71 | F38: 36° | G38: 2016-02-28
A39: TOTAL | B39: =SUM(B3:B38) -> 26288.7 | C39: =SUM(C3:C38) -> 7926.06 | D39: =SUM(D3:D38) -> 34214.76 | G39: Total | H39: =SUM(H3:H38) -> 4752.05
A41: DADOS PARA DEPÓSITO E CONTATO
A42: Banco | B42: ITAÚ | E42: Contato | G42: Lidia
A43: Agência | B43: 7066 | E43: Tel.
A44: C/C | B44: 01853-7 | E44: CPF | G44: 269.876.378-73
A45: Em nome de | B45: Lidia de Oliveira Hornos | E45: e-mail | G45: lidhornos@gmail.com

Sheet Acordo Boa Sorte
A1: PANIFICADORA BOA SORTE - VALOR DA PARCELA 1.000,00 | F1: N° | G1: Acordo feito 18/07/2013
A2: NF | B2: VALOR | C2: JUROS | D2: TOTAL | E2: SALDO DEV. | G2: DATAS | H2: VLR. PARCELA | I2: PAGO DIA
A3: DIVERSAS | B3: 36000 | D3: =SUM(B3:C3) -> 36000 | E3: =D39-H3 -> 35000 | F3: 1° | G3: 2013-07-24 | H3: 1000 | I3: 2013-07-24
D4: =SUM(B4:C4) -> 0 | E4: =D39-H3-H4 -> 34000 | F4: 2° | G4: 2013-08-24 | H4: 1000 | I4: 2013-08-26
D5: 0 | E5: =D39-H3-H4-H5 -> 33000 | F5: 3° | G5: 2013-09-24 | H5: 1000 | I5: 2013-09-24
D6: 0 | E6: =D39-H3-H4-H5-H6 -> 32000 | F6: 4° | G6: 2013-10-24 | H6: 1000 | I6: 2013-10-24
D7: 0 | E7: =D39-H3-H4-H5-H6-H7 -> 31000 | F7: 5° | G7: 2013-11-24 | H7: 1000 | I7: 2013-11-25
D8: 0 | E8: =D39-H3-H4-H5-H6-H7-H8 -> 30000 | F8: 6° | G8: 2013-12-24 | H8: 1000 | I8: 2013-12-20
D9: 0 | E9: =D39-H3-H4-H5-H6-H7-H8-H9 -> 29000 | F9: 7° | G9: 2014-01-24 | H9: 1000 | I9: 2014-01-24
D10: 0 | E10: =D39-H3-H4-H5-H6-H7-H8-H9-H10 -> 28000 | F10: 8° | G10: 2014-02-24 | H10: 1000 | I10: 2014-02-24
D11: 0 | E11: =D39-H3-H4-H5-H6-H7-H8-H9-H10-H11 -> 27000 | F11: 9° | G11: 2014-03-24 | H11: 1000 | I11: 2014-03-24
D12: 0 | E12: =D39-H3-H4-H5-H6-H7-H8-H9-H10-H11-H12 -> 26000 | F12: 10° | G12: 2014-04-24 | H12: 1000 | I12: 2014-04-24
D13: 0 | E13: =D39-H3-H4-H5-H6-H7-H8-H9-H10-H11-H12-H13 -> 26000 | F13: 11° | G13: 2014-05-24
D14: 0 | E14: =D39-H3-H4-H5-H6-H7-H8-H9-H10-H11-H12-H13-H14 -> 26000 | F14: 12° | G14: 2014-06-24
D15: 0 | E15: =D39-H3-H4-H5-H6-H7-H8-H9-H10-H11-H12-H13-H14-H15 -> 26000 | F15: 13° | G15: 2014-07-24
D16: 0 | E16: =D39-H3-H4-H5-H6-H7-H8-H9-H10-H11-H12-H13-H14-H15-H16 -> 26000 | F16: 14° | G16: 2014-08-24
D17: 0 | E17: =D39-H3-H4-H5-H6-H7-H8-H9-H10-H11-H12-H13-H14-H15-H16-H17 -> 26000 | F17: 15° | G17: 2014-09-24
D18: 0 | E18: =D39-H3-H4-H5-H6-H7-H8-H9-H10-H11-H12-H13-H14-H15-H16-H17-H18 -> 26000 | F18: 16° | G18: 2014-10-24
D19: 0 | E19: =D39-H3-H4-H5-H6-H7-H8-H9-H10-H11-H12-H13-H14-H15-H16-H17-H18-H19 -> 26000 | F19: 17° | G19: 2014-11-24
D20: 0 | E20: =D39-H3-H4-H5-H6-H7-H8-H9-H10-H11-H12-H13-H14-H15-H16-H17-H18-H19-H20 -> 26000 | F20: 18° | G20: 2014-12-24
D21: 0 | E21: =D39-H3-H4-H5-H6-H7-H8-H9-H10-H11-H12-H13-H14-H15-H16-H17-H18-H19-H20-H21 -> 26000 | F21: 19° | G21: 2015-01-24
D22: 0 | E22: =D39-H3-H4-H5-H6-H7-H8-H9-H10-H11-H12-H13-H14-H15-H16-H17-H18-H19-H20-H21-H22 -> 26000 | F22: 20° | G22: 2015-02-24
D23: 0 | E23: =D39-H3-H4-H5-H6-H7-H8-H9-H10-H11-H12-H13-H14-H15-H16-H17-H18-H19-H20-H21-H22-H23 -> 26000 | F23: 21° | G23: 2015-03-24
D24: 0 | E24: =D39-H3-H4-H5-H6-H7-H8-H9-H10-H11-H12-H13-H14-H15-H16-H17-H18-H19-H20-H21-H22-H23-H24 -> 26000 | F24: 22° | G24: 2015-04-24
D25: 0 | E25: =D39-H3-H4-H5-H6-H7-H8-H9-H10-H11-H12-H13-H14-H15-H16-H17-H18-H19-H20-H21-H22-H23-H24-H25 -> 26000 | F25: 23° | G25: 2015-05-24
D26: 0 | E26: =D39-H3-H4-H5-H6-H7-H8-H9-H10-H11-H12-H13-H14-H15-H16-H17-H18-H19-H20-H21-H22-H23-H24-H25-H26 -> 26000 | F26: 24° | G26: 2015-06-24
D27: 0 | E27: =D39-H3-H4-H5-H6-H7-H8-H9-H10-H11-H12-H13-H14-H15-H16-H17-H18-H19-H20-H21-H22-H23-H24-H25-H26-H27 -> 26000 | F27: 25° | G27: 2015-07-24
D28: 0 | E28: =D39-H3-H4-H5-H6-H7-H8-H9-H10-H11-H12-H13-H14-H15-H16-H17-H18-H19-H20-H21-H22-H23-H24-H25-H26-H27-H28 -> 26000 | F28: 26° | G28: 2015-08-24
D29: 0 | E29: =D39-H3-H4-H5-H6-H7-H8-H9-H10-H11-H12-H13-H14-H15-H16-H17-H18-H19-H20-H21-H22-H23-H24-H25-H26-H27-H28-H29 -> 26000 | F29: 27° | G29: 2015-09-24
D30: 0 | E30: =D39-H3-H4-H5-H6-H7-H8-H9-H10-H11-H12-H13-H14-H15-H16-H17-H18-H19-H20-H21-H22-H23-H24-H25-H26-H27-H28-H29-H30 -> 26000 | F30: 27° | G30: 2015-10-24
D31: 0 | E31: =D39-H3-H4-H5-H6-H7-H8-H9-H10-H11-H12-H13-H14-H15-H16-H17-H18-H19-H20-H21-H22-H23-H24-H25-H26-H27-H28-H29-H30-H31 -> 26000 | F31: 29° | G31: 2015-11-24
D32: 0 | E32: =D39-H3-H4-H5-H6-H7-H8-H9-H10-H11-H12-H13-H14-H15-H16-H17-H18-H19-H20-H21-H22-H23-H24-H25-H26-H27-H28-H29-H30-H31-H32 -> 26000 | F32: 30° | G32: 2015-12-24
D33: 0 | E33: =D39-H3-H4-H5-H6-H7-H8-H9-H10-H11-H12-H13-H14-H15-H16-H17-H18-H19-H20-H21-H22-H23-H24-H25-H26-H27-H28-H29-H30-H31-H32-H33 -> 26000 | F33: 31° | G33: 2016-01-24
D34: 0 | E34: =D39-H3-H4-H5-H6-H7-H8-H9-H10-H11-H12-H13-H14-H15-H16-H17-H18-H19-H20-H21-H22-H23-H24-H25-H26-H27-H28-H29-H30-H31-H32-H33-H34 -> 26000 | F34: 32° | G34: 2016-02-24
D35: 0 | E35: =D39-H3-H4-H5-H6-H7-H8-H9-H10-H11-H12-H13-H14-H15-H16-H17-H18-H19-H20-H21-H22-H23-H24-H25-H26-H27-H28-H29-H30-H31-H32-H33-H34-H35 -> 26000 | F35: 33° | G35: 2016-03-24
D36: 0 | E36: =D39-H3-H4-H5-H6-H7-H8-H9-H10-H11-H12-H13-H14-H15-H16-H17-H18-H19-H20-H21-H22-H23-H24-H25-H26-H27-H28-H29-H30-H31-H32-H33-H34-H35-H36 -> 26000 | F36: 34° | G36: 2016-04-24
D37: 0 | E37: =D39-H3-H4-H5-H6-H7-H8-H9-H10-H11-H12-H13-H14-H15-H16-H17-H18-H19-H20-H21-H22-H23-H24-H25-H26-H27-H28-H29-H30-H31-H32-H33-H34-H35-H36-H37 -> 26000 | F37: 35° | G37: 2016-05-24
D38: 0 | E38: =D39-H3-H4-H5-H6-H7-H8-H9-H10-H11-H12-H13-H14-H15-H16-H17-H18-H19-H20-H21-H22-H23-H24-H25-H26-H27-H28-H29-H30-H31-H32-H33-H34-H35-H36-H37-H38 -> 26000 | F38: 36° | G38: 2016-06-24
A39: TOTAL | B39: =SUM(B3:B38) -> 36000 | C39: =SUM(C3:C38) -> 0 | D39: =SUM(D3:D38) -> 36000 | G39: Total | H39: =SUM(H3:H38) -> 10000
A41: DADOS PARA DEPÓSITO E CONTATO
A42: Banco | B42: Banco do Brasil S/A. (N° do Banco 001) | E42: Contato | G42: Ismael
A43: Agência | B43: 3485 | E43: Tel. | G43: 01562 - 9656 1477
A44: C/C | B44: 42235-5 | E44: CNPJ | G44: 05.899.487/0001-00
A45: Em nome de | B45: Panificadora Boa Sorte | E45: e-mail | G45: marymendoncaap@hotmail.com

Sheet Acordo Erik
F1: N° | G1: Acordo feito 01/06/2013
A2: NF | B2: VALOR | C2: JUROS | D2: TOTAL | E2: SALDO DEV. | G2: DATAS | H2: VLR. PARCELA | I2: PAGO DIA
A3: DIVERSAS | B3: 12823.08 | C3: 408.84 | D3: =SUM(B3:C3) -> 13231.92 | E3: =D39-H3 -> 10731.92 | F3: 1° | G3: 2013-07-06 | H3: 2500 | I3: 2013-06-18
D4: =SUM(B4:C4) -> 0 | E4: =D39-H3-H4 -> 8231.92 | F4: 2° | G4: 2013-08-06 | H4: 2500 | I4: 2013-07-05
D5: 0 | E5: =D39-H3-H4-H5 -> 5731.92 | F5: 3° | G5: 2013-09-06 | H5: 2500 | I5: 2013-07-16
D6: 0 | E6: =D39-H3-H4-H5-H6 -> 3231.92 | F6: 4° | G6: 2013-10-06 | H6: 2500 | I6: 2013-08-05
D7: 0 | E7: =D39-H3-H4-H5-H6-H7 -> 731.92 | F7: 5° | G7: 2013-11-06 | H7: 2500 | I7: 2013-08-16
D8: 0 | E8: =D39-H3-H4-H5-H6-H7-H8 -> 0 | F8: 6° | G8: 2013-12-06 | H8: 731.92 | I8: 23082013
D9: 0 | E9: =D39-H3-H4-H5-H6-H7-H8-H9 -> 1.136868377e-13 | F9: 7°
D10: 0 | E10: =D39-H3-H4-H5-H6-H7-H8-H9-H10 -> 1.136868377e-13 | F10: 8°
D11: 0 | E11: =D39-H3-H4-H5-H6-H7-H8-H9-H10-H11 -> 1.136868377e-13 | F11: 9°
D12: 0 | E12: =D39-H3-H4-H5-H6-H7-H8-H9-H10-H11-H12 -> 1.136868377e-13 | F12: 10°
D13: 0 | E13: =D39-H3-H4-H5-H6-H7-H8-H9-H10-H11-H12-H13 -> 1.136868377e-13 | F13: 11°
D14: 0 | E14: =D39-H3-H4-H5-H6-H7-H8-H9-H10-H11-H12-H13-H14 -> 1.136868377e-13 | F14: 12°
D15: 0 | E15: =D39-H3-H4-H5-H6-H7-H8-H9-H10-H11-H12-H13-H14-H15 -> 1.136868377e-13 | F15: 13°
D16: 0 | E16: =D39-H3-H4-H5-H6-H7-H8-H9-H10-H11-H12-H13-H14-H15-H16 -> 1.136868377e-13 | F16: 14°
D17: 0 | E17: =D39-H3-H4-H5-H6-H7-H8-H9-H10-H11-H12-H13-H14-H15-H16-H17 -> 1.136868377e-13 | F17: 15°
D18: 0 | E18: =D39-H3-H4-H5-H6-H7-H8-H9-H10-H11-H12-H13-H14-H15-H16-H17-H18 -> 1.136868377e-13 | F18: 16°
D19: 0 | E19: =D39-H3-H4-H5-H6-H7-H8-H9-H10-H11-H12-H13-H14-H15-H16-H17-H18-H19 -> 1.136868377e-13 | F19: 17°
D20: 0 | E20: =D39-H3-H4-H5-H6-H7-H8-H9-H10-H11-H12-H13-H14-H15-H16-H17-H18-H19-H20 -> 1.136868377e-13 | F20: 18°
D21: 0 | E21: =D39-H3-H4-H5-H6-H7-H8-H9-H10-H11-H12-H13-H14-H15-H16-H17-H18-H19-H20-H21 -> 1.136868377e-13 | F21: 19°
D22: 0 | E22: =D39-H3-H4-H5-H6-H7-H8-H9-H10-H11-H12-H13-H14-H15-H16-H17-H18-H19-H20-H21-H22 -> 1.136868377e-13 | F22: 20°
D23: 0 | E23: =D39-H3-H4-H5-H6-H7-H8-H9-H10-H11-H12-H13-H14-H15-H16-H17-H18-H19-H20-H21-H22-H23 -> 1.136868377e-13 | F23: 21°
D24: 0 | E24: =D39-H3-H4-H5-H6-H7-H8-H9-H10-H11-H12-H13-H14-H15-H16-H17-H18-H19-H20-H21-H22-H23-H24 -> 1.136868377e-13 | F24: 22°
D25: 0 | E25: =D39-H3-H4-H5-H6-H7-H8-H9-H10-H11-H12-H13-H14-H15-H16-H17-H18-H19-H20-H21-H22-H23-H24-H25 -> 1.136868377e-13 | F25: 23°
D26: 0 | E26: =D39-H3-H4-H5-H6-H7-H8-H9-H10-H11-H12-H13-H14-H15-H16-H17-H18-H19-H20-H21-H22-H23-H24-H25-H26 -> 1.136868377e-13 | F26: 24°
D27: 0 | E27: =D39-H3-H4-H5-H6-H7-H8-H9-H10-H11-H12-H13-H14-H15-H16-H17-H18-H19-H20-H21-H22-H23-H24-H25-H26-H27 -> 1.136868377e-13 | F27: 25°
D28: 0 | E28: =D39-H3-H4-H5-H6-H7-H8-H9-H10-H11-H12-H13-H14-H15-H16-H17-H18-H19-H20-H21-H22-H23-H24-H25-H26-H27-H28 -> 1.136868377e-13 | F28: 26°
D29: 0 | E29: =D39-H3-H4-H5-H6-H7-H8-H9-H10-H11-H12-H13-H14-H15-H16-H17-H18-H19-H20-H21-H22-H23-H24-H25-H26-H27-H28-H29 -> 1.136868377e-13 | F29: 27°
D30: 0 | E30: =D39-H3-H4-H5-H6-H7-H8-H9-H10-H11-H12-H13-H14-H15-H16-H17-H18-H19-H20-H21-H22-H23-H24-H25-H26-H27-H28-H29-H30 -> 1.136868377e-13 | F30: 27°
D31: 0 | E31: =D39-H3-H4-H5-H6-H7-H8-H9-H10-H11-H12-H13-H14-H15-H16-H17-H18-H19-H20-H21-H22-H23-H24-H25-H26-H27-H28-H29-H30-H31 -> 1.136868377e-13 | F31: 29°
D32: 0 | E32: =D39-H3-H4-H5-H6-H7-H8-H9-H10-H11-H12-H13-H14-H15-H16-H17-H18-H19-H20-H21-H22-H23-H24-H25-H26-H27-H28-H29-H30-H31-H32 -> 1.136868377e-13 | F32: 30°
D33: 0 | E33: =D39-H3-H4-H5-H6-H7-H8-H9-H10-H11-H12-H13-H14-H15-H16-H17-H18-H19-H20-H21-H22-H23-H24-H25-H26-H27-H28-H29-H30-H31-H32-H33 -> 1.136868377e-13 | F33: 31°
D34: 0 | E34: =D39-H3-H4-H5-H6-H7-H8-H9-H10-H11-H12-H13-H14-H15-H16-H17-H18-H19-H20-H21-H22-H23-H24-H25-H26-H27-H28-H29-H30-H31-H32-H33-H34 -> 1.136868377e-13 | F34: 32°
D35: 0 | E35: =D39-H3-H4-H5-H6-H7-H8-H9-H10-H11-H12-H13-H14-H15-H16-H17-H18-H19-H20-H21-H22-H23-H24-H25-H26-H27-H28-H29-H30-H31-H32-H33-H34-H35 -> 1.136868377e-13 | F35: 33°
D36: 0 | E36: =D39-H3-H4-H5-H6-H7-H8-H9-H10-H11-H12-H13-H14-H15-H16-H17-H18-H19-H20-H21-H22-H23-H24-H25-H26-H27-H28-H29-H30-H31-H32-H33-H34-H35-H36 -> 1.136868377e-13 | F36: 34°
D37: 0 | E37: =D39-H3-H4-H5-H6-H7-H8-H9-H10-H11-H12-H13-H14-H15-H16-H17-H18-H19-H20-H21-H22-H23-H24-H25-H26-H27-H28-H29-H30-H31-H32-H33-H34-H35-H36-H37 -> 1.136868377e-13 | F37: 35°
D38: 0 | E38: =D39-H3-H4-H5-H6-H7-H8-H9-H10-H11-H12-H13-H14-H15-H16-H17-H18-H19-H20-H21-H22-H23-H24-H25-H26-H27-H28-H29-H30-H31-H32-H33-H34-H35-H36-H37-H38 -> 1.136868377e-13 | F38: 36°
A39: TOTAL | B39: =SUM(B3:B38) -> 12823.08 | C39: =SUM(C3:C38) -> 408.84 | D39: =SUM(D3:D38) -> 13231.92 | G39: Total | H39: =SUM(H3:H38) -> 13231.92
A41: DADOS PARA DEPÓSITO E CONTATO
A42: Banco | B42: Banco do Brasil S/A. (N° do Banco 001) | E42: Contato | G42: Erik
A43: Agência | B43: 0348-4 | E43: Tel. | G43: 01518 - 9786 6963
A44: C/C | B44: 30407-7 | E44: CPF | G44: 136.981.708-84
A45: Em nome de | B45: Erik Constantino Batitoche | E45: e-mail | G45: erikbatichote@yahoo.com.br

Sheet Marina Boni
A1: MARINA BONI LEITE E CIA LTDA - VALOR DA PARCELA 2.199,74 | F1: N° | G1: Acordo feito 14/03/2013
A2: NF | B2: VALOR | C2: JUROS | D2: TOTAL | E2: SALDO DEV. | G2: DATAS | H2: VLR. PARCELA | I2: PAGO DIA
A3: DIVERSAS | B3: 21997.4 | D3: =SUM(B3:C3) -> 21997.4 | E3: =D39-H3 -> 19797.66 | F3: 1° | G3: 2013-03-28 | H3: 2199.74 | I3: 2013-03-28
D4: =SUM(B4:C4) -> 0 | E4: =D39-H3-H4 -> 17597.92 | F4: 2° | G4: 2013-04-28 | H4: 2199.74 | I4: 2013-05-28
D5: 0 | E5: =D39-H3-H4-H5 -> 15398.18 | F5: 3° | G5: 2013-05-28 | H5: 2199.74 | I5: 2013-06-28
D6: 0 | E6: =D39-H3-H4-H5-H6 -> 13198.44 | F6: 4° | G6: 2013-06-28 | H6: 2199.74 | I6: 2013-07-29
D7: 0 | E7: =D39-H3-H4-H5-H6-H7 -> 10998.7 | F7: 5° | G7: 2013-07-28 | H7: 2199.74 | I7: 2013-08-28
D8: 0 | E8: =D39-H3-H4-H5-H6-H7-H8 -> 8798.96 | F8: 6° | G8: 2013-08-28 | H8: 2199.74 | I8: 2013-10-16
D9: 0 | E9: =D39-H3-H4-H5-H6-H7-H8-H9 -> 6599.22 | F9: 7° | G9: 2013-09-28 | H9: 2199.74 | I9: 2013-10-28
D10: 0 | E10: =D39-H3-H4-H5-H6-H7-H8-H9-H10 -> 4399.48 | F10: 8° | G10: 2013-10-28 | H10: 2199.74 | I10: 2013-11-28
D11: 0 | E11: =D39-H3-H4-H5-H6-H7-H8-H9-H10-H11 -> 2199.74 | F11: 9° | G11: 2013-11-28 | H11: 2199.74 | I11: 2013-12-27
D12: 0 | E12: =D39-H3-H4-H5-H6-H7-H8-H9-H10-H11-H12 -> 7.275957614e-12 | F12: 10° | G12: 2013-12-28 | H12: 2199.74 | I12: 2014-01-28
D13: 0 | E13: =D39-H3-H4-H5-H6-H7-H8-H9-H10-H11-H12-H13 -> 7.275957614e-12 | F13: 11°
D14: 0 | E14: =D39-H3-H4-H5-H6-H7-H8-H9-H10-H11-H12-H13-H14 -> 7.275957614e-12 | F14: 12°
D15: 0 | E15: =D39-H3-H4-H5-H6-H7-H8-H9-H10-H11-H12-H13-H14-H15 -> 7.275957614e-12 | F15: 13°
D16: 0 | E16: =D39-H3-H4-H5-H6-H7-H8-H9-H10-H11-H12-H13-H14-H15-H16 -> 7.275957614e-12 | F16: 14°
D17: 0 | E17: =D39-H3-H4-H5-H6-H7-H8-H9-H10-H11-H12-H13-H14-H15-H16-H17 -> 7.275957614e-12 | F17: 15°
D18: 0 | E18: =D39-H3-H4-H5-H6-H7-H8-H9-H10-H11-H12-H13-H14-H15-H16-H17-H18 -> 7.275957614e-12 | F18: 16°
D19: 0 | E19: =D39-H3-H4-H5-H6-H7-H8-H9-H10-H11-H12-H13-H14-H15-H16-H17-H18-H19 -> 7.275957614e-12 | F19: 17°
D20: 0 | E20: =D39-H3-H4-H5-H6-H7-H8-H9-H10-H11-H12-H13-H14-H15-H16-H17-H18-H19-H20 -> 7.275957614e-12 | F20: 18°
D21: 0 | E21: =D39-H3-H4-H5-H6-H7-H8-H9-H10-H11-H12-H13-H14-H15-H16-H17-H18-H19-H20-H21 -> 7.275957614e-12 | F21: 19°
D22: 0 | E22: =D39-H3-H4-H5-H6-H7-H8-H9-H10-H11-H12-H13-H14-H15-H16-H17-H18-H19-H20-H21-H22 -> 7.275957614e-12 | F22: 20°
D23: 0 | E23: =D39-H3-H4-H5-H6-H7-H8-H9-H10-H11-H12-H13-H14-H15-H16-H17-H18-H19-H20-H21-H22-H23 -> 7.275957614e-12 | F23: 21°
D24: 0 | E24: =D39-H3-H4-H5-H6-H7-H8-H9-H10-H11-H12-H13-H14-H15-H16-H17-H18-H19-H20-H21-H22-H23-H24 -> 7.275957614e-12 | F24: 22°
D25: 0 | E25: =D39-H3-H4-H5-H6-H7-H8-H9-H10-H11-H12-H13-H14-H15-H16-H17-H18-H19-H20-H21-H22-H23-H24-H25 -> 7.275957614e-12 | F25: 23°
D26: 0 | E26: =D39-H3-H4-H5-H6-H7-H8-H9-H10-H11-H12-H13-H14-H15-H16-H17-H18-H19-H20-H21-H22-H23-H24-H25-H26 -> 7.275957614e-12 | F26: 24°
D27: 0 | E27: =D39-H3-H4-H5-H6-H7-H8-H9-H10-H11-H12-H13-H14-H15-H16-H17-H18-H19-H20-H21-H22-H23-H24-H25-H26-H27 -> 7.275957614e-12 | F27: 25°
D28: 0 | E28: =D39-H3-H4-H5-H6-H7-H8-H9-H10-H11-H12-H13-H14-H15-H16-H17-H18-H19-H20-H21-H22-H23-H24-H25-H26-H27-H28 -> 7.275957614e-12 | F28: 26°
D29: 0 | E29: =D39-H3-H4-H5-H6-H7-H8-H9-H10-H11-H12-H13-H14-H15-H16-H17-H18-H19-H20-H21-H22-H23-H24-H25-H26-H27-H28-H29 -> 7.275957614e-12 | F29: 27°
D30: 0 | E30: =D39-H3-H4-H5-H6-H7-H8-H9-H10-H11-H12-H13-H14-H15-H16-H17-H18-H19-H20-H21-H22-H23-H24-H25-H26-H27-H28-H29-H30 -> 7.275957614e-12 | F30: 27°
D31: 0 | E31: =D39-H3-H4-H5-H6-H7-H8-H9-H10-H11-H12-H13-H14-H15-H16-H17-H18-H19-H20-H21-H22-H23-H24-H25-H26-H27-H28-H29-H30-H31 -> 7.275957614e-12 | F31: 29°
D32: 0 | E32: =D39-H3-H4-H5-H6-H7-H8-H9-H10-H11-H12-H13-H14-H15-H16-H17-H18-H19-H20-H21-H22-H23-H24-H25-H26-H27-H28-H29-H30-H31-H32 -> 7.275957614e-12 | F32: 30°
D33: 0 | E33: =D39-H3-H4-H5-H6-H7-H8-H9-H10-H11-H12-H13-H14-H15-H16-H17-H18-H19-H20-H21-H22-H23-H24-H25-H26-H27-H28-H29-H30-H31-H32-H33 -> 7.275957614e-12 | F33: 31°
D34: 0 | E34: =D39-H3-H4-H5-H6-H7-H8-H9-H10-H11-H12-H13-H14-H15-H16-H17-H18-H19-H20-H21-H22-H23-H24-H25-H26-H27-H28-H29-H30-H31-H32-H33-H34 -> 7.275957614e-12 | F34: 32°
D35: 0 | E35: =D39-H3-H4-H5-H6-H7-H8-H9-H10-H11-H12-H13-H14-H15-H16-H17-H18-H19-H20-H21-H22-H23-H24-H25-H26-H27-H28-H29-H30-H31-H32-H33-H34-H35 -> 7.275957614e-12 | F35: 33°
D36: 0 | E36: =D39-H3-H4-H5-H6-H7-H8-H9-H10-H11-H12-H13-H14-H15-H16-H17-H18-H19-H20-H21-H22-H23-H24-H25-H26-H27-H28-H29-H30-H31-H32-H33-H34-H35-H36 -> 7.275957614e-12 | F36: 34°
D37: 0 | E37: =D39-H3-H4-H5-H6-H7-H8-H9-H10-H11-H12-H13-H14-H15-H16-H17-H18-H19-H20-H21-H22-H23-H24-H25-H26-H27-H28-H29-H30-H31-H32-H33-H34-H35-H36-H37 -> 7.275957614e-12 | F37: 35°
D38: 0 | E38: =D39-H3-H4-H5-H6-H7-H8-H9-H10-H11-H12-H13-H14-H15-H16-H17-H18-H19-H20-H21-H22-H23-H24-H25-H26-H27-H28-H29-H30-H31-H32-H33-H34-H35-H36-H37-H38 -> 7.275957614e-12 | F38: 36°
A39: TOTAL | B39: =SUM(B3:B38) -> 21997.4 | C39: =SUM(C3:C38) -> 0 | D39: =SUM(D3:D38) -> 21997.4 | G39: Total | H39: =SUM(H3:H38) -> 21997.4
A41: DADOS PARA DEPÓSITO E CONTATO
A42: Banco | B42: Banco do Brasil S/A. (N° do Banco 001) | E42: Contato | G42: Marcelo
A43: Agência | B43: 6750 | E43: Tel. | G43: 01518 - 3606 3422
A44: C/C | B44: 732-3 | E44: CNPJ | G44: 65.463.069-05
A45: Em nome de | B45: Marina Boni Leite e CIA Ltda | E45: e-mail

Sheet Masao Fukuda
A1: MASAO FUKUDA - VALOR DA PARCELA 847,27 | F1: N° | G1: Acordo feito 01/04/2013
A2: NF | B2: VALOR | C2: JUROS | D2: TOTAL | E2: SALDO DEV. | G2: DATAS | H2: VLR. PARCELA | I2: PAGO DIA
A3: DIVERSAS | B3: =847.27*12 -> 10167.24 | D3: =SUM(B3:C3) -> 10167.24 | E3: =D39-H3 -> 9319.97 | F3: 1° | G3: 2013-04-01 | H3: 847.27 | I3: 2013-04-01
D4: =SUM(B4:C4) -> 0 | E4: =D39-H3-H4 -> 8472.7 | F4: 2° | G4: 2013-07-27 | H4: 847.27 | I4: 2013-07-29
D5: 0 | E5: =D39-H3-H4-H5 -> 7625.43 | F5: 3° | G5: 2013-08-27 | H5: 847.27 | I5: 2013-08-27
D6: 0 | E6: =D39-H3-H4-H5-H6 -> 6778.16 | F6: 4° | G6: 2013-09-27 | H6: 847.27 | I6: 2013-09-27
D7: 0 | E7: =D39-H3-H4-H5-H6-H7 -> 5930.89 | F7: 5° | G7: 2013-10-27 | H7: 847.27 | I7: 2013-10-28
D8: 0 | E8: =D39-H3-H4-H5-H6-H7-H8 -> 5083.62 | F8: 6° | G8: 2013-11-27 | H8: 847.27 | I8: 2013-11-27
D9: 0 | E9: =D39-H3-H4-H5-H6-H7-H8-H9 -> 4236.35 | F9: 7° | G9: 2013-12-27 | H9: 847.27 | I9: 2013-12-27
D10: 0 | E10: =D39-H3-H4-H5-H6-H7-H8-H9-H10 -> 3389.08 | F10: 8° | G10: 2014-01-27 | H10: 847.27 | I10: 2014-01-27
D11: 0 | E11: =D39-H3-H4-H5-H6-H7-H8-H9-H10-H11 -> 2541.81 | F11: 9° | G11: 2014-02-27 | H11: 847.27 | I11: 2014-02-27
D12: 0 | E12: =D39-H3-H4-H5-H6-H7-H8-H9-H10-H11-H12 -> 1694.54 | F12: 10° | G12: 2014-03-27 | H12: 847.27 | I12: 2014-03-27
D13: 0 | E13: =D39-H3-H4-H5-H6-H7-H8-H9-H10-H11-H12-H13 -> 847.27 | F13: 11° | G13: 2014-04-27 | H13: 847.27 | I13: 2014-04-28
D14: 0 | E14: =D39-H3-H4-H5-H6-H7-H8-H9-H10-H11-H12-H13-H14 -> -3.183231456e-12 | F14: 12° | G14: 2014-05-27 | H14: 847.27 | I14: 2015-02-03
D15: 0 | E15: =D39-H3-H4-H5-H6-H7-H8-H9-H10-H11-H12-H13-H14-H15 -> -3.183231456e-12 | F15: 13°
D16: 0 | E16: =D39-H3-H4-H5-H6-H7-H8-H9-H10-H11-H12-H13-H14-H15-H16 -> -3.183231456e-12 | F16: 14°
D17: 0 | E17: =D39-H3-H4-H5-H6-H7-H8-H9-H10-H11-H12-H13-H14-H15-H16-H17 -> -3.183231456e-12 | F17: 15°
D18: 0 | E18: =D39-H3-H4-H5-H6-H7-H8-H9-H10-H11-H12-H13-H14-H15-H16-H17-H18 -> -3.183231456e-12 | F18: 16°
D19: 0 | E19: =D39-H3-H4-H5-H6-H7-H8-H9-H10-H11-H12-H13-H14-H15-H16-H17-H18-H19 -> -3.183231456e-12 | F19: 17°
D20: 0 | E20: =D39-H3-H4-H5-H6-H7-H8-H9-H10-H11-H12-H13-H14-H15-H16-H17-H18-H19-H20 -> -3.183231456e-12 | F20: 18°
D21: 0 | E21: =D39-H3-H4-H5-H6-H7-H8-H9-H10-H11-H12-H13-H14-H15-H16-H17-H18-H19-H20-H21 -> -3.183231456e-12 | F21: 19°
D22: 0 | E22: =D39-H3-H4-H5-H6-H7-H8-H9-H10-H11-H12-H13-H14-H15-H16-H17-H18-H19-H20-H21-H22 -> -3.183231456e-12 | F22: 20°
D23: 0 | E23: =D39-H3-H4-H5-H6-H7-H8-H9-H10-H11-H12-H13-H14-H15-H16-H17-H18-H19-H20-H21-H22-H23 -> -3.183231456e-12 | F23: 21°
D24: 0 | E24: =D39-H3-H4-H5-H6-H7-H8-H9-H10-H11-H12-H13-H14-H15-H16-H17-H18-H19-H20-H21-H22-H23-H24 -> -3.183231456e-12 | F24: 22°
D25: 0 | E25: =D39-H3-H4-H5-H6-H7-H8-H9-H10-H11-H12-H13-H14-H15-H16-H17-H18-H19-H20-H21-H22-H23-H24-H25 -> -3.183231456e-12 | F25: 23°
D26: 0 | E26: =D39-H3-H4-H5-H6-H7-H8-H9-H10-H11-H12-H13-H14-H15-H16-H17-H18-H19-H20-H21-H22-H23-H24-H25-H26 -> -3.183231456e-12 | F26: 24°
D27: 0 | E27: =D39-H3-H4-H5-H6-H7-H8-H9-H10-H11-H12-H13-H14-H15-H16-H17-H18-H19-H20-H21-H22-H23-H24-H25-H26-H27 -> -3.183231456e-12 | F27: 25°
D28: 0 | E28: =D39-H3-H4-H5-H6-H7-H8-H9-H10-H11-H12-H13-H14-H15-H16-H17-H18-H19-H20-H21-H22-H23-H24-H25-H26-H27-H28 -> -3.183231456e-12 | F28: 26°
D29: 0 | E29: =D39-H3-H4-H5-H6-H7-H8-H9-H10-H11-H12-H13-H14-H15-H16-H17-H18-H19-H20-H21-H22-H23-H24-H25-H26-H27-H28-H29 -> -3.183231456e-12 | F29: 27°
D30: 0 | E30: =D39-H3-H4-H5-H6-H7-H8-H9-H10-H11-H12-H13-H14-H15-H16-H17-H18-H19-H20-H21-H22-H23-H24-H25-H26-H27-H28-H29-H30 -> -3.183231456e-12 | F30: 27°
D31: 0 | E31: =D39-H3-H4-H5-H6-H7-H8-H9-H10-H11-H12-H13-H14-H15-H16-H17-H18-H19-H20-H21-H22-H23-H24-H25-H26-H27-H28-H29-H30-H31 -> -3.183231456e-12 | F31: 29°
D32: 0 | E32: =D39-H3-H4-H5-H6-H7-H8-H9-H10-H11-H12-H13-H14-H15-H16-H17-H18-H19-H20-H21-H22-H23-H24-H25-H26-H27-H28-H29-H30-H31-H32 -> -3.183231456e-12 | F32: 30°
D33: 0 | E33: =D39-H3-H4-H5-H6-H7-H8-H9-H10-H11-H12-H13-H14-H15-H16-H17-H18-H19-H20-H21-H22-H23-H24-H25-H26-H27-H28-H29-H30-H31-H32-H33 -> -3.183231456e-12 | F33: 31°
D34: 0 | E34: =D39-H3-H4-H5-H6-H7-H8-H9-H10-H11-H12-H13-H14-H15-H16-H17-H18-H19-H20-H21-H22-H23-H24-H25-H26-H27-H28-H29-H30-H31-H32-H33-H34 -> -3.183231456e-12 | F34: 32°
D35: 0 | E35: =D39-H3-H4-H5-H6-H7-H8-H9-H10-H11-H12-H13-H14-H15-H16-H17-H18-H19-H20-H21-H22-H23-H24-H25-H26-H27-H28-H29-H30-H31-H32-H33-H34-H35 -> -3.183231456e-12 | F35: 33°
D36: 0 | E36: =D39-H3-H4-H5-H6-H7-H8-H9-H10-H11-H12-H13-H14-H15-H16-H17-H18-H19-H20-H21-H22-H23-H24-H25-H26-H27-H28-H29-H30-H31-H32-H33-H34-H35-H36 -> -3.183231456e-12 | F36: 34°
D37: 0 | E37: =D39-H3-H4-H5-H6-H7-H8-H9-H10-H11-H12-H13-H14-H15-H16-H17-H18-H19-H20-H21-H22-H23-H24-H25-H26-H27-H28-H29-H30-H31-H32-H33-H34-H35-H36-H37 -> -3.183231456e-12 | F37: 35°
D38: 0 | E38: =D39-H3-H4-H5-H6-H7-H8-H9-H10-H11-H12-H13-H14-H15-H16-H17-H18-H19-H20-H21-H22-H23-H24-H25-H26-H27-H28-H29-H30-H31-H32-H33-H34-H35-H36-H37-H38 -> -3.183231456e-12 | F38: 36°
A39: TOTAL | B39: =SUM(B3:B38) -> 10167.24 | C39: =SUM(C3:C38) -> 0 | D39: =SUM(D3:D38) -> 10167.24 | G39: Total | H39: =SUM(H3:H38) -> 10167.24
A41: DADOS PARA DEPÓSITO E CONTATO
A42: Banco | B42: Santander (N° do Banco 033) | E42: Contato | G42: Masao
A43: Agência | B43: 3027 | E43: Tel. | G43: 01518 - 9148 8178
A44: C/C | B44: 13001904-6 | E44: CNPJ | G44: 07.350.934/0001-00
A45: Em nome de | B45: Masao Fukuda | E45: e-mail

Sheet ISS -Simples Nacional
A1: ISS Simples Nacional (CNS)só parte prefeitura - VLR. PARCELA 399,29 | F1: N° | G1: Acordo feito 26/07/2013
A2: Exercício | B2: VALOR | C2: JUROS | D2: TOTAL | E2: SALDO DEV. | G2: DATAS | H2: VLR. PARCELA | I2: PAGO DIA
A3: 2007 | B3: 7915.47 | D3: =SUM(B3:C3) -> 7915.47 | E3: =D63-H3 -> 14910.29 | F3: 1° | G3: 2013-07-26 | H3: 399.29 | I3: 2013-07-26
A4: 2008 | B4: 3079.3 | D4: =SUM(B4:C4) -> 3079.3 | E4: =D63-H3-H4 -> 14655.22 | F4: 2° | G4: 2013-08-30 | H4: 255.07 | I4: 2013-08-30
A5: 2010 | B5: 2792.39 | D5: 2792.39 | E5: =D63-H3-H4-H5 -> 14398.51 | F5: 3° | G5: 2013-09-30 | H5: 256.71 | I5: 2013-09-30
C6: 1522.42 | D6: 1522.42 | E6: =D63-H3-H4-H5-H6 -> 14140.12 | F6: 4° | G6: 2013-10-31 | H6: 258.39 | I6: 2013-10-31
D7: 0 | E7: =D63-H3-H4-H5-H6-H7 -> 13879.8 | F7: 5° | G7: 2013-11-26 | H7: 260.32 | I7: 2013-11-29
D8: 0 | E8: =D63-H3-H4-H5-H6-H7-H8 -> 13617.79 | F8: 6° | G8: 2013-12-26 | H8: 262.01 | I8: 2013-12-27
D9: 0 | E9: =D63-H3-H4-H5-H6-H7-H8-H9 -> 13353.93 | F9: 7° | G9: 2014-01-30 | H9: 263.86 | I9: 2014-01-31
D10: 0 | E10: =D63-H3-H4-H5-H6-H7-H8-H9-H10 -> 13087.91 | F10: 8° | G10: 2014-02-28 | H10: 266.02 | I10: 2014-02-28
D11: 0 | E11: =D63-H3-H4-H5-H6-H7-H8-H9-H10-H11 -> 12819.96 | F11: 9° | G11: 2014-03-30 | H11: 267.95 | I11: 2014-03-31
D12: 0 | E12: =D63-H3-H4-H5-H6-H7-H8-H9-H10-H11-H12 -> 12550.09 | F12: 10° | G12: 2014-04-30 | H12: 269.87 | I12: 2014-04-30
D13: 0 | E13: =D63-H3-H4-H5-H6-H7-H8-H9-H10-H11-H12-H13 -> 12278.12 | F13: 11° | G13: 2014-05-30 | H13: 271.97 | I13: 2014-05-30
D14: 0 | E14: =D63-H3-H4-H5-H6-H7-H8-H9-H10-H11-H12-H13-H14 -> 12278.12 | F14: 12° | G14: 2014-06-30 | J14: não foi pago
D15: 0 | E15: =D63-H3-H4-H5-H6-H7-H8-H9-H10-H11-H12-H13-H14-H15 -> 12002.11 | F15: 13° | G15: 2014-07-30 | H15: 276.01 | I15: 2014-07-31
D16: 0 | E16: =D63-H3-H4-H5-H6-H7-H8-H9-H10-H11-H12-H13-H14-H15-H16 -> 11723.91 | F16: 14° | G16: 2014-08-30 | H16: 278.2 | I16: 2014-08-29
D17: 0 | E17: =D63-H3-H4-H5-H6-H7-H8-H9-H10-H11-H12-H13-H14-H15-H16-H17 -> 11443.74 | F17: 15° | G17: 2014-09-30 | H17: 280.17 | I17: 2014-09-30
D18: 0 | E18: =D63-H3-H4-H5-H6-H7-H8-H9-H10-H11-H12-H13-H14-H15-H16-H17-H18 -> 11161.43 | F18: 16° | G18: 2014-10-31 | H18: 282.31 | I18: 2014-10-31
D19: 0 | E19: =D63-H3-H4-H5-H6-H7-H8-H9-H10-H11-H12-H13-H14-H15-H16-H17-H18-H19 -> 10876.81 | F19: 17° | G19: 2014-11-30 | H19: 284.62 | I19: 2014-11-28
D20: 0 | E20: =D63-H3-H4-H5-H6-H7-H8-H9-H10-H11-H12-H13-H14-H15-H16-H17-H18-H19-H20 -> 10590.25 | F20: 18° | G20: 2014-12-30 | H20: 286.56 | I20: 2014-12-30
D21: 0 | E21: =D63-H3-H4-H5-H6-H7-H8-H9-H10-H11-H12-H13-H14-H15-H16-H17-H18-H19-H20-H21 -> 10301.46 | F21: 19° | G21: 2015-01-30 | H21: 288.79 | I21: 2015-01-30
D22: 0 | E22: =D63-H3-H4-H5-H6-H7-H8-H9-H10-H11-H12-H13-H14-H15-H16-H17-H18-H19-H20-H21-H22 -> 10010.35 | F22: 20° | G22: 2015-02-28 | H22: 291.11 | I22: 2015-02-27
D23: 0 | E23: =D63-H3-H4-H5-H6-H7-H8-H9-H10-H11-H12-H13-H14-H15-H16-H17-H18-H19-H20-H21-H22-H23 -> 10010.35 | F23: 21° | G23: 2015-03-30 | J23: Contab.não cons. Emitir a guia
D24: 0 | E24: =D63-H3-H4-H5-H6-H7-H8-H9-H10-H11-H12-H13-H14-H15-H16-H17-H18-H19-H20-H21-H22-H23-H24 -> 9714.36 | F24: 22° | G24: 2015-04-30 | H24: 295.99 | I24: 2015-04-30
D25: 0 | E25: =D63-H3-H4-H5-H6-H7-H8-H9-H10-H11-H12-H13-H14-H15-H16-H17-H18-H19-H20-H21-H22-H23-H24-H25 -> 9415.86 | F25: 23° | G25: 2015-05-30 | H25: 298.5 | I25: 2015-05-29
D26: 0 | E26: =D63-H3-H4-H5-H6-H7-H8-H9-H10-H11-H12-H13-H14-H15-H16-H17-H18-H19-H20-H21-H22-H23-H24-H25-H26 -> 9415.86 | F26: 24° | G26: 2015-06-30 | J26: não foi pago
D27: 0 | E27: =D63-H3-H4-H5-H6-H7-H8-H9-H10-H11-H12-H13-H14-H15-H16-H17-H18-H19-H20-H21-H22-H23-H24-H25-H26-H27 -> 9112.29 | F27: 25° | G27: 2015-07-31 | H27: 303.57 | I27: 2015-07-31
D28: 0 | E28: =D63-H3-H4-H5-H6-H7-H8-H9-H10-H11-H12-H13-H14-H15-H16-H17-H18-H19-H20-H21-H22-H23-H24-H25-H26-H27-H28 -> 9112.29 | F28: 26° | G28: 2015-08-30
D29: 0 | E29: =D63-H3-H4-H5-H6-H7-H8-H9-H10-H11-H12-H13-H14-H15-H16-H17-H18-H19-H20-H21-H22-H23-H24-H25-H26-H27-H28-H29 -> 9112.29 | F29: 27° | G29: 2015-09-30
D30: 0 | E30: =D63-H3-H4-H5-H6-H7-H8-H9-H10-H11-H12-H13-H14-H15-H16-H17-H18-H19-H20-H21-H22-H23-H24-H25-H26-H27-H28-H29-H30 -> 9112.29 | F30: 27° | G30: 2015-10-30
D31: 0 | E31: =D63-H3-H4-H5-H6-H7-H8-H9-H10-H11-H12-H13-H14-H15-H16-H17-H18-H19-H20-H21-H22-H23-H24-H25-H26-H27-H28-H29-H30-H31 -> 9112.29 | F31: 29° | G31: 2015-11-30
D32: 0 | E32: =D63-H3-H4-H5-H6-H7-H8-H9-H10-H11-H12-H13-H14-H15-H16-H17-H18-H19-H20-H21-H22-H23-H24-H25-H26-H27-H28-H29-H30-H31-H32 -> 9112.29 | F32: 30° | G32: 2015-12-30
D33: 0 | E33: =D63-H3-H4-H5-H6-H7-H8-H9-H10-H11-H12-H13-H14-H15-H16-H17-H18-H19-H20-H21-H22-H23-H24-H25-H26-H27-H28-H29-H30-H31-H32-H33 -> 9112.29 | F33: 31° | G33: 2016-01-30
D34: 0 | E34: =D63-H3-H4-H5-H6-H7-H8-H9-H10-H11-H12-H13-H14-H15-H16-H17-H18-H19-H20-H21-H22-H23-H24-H25-H26-H27-H28-H29-H30-H31-H32-H33-H34 -> 9112.29 | F34: 32° | G34: 2016-02-29
D35: 0 | E35: =D63-H3-H4-H5-H6-H7-H8-H9-H10-H11-H12-H13-H14-H15-H16-H17-H18-H19-H20-H21-H22-H23-H24-H25-H26-H27-H28-H29-H30-H31-H32-H33-H34-H35 -> 9112.29 | F35: 33° | G35: 2016-03-30
D36: 0 | E36: =D63-H3-H4-H5-H6-H7-H8-H9-H10-H11-H12-H13-H14-H15-H16-H17-H18-H19-H20-H21-H22-H23-H24-H25-H26-H27-H28-H29-H30-H31-H32-H33-H34-H35-H36 -> 9112.29 | F36: 34° | G36: 2016-04-30
D37: 0 | E37: =D63-H3-H4-H5-H6-H7-H8-H9-H10-H11-H12-H13-H14-H15-H16-H17-H18-H19-H20-H21-H22-H23-H24-H25-H26-H27-H28-H29-H30-H31-H32-H33-H34-H35-H36-H37 -> 9112.29 | F37: 35° | G37: 2016-05-30
D38: 0 | E38: =D63-H3-H4-H5-H6-H7-H8-H9-H10-H11-H12-H13-H14-H15-H16-H17-H18-H19-H20-H21-H22-H23-H24-H25-H26-H27-H28-H29-H30-H31-H32-H33-H34-H35-H36-H37-H38 -> 9112.29 | F38: 36° | G38: 2016-06-30
D39: 0 | E39: =D63-H3-H4-H5-H6-H7-H8-H9-H10-H11-H12-H13-H14-H15-H16-H17-H18-H19-H20-H21-H22-H23-H24-H25-H26-H27-H28-H29-H30-H31-H32-H33-H34-H35-H36-H37-H38-H39 -> 9112.29 | F39: 37° | G39: 2016-07-30
D40: 0 | E40: =D63-H3-H4-H5-H6-H7-H8-H9-H10-H11-H12-H13-H14-H15-H16-H17-H18-H19-H20-H21-H22-H23-H24-H25-H26-H27-H28-H29-H30-H31-H32-H33-H34-H35-H36-H37-H38-H39-H40 -> 9112.29 | F40: 38° | G40: 2016-08-30
D41: 0 | E41: =D63-H3-H4-H5-H6-H7-H8-H9-H10-H11-H12-H13-H14-H15-H16-H17-H18-H19-H20-H21-H22-H23-H24-H25-H26-H27-H28-H29-H30-H31-H32-H33-H34-H35-H36-H37-H38-H39-H40-H41 -> 9112.29 | F41: 39° | G41: 2016-09-30
D42: 0 | E42: =D63-H3-H4-H5-H6-H7-H8-H9-H10-H11-H12-H13-H14-H15-H16-H17-H18-H19-H20-H21-H22-H23-H24-H25-H26-H27-H28-H29-H30-H31-H32-H33-H34-H35-H36-H37-H38-H39-H40-H41-H42 -> 9112.29 | F42: 40° | G42: 2016-10-30
D43: 0 | E43: =D63-H3-H4-H5-H6-H7-H8-H9-H10-H11-H12-H13-H14-H15-H16-H17-H18-H19-H20-H21-H22-H23-H24-H25-H26-H27-H28-H29-H30-H31-H32-H33-H34-H35-H36-H37-H38-H39-H40-H41-H42-H43 -> 9112.29 | F43: 41° | G43: 2016-11-30
D44: 0 | E44: =D63-H3-H4-H5-H6-H7-H8-H9-H10-H11-H12-H13-H14-H15-H16-H17-H18-H19-H20-H21-H22-H23-H24-H25-H26-H27-H28-H29-H30-H31-H32-H33-H34-H35-H36-H37-H38-H39-H40-H41-H42-H43-H44 -> 9112.29 | F44: 42° | G44: 2016-12-30
D45: 0 | E45: =D63-H3-H4-H5-H6-H7-H8-H9-H10-H11-H12-H13-H14-H15-H16-H17-H18-H19-H20-H21-H22-H23-H24-H25-H26-H27-H28-H29-H30-H31-H32-H33-H34-H35-H36-H37-H38-H39-H40-H41-H42-H43-H44-H45 -> 9112.29 | F45: 43° | G45: 2017-01-30
D46: 0 | E46: =D63-H3-H4-H5-H6-H7-H8-H9-H10-H11-H12-H13-H14-H15-H16-H17-H18-H19-H20-H21-H22-H23-H24-H25-H26-H27-H28-H29-H30-H31-H32-H33-H34-H35-H36-H37-H38-H39-H40-H41-H42-H43-H44-H45-H46 -> 9112.29 | F46: 44° | G46: 2017-02-28
D47: 0 | E47: =D63-H3-H4-H5-H6-H7-H8-H9-H10-H11-H12-H13-H14-H15-H16-H17-H18-H19-H20-H21-H22-H23-H24-H25-H26-H27-H28-H29-H30-H31-H32-H33-H34-H35-H36-H37-H38-H39-H40-H41-H42-H43-H44-H45-H46-H47 -> 9112.29 | F47: 45° | G47: 2017-03-30
D48: 0 | E48: =D63-H3-H4-H5-H6-H7-H8-H9-H10-H11-H12-H13-H14-H15-H16-H17-H18-H19-H20-H21-H22-H23-H24-H25-H26-H27-H28-H29-H30-H31-H32-H33-H34-H35-H36-H37-H38-H39-H40-H41-H42-H43-H44-H45-H46-H47-H48 -> 9112.29 | F48: 46° | G48: 2017-04-30
D49: 0 | E49: =D63-H3-H4-H5-H6-H7-H8-H9-H10-H11-H12-H13-H14-H15-H16-H17-H18-H19-H20-H21-H22-H23-H24-H25-H26-H27-H28-H29-H30-H31-H32-H33-H34-H35-H36-H37-H38-H39-H40-H41-H42-H43-H44-H45-H46-H47-H48-H49 -> 9112.29 | F49: 47° | G49: 2017-05-30
D50: 0 | E50: =D63-H3-H4-H5-H6-H7-H8-H9-H10-H11-H12-H13-H14-H15-H16-H17-H18-H19-H20-H21-H22-H23-H24-H25-H26-H27-H28-H29-H30-H31-H32-H33-H34-H35-H36-H37-H38-H39-H40-H41-H42-H43-H44-H45-H46-H47-H48-H49-H50 -> 9112.29 | F50: 48° | G50: 2017-06-30
D51: 0 | E51: =D63-H3-H4-H5-H6-H7-H8-H9-H10-H11-H12-H13-H14-H15-H16-H17-H18-H19-H20-H21-H22-H23-H24-H25-H26-H27-H28-H29-H30-H31-H32-H33-H34-H35-H36-H37-H38-H39-H40-H41-H42-H43-H44-H45-H46-H47-H48-H49-H50-H51 -> 9112.29 | F51: 49° | G51: 2017-07-30
D52: 0 | E52: =D63-H3-H4-H5-H6-H7-H8-H9-H10-H11-H12-H13-H14-H15-H16-H17-H18-H19-H20-H21-H22-H23-H24-H25-H26-H27-H28-H29-H30-H31-H32-H33-H34-H35-H36-H37-H38-H39-H40-H41-H42-H43-H44-H45-H46-H47-H48-H49-H50-H51-H52 -> 9112.29 | F52: 50° | G52: 2017-08-30
D53: 0 | E53: =D63-H3-H4-H5-H6-H7-H8-H9-H10-H11-H12-H13-H14-H15-H16-H17-H18-H19-H20-H21-H22-H23-H24-H25-H26-H27-H28-H29-H30-H31-H32-H33-H34-H35-H36-H37-H38-H39-H40-H41-H42-H43-H44-H45-H46-H47-H48-H49-H50-H51-H52-H53 -> 9112.29 | F53: 51° | G53: 2017-09-30
D54: 0 | E54: =D63-H3-H4-H5-H6-H7-H8-H9-H10-H11-H12-H13-H14-H15-H16-H17-H18-H19-H20-H21-H22-H23-H24-H25-H26-H27-H28-H29-H30-H31-H32-H33-H34-H35-H36-H37-H38-H39-H40-H41-H42-H43-H44-H45-H46-H47-H48-H49-H50-H51-H52-H53-H54 -> 9112.29 | F54: 52° | G54: 2017-10-30
D55: 0 | E55: =D63-H3-H4-H5-H6-H7-H8-H9-H10-H11-H12-H13-H14-H15-H16-H17-H18-H19-H20-H21-H22-H23-H24-H25-H26-H27-H28-H29-H30-H31-H32-H33-H34-H35-H36-H37-H38-H39-H40-H41-H42-H43-H44-H45-H46-H47-H48-H49-H50-H51-H52-H53-H54-H55 -> 9112.29 | F55: 53° | G55: 2017-11-30
D56: 0 | E56: =D63-H3-H4-H5-H6-H7-H8-H9-H10-H11-H12-H13-H14-H15-H16-H17-H18-H19-H20-H21-H22-H23-H24-H25-H26-H27-H28-H29-H30-H31-H32-H33-H34-H35-H36-H37-H38-H39-H40-H41-H42-H43-H44-H45-H46-H47-H48-H49-H50-H51-H52-H53-H54-H55-H56 -> 9112.29 | F56: 54° | G56: 2017-12-30
D57: 0 | E57: =D63-H3-H4-H5-H6-H7-H8-H9-H10-H11-H12-H13-H14-H15-H16-H17-H18-H19-H20-H21-H22-H23-H24-H25-H26-H27-H28-H29-H30-H31-H32-H33-H34-H35-H36-H37-H38-H39-H40-H41-H42-H43-H44-H45-H46-H47-H48-H49-H50-H51-H52-H53-H54-H55-H56-H57 -> 9112.29 | F57: 55° | G57: 2018-01-30
D58: 0 | E58: =D63-H3-H4-H5-H6-H7-H8-H9-H10-H11-H12-H13-H14-H15-H16-H17-H18-H19-H20-H21-H22-H23-H24-H25-H26-H27-H28-H29-H30-H31-H32-H33-H34-H35-H36-H37-H38-H39-H40-H41-H42-H43-H44-H45-H46-H47-H48-H49-H50-H51-H52-H53-H54-H55-H56-H57-H58 -> 9112.29 | F58: 56° | G58: 2018-02-28
D59: 0 | E59: =D63-H3-H4-H5-H6-H7-H8-H9-H10-H11-H12-H13-H14-H15-H16-H17-H18-H19-H20-H21-H22-H23-H24-H25-H26-H27-H28-H29-H30-H31-H32-H33-H34-H35-H36-H37-H38-H39-H40-H41-H42-H43-H44-H45-H46-H47-H48-H49-H50-H51-H52-H53-H54-H55-H56-H57-H58-H59 -> 9112.29 | F59: 57° | G59: 2018-03-30
D60: 0 | E60: =D63-H3-H4-H5-H6-H7-H8-H9-H10-H11-H12-H13-H14-H15-H16-H17-H18-H19-H20-H21-H22-H23-H24-H25-H26-H27-H28-H29-H30-H31-H32-H33-H34-H35-H36-H37-H38-H39-H40-H41-H42-H43-H44-H45-H46-H47-H48-H49-H50-H51-H52-H53-H54-H55-H56-H57-H58-H59-H60 -> 9112.29 | F60: 58° | G60: 2018-04-30
D61: 0 | E61: =D63-H3-H4-H5-H6-H7-H8-H9-H10-H11-H12-H13-H14-H15-H16-H17-H18-H19-H20-H21-H22-H23-H24-H25-H26-H27-H28-H29-H30-H31-H32-H33-H34-H35-H36-H37-H38-H39-H40-H41-H42-H43-H44-H45-H46-H47-H48-H49-H50-H51-H52-H53-H54-H55-H56-H57-H58-H59-H60-H61 -> 9112.29 | F61: 59° | G61: 2018-05-30
D62: 0 | E62: =D63-H3-H4-H5-H6-H7-H8-H9-H10-H11-H12-H13-H14-H15-H16-H17-H18-H19-H20-H21-H22-H23-H24-H25-H26-H27-H28-H29-H30-H31-H32-H33-H34-H35-H36-H37-H38-H39-H40-H41-H42-H43-H44-H45-H46-H47-H48-H49-H50-H51-H52-H53-H54-H55-H56-H57-H58-H59-H60-H61-H62 -> 9112.29 | F62: 60° | G62: 2018-06-30
A63: TOTAL | B63: =SUM(B3:B62) -> 13787.16 | C63: =SUM(C3:C62) -> 1522.42 | D63: =SUM(D3:D62) -> 15309.58 | G63: Total | H63: =SUM(H3:H62) -> 6197.29
A65: DADOS PARA DEPÓSITO E CONTATO
A66: Banco | B66: Itaú S/A. | E66: Contato | G66: Fátima
A67: Agência | B67: 0737 | E67: Tel. | G67: 3865 3512 - 9-9905 4694
A68: C/C | B68: 01925-7 | E68: CPF | G68: 050.311.468-50
A69: Em nome de | B69: Fátima Araújo Lima | E69: e-mail | G69: fatimalima58@gmail.com

Sheet Multinox
A1: MULTINOX EQUIP P/ RESTAUR.- VALOR DA PARCELA 1.977,00 | F1: N° | G1: Acordo feito 05/08/2013
A2: CH N° | B2: VALOR | C2: JUROS | D2: TOTAL | E2: SALDO DEV. | G2: DATAS | H2: VLR. PARCELA | I2: PAGO DIA
A3: 1837 | B3: 4831 | C3: 1100 | D3: =SUM(B3:C3) -> 5931 | E3: =D39-H3 -> 3954 | F3: 1° | G3: 2013-08-05 | H3: 1977 | I3: 2013-03-28
D4: =SUM(B4:C4) -> 0 | E4: =D39-H3-H4 -> 1977 | F4: 2° | G4: 2013-09-05 | H4: 1977 | I4: 2013-09-05
D5: 0 | E5: =D39-H3-H4-H5 -> 0 | F5: 3° | G5: 2013-10-05 | H5: 1977 | I5: 2013-10-07
D6: 0 | E6: =D39-H3-H4-H5-H6 -> 0 | F6: 4°
D7: 0 | E7: =D39-H3-H4-H5-H6-H7 -> 0 | F7: 5°
D8: 0 | E8: =D39-H3-H4-H5-H6-H7-H8 -> 0 | F8: 6°
D9: 0 | E9: =D39-H3-H4-H5-H6-H7-H8-H9 -> 0 | F9: 7°
D10: 0 | E10: =D39-H3-H4-H5-H6-H7-H8-H9-H10 -> 0 | F10: 8°
D11: 0 | E11: =D39-H3-H4-H5-H6-H7-H8-H9-H10-H11 -> 0 | F11: 9°
D12: 0 | E12: =D39-H3-H4-H5-H6-H7-H8-H9-H10-H11-H12 -> 0 | F12: 10°
D13: 0 | E13: =D39-H3-H4-H5-H6-H7-H8-H9-H10-H11-H12-H13 -> 0 | F13: 11°
D14: 0 | E14: =D39-H3-H4-H5-H6-H7-H8-H9-H10-H11-H12-H13-H14 -> 0 | F14: 12°
D15: 0 | E15: =D39-H3-H4-H5-H6-H7-H8-H9-H10-H11-H12-H13-H14-H15 -> 0 | F15: 13°
D16: 0 | E16: =D39-H3-H4-H5-H6-H7-H8-H9-H10-H11-H12-H13-H14-H15-H16 -> 0 | F16: 14°
D17: 0 | E17: =D39-H3-H4-H5-H6-H7-H8-H9-H10-H11-H12-H13-H14-H15-H16-H17 -> 0 | F17: 15°
D18: 0 | E18: =D39-H3-H4-H5-H6-H7-H8-H9-H10-H11-H12-H13-H14-H15-H16-H17-H18 -> 0 | F18: 16°
D19: 0 | E19: =D39-H3-H4-H5-H6-H7-H8-H9-H10-H11-H12-H13-H14-H15-H16-H17-H18-H19 -> 0 | F19: 17°
D20: 0 | E20: =D39-H3-H4-H5-H6-H7-H8-H9-H10-H11-H12-H13-H14-H15-H16-H17-H18-H19-H20 -> 0 | F20: 18°
D21: 0 | E21: =D39-H3-H4-H5-H6-H7-H8-H9-H10-H11-H12-H13-H14-H15-H16-H17-H18-H19-H20-H21 -> 0 | F21: 19°
D22: 0 | E22: =D39-H3-H4-H5-H6-H7-H8-H9-H10-H11-H12-H13-H14-H15-H16-H17-H18-H19-H20-H21-H22 -> 0 | F22: 20°
D23: 0 | E23: =D39-H3-H4-H5-H6-H7-H8-H9-H10-H11-H12-H13-H14-H15-H16-H17-H18-H19-H20-H21-H22-H23 -> 0 | F23: 21°
D24: 0 | E24: =D39-H3-H4-H5-H6-H7-H8-H9-H10-H11-H12-H13-H14-H15-H16-H17-H18-H19-H20-H21-H22-H23-H24 -> 0 | F24: 22°
D25: 0 | E25: =D39-H3-H4-H5-H6-H7-H8-H9-H10-H11-H12-H13-H14-H15-H16-H17-H18-H19-H20-H21-H22-H23-H24-H25 -> 0 | F25: 23°
D26: 0 | E26: =D39-H3-H4-H5-H6-H7-H8-H9-H10-H11-H12-H13-H14-H15-H16-H17-H18-H19-H20-H21-H22-H23-H24-H25-H26 -> 0 | F26: 24°
D27: 0 | E27: =D39-H3-H4-H5-H6-H7-H8-H9-H10-H11-H12-H13-H14-H15-H16-H17-H18-H19-H20-H21-H22-H23-H24-H25-H26-H27 -> 0 | F27: 25°
D28: 0 | E28: =D39-H3-H4-H5-H6-H7-H8-H9-H10-H11-H12-H13-H14-H15-H16-H17-H18-H19-H20-H21-H22-H23-H24-H25-H26-H27-H28 -> 0 | F28: 26°
D29: 0 | E29: =D39-H3-H4-H5-H6-H7-H8-H9-H10-H11-H12-H13-H14-H15-H16-H17-H18-H19-H20-H21-H22-H23-H24-H25-H26-H27-H28-H29 -> 0 | F29: 27°
D30: 0 | E30: =D39-H3-H4-H5-H6-H7-H8-H9-H10-H11-H12-H13-H14-H15-H16-H17-H18-H19-H20-H21-H22-H23-H24-H25-H26-H27-H28-H29-H30 -> 0 | F30: 27°
D31: 0 | E31: =D39-H3-H4-H5-H6-H7-H8-H9-H10-H11-H12-H13-H14-H15-H16-H17-H18-H19-H20-H21-H22-H23-H24-H25-H26-H27-H28-H29-H30-H31 -> 0 | F31: 29°
D32: 0 | E32: =D39-H3-H4-H5-H6-H7-H8-H9-H10-H11-H12-H13-H14-H15-H16-H17-H18-H19-H20-H21-H22-H23-H24-H25-H26-H27-H28-H29-H30-H31-H32 -> 0 | F32: 30°
D33: 0 | E33: =D39-H3-H4-H5-H6-H7-H8-H9-H10-H11-H12-H13-H14-H15-H16-H17-H18-H19-H20-H21-H22-H23-H24-H25-H26-H27-H28-H29-H30-H31-H32-H33 -> 0 | F33: 31°
D34: 0 | E34: =D39-H3-H4-H5-H6-H7-H8-H9-H10-H11-H12-H13-H14-H15-H16-H17-H18-H19-H20-H21-H22-H23-H24-H25-H26-H27-H28-H29-H30-H31-H32-H33-H34 -> 0 | F34: 32°
D35: 0 | E35: =D39-H3-H4-H5-H6-H7-H8-H9-H10-H11-H12-H13-H14-H15-H16-H17-H18-H19-H20-H21-H22-H23-H24-H25-H26-H27-H28-H29-H30-H31-H32-H33-H34-H35 -> 0 | F35: 33°
D36: 0 | E36: =D39-H3-H4-H5-H6-H7-H8-H9-H10-H11-H12-H13-H14-H15-H16-H17-H18-H19-H20-H21-H22-H23-H24-H25-H26-H27-H28-H29-H30-H31-H32-H33-H34-H35-H36 -> 0 | F36: 34°
D37: 0 | E37: =D39-H3-H4-H5-H6-H7-H8-H9-H10-H11-H12-H13-H14-H15-H16-H17-H18-H19-H20-H21-H22-H23-H24-H25-H26-H27-H28-H29-H30-H31-H32-H33-H34-H35-H36-H37 -> 0 | F37: 35°
D38: 0 | E38: =D39-H3-H4-H5-H6-H7-H8-H9-H10-H11-H12-H13-H14-H15-H16-H17-H18-H19-H20-H21-H22-H23-H24-H25-H26-H27-H28-H29-H30-H31-H32-H33-H34-H35-H36-H37-H38 -> 0 | F38: 36°
A39: TOTAL | B39: =SUM(B3:B38) -> 4831 | C39: =SUM(C3:C38) -> 1100 | D39: =SUM(D3:D38) -> 5931 | G39: Total | H39: =SUM(H3:H38) -> 5931
A41: DADOS PARA DEPÓSITO E CONTATO
A42: Banco | B42: itaú s/a Banco 341 | E42: Contato | G42: Marcelo
A43: Agência | B43: 0152 | E43: Tel. | G43: 9-9989 3203
A44: C/C | B44: 75563-3 | E44: CPF | G44: 120.612.378/86
A45: Em nome de | B45: MARCELO FERNANDES PINTO | E45: e-mail | G45: fpmarcelo@uol.com.br

Sheet Dra. Eneida Santander
A1: Dra. Eneida p/ defender Santander- VALOR DA PARCELA 2.250,00 | F1: N° | G1: Acordo feito 06/08/2013
A2: CH N° | B2: VALOR | C2: JUROS | D2: TOTAL | E2: SALDO DEV. | G2: DATAS | H2: VLR. PARCELA | I2: PAGO DIA
B3: 9000 | C3: 0 | D3: =SUM(B3:C3) -> 9000 | E3: =D39-H3 -> 6750 | F3: 1° | G3: 2013-08-07 | H3: 2250 | I3: 2013-08-07
D4: =SUM(B4:C4) -> 0 | E4: =D39-H3-H4 -> 4500 | F4: 2° | G4: 2013-09-07 | H4: 2250 | I4: 2013-09-09
D5: 0 | E5: =D39-H3-H4-H5 -> 2250 | F5: 3° | G5: 2013-10-07 | H5: 2250 | I5: 2013-10-07
D6: 0 | E6: =D39-H3-H4-H5-H6 -> 0 | F6: 4° | G6: 2013-11-07 | H6: 2250 | I6: 2013-11-07
D7: 0 | E7: =D39-H3-H4-H5-H6-H7 -> 0 | F7: 5°
D8: 0 | E8: =D39-H3-H4-H5-H6-H7-H8 -> 0 | F8: 6°
D9: 0 | E9: =D39-H3-H4-H5-H6-H7-H8-H9 -> 0 | F9: 7°
D10: 0 | E10: =D39-H3-H4-H5-H6-H7-H8-H9-H10 -> 0 | F10: 8°
D11: 0 | E11: =D39-H3-H4-H5-H6-H7-H8-H9-H10-H11 -> 0 | F11: 9°
D12: 0 | E12: =D39-H3-H4-H5-H6-H7-H8-H9-H10-H11-H12 -> 0 | F12: 10°
D13: 0 | E13: =D39-H3-H4-H5-H6-H7-H8-H9-H10-H11-H12-H13 -> 0 | F13: 11°
D14: 0 | E14: =D39-H3-H4-H5-H6-H7-H8-H9-H10-H11-H12-H13-H14 -> 0 | F14: 12°
D15: 0 | E15: =D39-H3-H4-H5-H6-H7-H8-H9-H10-H11-H12-H13-H14-H15 -> 0 | F15: 13°
D16: 0 | E16: =D39-H3-H4-H5-H6-H7-H8-H9-H10-H11-H12-H13-H14-H15-H16 -> 0 | F16: 14°
D17: 0 | E17: =D39-H3-H4-H5-H6-H7-H8-H9-H10-H11-H12-H13-H14-H15-H16-H17 -> 0 | F17: 15°
D18: 0 | E18: =D39-H3-H4-H5-H6-H7-H8-H9-H10-H11-H12-H13-H14-H15-H16-H17-H18 -> 0 | F18: 16°
D19: 0 | E19: =D39-H3-H4-H5-H6-H7-H8-H9-H10-H11-H12-H13-H14-H15-H16-H17-H18-H19 -> 0 | F19: 17°
D20: 0 | E20: =D39-H3-H4-H5-H6-H7-H8-H9-H10-H11-H12-H13-H14-H15-H16-H17-H18-H19-H20 -> 0 | F20: 18°
D21: 0 | E21: =D39-H3-H4-H5-H6-H7-H8-H9-H10-H11-H12-H13-H14-H15-H16-H17-H18-H19-H20-H21 -> 0 | F21: 19°
D22: 0 | E22: =D39-H3-H4-H5-H6-H7-H8-H9-H10-H11-H12-H13-H14-H15-H16-H17-H18-H19-H20-H21-H22 -> 0 | F22: 20°
D23: 0 | E23: =D39-H3-H4-H5-H6-H7-H8-H9-H10-H11-H12-H13-H14-H15-H16-H17-H18-H19-H20-H21-H22-H23 -> 0 | F23: 21°
D24: 0 | E24: =D39-H3-H4-H5-H6-H7-H8-H9-H10-H11-H12-H13-H14-H15-H16-H17-H18-H19-H20-H21-H22-H23-H24 -> 0 | F24: 22°
D25: 0 | E25: =D39-H3-H4-H5-H6-H7-H8-H9-H10-H11-H12-H13-H14-H15-H16-H17-H18-H19-H20-H21-H22-H23-H24-H25 -> 0 | F25: 23°
D26: 0 | E26: =D39-H3-H4-H5-H6-H7-H8-H9-H10-H11-H12-H13-H14-H15-H16-H17-H18-H19-H20-H21-H22-H23-H24-H25-H26 -> 0 | F26: 24°
D27: 0 | E27: =D39-H3-H4-H5-H6-H7-H8-H9-H10-H11-H12-H13-H14-H15-H16-H17-H18-H19-H20-H21-H22-H23-H24-H25-H26-H27 -> 0 | F27: 25°
D28: 0 | E28: =D39-H3-H4-H5-H6-H7-H8-H9-H10-H11-H12-H13-H14-H15-H16-H17-H18-H19-H20-H21-H22-H23-H24-H25-H26-H27-H28 -> 0 | F28: 26°
D29: 0 | E29: =D39-H3-H4-H5-H6-H7-H8-H9-H10-H11-H12-H13-H14-H15-H16-H17-H18-H19-H20-H21-H22-H23-H24-H25-H26-H27-H28-H29 -> 0 | F29: 27°
D30: 0 | E30: =D39-H3-H4-H5-H6-H7-H8-H9-H10-H11-H12-H13-H14-H15-H16-H17-H18-H19-H20-H21-H22-H23-H24-H25-H26-H27-H28-H29-H30 -> 0 | F30: 27°
D31: 0 | E31: =D39-H3-H4-H5-H6-H7-H8-H9-H10-H11-H12-H13-H14-H15-H16-H17-H18-H19-H20-H21-H22-H23-H24-H25-H26-H27-H28-H29-H30-H31 -> 0 | F31: 29°
D32: 0 | E32: =D39-H3-H4-H5-H6-H7-H8-H9-H10-H11-H12-H13-H14-H15-H16-H17-H18-H19-H20-H21-H22-H23-H24-H25-H26-H27-H28-H29-H30-H31-H32 -> 0 | F32: 30°
D33: 0 | E33: =D39-H3-H4-H5-H6-H7-H8-H9-H10-H11-H12-H13-H14-H15-H16-H17-H18-H19-H20-H21-H22-H23-H24-H25-H26-H27-H28-H29-H30-H31-H32-H33 -> 0 | F33: 31°
D34: 0 | E34: =D39-H3-H4-H5-H6-H7-H8-H9-H10-H11-H12-H13-H14-H15-H16-H17-H18-H19-H20-H21-H22-H23-H24-H25-H26-H27-H28-H29-H30-H31-H32-H33-H34 -> 0 | F34: 32°
D35: 0 | E35: =D39-H3-H4-H5-H6-H7-H8-H9-H10-H11-H12-H13-H14-H15-H16-H17-H18-H19-H20-H21-H22-H23-H24-H25-H26-H27-H28-H29-H30-H31-H32-H33-H34-H35 -> 0 | F35: 33°
D36: 0 | E36: =D39-H3-H4-H5-H6-H7-H8-H9-H10-H11-H12-H13-H14-H15-H16-H17-H18-H19-H20-H21-H22-H23-H24-H25-H26-H27-H28-H29-H30-H31-H32-H33-H34-H35-H36 -> 0 | F36: 34°
D37: 0 | E37: =D39-H3-H4-H5-H6-H7-H8-H9-H10-H11-H12-H13-H14-H15-H16-H17-H18-H19-H20-H21-H22-H23-H24-H25-H26-H27-H28-H29-H30-H31-H32-H33-H34-H35-H36-H37 -> 0 | F37: 35°
D38: 0 | E38: =D39-H3-H4-H5-H6-H7-H8-H9-H10-H11-H12-H13-H14-H15-H16-H17-H18-H19-H20-H21-H22-H23-H24-H25-H26-H27-H28-H29-H30-H31-H32-H33-H34-H35-H36-H37-H38 -> 0 | F38: 36°
A39: TOTAL | B39: =SUM(B3:B38) -> 9000 | C39: =SUM(C3:C38) -> 0 | D39: =SUM(D3:D38) -> 9000 | G39: Total | H39: =SUM(H3:H38) -> 9000
A41: DADOS PARA DEPÓSITO E CONTATO
A42: Banco | B42: Banco do Brasil | E42: Contato | G42: Eneida Schiavon
A43: Agência | B43: 4852-6 | E43: Tel. | G43: 9-9996-7635
A44: C/C | B44: 5231-0 | E44: CPF | G44: 046.517.488-48
A45: Em nome de | B45: Eneida Schiavon Lourenço | E45: e-mail | G45: schiavonadv@uol.com.br

Sheet Dra. Eneida Santander 10%acordo
A1: Dra. Eneida Santander-10% vlr devido e o acordado Vlr parc.1.810,15 | F1: N° | G1: Acordo feito 06/08/2013
A2: CH N° | B2: VALOR | C2: JUROS | D2: TOTAL | E2: SALDO DEV. | G2: DATAS | H2: VLR. PARCELA | I2: PAGO DIA
B3: 3620.31 | C3: 0 | D3: =SUM(B3:C3) -> 3620.31 | E3: =D39-H3 -> 1810.16 | F3: 1° | G3: 2014-05-10 | H3: 1810.15 | I3: 2014-05-12
D4: =SUM(B4:C4) -> 0 | E4: =D39-H3-H4 -> 0 | F4: 2° | G4: 2014-06-10 | H4: 1810.16 | I4: 2014-07-18
D5: 0 | E5: =D39-H3-H4-H5 -> -2.273736754e-13 | F5: 3°
D6: 0 | E6: =D39-H3-H4-H5-H6 -> -2.273736754e-13 | F6: 4°
D7: 0 | E7: =D39-H3-H4-H5-H6-H7 -> -2.273736754e-13 | F7: 5°
D8: 0 | E8: =D39-H3-H4-H5-H6-H7-H8 -> -2.273736754e-13 | F8: 6°
D9: 0 | E9: =D39-H3-H4-H5-H6-H7-H8-H9 -> -2.273736754e-13 | F9: 7°
D10: 0 | E10: =D39-H3-H4-H5-H6-H7-H8-H9-H10 -> -2.273736754e-13 | F10: 8°
D11: 0 | E11: =D39-H3-H4-H5-H6-H7-H8-H9-H10-H11 -> -2.273736754e-13 | F11: 9°
D12: 0 | E12: =D39-H3-H4-H5-H6-H7-H8-H9-H10-H11-H12 -> -2.273736754e-13 | F12: 10°
D13: 0 | E13: =D39-H3-H4-H5-H6-H7-H8-H9-H10-H11-H12-H13 -> -2.273736754e-13 | F13: 11°
D14: 0 | E14: =D39-H3-H4-H5-H6-H7-H8-H9-H10-H11-H12-H13-H14 -> -2.273736754e-13 | F14: 12°
D15: 0 | E15: =D39-H3-H4-H5-H6-H7-H8-H9-H10-H11-H12-H13-H14-H15 -> -2.273736754e-13 | F15: 13°
D16: 0 | E16: =D39-H3-H4-H5-H6-H7-H8-H9-H10-H11-H12-H13-H14-H15-H16 -> -2.273736754e-13 | F16: 14°
D17: 0 | E17: =D39-H3-H4-H5-H6-H7-H8-H9-H10-H11-H12-H13-H14-H15-H16-H17 -> -2.273736754e-13 | F17: 15°
D18: 0 | E18: =D39-H3-H4-H5-H6-H7-H8-H9-H10-H11-H12-H13-H14-H15-H16-H17-H18 -> -2.273736754e-13 | F18: 16°
D19: 0 | E19: =D39-H3-H4-H5-H6-H7-H8-H9-H10-H11-H12-H13-H14-H15-H16-H17-H18-H19 -> -2.273736754e-13 | F19: 17°
D20: 0 | E20: =D39-H3-H4-H5-H6-H7-H8-H9-H10-H11-H12-H13-H14-H15-H16-H17-H18-H19-H20 -> -2.273736754e-13 | F20: 18°
D21: 0 | E21: =D39-H3-H4-H5-H6-H7-H8-H9-H10-H11-H12-H13-H14-H15-H16-H17-H18-H19-H20-H21 -> -2.273736754e-13 | F21: 19°
D22: 0 | E22: =D39-H3-H4-H5-H6-H7-H8-H9-H10-H11-H12-H13-H14-H15-H16-H17-H18-H19-H20-H21-H22 -> -2.273736754e-13 | F22: 20°
D23: 0 | E23: =D39-H3-H4-H5-H6-H7-H8-H9-H10-H11-H12-H13-H14-H15-H16-H17-H18-H19-H20-H21-H22-H23 -> -2.273736754e-13 | F23: 21°
D24: 0 | E24: =D39-H3-H4-H5-H6-H7-H8-H9-H10-H11-H12-H13-H14-H15-H16-H17-H18-H19-H20-H21-H22-H23-H24 -> -2.273736754e-13 | F24: 22°
D25: 0 | E25: =D39-H3-H4-H5-H6-H7-H8-H9-H10-H11-H12-H13-H14-H15-H16-H17-H18-H19-H20-H21-H22-H23-H24-H25 -> -2.273736754e-13 | F25: 23°
D26: 0 | E26: =D39-H3-H4-H5-H6-H7-H8-H9-H10-H11-H12-H13-H14-H15-H16-H17-H18-H19-H20-H21-H22-H23-H24-H25-H26 -> -2.273736754e-13 | F26: 24°
D27: 0 | E27: =D39-H3-H4-H5-H6-H7-H8-H9-H10-H11-H12-H13-H14-H15-H16-H17-H18-H19-H20-H21-H22-H23-H24-H25-H26-H27 -> -2.273736754e-13 | F27: 25°
D28: 0 | E28: =D39-H3-H4-H5-H6-H7-H8-H9-H10-H11-H12-H13-H14-H15-H16-H17-H18-H19-H20-H21-H22-H23-H24-H25-H26-H27-H28 -> -2.273736754e-13 | F28: 26°
D29: 0 | E29: =D39-H3-H4-H5-H6-H7-H8-H9-H10-H11-H12-H13-H14-H15-H16-H17-H18-H19-H20-H21-H22-H23-H24-H25-H26-H27-H28-H29 -> -2.273736754e-13 | F29: 27°
D30: 0 | E30: =D39-H3-H4-H5-H6-H7-H8-H9-H10-H11-H12-H13-H14-H15-H16-H17-H18-H19-H20-H21-H22-H23-H24-H25-H26-H27-H28-H29-H30 -> -2.273736754e-13 | F30: 27°
D31: 0 | E31: =D39-H3-H4-H5-H6-H7-H8-H9-H10-H11-H12-H13-H14-H15-H16-H17-H18-H19-H20-H21-H22-H23-H24-H25-H26-H27-H28-H29-H30-H31 -> -2.273736754e-13 | F31: 29°
D32: 0 | E32: =D39-H3-H4-H5-H6-H7-H8-H9-H10-H11-H12-H13-H14-H15-H16-H17-H18-H19-H20-H21-H22-H23-H24-H25-H26-H27-H28-H29-H30-H31-H32 -> -2.273736754e-13 | F32: 30°
D33: 0 | E33: =D39-H3-H4-H5-H6-H7-H8-H9-H10-H11-H12-H13-H14-H15-H16-H17-H18-H19-H20-H21-H22-H23-H24-H25-H26-H27-H28-H29-H30-H31-H32-H33 -> -2.273736754e-13 | F33: 31°
D34: 0 | E34: =D39-H3-H4-H5-H6-H7-H8-H9-H10-H11-H12-H13-H14-H15-H16-H17-H18-H19-H20-H21-H22-H23-H24-H25-H26-H27-H28-H29-H30-H31-H32-H33-H34 -> -2.273736754e-13 | F34: 32°
D35: 0 | E35: =D39-H3-H4-H5-H6-H7-H8-H9-H10-H11-H12-H13-H14-H15-H16-H17-H18-H19-H20-H21-H22-H23-H24-H25-H26-H27-H28-H29-H30-H31-H32-H33-H34-H35 -> -2.273736754e-13 | F35: 33°
D36: 0 | E36: =D39-H3-H4-H5-H6-H7-H8-H9-H10-H11-H12-H13-H14-H15-H16-H17-H18-H19-H20-H21-H22-H23-H24-H25-H26-H27-H28-H29-H30-H31-H32-H33-H34-H35-H36 -> -2.273736754e-13 | F36: 34°
D37: 0 | E37: =D39-H3-H4-H5-H6-H7-H8-H9-H10-H11-H12-H13-H14-H15-H16-H17-H18-H19-H20-H21-H22-H23-H24-H25-H26-H27-H28-H29-H30-H31-H32-H33-H34-H35-H36-H37 -> -2.273736754e-13 | F37: 35°
D38: 0 | E38: =D39-H3-H4-H5-H6-H7-H8-H9-H10-H11-H12-H13-H14-H15-H16-H17-H18-H19-H20-H21-H22-H23-H24-H25-H26-H27-H28-H29-H30-H31-H32-H33-H34-H35-H36-H37-H38 -> -2.273736754e-13 | F38: 36°
A39: TOTAL | B39: =SUM(B3:B38) -> 3620.31 | C39: =SUM(C3:C38) -> 0 | D39: =SUM(D3:D38) -> 3620.31 | G39: Total | H39: =SUM(H3:H38) -> 3620.31
A41: DADOS PARA DEPÓSITO E CONTATO
A42: Banco | B42: Banco do Brasil | E42: Contato | G42: Eneida Schiavon
A43: Agência | B43: 4852-6 | E43: Tel. | G43: 9-9996-7635
A44: C/C | B44: 5231-0 | E44: CPF | G44: 046.517.488-48
A45: Em nome de | B45: Eneida Schiavon Lourenço | E45: e-mail | G45: schiavonadv@uol.com.br

Sheet Brito e alvares e Alvorada
A1: BRITO E ALVARES E ALVORADA- VALOR DA PARCELA 2.000,00 | F1: N° | G1: Acordo feito 26/08/2013
A2: CH N° | B2: VALOR | C2: JUROS | D2: TOTAL | E2: SALDO DEV. | G2: DATAS | H2: VLR. PARCELA | I2: PAGO DIA
B3: 35754.64 | C3: 0 | D3: =SUM(B3:C3) -> 35754.64 | E3: =D39-H3 -> 33754.64 | F3: 1° | G3: 2013-09-09 | H3: 2000 | I3: 2013-09-09
D4: =SUM(B4:C4) -> 0 | E4: =D39-H3-H4 -> 31754.64 | F4: 2° | G4: 2013-10-09 | H4: 2000 | I4: 2013-10-16
D5: 0 | E5: =D39-H3-H4-H5 -> 29754.64 | F5: 3° | G5: 2013-11-09 | H5: 2000 | I5: 2013-11-11
D6: 0 | E6: =D39-H3-H4-H5-H6 -> 27754.64 | F6: 4° | G6: 2013-12-09 | H6: 2000 | I6: 2013-12-17
D7: 0 | E7: =D39-H3-H4-H5-H6-H7 -> 25754.64 | F7: 5° | G7: 2014-01-09 | H7: 2000 | I7: 2014-01-16
D8: 0 | E8: =D39-H3-H4-H5-H6-H7-H8 -> 23754.64 | F8: 6° | G8: 2014-02-09 | H8: 2000 | I8: 2014-02-18
D9: 0 | E9: =D39-H3-H4-H5-H6-H7-H8-H9 -> 23754.64 | F9: 7° | G9: 2014-03-09
D10: 0 | E10: =D39-H3-H4-H5-H6-H7-H8-H9-H10 -> 23754.64 | F10: 8° | G10: 2014-04-09
D11: 0 | E11: =D39-H3-H4-H5-H6-H7-H8-H9-H10-H11 -> 23754.64 | F11: 9° | G11: 2014-05-09
D12: 0 | E12: =D39-H3-H4-H5-H6-H7-H8-H9-H10-H11-H12 -> 23754.64 | F12: 10° | G12: 2014-06-09
D13: 0 | E13: =D39-H3-H4-H5-H6-H7-H8-H9-H10-H11-H12-H13 -> 23754.64 | F13: 11° | G13: 2014-07-09
D14: 0 | E14: =D39-H3-H4-H5-H6-H7-H8-H9-H10-H11-H12-H13-H14 -> 23754.64 | F14: 12° | G14: 2014-08-09
D15: 0 | E15: =D39-H3-H4-H5-H6-H7-H8-H9-H10-H11-H12-H13-H14-H15 -> 23754.64 | F15: 13° | G15: 2014-09-09
D16: 0 | E16: =D39-H3-H4-H5-H6-H7-H8-H9-H10-H11-H12-H13-H14-H15-H16 -> 23754.64 | F16: 14° | G16: 2014-10-09
D17: 0 | E17: =D39-H3-H4-H5-H6-H7-H8-H9-H10-H11-H12-H13-H14-H15-H16-H17 -> 23754.64 | F17: 15° | G17: 2014-11-09
D18: 0 | E18: =D39-H3-H4-H5-H6-H7-H8-H9-H10-H11-H12-H13-H14-H15-H16-H17-H18 -> 23754.64 | F18: 16° | G18: 2014-12-09
D19: 0 | E19: =D39-H3-H4-H5-H6-H7-H8-H9-H10-H11-H12-H13-H14-H15-H16-H17-H18-H19 -> 23754.64 | F19: 17° | G19: 2015-01-09
D20: 0 | E20: =D39-H3-H4-H5-H6-H7-H8-H9-H10-H11-H12-H13-H14-H15-H16-H17-H18-H19-H20 -> 23754.64 | F20: 18° | G20: 2015-02-09
D21: 0 | E21: =D39-H3-H4-H5-H6-H7-H8-H9-H10-H11-H12-H13-H14-H15-H16-H17-H18-H19-H20-H21 -> 23754.64
D22: 0 | E22: =D39-H3-H4-H5-H6-H7-H8-H9-H10-H11-H12-H13-H14-H15-H16-H17-H18-H19-H20-H21-H22 -> 23754.64
D23: 0 | E23: =D39-H3-H4-H5-H6-H7-H8-H9-H10-H11-H12-H13-H14-H15-H16-H17-H18-H19-H20-H21-H22-H23 -> 23754.64
D24: 0 | E24: =D39-H3-H4-H5-H6-H7-H8-H9-H10-H11-H12-H13-H14-H15-H16-H17-H18-H19-H20-H21-H22-H23-H24 -> 23754.64
D25: 0 | E25: =D39-H3-H4-H5-H6-H7-H8-H9-H10-H11-H12-H13-H14-H15-H16-H17-H18-H19-H20-H21-H22-H23-H24-H25 -> 23754.64
D26: 0 | E26: =D39-H3-H4-H5-H6-H7-H8-H9-H10-H11-H12-H13-H14-H15-H16-H17-H18-H19-H20-H21-H22-H23-H24-H25-H26 -> 23754.64
D27: 0 | E27: =D39-H3-H4-H5-H6-H7-H8-H9-H10-H11-H12-H13-H14-H15-H16-H17-H18-H19-H20-H21-H22-H23-H24-H25-H26-H27 -> 23754.64
D28: 0 | E28: =D39-H3-H4-H5-H6-H7-H8-H9-H10-H11-H12-H13-H14-H15-H16-H17-H18-H19-H20-H21-H22-H23-H24-H25-H26-H27-H28 -> 23754.64
D29: 0 | E29: =D39-H3-H4-H5-H6-H7-H8-H9-H10-H11-H12-H13-H14-H15-H16-H17-H18-H19-H20-H21-H22-H23-H24-H25-H26-H27-H28-H29 -> 23754.64
D30: 0 | E30: =D39-H3-H4-H5-H6-H7-H8-H9-H10-H11-H12-H13-H14-H15-H16-H17-H18-H19-H20-H21-H22-H23-H24-H25-H26-H27-H28-H29-H30 -> 23754.64
D31: 0 | E31: =D39-H3-H4-H5-H6-H7-H8-H9-H10-H11-H12-H13-H14-H15-H16-H17-H18-H19-H20-H21-H22-H23-H24-H25-H26-H27-H28-H29-H30-H31 -> 23754.64
D32: 0 | E32: =D39-H3-H4-H5-H6-H7-H8-H9-H10-H11-H12-H13-H14-H15-H16-H17-H18-H19-H20-H21-H22-H23-H24-H25-H26-H27-H28-H29-H30-H31-H32 -> 23754.64
D33: 0 | E33: =D39-H3-H4-H5-H6-H7-H8-H9-H10-H11-H12-H13-H14-H15-H16-H17-H18-H19-H20-H21-H22-H23-H24-H25-H26-H27-H28-H29-H30-H31-H32-H33 -> 23754.64
D34: 0 | E34: =D39-H3-H4-H5-H6-H7-H8-H9-H10-H11-H12-H13-H14-H15-H16-H17-H18-H19-H20-H21-H22-H23-H24-H25-H26-H27-H28-H29-H30-H31-H32-H33-H34 -> 23754.64
D35: 0 | E35: =D39-H3-H4-H5-H6-H7-H8-H9-H10-H11-H12-H13-H14-H15-H16-H17-H18-H19-H20-H21-H22-H23-H24-H25-H26-H27-H28-H29-H30-H31-H32-H33-H34-H35 -> 23754.64
D36: 0 | E36: =D39-H3-H4-H5-H6-H7-H8-H9-H10-H11-H12-H13-H14-H15-H16-H17-H18-H19-H20-H21-H22-H23-H24-H25-H26-H27-H28-H29-H30-H31-H32-H33-H34-H35-H36 -> 23754.64
D37: 0 | E37: =D39-H3-H4-H5-H6-H7-H8-H9-H10-H11-H12-H13-H14-H15-H16-H17-H18-H19-H20-H21-H22-H23-H24-H25-H26-H27-H28-H29-H30-H31-H32-H33-H34-H35-H36-H37 -> 23754.64
D38: 0 | E38: =D39-H3-H4-H5-H6-H7-H8-H9-H10-H11-H12-H13-H14-H15-H16-H17-H18-H19-H20-H21-H22-H23-H24-H25-H26-H27-H28-H29-H30-H31-H32-H33-H34-H35-H36-H37-H38 -> 23754.64
A39: TOTAL | B39: =SUM(B3:B38) -> 35754.64 | C39: =SUM(C3:C38) -> 0 | D39: =SUM(D3:D38) -> 35754.64 | G39: Total | H39: =SUM(H3:H38) -> 12000
A41: DADOS PARA DEPÓSITO E CONTATO
A42: Banco | B42: itaú s/a Banco 341 | E42: Contato | G42: Aldecy
A43: Agência | B43: 4384 | E43: Tel. | G43: 01562-9186-0892 e 3522-4100
A44: C/C | B44: 32028-1 | E44: CNPJ | G44: 05.195.517/0003-69
A45: Em nome de | B45: BRITO E ALVARES LTDA | E45: e-mail | G45: aldecy.alvares@globo.com

Sheet IMPAKTO-Judicial
A1: IMPAKTO (Alimenta) Acordo Judicial- VALOR DA PARCELA 1.531,40 | F1: N° | G1: Acordo feito 26/11/2013
A2: CH N° | B2: VALOR C/juros | C2: Custas +honor | D2: TOTAL | E2: SALDO DEV. | G2: DATAS | H2: VLR. PARCELA | I2: PAGO DIA
B3: 24817.11 | C3: =248.18+2500 -> 2748.18 | D3: =SUM(B3:C3) -> 27565.29 | E3: =D39-H3 -> 26033.89 | F3: 1° | G3: 2013-12-21 | H3: 1531.4 | I3: 2013-12-20
D4: =SUM(B4:C4) -> 0 | E4: =D39-H3-H4 -> 24502.49 | F4: 2° | G4: 2014-01-21 | H4: 1531.4 | I4: 2014-01-21
D5: 0 | E5: =D39-H3-H4-H5 -> 22971.09 | F5: 3° | G5: 2014-02-21 | H5: 1531.4 | I5: 2014-02-21
D6: 0 | E6: =D39-H3-H4-H5-H6 -> 21439.69 | F6: 4° | G6: 2014-03-21 | H6: 1531.4 | I6: 2014-03-21
D7: 0 | E7: =D39-H3-H4-H5-H6-H7 -> 19908.29 | F7: 5° | G7: 2014-04-21 | H7: 1531.4 | I7: 2014-04-17
D8: 0 | E8: =D39-H3-H4-H5-H6-H7-H8 -> 18376.89 | F8: 6° | G8: 2014-05-21 | H8: 1531.4 | I8: 2014-05-21
D9: 0 | E9: =D39-H3-H4-H5-H6-H7-H8-H9 -> 16845.49 | F9: 7° | G9: 2014-06-21 | H9: 1531.4 | I9: 2014-06-23
D10: 0 | E10: =D39-H3-H4-H5-H6-H7-H8-H9-H10 -> 15314.09 | F10: 8° | G10: 2014-07-21 | H10: 1531.4 | I10: 2014-07-21
D11: 0 | E11: =D39-H3-H4-H5-H6-H7-H8-H9-H10-H11 -> 13782.69 | F11: 9° | G11: 2014-08-21 | H11: 1531.4 | I11: 2014-08-21
D12: 0 | E12: =D39-H3-H4-H5-H6-H7-H8-H9-H10-H11-H12 -> 12251.29 | F12: 10° | G12: 2014-09-21 | H12: 1531.4 | I12: 2014-09-19
D13: 0 | E13: =D39-H3-H4-H5-H6-H7-H8-H9-H10-H11-H12-H13 -> 10719.89 | F13: 11° | G13: 2014-10-21 | H13: 1531.4 | I13: 2014-10-21
D14: 0 | E14: =D39-H3-H4-H5-H6-H7-H8-H9-H10-H11-H12-H13-H14 -> 9188.49 | F14: 12° | G14: 2014-11-21 | H14: 1531.4 | I14: 2014-11-21
D15: 0 | E15: =D39-H3-H4-H5-H6-H7-H8-H9-H10-H11-H12-H13-H14-H15 -> 7657.09 | F15: 13° | G15: 2014-12-21 | H15: 1531.4 | I15: 2014-12-22
D16: 0 | E16: =D39-H3-H4-H5-H6-H7-H8-H9-H10-H11-H12-H13-H14-H15-H16 -> 6125.69 | F16: 14° | G16: 2015-01-21 | H16: 1531.4 | I16: 2015-01-21
D17: 0 | E17: =D39-H3-H4-H5-H6-H7-H8-H9-H10-H11-H12-H13-H14-H15-H16-H17 -> 4594.29 | F17: 15° | G17: 2015-02-21 | H17: 1531.4 | I17: 2015-02-23
D18: 0 | E18: =D39-H3-H4-H5-H6-H7-H8-H9-H10-H11-H12-H13-H14-H15-H16-H17-H18 -> 3062.89 | F18: 16° | G18: 2015-03-21 | H18: 1531.4 | I18: 2015-03-23
D19: 0 | E19: =D39-H3-H4-H5-H6-H7-H8-H9-H10-H11-H12-H13-H14-H15-H16-H17-H18-H19 -> 1531.49 | F19: 17° | G19: 2015-04-21 | H19: 1531.4 | I19: 2015-04-20
D20: 0 | E20: =D39-H3-H4-H5-H6-H7-H8-H9-H10-H11-H12-H13-H14-H15-H16-H17-H18-H19-H20 -> 0.08999999999 | F20: 18° | G20: 2015-05-21 | H20: 1531.4 | I20: 2015-05-20
D21: 0
D22: 0
D23: 0
D24: 0
D25: 0
D26: 0
D27: 0
D28: 0
D29: 0
D30: 0
D31: 0
D32: 0
D33: 0
D34: 0
D35: 0
D36: 0
D37: 0
D38: 0
A39: TOTAL | B39: =SUM(B3:B38) -> 24817.11 | C39: =SUM(C3:C38) -> 2748.18 | D39: =SUM(D3:D38) -> 27565.29 | G39: Total | H39: =SUM(H3:H38) -> 27565.2
A41: DADOS PARA DEPÓSITO E CONTATO
A42: Banco | B42: Santander 033 | E42: Contato | G42: Adriano Bisker - Advogado da Impakto
A43: Agência | B43: 4626 | E43: Tel. | G43: 11- 3222-7900
A44: C/C | B44: 13002982-5 | E44: CNPJ | G44: 11.588.752/0001-31
A45: Em nome de | B45: IMPAKTO SIST. DE LIMPEZA E DEC. LTDA | E45: e-mail | G45: atendimento@bisker.com.br

Sheet Santander xGolden-Judicial
A1: Santander (Golden) Acordo Judicial- VALOR DA PARCELA 3.262,00 | F1: N° | G1: Acordo feito 18/12/2013
A2: CH N° | B2: VALOR C/juros | C2: Desconto | D2: TOTAL | E2: SALDO DEV. | G2: DATAS | H2: VLR. PARCELA | I2: PAGO DIA
B3: 83113.51 | C3: 66803.51 | D3: =B3-C3 -> 16310 | E3: =D39-H3 -> 13048 | F3: 1° | G3: 2014-01-17 | H3: 3262 | I3: 2014-01-17
D4: =SUM(B4:C4) -> 0 | E4: =D39-H3-H4 -> 9784.26 | F4: 2° | G4: 2014-02-17 | H4: 3263.74 | I4: 2014-02-17
D5: 0 | E5: =D39-H3-H4-H5 -> 6522.26 | F5: 3° | G5: 2014-03-17 | H5: 3262 | I5: 2014-03-17
D6: 0 | E6: =D39-H3-H4-H5-H6 -> 3260.26 | F6: 4° | G6: 2014-04-17 | H6: 3262 | I6: 2014-04-17
D7: 0 | E7: =D39-H3-H4-H5-H6-H7 -> -1.74 | F7: 5° | G7: 2014-05-17 | H7: 3262 | I7: 2014-05-19
D8: 0
D9: 0
D10: 0
D11: 0
D12: 0
D13: 0
D14: 0
D15: 0
D16: 0
D17: 0
D18: 0
D19: 0
D20: 0
D21: 0
D22: 0
D23: 0
D24: 0
D25: 0
D26: 0
D27: 0
D28: 0
D29: 0
D30: 0
D31: 0
D32: 0
D33: 0
D34: 0
D35: 0
D36: 0
D37: 0
D38: 0
A39: TOTAL | B39: =SUM(B3:B38) -> 83113.51 | C39: =SUM(C3:C38) -> 66803.51 | D39: =SUM(D3:D38) -> 16310 | G39: Total | H39: =SUM(H3:H38) -> 16311.74
A41: DADOS PARA DEPÓSITO E CONTATO
A42: Banco | B42: Santander 033 | E42: Contato | G42: Adriano Bisker - Advogado da Impakto
A43: Agência | B43: 4626 | E43: Tel. | G43: 11- 3222-7900 e salamone adv 3939-0844
A44: C/C | B44: 13002982-5 | E44: CNPJ | G44: 11.588.752/0001-31
A45: Em nome de | B45: IMPAKTO SIST. DE LIMPEZA E DEC. LTDA | E45: e-mail | G45: atendimento@bisker.com.br

Sheet Dra. Eneida itau x Golden)
A1: Dra. Eneida p/ defender Itaú Golden- VALOR DA PARCELA 1.222,23 | F1: N° | G1: Acordo feito 10/03/2014
A2: CH N° | B2: VALOR | C2: Sinal | D2: TOTAL | E2: SALDO DEV. | G2: DATAS | H2: VLR. PARCELA | I2: PAGO DIA
B3: 11000 | C3: 2789.36 | D3: =B3+C3 -> 13789.36 | E3: =D39-H3 -> 11000 | F3: 1° | G3: 2014-03-10 | H3: 2789.36 | I3: 2014-03-10
D4: =SUM(B4:C4) -> 0 | E4: =D39-H3-H4 -> 9777.78 | F4: 2° | G4: 2014-04-10 | H4: 1222.22 | I4: 2014-04-16
D5: 0 | E5: =D39-H3-H4-H5 -> 8555.56 | F5: 3° | G5: 2014-05-10 | H5: 1222.22 | I5: 2014-05-12
D6: 0 | E6: =D39-H3-H4-H5-H6 -> 7333.34 | F6: 4° | G6: 2014-06-10 | H6: 1222.22 | I6: 2014-06-25
D7: 0 | E7: =D39-H3-H4-H5-H6-H7 -> 6111.12 | F7: 5° | G7: 2014-07-10 | H7: 1222.22 | I7: 2014-08-18
D8: 0 | E8: =D39-H3-H4-H5-H6-H7-H8 -> 4888.9 | F8: 6° | G8: 2014-08-10 | H8: 1222.22 | I8: 2014-10-14
D9: 0 | E9: =D39-H3-H4-H5-H6-H7-H8-H9 -> 3666.68 | F9: 7° | G9: 2014-09-10 | H9: 1222.22 | I9: 2014-12-10
D10: 0 | E10: =D39-H3-H4-H5-H6-H7-H8-H9-H10 -> 2444.46 | F10: 8° | G10: 2014-10-10 | H10: 1222.22 | I10: 2015-01-12
D11: 0 | E11: =D39-H3-H4-H5-H6-H7-H8-H9-H10-H11 -> 1222.24 | F11: 9° | G11: 2014-11-10 | H11: 1222.22 | I11: 2015-03-10
D12: 0 | E12: =D39-H3-H4-H5-H6-H7-H8-H9-H10-H11-H12 -> 0 | F12: 10° | G12: 2014-12-10 | H12: 1222.24 | I12: 2015-05-18
D13: 0 | E13: =D39-H3-H4-H5-H6-H7-H8-H9-H10-H11-H12-H13 -> 0 | F13: 11°
D14: 0 | E14: =D39-H3-H4-H5-H6-H7-H8-H9-H10-H11-H12-H13-H14 -> 0 | F14: 12°
D15: 0 | E15: =D39-H3-H4-H5-H6-H7-H8-H9-H10-H11-H12-H13-H14-H15 -> 0 | F15: 13°
D16: 0 | E16: =D39-H3-H4-H5-H6-H7-H8-H9-H10-H11-H12-H13-H14-H15-H16 -> 0 | F16: 14°
D17: 0 | E17: =D39-H3-H4-H5-H6-H7-H8-H9-H10-H11-H12-H13-H14-H15-H16-H17 -> 0 | F17: 15°
D18: 0 | E18: =D39-H3-H4-H5-H6-H7-H8-H9-H10-H11-H12-H13-H14-H15-H16-H17-H18 -> 0 | F18: 16°
D19: 0 | E19: =D39-H3-H4-H5-H6-H7-H8-H9-H10-H11-H12-H13-H14-H15-H16-H17-H18-H19 -> 0 | F19: 17°
D20: 0 | E20: =D39-H3-H4-H5-H6-H7-H8-H9-H10-H11-H12-H13-H14-H15-H16-H17-H18-H19-H20 -> 0 | F20: 18°
D21: 0 | E21: =D39-H3-H4-H5-H6-H7-H8-H9-H10-H11-H12-H13-H14-H15-H16-H17-H18-H19-H20-H21 -> 0 | F21: 19°
D22: 0 | E22: =D39-H3-H4-H5-H6-H7-H8-H9-H10-H11-H12-H13-H14-H15-H16-H17-H18-H19-H20-H21-H22 -> 0 | F22: 20°
D23: 0 | E23: =D39-H3-H4-H5-H6-H7-H8-H9-H10-H11-H12-H13-H14-H15-H16-H17-H18-H19-H20-H21-H22-H23 -> 0 | F23: 21°
D24: 0 | E24: =D39-H3-H4-H5-H6-H7-H8-H9-H10-H11-H12-H13-H14-H15-H16-H17-H18-H19-H20-H21-H22-H23-H24 -> 0 | F24: 22°
D25: 0 | E25: =D39-H3-H4-H5-H6-H7-H8-H9-H10-H11-H12-H13-H14-H15-H16-H17-H18-H19-H20-H21-H22-H23-H24-H25 -> 0 | F25: 23°
D26: 0 | E26: =D39-H3-H4-H5-H6-H7-H8-H9-H10-H11-H12-H13-H14-H15-H16-H17-H18-H19-H20-H21-H22-H23-H24-H25-H26 -> 0 | F26: 24°
D27: 0 | E27: =D39-H3-H4-H5-H6-H7-H8-H9-H10-H11-H12-H13-H14-H15-H16-H17-H18-H19-H20-H21-H22-H23-H24-H25-H26-H27 -> 0 | F27: 25°
D28: 0 | E28: =D39-H3-H4-H5-H6-H7-H8-H9-H10-H11-H12-H13-H14-H15-H16-H17-H18-H19-H20-H21-H22-H23-H24-H25-H26-H27-H28 -> 0 | F28: 26°
D29: 0 | E29: =D39-H3-H4-H5-H6-H7-H8-H9-H10-H11-H12-H13-H14-H15-H16-H17-H18-H19-H20-H21-H22-H23-H24-H25-H26-H27-H28-H29 -> 0 | F29: 27°
D30: 0 | E30: =D39-H3-H4-H5-H6-H7-H8-H9-H10-H11-H12-H13-H14-H15-H16-H17-H18-H19-H20-H21-H22-H23-H24-H25-H26-H27-H28-H29-H30 -> 0 | F30: 27°
D31: 0 | E31: =D39-H3-H4-H5-H6-H7-H8-H9-H10-H11-H12-H13-H14-H15-H16-H17-H18-H19-H20-H21-H22-H23-H24-H25-H26-H27-H28-H29-H30-H31 -> 0 | F31: 29°
D32: 0 | E32: =D39-H3-H4-H5-H6-H7-H8-H9-H10-H11-H12-H13-H14-H15-H16-H17-H18-H19-H20-H21-H22-H23-H24-H25-H26-H27-H28-H29-H30-H31-H32 -> 0 | F32: 30°
D33: 0 | E33: =D39-H3-H4-H5-H6-H7-H8-H9-H10-H11-H12-H13-H14-H15-H16-H17-H18-H19-H20-H21-H22-H23-H24-H25-H26-H27-H28-H29-H30-H31-H32-H33 -> 0 | F33: 31°
D34: 0 | E34: =D39-H3-H4-H5-H6-H7-H8-H9-H10-H11-H12-H13-H14-H15-H16-H17-H18-H19-H20-H21-H22-H23-H24-H25-H26-H27-H28-H29-H30-H31-H32-H33-H34 -> 0 | F34: 32°
D35: 0 | E35: =D39-H3-H4-H5-H6-H7-H8-H9-H10-H11-H12-H13-H14-H15-H16-H17-H18-H19-H20-H21-H22-H23-H24-H25-H26-H27-H28-H29-H30-H31-H32-H33-H34-H35 -> 0 | F35: 33°
D36: 0 | E36: =D39-H3-H4-H5-H6-H7-H8-H9-H10-H11-H12-H13-H14-H15-H16-H17-H18-H19-H20-H21-H22-H23-H24-H25-H26-H27-H28-H29-H30-H31-H32-H33-H34-H35-H36 -> 0 | F36: 34°
D37: 0 | E37: =D39-H3-H4-H5-H6-H7-H8-H9-H10-H11-H12-H13-H14-H15-H16-H17-H18-H19-H20-H21-H22-H23-H24-H25-H26-H27-H28-H29-H30-H31-H32-H33-H34-H35-H36-H37 -> 0 | F37: 35°
D38: 0 | E38: =D39-H3-H4-H5-H6-H7-H8-H9-H10-H11-H12-H13-H14-H15-H16-H17-H18-H19-H20-H21-H22-H23-H24-H25-H26-H27-H28-H29-H30-H31-H32-H33-H34-H35-H36-H37-H38 -> 0 | F38: 36°
A39: TOTAL | B39: =SUM(B3:B38) -> 11000 | C39: =SUM(C3:C38) -> 2789.36 | D39: =SUM(D3:D38) -> 13789.36 | G39: Total | H39: =SUM(H3:H38) -> 13789.36
A41: DADOS PARA DEPÓSITO E CONTATO
A42: Banco | B42: Banco do Brasil | E42: Contato | G42: Eneida Schiavon
A43: Agência | B43: 4852-6 | E43: Tel. | G43: 9-9996-7635
A44: C/C | B44: 5231-0 | E44: CPF | G44: 046.517.488-48
A45: Em nome de | B45: Eneida Schiavon Lourenço | E45: e-mail | G45: schiavonadv@uol.com.br

Sheet Dra. Eneida itau x CNS
A1: Dra. Eneida p/ defender Itaú CNS- VALOR DA PARCELA 1.444,45 | F1: N° | G1: Acordo feito 10/03/2014
A2: CH N° | B2: VALOR | C2: Sinal | D2: TOTAL | E2: SALDO DEV. | G2: DATAS | H2: VLR. PARCELA | I2: PAGO DIA
B3: 13000 | C3: 2873.94 | D3: =B3+C3 -> 15873.94 | E3: =D39-H3 -> 13000 | F3: 1° | G3: 2014-03-10 | H3: 2873.94 | I3: 2014-03-10
D4: =SUM(B4:C4) -> 0 | E4: =D39-H3-H4 -> 11555.55 | F4: 2° | G4: 2014-04-10 | H4: 1444.45 | I4: 2014-04-16
D5: 0 | E5: =D39-H3-H4-H5 -> 10111.1 | F5: 3° | G5: 2014-05-10 | H5: 1444.45 | I5: 2014-05-12
D6: 0 | E6: =D39-H3-H4-H5-H6 -> 8666.65 | F6: 4° | G6: 2014-06-10 | H6: 1444.45 | I6: 2014-07-18
D7: 0 | E7: =D39-H3-H4-H5-H6-H7 -> 7222.2 | F7: 5° | G7: 2014-07-10 | H7: 1444.45 | I7: 2014-08-18
D8: 0 | E8: =D39-H3-H4-H5-H6-H7-H8 -> 5777.75 | F8: 6° | G8: 2014-08-10 | H8: 1444.45 | I8: 2014-09-29
D9: 0 | E9: =D39-H3-H4-H5-H6-H7-H8-H9 -> 4333.3 | F9: 7° | G9: 2014-09-10 | H9: 1444.45 | I9: 2014-11-18
D10: 0 | E10: =D39-H3-H4-H5-H6-H7-H8-H9-H10 -> 2888.85 | F10: 8° | G10: 2014-10-10 | H10: 1444.45 | I10: 2015-02-19
D11: 0 | E11: =D39-H3-H4-H5-H6-H7-H8-H9-H10-H11 -> 1444.4 | F11: 9° | G11: 2014-11-10 | H11: 1444.45 | I11: 2015-06-16
D12: 0 | E12: =D39-H3-H4-H5-H6-H7-H8-H9-H10-H11-H12 -> 0 | F12: 10° | G12: 2014-12-10 | H12: 1444.4 | I12: 2015-07-16
D13: 0 | E13: =D39-H3-H4-H5-H6-H7-H8-H9-H10-H11-H12-H13 -> -1.591615728e-12 | F13: 11°
D14: 0 | E14: =D39-H3-H4-H5-H6-H7-H8-H9-H10-H11-H12-H13-H14 -> -1.591615728e-12 | F14: 12°
D15: 0 | E15: =D39-H3-H4-H5-H6-H7-H8-H9-H10-H11-H12-H13-H14-H15 -> -1.591615728e-12 | F15: 13°
D16: 0 | E16: =D39-H3-H4-H5-H6-H7-H8-H9-H10-H11-H12-H13-H14-H15-H16 -> -1.591615728e-12 | F16: 14°
D17: 0 | E17: =D39-H3-H4-H5-H6-H7-H8-H9-H10-H11-H12-H13-H14-H15-H16-H17 -> -1.591615728e-12 | F17: 15°
D18: 0 | E18: =D39-H3-H4-H5-H6-H7-H8-H9-H10-H11-H12-H13-H14-H15-H16-H17-H18 -> -1.591615728e-12 | F18: 16°
D19: 0 | E19: =D39-H3-H4-H5-H6-H7-H8-H9-H10-H11-H12-H13-H14-H15-H16-H17-H18-H19 -> -1.591615728e-12 | F19: 17°
D20: 0 | E20: =D39-H3-H4-H5-H6-H7-H8-H9-H10-H11-H12-H13-H14-H15-H16-H17-H18-H19-H20 -> -1.591615728e-12 | F20: 18°
D21: 0 | E21: =D39-H3-H4-H5-H6-H7-H8-H9-H10-H11-H12-H13-H14-H15-H16-H17-H18-H19-H20-H21 -> -1.591615728e-12 | F21: 19°
D22: 0 | E22: =D39-H3-H4-H5-H6-H7-H8-H9-H10-H11-H12-H13-H14-H15-H16-H17-H18-H19-H20-H21-H22 -> -1.591615728e-12 | F22: 20°
D23: 0 | E23: =D39-H3-H4-H5-H6-H7-H8-H9-H10-H11-H12-H13-H14-H15-H16-H17-H18-H19-H20-H21-H22-H23 -> -1.591615728e-12 | F23: 21°
D24: 0 | E24: =D39-H3-H4-H5-H6-H7-H8-H9-H10-H11-H12-H13-H14-H15-H16-H17-H18-H19-H20-H21-H22-H23-H24 -> -1.591615728e-12 | F24: 22°
D25: 0 | E25: =D39-H3-H4-H5-H6-H7-H8-H9-H10-H11-H12-H13-H14-H15-H16-H17-H18-H19-H20-H21-H22-H23-H24-H25 -> -1.591615728e-12 | F25: 23°
D26: 0 | E26: =D39-H3-H4-H5-H6-H7-H8-H9-H10-H11-H12-H13-H14-H15-H16-H17-H18-H19-H20-H21-H22-H23-H24-H25-H26 -> -1.591615728e-12 | F26: 24°
D27: 0 | E27: =D39-H3-H4-H5-H6-H7-H8-H9-H10-H11-H12-H13-H14-H15-H16-H17-H18-H19-H20-H21-H22-H23-H24-H25-H26-H27 -> -1.591615728e-12 | F27: 25°
D28: 0 | E28: =D39-H3-H4-H5-H6-H7-H8-H9-H10-H11-H12-H13-H14-H15-H16-H17-H18-H19-H20-H21-H22-H23-H24-H25-H26-H27-H28 -> -1.591615728e-12 | F28: 26°
D29: 0 | E29: =D39-H3-H4-H5-H6-H7-H8-H9-H10-H11-H12-H13-H14-H15-H16-H17-H18-H19-H20-H21-H22-H23-H24-H25-H26-H27-H28-H29 -> -1.591615728e-12 | F29: 27°
D30: 0 | E30: =D39-H3-H4-H5-H6-H7-H8-H9-H10-H11-H12-H13-H14-H15-H16-H17-H18-H19-H20-H21-H22-H23-H24-H25-H26-H27-H28-H29-H30 -> -1.591615728e-12 | F30: 27°
D31: 0 | E31: =D39-H3-H4-H5-H6-H7-H8-H9-H10-H11-H12-H13-H14-H15-H16-H17-H18-H19-H20-H21-H22-H23-H24-H25-H26-H27-H28-H29-H30-H31 -> -1.591615728e-12 | F31: 29°
D32: 0 | E32: =D39-H3-H4-H5-H6-H7-H8-H9-H10-H11-H12-H13-H14-H15-H16-H17-H18-H19-H20-H21-H22-H23-H24-H25-H26-H27-H28-H29-H30-H31-H32 -> -1.591615728e-12 | F32: 30°
D33: 0 | E33: =D39-H3-H4-H5-H6-H7-H8-H9-H10-H11-H12-H13-H14-H15-H16-H17-H18-H19-H20-H21-H22-H23-H24-H25-H26-H27-H28-H29-H30-H31-H32-H33 -> -1.591615728e-12 | F33: 31°
D34: 0 | E34: =D39-H3-H4-H5-H6-H7-H8-H9-H10-H11-H12-H13-H14-H15-H16-H17-H18-H19-H20-H21-H22-H23-H24-H25-H26-H27-H28-H29-H30-H31-H32-H33-H34 -> -1.591615728e-12 | F34: 32°
D35: 0 | E35: =D39-H3-H4-H5-H6-H7-H8-H9-H10-H11-H12-H13-H14-H15-H16-H17-H18-H19-H20-H21-H22-H23-H24-H25-H26-H27-H28-H29-H30-H31-H32-H33-H34-H35 -> -1.591615728e-12 | F35: 33°
D36: 0 | E36: =D39-H3-H4-H5-H6-H7-H8-H9-H10-H11-H12-H13-H14-H15-H16-H17-H18-H19-H20-H21-H22-H23-H24-H25-H26-H27-H28-H29-H30-H31-H32-H33-H34-H35-H36 -> -1.591615728e-12 | F36: 34°
D37: 0 | E37: =D39-H3-H4-H5-H6-H7-H8-H9-H10-H11-H12-H13-H14-H15-H16-H17-H18-H19-H20-H21-H22-H23-H24-H25-H26-H27-H28-H29-H30-H31-H32-H33-H34-H35-H36-H37 -> -1.591615728e-12 | F37: 35°
D38: 0 | E38: =D39-H3-H4-H5-H6-H7-H8-H9-H10-H11-H12-H13-H14-H15-H16-H17-H18-H19-H20-H21-H22-H23-H24-H25-H26-H27-H28-H29-H30-H31-H32-H33-H34-H35-H36-H37-H38 -> -1.591615728e-12 | F38: 36°
A39: TOTAL | B39: =SUM(B3:B38) -> 13000 | C39: =SUM(C3:C38) -> 2873.94 | D39: =SUM(D3:D38) -> 15873.94 | G39: Total | H39: =SUM(H3:H38) -> 15873.94
A41: DADOS PARA DEPÓSITO E CONTATO
A42: Banco | B42: Banco do Brasil | E42: Contato | G42: Eneida Schiavon
A43: Agência | B43: 4852-6 | E43: Tel. | G43: 9-9996-7635
A44: C/C | B44: 5231-0 | E44: CPF | G44: 046.517.488-48
A45: Em nome de | B45: Eneida Schiavon Lourenço | E45: e-mail | G45: schiavonadv@uol.com.br

Sheet Acordo Sindicato
A1: Acordo Sindicato Outlet 2010 até 2015 Buriti 2014 até 2015 todas as pendências | F1: N° | G1: Acordo feito 21/03/2016
A2: CH N° | B2: VALOR | C2: Sinal | D2: TOTAL | E2: SALDO DEV. | G2: DATAS | H2: VLR. PARCELA | I2: PAGO DIA
B3: 7726 | C3: 0 | D3: =B3+C3 -> 7726 | E3: =D3-H3 -> 3863.08 | F3: 1° | G3: 2016-03-21 | H3: 3862.92 | I3: 21/013/16
D4: =SUM(B4:C4) -> 0 | E4: =E3-H4 -> 1931.54 | F4: 2° | G4: 2016-04-10 | H4: 1931.54
D5: 0 | E5: =E4-H5 -> 0 | F5: 3° | G5: 2016-05-10 | H5: 1931.54
B8: Composição deste acordo
B9: Parcelas | C9: Filial | D9: Totais
B10: 1. parcela | C10: Buriti | D10: 1931.46
B11: 1. parcela | C11: Outlet | D11: 1931.46
B12: Total 1. parcela | D12: =SUM(D10:D11) -> 3862.92
B14: 2. parcela | C14: Buriti | D14: 858.27
B15: 2. parcela | C15: Outlet | D15: 1073.27
B16: Total 2. parcela | D16: =SUM(D14:D15) -> 1931.54
B18: 2. parcela | C18: Buriti | D18: 858.27
B19: 2. parcela | C19: Outlet | D19: 1073.27
B20: Total 3. parcela | D20: =SUM(D18:D19) -> 1931.54
B21: TOTAL GERAL | D21: =D12+D16+D20 -> 7726
A39: TOTAL | B39: =SUM(B3:B38) -> 7726 | C39: =SUM(C3:C38) -> 0 | G39: Total | H39: =SUM(H3:H38) -> 7726
A41: DADOS PARA DEPÓSITO E CONTATO
A42: Banco | B42: Caixa Econômica Federal | E42: Contato | G42: Sr. Francisco ou Daniel
A43: Agência | B43: 0249 | E43: Tel.
A44: C/C | B44: 01377050746-4 | E44: CNPJ | G44: 67.354.274/0001-50
A45: Em nome de | B45: Sind. dos Empregados de estacionam. E gar. E.S.P. | E45: e-mail | G45: Daniel2006@hotmail.com
A46: Acordo firmado assim: primeira parcela 3.862,92 e mais duas parcelas iguais de 1.931,46

Sheet Golden Cofins div. ativa
A1: COFINS DÍVIDA ATIVA 1 MAIS 47 PARC. VALOR DA PARCELA 514,42 | F1: N° | G1: Parcelam. feito 17/04/2014
A2: COFINS | B2: VALOR | C2: JUROS | D2: TOTAL | E2: SALDO DEV. | G2: DATAS | H2: VLR. PARCELA | I2: PAGO DIA
B3: 26864.17 | D3: =SUM(B3:C3) -> 26864.17 | E3: =D63-H3 -> 24177.74 | F3: 1 | G3: 2014-04-17 | H3: 2686.43 | I3: 2014-04-17
D4: =SUM(B4:C4) -> 0 | E4: =D63-H3-H4 -> 23660.4 | F4: 2 | G4: 2014-05-30 | H4: 517.34 | I4: 2014-05-30
D5: 0 | E5: =D63-H3-H4-H5 -> 23145.98 | F5: 3 | G5: 2014-06-30 | H5: 514.42 | J5: não foi paga
D6: 0 | E6: =D63-H3-H4-H5-H6 -> 22611 | F6: 4 | G6: 2014-07-30 | H6: 534.98 | I6: 2014-07-31
D7: 0 | E7: =D63-H3-H4-H5-H6-H7 -> 22072.56 | F7: 5 | G7: 2014-08-30 | H7: 538.44 | J7: não foi paga
D8: 0 | E8: =D63-H3-H4-H5-H6-H7-H8 -> 21558.14 | F8: 6 | G8: 2014-09-30 | H8: 514.42 | J8: não foi paga
D9: 0 | E9: =D63-H3-H4-H5-H6-H7-H8-H9 -> 21043.72 | F9: 7 | G9: 2014-10-30 | H9: 514.42 | J9: Parc. cancelado
D10: 0 | E10: =D63-H3-H4-H5-H6-H7-H8-H9-H10 -> 20529.3 | F10: 8 | G10: 2014-11-30 | H10: 514.42
D11: 0 | E11: =D63-H3-H4-H5-H6-H7-H8-H9-H10-H11 -> 20014.88 | F11: 9 | G11: 2014-12-30 | H11: 514.42
D12: 0 | E12: =D63-H3-H4-H5-H6-H7-H8-H9-H10-H11-H12 -> 19500.46 | F12: 10 | G12: 2015-01-30 | H12: 514.42
D13: 0 | E13: =D63-H3-H4-H5-H6-H7-H8-H9-H10-H11-H12-H13 -> 18986.04 | F13: 11 | G13: 2015-02-28 | H13: 514.42
D14: 0 | E14: =D63-H3-H4-H5-H6-H7-H8-H9-H10-H11-H12-H13-H14 -> 18471.62 | F14: 12 | G14: 2015-03-30 | H14: 514.42
D15: 0 | E15: =D63-H3-H4-H5-H6-H7-H8-H9-H10-H11-H12-H13-H14-H15 -> 17957.2 | F15: 13 | G15: 2015-04-30 | H15: 514.42
D16: 0 | E16: =D63-H3-H4-H5-H6-H7-H8-H9-H10-H11-H12-H13-H14-H15-H16 -> 17442.78 | F16: 14 | G16: 2015-05-30 | H16: 514.42
D17: 0 | E17: =D63-H3-H4-H5-H6-H7-H8-H9-H10-H11-H12-H13-H14-H15-H16-H17 -> 16928.36 | F17: 15 | G17: 2015-06-30 | H17: 514.42
D18: 0 | E18: =D63-H3-H4-H5-H6-H7-H8-H9-H10-H11-H12-H13-H14-H15-H16-H17-H18 -> 16413.94 | F18: 16 | G18: 2015-07-30 | H18: 514.42
D19: 0 | E19: =D63-H3-H4-H5-H6-H7-H8-H9-H10-H11-H12-H13-H14-H15-H16-H17-H18-H19 -> 15899.52 | F19: 17 | G19: 2015-08-30 | H19: 514.42
D20: 0 | E20: =D63-H3-H4-H5-H6-H7-H8-H9-H10-H11-H12-H13-H14-H15-H16-H17-H18-H19-H20 -> 15385.1 | F20: 18 | G20: 2015-09-30 | H20: 514.42
D21: 0 | E21: =D63-H3-H4-H5-H6-H7-H8-H9-H10-H11-H12-H13-H14-H15-H16-H17-H18-H19-H20-H21 -> 14870.68 | F21: 19 | G21: 2015-10-30 | H21: 514.42
D22: 0 | E22: =D63-H3-H4-H5-H6-H7-H8-H9-H10-H11-H12-H13-H14-H15-H16-H17-H18-H19-H20-H21-H22 -> 14356.26 | F22: 20 | G22: 2015-11-30 | H22: 514.42
D23: 0 | E23: =D63-H3-H4-H5-H6-H7-H8-H9-H10-H11-H12-H13-H14-H15-H16-H17-H18-H19-H20-H21-H22-H23 -> 13841.84 | F23: 21 | G23: 2015-12-30 | H23: 514.42
D24: 0 | E24: =D63-H3-H4-H5-H6-H7-H8-H9-H10-H11-H12-H13-H14-H15-H16-H17-H18-H19-H20-H21-H22-H23-H24 -> 13327.42 | F24: 22 | G24: 2016-01-30 | H24: 514.42
D25: 0 | E25: =D63-H3-H4-H5-H6-H7-H8-H9-H10-H11-H12-H13-H14-H15-H16-H17-H18-H19-H20-H21-H22-H23-H24-H25 -> 12813 | F25: 23 | G25: 2016-02-29 | H25: 514.42
D26: 0 | E26: =D63-H3-H4-H5-H6-H7-H8-H9-H10-H11-H12-H13-H14-H15-H16-H17-H18-H19-H20-H21-H22-H23-H24-H25-H26 -> 12298.58 | F26: 24 | G26: 2016-03-30 | H26: 514.42
D27: 0 | E27: =D63-H3-H4-H5-H6-H7-H8-H9-H10-H11-H12-H13-H14-H15-H16-H17-H18-H19-H20-H21-H22-H23-H24-H25-H26-H27 -> 11784.16 | F27: 25 | G27: 2016-04-30 | H27: 514.42
D28: 0 | E28: =D63-H3-H4-H5-H6-H7-H8-H9-H10-H11-H12-H13-H14-H15-H16-H17-H18-H19-H20-H21-H22-H23-H24-H25-H26-H27-H28 -> 11269.74 | F28: 26 | G28: 2016-05-30 | H28: 514.42
D29: 0 | E29: =D63-H3-H4-H5-H6-H7-H8-H9-H10-H11-H12-H13-H14-H15-H16-H17-H18-H19-H20-H21-H22-H23-H24-H25-H26-H27-H28-H29 -> 10755.32 | F29: 27 | G29: 2016-06-30 | H29: 514.42
D30: 0 | E30: =D63-H3-H4-H5-H6-H7-H8-H9-H10-H11-H12-H13-H14-H15-H16-H17-H18-H19-H20-H21-H22-H23-H24-H25-H26-H27-H28-H29-H30 -> 10240.9 | F30: 28 | G30: 2016-07-30 | H30: 514.42
D31: 0 | E31: =D63-H3-H4-H5-H6-H7-H8-H9-H10-H11-H12-H13-H14-H15-H16-H17-H18-H19-H20-H21-H22-H23-H24-H25-H26-H27-H28-H29-H30-H31 -> 9726.48 | F31: 29 | G31: 2016-08-30 | H31: 514.42
D32: 0 | E32: =D63-H3-H4-H5-H6-H7-H8-H9-H10-H11-H12-H13-H14-H15-H16-H17-H18-H19-H20-H21-H22-H23-H24-H25-H26-H27-H28-H29-H30-H31-H32 -> 9212.06 | F32: 30 | G32: 2016-09-30 | H32: 514.42
D33: 0 | E33: =D63-H3-H4-H5-H6-H7-H8-H9-H10-H11-H12-H13-H14-H15-H16-H17-H18-H19-H20-H21-H22-H23-H24-H25-H26-H27-H28-H29-H30-H31-H32-H33 -> 8697.64 | F33: 31 | G33: 2016-10-30 | H33: 514.42
D34: 0 | E34: =D63-H3-H4-H5-H6-H7-H8-H9-H10-H11-H12-H13-H14-H15-H16-H17-H18-H19-H20-H21-H22-H23-H24-H25-H26-H27-H28-H29-H30-H31-H32-H33-H34 -> 8183.22 | F34: 32 | G34: 2016-11-30 | H34: 514.42
D35: 0 | E35: =D63-H3-H4-H5-H6-H7-H8-H9-H10-H11-H12-H13-H14-H15-H16-H17-H18-H19-H20-H21-H22-H23-H24-H25-H26-H27-H28-H29-H30-H31-H32-H33-H34-H35 -> 7668.8 | F35: 33 | G35: 2016-12-30 | H35: 514.42
D36: 0 | E36: =D63-H3-H4-H5-H6-H7-H8-H9-H10-H11-H12-H13-H14-H15-H16-H17-H18-H19-H20-H21-H22-H23-H24-H25-H26-H27-H28-H29-H30-H31-H32-H33-H34-H35-H36 -> 7154.38 | F36: 34 | G36: 2017-01-30 | H36: 514.42
D37: 0 | E37: =D63-H3-H4-H5-H6-H7-H8-H9-H10-H11-H12-H13-H14-H15-H16-H17-H18-H19-H20-H21-H22-H23-H24-H25-H26-H27-H28-H29-H30-H31-H32-H33-H34-H35-H36-H37 -> 6639.96 | F37: 35 | G37: 2017-02-28 | H37: 514.42
D38: 0 | E38: =D63-H3-H4-H5-H6-H7-H8-H9-H10-H11-H12-H13-H14-H15-H16-H17-H18-H19-H20-H21-H22-H23-H24-H25-H26-H27-H28-H29-H30-H31-H32-H33-H34-H35-H36-H37-H38 -> 6125.54 | F38: 36 | G38: 2017-03-30 | H38: 514.42
D39: 0 | E39: =D63-H3-H4-H5-H6-H7-H8-H9-H10-H11-H12-H13-H14-H15-H16-H17-H18-H19-H20-H21-H22-H23-H24-H25-H26-H27-H28-H29-H30-H31-H32-H33-H34-H35-H36-H37-H38-H39 -> 5611.12 | F39: 37 | G39: 2017-04-30 | H39: 514.42
D40: 0 | E40: =D63-H3-H4-H5-H6-H7-H8-H9-H10-H11-H12-H13-H14-H15-H16-H17-H18-H19-H20-H21-H22-H23-H24-H25-H26-H27-H28-H29-H30-H31-H32-H33-H34-H35-H36-H37-H38-H39-H40 -> 5096.7 | F40: 38 | G40: 2017-05-30 | H40: 514.42
D41: 0 | E41: =D63-H3-H4-H5-H6-H7-H8-H9-H10-H11-H12-H13-H14-H15-H16-H17-H18-H19-H20-H21-H22-H23-H24-H25-H26-H27-H28-H29-H30-H31-H32-H33-H34-H35-H36-H37-H38-H39-H40-H41 -> 4582.28 | F41: 39 | G41: 2017-06-30 | H41: 514.42
D42: 0 | E42: =D63-H3-H4-H5-H6-H7-H8-H9-H10-H11-H12-H13-H14-H15-H16-H17-H18-H19-H20-H21-H22-H23-H24-H25-H26-H27-H28-H29-H30-H31-H32-H33-H34-H35-H36-H37-H38-H39-H40-H41-H42 -> 4067.86 | F42: 40 | G42: 2017-07-30 | H42: 514.42
D43: 0 | E43: =D63-H3-H4-H5-H6-H7-H8-H9-H10-H11-H12-H13-H14-H15-H16-H17-H18-H19-H20-H21-H22-H23-H24-H25-H26-H27-H28-H29-H30-H31-H32-H33-H34-H35-H36-H37-H38-H39-H40-H41-H42-H43 -> 3553.44 | F43: 41 | G43: 2017-08-30 | H43: 514.42
D44: 0 | E44: =D63-H3-H4-H5-H6-H7-H8-H9-H10-H11-H12-H13-H14-H15-H16-H17-H18-H19-H20-H21-H22-H23-H24-H25-H26-H27-H28-H29-H30-H31-H32-H33-H34-H35-H36-H37-H38-H39-H40-H41-H42-H43-H44 -> 3039.02 | F44: 42 | G44: 2017-09-30 | H44: 514.42
D45: 0 | E45: =D63-H3-H4-H5-H6-H7-H8-H9-H10-H11-H12-H13-H14-H15-H16-H17-H18-H19-H20-H21-H22-H23-H24-H25-H26-H27-H28-H29-H30-H31-H32-H33-H34-H35-H36-H37-H38-H39-H40-H41-H42-H43-H44-H45 -> 2524.6 | F45: 43 | G45: 2017-10-30 | H45: 514.42
D46: 0 | E46: =D63-H3-H4-H5-H6-H7-H8-H9-H10-H11-H12-H13-H14-H15-H16-H17-H18-H19-H20-H21-H22-H23-H24-H25-H26-H27-H28-H29-H30-H31-H32-H33-H34-H35-H36-H37-H38-H39-H40-H41-H42-H43-H44-H45-H46 -> 2010.18 | F46: 44 | G46: 2017-11-30 | H46: 514.42
D47: 0 | E47: =D63-H3-H4-H5-H6-H7-H8-H9-H10-H11-H12-H13-H14-H15-H16-H17-H18-H19-H20-H21-H22-H23-H24-H25-H26-H27-H28-H29-H30-H31-H32-H33-H34-H35-H36-H37-H38-H39-H40-H41-H42-H43-H44-H45-H46-H47 -> 1495.76 | F47: 45 | G47: 2017-12-30 | H47: 514.42
D48: 0 | E48: =D63-H3-H4-H5-H6-H7-H8-H9-H10-H11-H12-H13-H14-H15-H16-H17-H18-H19-H20-H21-H22-H23-H24-H25-H26-H27-H28-H29-H30-H31-H32-H33-H34-H35-H36-H37-H38-H39-H40-H41-H42-H43-H44-H45-H46-H47-H48 -> 981.34 | F48: 46 | G48: 2018-01-30 | H48: 514.42
D49: 0 | E49: =D63-H3-H4-H5-H6-H7-H8-H9-H10-H11-H12-H13-H14-H15-H16-H17-H18-H19-H20-H21-H22-H23-H24-H25-H26-H27-H28-H29-H30-H31-H32-H33-H34-H35-H36-H37-H38-H39-H40-H41-H42-H43-H44-H45-H46-H47-H48-H49 -> 466.92 | F49: 47 | G49: 2018-02-28 | H49: 514.42
D50: 0 | E50: =D63-H3-H4-H5-H6-H7-H8-H9-H10-H11-H12-H13-H14-H15-H16-H17-H18-H19-H20-H21-H22-H23-H24-H25-H26-H27-H28-H29-H30-H31-H32-H33-H34-H35-H36-H37-H38-H39-H40-H41-H42-H43-H44-H45-H46-H47-H48-H49-H50 -> -47.5 | F50: 48 | G50: 2018-03-30 | H50: 514.42
D51: 0 | E51: =D111 -> 0 | F51: 49 | G51: 2018-04-30
D52: 0 | E52: 0 | F52: 50 | G52: 2018-05-30
D53: 0 | E53: 0 | F53: 51 | G53: 2018-06-30
D54: 0 | E54: 0 | F54: 52 | G54: 2018-07-30
D55: 0 | E55: 0 | F55: 53 | G55: 2018-08-30
D56: 0 | E56: 0 | F56: 54 | G56: 2018-09-30
D57: 0 | E57: 0 | F57: 55 | G57: 2018-10-30
D58: 0 | E58: 0 | F58: 56 | G58: 2018-11-30
D59: 0 | E59: 0 | F59: 57 | G59: 2018-12-30
D60: 0 | E60: 0 | F60: 58 | G60: 2019-01-30
D61: 0 | E61: 0 | F61: 59 | G61: 2019-02-28
D62: 0 | E62: 0 | F62: 60 | G62: 2019-03-30
A63: TOTAL | B63: =SUM(B3:B62) -> 26864.17 | C63: =SUM(C3:C62) -> 0 | D63: =SUM(D3:D62) -> 26864.17 | G63: Total | H63: =SUM(H3:H62) -> 26911.67
A65: DADOS PARA DEPÓSITO E CONTATO
B66: DARF

Sheet Golden Cofins div. ativa (2)
A1: COFINS DÍVIDA ATIVA 60 PARC. VALOR DA PARCELA 1.077,31 | F1: N° | G1: Parcelam. feito 17/04/2014
A2: COFINS | B2: VALOR | C2: JUROS | D2: TOTAL | E2: SALDO DEV. | G2: DATAS | H2: VLR. PARCELA | I2: PAGO DIA
B3: 64638.6 | D3: =SUM(B3:C3) -> 64638.6 | E3: =D63-H3 -> 63561.29 | F3: 1 | G3: 2014-04-30 | H3: 1077.31 | I3: 2014-04-30
D4: =SUM(B4:C4) -> 0 | E4: =D63-H3-H4 -> 62475.23 | F4: 2 | G4: 2014-05-31 | H4: 1086.06 | I4: 2014-05-30
D5: 0 | E5: =D63-H3-H4-H5 -> 61397.92 | F5: 3 | G5: 2014-06-30 | H5: 1077.31 | J5: Não foi paga
D6: 0 | E6: =D63-H3-H4-H5-H6 -> 60293.84 | F6: 4 | G6: 2014-07-31 | H6: 1104.08 | I6: 2014-07-31
D7: 0 | E7: =D63-H3-H4-H5-H6-H7 -> 59179.62 | F7: 5 | G7: 2014-08-31 | H7: 1114.22 | J7: Não foi paga
D8: 0 | E8: =D63-H3-H4-H5-H6-H7-H8 -> 58102.31 | F8: 6 | G8: 2014-09-30 | H8: 1077.31 | J8: Não foi paga
D9: 0 | E9: =D63-H3-H4-H5-H6-H7-H8-H9 -> 57025 | F9: 7 | G9: 2014-10-31 | H9: 1077.31 | J9: Parc. Cancelado
D10: 0 | E10: =D63-H3-H4-H5-H6-H7-H8-H9-H10 -> 55947.69 | F10: 8 | G10: 2014-11-30 | H10: 1077.31
D11: 0 | E11: =D63-H3-H4-H5-H6-H7-H8-H9-H10-H11 -> 54870.38 | F11: 9 | G11: 2014-12-31 | H11: 1077.31
D12: 0 | E12: =D63-H3-H4-H5-H6-H7-H8-H9-H10-H11-H12 -> 53793.07 | F12: 10 | G12: 2015-01-31 | H12: 1077.31
D13: 0 | E13: =D63-H3-H4-H5-H6-H7-H8-H9-H10-H11-H12-H13 -> 52715.76 | F13: 11 | G13: 2015-02-28 | H13: 1077.31
D14: 0 | E14: =D63-H3-H4-H5-H6-H7-H8-H9-H10-H11-H12-H13-H14 -> 51638.45 | F14: 12 | G14: 2015-03-31 | H14: 1077.31
D15: 0 | E15: =D63-H3-H4-H5-H6-H7-H8-H9-H10-H11-H12-H13-H14-H15 -> 50561.14 | F15: 13 | G15: 2015-04-30 | H15: 1077.31
D16: 0 | E16: =D63-H3-H4-H5-H6-H7-H8-H9-H10-H11-H12-H13-H14-H15-H16 -> 49483.83 | F16: 14 | G16: 2015-05-31 | H16: 1077.31
D17: 0 | E17: =D63-H3-H4-H5-H6-H7-H8-H9-H10-H11-H12-H13-H14-H15-H16-H17 -> 48406.52 | F17: 15 | G17: 2015-06-30 | H17: 1077.31
D18: 0 | E18: =D63-H3-H4-H5-H6-H7-H8-H9-H10-H11-H12-H13-H14-H15-H16-H17-H18 -> 47329.21 | F18: 16 | G18: 2015-07-31 | H18: 1077.31
D19: 0 | E19: =D63-H3-H4-H5-H6-H7-H8-H9-H10-H11-H12-H13-H14-H15-H16-H17-H18-H19 -> 46251.9 | F19: 17 | G19: 2015-08-31 | H19: 1077.31
D20: 0 | E20: =D63-H3-H4-H5-H6-H7-H8-H9-H10-H11-H12-H13-H14-H15-H16-H17-H18-H19-H20 -> 45174.59 | F20: 18 | G20: 2015-09-30 | H20: 1077.31
D21: 0 | E21: =D63-H3-H4-H5-H6-H7-H8-H9-H10-H11-H12-H13-H14-H15-H16-H17-H18-H19-H20-H21 -> 44097.28 | F21: 19 | G21: 2015-10-31 | H21: 1077.31
D22: 0 | E22: =D63-H3-H4-H5-H6-H7-H8-H9-H10-H11-H12-H13-H14-H15-H16-H17-H18-H19-H20-H21-H22 -> 43019.97 | F22: 20 | G22: 2015-11-30 | H22: 1077.31
D23: 0 | E23: =D63-H3-H4-H5-H6-H7-H8-H9-H10-H11-H12-H13-H14-H15-H16-H17-H18-H19-H20-H21-H22-H23 -> 41942.66 | F23: 21 | G23: 2015-12-31 | H23: 1077.31
D24: 0 | E24: =D63-H3-H4-H5-H6-H7-H8-H9-H10-H11-H12-H13-H14-H15-H16-H17-H18-H19-H20-H21-H22-H23-H24 -> 40865.35 | F24: 22 | G24: 2016-01-31 | H24: 1077.31
D25: 0 | E25: =D63-H3-H4-H5-H6-H7-H8-H9-H10-H11-H12-H13-H14-H15-H16-H17-H18-H19-H20-H21-H22-H23-H24-H25 -> 39788.04 | F25: 23 | G25: 2016-02-29 | H25: 1077.31
D26: 0 | E26: =D63-H3-H4-H5-H6-H7-H8-H9-H10-H11-H12-H13-H14-H15-H16-H17-H18-H19-H20-H21-H22-H23-H24-H25-H26 -> 38710.73 | F26: 24 | G26: 2016-03-31 | H26: 1077.31
D27: 0 | E27: =D63-H3-H4-H5-H6-H7-H8-H9-H10-H11-H12-H13-H14-H15-H16-H17-H18-H19-H20-H21-H22-H23-H24-H25-H26-H27 -> 37633.42 | F27: 25 | G27: 2016-04-30 | H27: 1077.31
D28: 0 | E28: =D63-H3-H4-H5-H6-H7-H8-H9-H10-H11-H12-H13-H14-H15-H16-H17-H18-H19-H20-H21-H22-H23-H24-H25-H26-H27-H28 -> 36556.11 | F28: 26 | G28: 2016-05-31 | H28: 1077.31
D29: 0 | E29: =D63-H3-H4-H5-H6-H7-H8-H9-H10-H11-H12-H13-H14-H15-H16-H17-H18-H19-H20-H21-H22-H23-H24-H25-H26-H27-H28-H29 -> 35478.8 | F29: 27 | G29: 2016-06-30 | H29: 1077.31
D30: 0 | E30: =D63-H3-H4-H5-H6-H7-H8-H9-H10-H11-H12-H13-H14-H15-H16-H17-H18-H19-H20-H21-H22-H23-H24-H25-H26-H27-H28-H29-H30 -> 34401.49 | F30: 28 | G30: 2016-07-31 | H30: 1077.31
D31: 0 | E31: =D63-H3-H4-H5-H6-H7-H8-H9-H10-H11-H12-H13-H14-H15-H16-H17-H18-H19-H20-H21-H22-H23-H24-H25-H26-H27-H28-H29-H30-H31 -> 33324.18 | F31: 29 | G31: 2016-08-31 | H31: 1077.31
D32: 0 | E32: =D63-H3-H4-H5-H6-H7-H8-H9-H10-H11-H12-H13-H14-H15-H16-H17-H18-H19-H20-H21-H22-H23-H24-H25-H26-H27-H28-H29-H30-H31-H32 -> 32246.87 | F32: 30 | G32: 2016-09-30 | H32: 1077.31
D33: 0 | E33: =D63-H3-H4-H5-H6-H7-H8-H9-H10-H11-H12-H13-H14-H15-H16-H17-H18-H19-H20-H21-H22-H23-H24-H25-H26-H27-H28-H29-H30-H31-H32-H33 -> 31169.56 | F33: 31 | G33: 2016-10-31 | H33: 1077.31
D34: 0 | E34: =D63-H3-H4-H5-H6-H7-H8-H9-H10-H11-H12-H13-H14-H15-H16-H17-H18-H19-H20-H21-H22-H23-H24-H25-H26-H27-H28-H29-H30-H31-H32-H33-H34 -> 30092.25 | F34: 32 | G34: 2016-11-30 | H34: 1077.31
D35: 0 | E35: =D63-H3-H4-H5-H6-H7-H8-H9-H10-H11-H12-H13-H14-H15-H16-H17-H18-H19-H20-H21-H22-H23-H24-H25-H26-H27-H28-H29-H30-H31-H32-H33-H34-H35 -> 29014.94 | F35: 33 | G35: 2016-12-31 | H35: 1077.31
D36: 0 | E36: =D63-H3-H4-H5-H6-H7-H8-H9-H10-H11-H12-H13-H14-H15-H16-H17-H18-H19-H20-H21-H22-H23-H24-H25-H26-H27-H28-H29-H30-H31-H32-H33-H34-H35-H36 -> 27937.63 | F36: 34 | G36: 2017-01-31 | H36: 1077.31
D37: 0 | E37: =D63-H3-H4-H5-H6-H7-H8-H9-H10-H11-H12-H13-H14-H15-H16-H17-H18-H19-H20-H21-H22-H23-H24-H25-H26-H27-H28-H29-H30-H31-H32-H33-H34-H35-H36-H37 -> 26860.32 | F37: 35 | G37: 2017-02-28 | H37: 1077.31
D38: 0 | E38: =D63-H3-H4-H5-H6-H7-H8-H9-H10-H11-H12-H13-H14-H15-H16-H17-H18-H19-H20-H21-H22-H23-H24-H25-H26-H27-H28-H29-H30-H31-H32-H33-H34-H35-H36-H37-H38 -> 25783.01 | F38: 36 | G38: 2017-03-31 | H38: 1077.31
D39: 0 | E39: =D63-H3-H4-H5-H6-H7-H8-H9-H10-H11-H12-H13-H14-H15-H16-H17-H18-H19-H20-H21-H22-H23-H24-H25-H26-H27-H28-H29-H30-H31-H32-H33-H34-H35-H36-H37-H38-H39 -> 24705.7 | F39: 37 | G39: 2017-04-30 | H39: 1077.31
D40: 0 | E40: =D63-H3-H4-H5-H6-H7-H8-H9-H10-H11-H12-H13-H14-H15-H16-H17-H18-H19-H20-H21-H22-H23-H24-H25-H26-H27-H28-H29-H30-H31-H32-H33-H34-H35-H36-H37-H38-H39-H40 -> 23628.39 | F40: 38 | G40: 2017-05-31 | H40: 1077.31
D41: 0 | E41: =D63-H3-H4-H5-H6-H7-H8-H9-H10-H11-H12-H13-H14-H15-H16-H17-H18-H19-H20-H21-H22-H23-H24-H25-H26-H27-H28-H29-H30-H31-H32-H33-H34-H35-H36-H37-H38-H39-H40-H41 -> 22551.08 | F41: 39 | G41: 2017-06-30 | H41: 1077.31
D42: 0 | E42: =D63-H3-H4-H5-H6-H7-H8-H9-H10-H11-H12-H13-H14-H15-H16-H17-H18-H19-H20-H21-H22-H23-H24-H25-H26-H27-H28-H29-H30-H31-H32-H33-H34-H35-H36-H37-H38-H39-H40-H41-H42 -> 21473.77 | F42: 40 | G42: 2017-07-31 | H42: 1077.31
D43: 0 | E43: =D63-H3-H4-H5-H6-H7-H8-H9-H10-H11-H12-H13-H14-H15-H16-H17-H18-H19-H20-H21-H22-H23-H24-H25-H26-H27-H28-H29-H30-H31-H32-H33-H34-H35-H36-H37-H38-H39-H40-H41-H42-H43 -> 20396.46 | F43: 41 | G43: 2017-08-31 | H43: 1077.31
D44: 0 | E44: =D63-H3-H4-H5-H6-H7-H8-H9-H10-H11-H12-H13-H14-H15-H16-H17-H18-H19-H20-H21-H22-H23-H24-H25-H26-H27-H28-H29-H30-H31-H32-H33-H34-H35-H36-H37-H38-H39-H40-H41-H42-H43-H44 -> 19319.15 | F44: 42 | G44: 2017-09-30 | H44: 1077.31
D45: 0 | E45: =D63-H3-H4-H5-H6-H7-H8-H9-H10-H11-H12-H13-H14-H15-H16-H17-H18-H19-H20-H21-H22-H23-H24-H25-H26-H27-H28-H29-H30-H31-H32-H33-H34-H35-H36-H37-H38-H39-H40-H41-H42-H43-H44-H45 -> 18241.84 | F45: 43 | G45: 2017-10-31 | H45: 1077.31
D46: 0 | E46: =D63-H3-H4-H5-H6-H7-H8-H9-H10-H11-H12-H13-H14-H15-H16-H17-H18-H19-H20-H21-H22-H23-H24-H25-H26-H27-H28-H29-H30-H31-H32-H33-H34-H35-H36-H37-H38-H39-H40-H41-H42-H43-H44-H45-H46 -> 17164.53 | F46: 44 | G46: 2017-11-30 | H46: 1077.31
D47: 0 | E47: =D63-H3-H4-H5-H6-H7-H8-H9-H10-H11-H12-H13-H14-H15-H16-H17-H18-H19-H20-H21-H22-H23-H24-H25-H26-H27-H28-H29-H30-H31-H32-H33-H34-H35-H36-H37-H38-H39-H40-H41-H42-H43-H44-H45-H46-H47 -> 16087.22 | F47: 45 | G47: 2017-12-31 | H47: 1077.31
D48: 0 | E48: =D63-H3-H4-H5-H6-H7-H8-H9-H10-H11-H12-H13-H14-H15-H16-H17-H18-H19-H20-H21-H22-H23-H24-H25-H26-H27-H28-H29-H30-H31-H32-H33-H34-H35-H36-H37-H38-H39-H40-H41-H42-H43-H44-H45-H46-H47-H48 -> 15009.91 | F48: 46 | G48: 2018-01-31 | H48: 1077.31
D49: 0 | E49: =D63-H3-H4-H5-H6-H7-H8-H9-H10-H11-H12-H13-H14-H15-H16-H17-H18-H19-H20-H21-H22-H23-H24-H25-H26-H27-H28-H29-H30-H31-H32-H33-H34-H35-H36-H37-H38-H39-H40-H41-H42-H43-H44-H45-H46-H47-H48-H49 -> 13932.6 | F49: 47 | G49: 2018-02-28 | H49: 1077.31
D50: 0 | E50: =D63-H3-H4-H5-H6-H7-H8-H9-H10-H11-H12-H13-H14-H15-H16-H17-H18-H19-H20-H21-H22-H23-H24-H25-H26-H27-H28-H29-H30-H31-H32-H33-H34-H35-H36-H37-H38-H39-H40-H41-H42-H43-H44-H45-H46-H47-H48-H49-H50 -> 12855.29 | F50: 48 | G50: 2018-03-31 | H50: 1077.31
D51: 0 | E51: =D63-H3-H4-H5-H6-H7-H8-H9-H10-H11-H12-H13-H14-H15-H16-H17-H18-H19-H20-H21-H22-H23-H24-H25-H26-H27-H28-H29-H30-H31-H32-H33-H34-H35-H36-H37-H38-H39-H40-H41-H42-H43-H44-H45-H46-H47-H48-H49-H50-H51 -> 11777.98 | F51: 49 | G51: 2018-04-30 | H51: 1077.31
D52: 0 | E52: =D63-H3-H4-H5-H6-H7-H8-H9-H10-H11-H12-H13-H14-H15-H16-H17-H18-H19-H20-H21-H22-H23-H24-H25-H26-H27-H28-H29-H30-H31-H32-H33-H34-H35-H36-H37-H38-H39-H40-H41-H42-H43-H44-H45-H46-H47-H48-H49-H50-H51-H52 -> 10700.67 | F52: 50 | G52: 2018-05-31 | H52: 1077.31
D53: 0 | E53: =D63-H3-H4-H5-H6-H7-H8-H9-H10-H11-H12-H13-H14-H15-H16-H17-H18-H19-H20-H21-H22-H23-H24-H25-H26-H27-H28-H29-H30-H31-H32-H33-H34-H35-H36-H37-H38-H39-H40-H41-H42-H43-H44-H45-H46-H47-H48-H49-H50-H51-H52-H53 -> 9623.36 | F53: 51 | G53: 2018-06-30 | H53: 1077.31
D54: 0 | E54: =D63-H3-H4-H5-H6-H7-H8-H9-H10-H11-H12-H13-H14-H15-H16-H17-H18-H19-H20-H21-H22-H23-H24-H25-H26-H27-H28-H29-H30-H31-H32-H33-H34-H35-H36-H37-H38-H39-H40-H41-H42-H43-H44-H45-H46-H47-H48-H49-H50-H51-H52-H53-H54 -> 8546.05 | F54: 52 | G54: 2018-07-31 | H54: 1077.31
D55: 0 | E55: =D63-H3-H4-H5-H6-H7-H8-H9-H10-H11-H12-H13-H14-H15-H16-H17-H18-H19-H20-H21-H22-H23-H24-H25-H26-H27-H28-H29-H30-H31-H32-H33-H34-H35-H36-H37-H38-H39-H40-H41-H42-H43-H44-H45-H46-H47-H48-H49-H50-H51-H52-H53-H54-H55 -> 7468.74 | F55: 53 | G55: 2018-08-31 | H55: 1077.31
D56: 0 | E56: =D63-H3-H4-H5-H6-H7-H8-H9-H10-H11-H12-H13-H14-H15-H16-H17-H18-H19-H20-H21-H22-H23-H24-H25-H26-H27-H28-H29-H30-H31-H32-H33-H34-H35-H36-H37-H38-H39-H40-H41-H42-H43-H44-H45-H46-H47-H48-H49-H50-H51-H52-H53-H54-H55-H56 -> 6391.43 | F56: 54 | G56: 2018-09-30 | H56: 1077.31
D57: 0 | E57: =D63-H3-H4-H5-H6-H7-H8-H9-H10-H11-H12-H13-H14-H15-H16-H17-H18-H19-H20-H21-H22-H23-H24-H25-H26-H27-H28-H29-H30-H31-H32-H33-H34-H35-H36-H37-H38-H39-H40-H41-H42-H43-H44-H45-H46-H47-H48-H49-H50-H51-H52-H53-H54-H55-H56-H57 -> 5314.12 | F57: 55 | G57: 2018-10-31 | H57: 1077.31
D58: 0 | E58: =D63-H3-H4-H5-H6-H7-H8-H9-H10-H11-H12-H13-H14-H15-H16-H17-H18-H19-H20-H21-H22-H23-H24-H25-H26-H27-H28-H29-H30-H31-H32-H33-H34-H35-H36-H37-H38-H39-H40-H41-H42-H43-H44-H45-H46-H47-H48-H49-H50-H51-H52-H53-H54-H55-H56-H57-H58 -> 4236.81 | F58: 56 | G58: 2018-11-30 | H58: 1077.31
D59: 0 | E59: =D63-H3-H4-H5-H6-H7-H8-H9-H10-H11-H12-H13-H14-H15-H16-H17-H18-H19-H20-H21-H22-H23-H24-H25-H26-H27-H28-H29-H30-H31-H32-H33-H34-H35-H36-H37-H38-H39-H40-H41-H42-H43-H44-H45-H46-H47-H48-H49-H50-H51-H52-H53-H54-H55-H56-H57-H58-H59 -> 3159.5 | F59: 57 | G59: 2018-12-31 | H59: 1077.31
D60: 0 | E60: =D63-H3-H4-H5-H6-H7-H8-H9-H10-H11-H12-H13-H14-H15-H16-H17-H18-H19-H20-H21-H22-H23-H24-H25-H26-H27-H28-H29-H30-H31-H32-H33-H34-H35-H36-H37-H38-H39-H40-H41-H42-H43-H44-H45-H46-H47-H48-H49-H50-H51-H52-H53-H54-H55-H56-H57-H58-H59-H60 -> 2082.19 | F60: 58 | G60: 2019-01-31 | H60: 1077.31
D61: 0 | E61: =D63-H3-H4-H5-H6-H7-H8-H9-H10-H11-H12-H13-H14-H15-H16-H17-H18-H19-H20-H21-H22-H23-H24-H25-H26-H27-H28-H29-H30-H31-H32-H33-H34-H35-H36-H37-H38-H39-H40-H41-H42-H43-H44-H45-H46-H47-H48-H49-H50-H51-H52-H53-H54-H55-H56-H57-H58-H59-H60-H61 -> 1004.88 | F61: 59 | G61: 2019-02-28 | H61: 1077.31
D62: 0 | E62: =D63-H3-H4-H5-H6-H7-H8-H9-H10-H11-H12-H13-H14-H15-H16-H17-H18-H19-H20-H21-H22-H23-H24-H25-H26-H27-H28-H29-H30-H31-H32-H33-H34-H35-H36-H37-H38-H39-H40-H41-H42-H43-H44-H45-H46-H47-H48-H49-H50-H51-H52-H53-H54-H55-H56-H57-H58-H59-H60-H61-H62 -> -72.43 | F62: 60 | G62: 2019-03-31 | H62: 1077.31
A63: TOTAL | B63: =SUM(B3:B62) -> 64638.6 | C63: =SUM(C3:C62) -> 0 | D63: =SUM(D3:D62) -> 64638.6 | G63: Total | H63: =SUM(H3:H62) -> 64711.03
A65: DADOS PARA DEPÓSITO E CONTATO
B66: DARF

Sheet Golden Cofins div. ativa (3)
A1: COFINS DÍVIDA ATIVA 60 PARC. VALOR DA PARCELA 685,75 | F1: N° | G1: Parcelam. feito 17/04/2014
A2: COFINS | B2: VALOR | C2: JUROS | D2: TOTAL | E2: SALDO DEV. | G2: DATAS | H2: VLR. PARCELA | I2: PAGO DIA
B3: 41145 | D3: =SUM(B3:C3) -> 41145 | E3: =D63-H3 -> 40459.25 | F3: 1 | G3: 2014-04-30 | H3: 685.75 | I3: 2014-04-30
D4: =SUM(B4:C4) -> 0 | E4: =D63-H3-H4 -> 39767.94 | F4: 2 | G4: 2014-05-31 | H4: 691.31 | I4: 2014-05-30
D5: 0 | E5: =D63-H3-H4-H5 -> 39082.19 | F5: 3 | G5: 2014-06-30 | H5: 685.75 | J5: Não foi paga
D6: 0 | E6: =D63-H3-H4-H5-H6 -> 38379.4 | F6: 4 | G6: 2014-07-31 | H6: 702.79 | I6: 2014-07-31
D7: 0 | E7: =D63-H3-H4-H5-H6-H7 -> 37470.17 | F7: 5 | G7: 2014-08-31 | H7: 909.23 | J7: Não foi paga
D8: 0 | E8: =D63-H3-H4-H5-H6-H7-H8 -> 36784.42 | F8: 6 | G8: 2014-09-30 | H8: 685.75 | J8: Não foi paga
D9: 0 | E9: =D63-H3-H4-H5-H6-H7-H8-H9 -> 36098.67 | F9: 7 | G9: 2014-10-31 | H9: 685.75 | J9: Parc. Cancelado
D10: 0 | E10: =D63-H3-H4-H5-H6-H7-H8-H9-H10 -> 35412.92 | F10: 8 | G10: 2014-11-30 | H10: 685.75
D11: 0 | E11: =D63-H3-H4-H5-H6-H7-H8-H9-H10-H11 -> 34727.17 | F11: 9 | G11: 2014-12-31 | H11: 685.75
D12: 0 | E12: =D63-H3-H4-H5-H6-H7-H8-H9-H10-H11-H12 -> 34041.42 | F12: 10 | G12: 2015-01-31 | H12: 685.75
D13: 0 | E13: =D63-H3-H4-H5-H6-H7-H8-H9-H10-H11-H12-H13 -> 33355.67 | F13: 11 | G13: 2015-02-28 | H13: 685.75
D14: 0 | E14: =D63-H3-H4-H5-H6-H7-H8-H9-H10-H11-H12-H13-H14 -> 32669.92 | F14: 12 | G14: 2015-03-31 | H14: 685.75
D15: 0 | E15: =D63-H3-H4-H5-H6-H7-H8-H9-H10-H11-H12-H13-H14-H15 -> 31984.17 | F15: 13 | G15: 2015-04-30 | H15: 685.75
D16: 0 | E16: =D63-H3-H4-H5-H6-H7-H8-H9-H10-H11-H12-H13-H14-H15-H16 -> 31298.42 | F16: 14 | G16: 2015-05-31 | H16: 685.75
D17: 0 | E17: =D63-H3-H4-H5-H6-H7-H8-H9-H10-H11-H12-H13-H14-H15-H16-H17 -> 30612.67 | F17: 15 | G17: 2015-06-30 | H17: 685.75
D18: 0 | E18: =D63-H3-H4-H5-H6-H7-H8-H9-H10-H11-H12-H13-H14-H15-H16-H17-H18 -> 29926.92 | F18: 16 | G18: 2015-07-31 | H18: 685.75
D19: 0 | E19: =D63-H3-H4-H5-H6-H7-H8-H9-H10-H11-H12-H13-H14-H15-H16-H17-H18-H19 -> 29241.17 | F19: 17 | G19: 2015-08-31 | H19: 685.75
D20: 0 | E20: =D63-H3-H4-H5-H6-H7-H8-H9-H10-H11-H12-H13-H14-H15-H16-H17-H18-H19-H20 -> 28555.42 | F20: 18 | G20: 2015-09-30 | H20: 685.75
D21: 0 | E21: =D63-H3-H4-H5-H6-H7-H8-H9-H10-H11-H12-H13-H14-H15-H16-H17-H18-H19-H20-H21 -> 27869.67 | F21: 19 | G21: 2015-10-31 | H21: 685.75
D22: 0 | E22: =D63-H3-H4-H5-H6-H7-H8-H9-H10-H11-H12-H13-H14-H15-H16-H17-H18-H19-H20-H21-H22 -> 27183.92 | F22: 20 | G22: 2015-11-30 | H22: 685.75
D23: 0 | E23: =D63-H3-H4-H5-H6-H7-H8-H9-H10-H11-H12-H13-H14-H15-H16-H17-H18-H19-H20-H21-H22-H23 -> 26498.17 | F23: 21 | G23: 2015-12-31 | H23: 685.75
D24: 0 | E24: =D63-H3-H4-H5-H6-H7-H8-H9-H10-H11-H12-H13-H14-H15-H16-H17-H18-H19-H20-H21-H22-H23-H24 -> 25812.42 | F24: 22 | G24: 2016-01-31 | H24: 685.75
D25: 0 | E25: =D63-H3-H4-H5-H6-H7-H8-H9-H10-H11-H12-H13-H14-H15-H16-H17-H18-H19-H20-H21-H22-H23-H24-H25 -> 25126.67 | F25: 23 | G25: 2016-02-29 | H25: 685.75
D26: 0 | E26: =D63-H3-H4-H5-H6-H7-H8-H9-H10-H11-H12-H13-H14-H15-H16-H17-H18-H19-H20-H21-H22-H23-H24-H25-H26 -> 24440.92 | F26: 24 | G26: 2016-03-31 | H26: 685.75
D27: 0 | E27: =D63-H3-H4-H5-H6-H7-H8-H9-H10-H11-H12-H13-H14-H15-H16-H17-H18-H19-H20-H21-H22-H23-H24-H25-H26-H27 -> 23755.17 | F27: 25 | G27: 2016-04-30 | H27: 685.75
D28: 0 | E28: =D63-H3-H4-H5-H6-H7-H8-H9-H10-H11-H12-H13-H14-H15-H16-H17-H18-H19-H20-H21-H22-H23-H24-H25-H26-H27-H28 -> 23069.42 | F28: 26 | G28: 2016-05-31 | H28: 685.75
D29: 0 | E29: =D63-H3-H4-H5-H6-H7-H8-H9-H10-H11-H12-H13-H14-H15-H16-H17-H18-H19-H20-H21-H22-H23-H24-H25-H26-H27-H28-H29 -> 22383.67 | F29: 27 | G29: 2016-06-30 | H29: 685.75
D30: 0 | E30: =D63-H3-H4-H5-H6-H7-H8-H9-H10-H11-H12-H13-H14-H15-H16-H17-H18-H19-H20-H21-H22-H23-H24-H25-H26-H27-H28-H29-H30 -> 21697.92 | F30: 28 | G30: 2016-07-31 | H30: 685.75
D31: 0 | E31: =D63-H3-H4-H5-H6-H7-H8-H9-H10-H11-H12-H13-H14-H15-H16-H17-H18-H19-H20-H21-H22-H23-H24-H25-H26-H27-H28-H29-H30-H31 -> 21012.17 | F31: 29 | G31: 2016-08-31 | H31: 685.75
D32: 0 | E32: =D63-H3-H4-H5-H6-H7-H8-H9-H10-H11-H12-H13-H14-H15-H16-H17-H18-H19-H20-H21-H22-H23-H24-H25-H26-H27-H28-H29-H30-H31-H32 -> 20326.42 | F32: 30 | G32: 2016-09-30 | H32: 685.75
D33: 0 | E33: =D63-H3-H4-H5-H6-H7-H8-H9-H10-H11-H12-H13-H14-H15-H16-H17-H18-H19-H20-H21-H22-H23-H24-H25-H26-H27-H28-H29-H30-H31-H32-H33 -> 19640.67 | F33: 31 | G33: 2016-10-31 | H33: 685.75
D34: 0 | E34: =D63-H3-H4-H5-H6-H7-H8-H9-H10-H11-H12-H13-H14-H15-H16-H17-H18-H19-H20-H21-H22-H23-H24-H25-H26-H27-H28-H29-H30-H31-H32-H33-H34 -> 18954.92 | F34: 32 | G34: 2016-11-30 | H34: 685.75
D35: 0 | E35: =D63-H3-H4-H5-H6-H7-H8-H9-H10-H11-H12-H13-H14-H15-H16-H17-H18-H19-H20-H21-H22-H23-H24-H25-H26-H27-H28-H29-H30-H31-H32-H33-H34-H35 -> 18269.17 | F35: 33 | G35: 2016-12-31 | H35: 685.75
D36: 0 | E36: =D63-H3-H4-H5-H6-H7-H8-H9-H10-H11-H12-H13-H14-H15-H16-H17-H18-H19-H20-H21-H22-H23-H24-H25-H26-H27-H28-H29-H30-H31-H32-H33-H34-H35-H36 -> 17583.42 | F36: 34 | G36: 2017-01-31 | H36: 685.75
D37: 0 | E37: =D63-H3-H4-H5-H6-H7-H8-H9-H10-H11-H12-H13-H14-H15-H16-H17-H18-H19-H20-H21-H22-H23-H24-H25-H26-H27-H28-H29-H30-H31-H32-H33-H34-H35-H36-H37 -> 16897.67 | F37: 35 | G37: 2017-02-28 | H37: 685.75
D38: 0 | E38: =D63-H3-H4-H5-H6-H7-H8-H9-H10-H11-H12-H13-H14-H15-H16-H17-H18-H19-H20-H21-H22-H23-H24-H25-H26-H27-H28-H29-H30-H31-H32-H33-H34-H35-H36-H37-H38 -> 16211.92 | F38: 36 | G38: 2017-03-31 | H38: 685.75
D39: 0 | E39: =D63-H3-H4-H5-H6-H7-H8-H9-H10-H11-H12-H13-H14-H15-H16-H17-H18-H19-H20-H21-H22-H23-H24-H25-H26-H27-H28-H29-H30-H31-H32-H33-H34-H35-H36-H37-H38-H39 -> 15526.17 | F39: 37 | G39: 2017-04-30 | H39: 685.75
D40: 0 | E40: =D63-H3-H4-H5-H6-H7-H8-H9-H10-H11-H12-H13-H14-H15-H16-H17-H18-H19-H20-H21-H22-H23-H24-H25-H26-H27-H28-H29-H30-H31-H32-H33-H34-H35-H36-H37-H38-H39-H40 -> 14840.42 | F40: 38 | G40: 2017-05-31 | H40: 685.75
D41: 0 | E41: =D63-H3-H4-H5-H6-H7-H8-H9-H10-H11-H12-H13-H14-H15-H16-H17-H18-H19-H20-H21-H22-H23-H24-H25-H26-H27-H28-H29-H30-H31-H32-H33-H34-H35-H36-H37-H38-H39-H40-H41 -> 14154.67 | F41: 39 | G41: 2017-06-30 | H41: 685.75
D42: 0 | E42: =D63-H3-H4-H5-H6-H7-H8-H9-H10-H11-H12-H13-H14-H15-H16-H17-H18-H19-H20-H21-H22-H23-H24-H25-H26-H27-H28-H29-H30-H31-H32-H33-H34-H35-H36-H37-H38-H39-H40-H41-H42 -> 13468.92 | F42: 40 | G42: 2017-07-31 | H42: 685.75
D43: 0 | E43: =D63-H3-H4-H5-H6-H7-H8-H9-H10-H11-H12-H13-H14-H15-H16-H17-H18-H19-H20-H21-H22-H23-H24-H25-H26-H27-H28-H29-H30-H31-H32-H33-H34-H35-H36-H37-H38-H39-H40-H41-H42-H43 -> 12783.17 | F43: 41 | G43: 2017-08-31 | H43: 685.75
D44: 0 | E44: =D63-H3-H4-H5-H6-H7-H8-H9-H10-H11-H12-H13-H14-H15-H16-H17-H18-H19-H20-H21-H22-H23-H24-H25-H26-H27-H28-H29-H30-H31-H32-H33-H34-H35-H36-H37-H38-H39-H40-H41-H42-H43-H44 -> 12097.42 | F44: 42 | G44: 2017-09-30 | H44: 685.75
D45: 0 | E45: =D63-H3-H4-H5-H6-H7-H8-H9-H10-H11-H12-H13-H14-H15-H16-H17-H18-H19-H20-H21-H22-H23-H24-H25-H26-H27-H28-H29-H30-H31-H32-H33-H34-H35-H36-H37-H38-H39-H40-H41-H42-H43-H44-H45 -> 11411.67 | F45: 43 | G45: 2017-10-31 | H45: 685.75
D46: 0 | E46: =D63-H3-H4-H5-H6-H7-H8-H9-H10-H11-H12-H13-H14-H15-H16-H17-H18-H19-H20-H21-H22-H23-H24-H25-H26-H27-H28-H29-H30-H31-H32-H33-H34-H35-H36-H37-H38-H39-H40-H41-H42-H43-H44-H45-H46 -> 10725.92 | F46: 44 | G46: 2017-11-30 | H46: 685.75
D47: 0 | E47: =D63-H3-H4-H5-H6-H7-H8-H9-H10-H11-H12-H13-H14-H15-H16-H17-H18-H19-H20-H21-H22-H23-H24-H25-H26-H27-H28-H29-H30-H31-H32-H33-H34-H35-H36-H37-H38-H39-H40-H41-H42-H43-H44-H45-H46-H47 -> 10040.17 | F47: 45 | G47: 2017-12-31 | H47: 685.75
D48: 0 | E48: =D63-H3-H4-H5-H6-H7-H8-H9-H10-H11-H12-H13-H14-H15-H16-H17-H18-H19-H20-H21-H22-H23-H24-H25-H26-H27-H28-H29-H30-H31-H32-H33-H34-H35-H36-H37-H38-H39-H40-H41-H42-H43-H44-H45-H46-H47-H48 -> 9354.42 | F48: 46 | G48: 2018-01-31 | H48: 685.75
D49: 0 | E49: =D63-H3-H4-H5-H6-H7-H8-H9-H10-H11-H12-H13-H14-H15-H16-H17-H18-H19-H20-H21-H22-H23-H24-H25-H26-H27-H28-H29-H30-H31-H32-H33-H34-H35-H36-H37-H38-H39-H40-H41-H42-H43-H44-H45-H46-H47-H48-H49 -> 8668.67 | F49: 47 | G49: 2018-02-28 | H49: 685.75
D50: 0 | E50: =D63-H3-H4-H5-H6-H7-H8-H9-H10-H11-H12-H13-H14-H15-H16-H17-H18-H19-H20-H21-H22-H23-H24-H25-H26-H27-H28-H29-H30-H31-H32-H33-H34-H35-H36-H37-H38-H39-H40-H41-H42-H43-H44-H45-H46-H47-H48-H49-H50 -> 7982.92 | F50: 48 | G50: 2018-03-31 | H50: 685.75
D51: 0 | E51: =D63-H3-H4-H5-H6-H7-H8-H9-H10-H11-H12-H13-H14-H15-H16-H17-H18-H19-H20-H21-H22-H23-H24-H25-H26-H27-H28-H29-H30-H31-H32-H33-H34-H35-H36-H37-H38-H39-H40-H41-H42-H43-H44-H45-H46-H47-H48-H49-H50-H51 -> 7297.17 | F51: 49 | G51: 2018-04-30 | H51: 685.75
D52: 0 | E52: =D63-H3-H4-H5-H6-H7-H8-H9-H10-H11-H12-H13-H14-H15-H16-H17-H18-H19-H20-H21-H22-H23-H24-H25-H26-H27-H28-H29-H30-H31-H32-H33-H34-H35-H36-H37-H38-H39-H40-H41-H42-H43-H44-H45-H46-H47-H48-H49-H50-H51-H52 -> 6611.42 | F52: 50 | G52: 2018-05-31 | H52: 685.75
D53: 0 | E53: =D63-H3-H4-H5-H6-H7-H8-H9-H10-H11-H12-H13-H14-H15-H16-H17-H18-H19-H20-H21-H22-H23-H24-H25-H26-H27-H28-H29-H30-H31-H32-H33-H34-H35-H36-H37-H38-H39-H40-H41-H42-H43-H44-H45-H46-H47-H48-H49-H50-H51-H52-H53 -> 5925.67 | F53: 51 | G53: 2018-06-30 | H53: 685.75
D54: 0 | E54: =D63-H3-H4-H5-H6-H7-H8-H9-H10-H11-H12-H13-H14-H15-H16-H17-H18-H19-H20-H21-H22-H23-H24-H25-H26-H27-H28-H29-H30-H31-H32-H33-H34-H35-H36-H37-H38-H39-H40-H41-H42-H43-H44-H45-H46-H47-H48-H49-H50-H51-H52-H53-H54 -> 5239.92 | F54: 52 | G54: 2018-07-31 | H54: 685.75
D55: 0 | E55: =D63-H3-H4-H5-H6-H7-H8-H9-H10-H11-H12-H13-H14-H15-H16-H17-H18-H19-H20-H21-H22-H23-H24-H25-H26-H27-H28-H29-H30-H31-H32-H33-H34-H35-H36-H37-H38-H39-H40-H41-H42-H43-H44-H45-H46-H47-H48-H49-H50-H51-H52-H53-H54-H55 -> 4554.17 | F55: 53 | G55: 2018-08-31 | H55: 685.75
D56: 0 | E56: =D63-H3-H4-H5-H6-H7-H8-H9-H10-H11-H12-H13-H14-H15-H16-H17-H18-H19-H20-H21-H22-H23-H24-H25-H26-H27-H28-H29-H30-H31-H32-H33-H34-H35-H36-H37-H38-H39-H40-H41-H42-H43-H44-H45-H46-H47-H48-H49-H50-H51-H52-H53-H54-H55-H56 -> 3868.42 | F56: 54 | G56: 2018-09-30 | H56: 685.75
D57: 0 | E57: =D63-H3-H4-H5-H6-H7-H8-H9-H10-H11-H12-H13-H14-H15-H16-H17-H18-H19-H20-H21-H22-H23-H24-H25-H26-H27-H28-H29-H30-H31-H32-H33-H34-H35-H36-H37-H38-H39-H40-H41-H42-H43-H44-H45-H46-H47-H48-H49-H50-H51-H52-H53-H54-H55-H56-H57 -> 3182.67 | F57: 55 | G57: 2018-10-31 | H57: 685.75
D58: 0 | E58: =D63-H3-H4-H5-H6-H7-H8-H9-H10-H11-H12-H13-H14-H15-H16-H17-H18-H19-H20-H21-H22-H23-H24-H25-H26-H27-H28-H29-H30-H31-H32-H33-H34-H35-H36-H37-H38-H39-H40-H41-H42-H43-H44-H45-H46-H47-H48-H49-H50-H51-H52-H53-H54-H55-H56-H57-H58 -> 2496.92 | F58: 56 | G58: 2018-11-30 | H58: 685.75
D59: 0 | E59: =D63-H3-H4-H5-H6-H7-H8-H9-H10-H11-H12-H13-H14-H15-H16-H17-H18-H19-H20-H21-H22-H23-H24-H25-H26-H27-H28-H29-H30-H31-H32-H33-H34-H35-H36-H37-H38-H39-H40-H41-H42-H43-H44-H45-H46-H47-H48-H49-H50-H51-H52-H53-H54-H55-H56-H57-H58-H59 -> 1811.17 | F59: 57 | G59: 2018-12-31 | H59: 685.75
D60: 0 | E60: =D63-H3-H4-H5-H6-H7-H8-H9-H10-H11-H12-H13-H14-H15-H16-H17-H18-H19-H20-H21-H22-H23-H24-H25-H26-H27-H28-H29-H30-H31-H32-H33-H34-H35-H36-H37-H38-H39-H40-H41-H42-H43-H44-H45-H46-H47-H48-H49-H50-H51-H52-H53-H54-H55-H56-H57-H58-H59-H60 -> 1125.42 | F60: 58 | G60: 2019-01-31 | H60: 685.75
D61: 0 | E61: =D63-H3-H4-H5-H6-H7-H8-H9-H10-H11-H12-H13-H14-H15-H16-H17-H18-H19-H20-H21-H22-H23-H24-H25-H26-H27-H28-H29-H30-H31-H32-H33-H34-H35-H36-H37-H38-H39-H40-H41-H42-H43-H44-H45-H46-H47-H48-H49-H50-H51-H52-H53-H54-H55-H56-H57-H58-H59-H60-H61 -> 439.67 | F61: 59 | G61: 2019-02-28 | H61: 685.75
D62: 0 | E62: =D63-H3-H4-H5-H6-H7-H8-H9-H10-H11-H12-H13-H14-H15-H16-H17-H18-H19-H20-H21-H22-H23-H24-H25-H26-H27-H28-H29-H30-H31-H32-H33-H34-H35-H36-H37-H38-H39-H40-H41-H42-H43-H44-H45-H46-H47-H48-H49-H50-H51-H52-H53-H54-H55-H56-H57-H58-H59-H60-H61-H62 -> -246.08 | F62: 60 | G62: 2019-03-31 | H62: 685.75
A63: TOTAL | B63: =SUM(B3:B62) -> 41145 | C63: =SUM(C3:C62) -> 0 | D63: =SUM(D3:D62) -> 41145 | G63: Total | H63: =SUM(H3:H62) -> 41391.08
A65: DADOS PARA DEPÓSITO E CONTATO
B66: DARF

Sheet Golden PIS div. ativa
A1: PIS DÍVIDA ATIVA 1 MAIS 2 PARC. VALOR DA PARCELA 597,45 | F1: N° | G1: Parcelam. feito 17/04/2014
A2: PIS | B2: VALOR | C2: JUROS | D2: TOTAL | E2: SALDO DEV. | G2: DATAS | H2: VLR. PARCELA | I2: PAGO DIA
B3: 1792.35 | D3: =SUM(B3:C3) -> 1792.35 | E3: =D63-H3 -> 1194.9 | F3: 1 | G3: 2014-04-17 | H3: 597.45 | I3: 2014-04-17
D4: =SUM(B4:C4) -> 0 | E4: =D63-H3-H4 -> 588.05 | F4: 2 | G4: 2014-05-30 | H4: 606.85 | I4: 2014-05-30
D5: 0 | E5: =D63-H3-H4-H5 -> -9.4 | F5: 3 | G5: 2014-06-30 | H5: 597.45 | J5: Não foi paga
D6: 0 | E6: =D63-H3-H4-H5-H6 -> -9.4 | F6: 4 | G6: 2014-07-30 | H6: 0 | I6: 00:00:00
D7: 0 | E7: =D63-H3-H4-H5-H6-H7 -> -621.35 | F7: 5 | G7: 2014-08-30 | H7: 611.95 | I7: 2014-08-29
D8: 0 | E8: =D63-H3-H4-H5-H6-H7-H8 -> -621.35 | F8: 6 | G8: 2014-09-30
D9: 0 | E9: =D63-H3-H4-H5-H6-H7-H8-H9 -> -621.35 | F9: 7 | G9: 2014-10-30
D10: 0 | E10: =D63-H3-H4-H5-H6-H7-H8-H9-H10 -> -621.35 | F10: 8 | G10: 2014-11-30
D11: 0 | E11: =D63-H3-H4-H5-H6-H7-H8-H9-H10-H11 -> -621.35 | F11: 9 | G11: 2014-12-30
D12: 0 | E12: =D63-H3-H4-H5-H6-H7-H8-H9-H10-H11-H12 -> -621.35 | F12: 10 | G12: 2015-01-30
D13: 0 | E13: =D63-H3-H4-H5-H6-H7-H8-H9-H10-H11-H12-H13 -> -621.35 | F13: 11 | G13: 2015-02-28
D14: 0 | E14: =D63-H3-H4-H5-H6-H7-H8-H9-H10-H11-H12-H13-H14 -> -621.35 | F14: 12 | G14: 2015-03-30
D15: 0 | E15: =D63-H3-H4-H5-H6-H7-H8-H9-H10-H11-H12-H13-H14-H15 -> -621.35 | F15: 13 | G15: 2015-04-30
D16: 0 | E16: =D63-H3-H4-H5-H6-H7-H8-H9-H10-H11-H12-H13-H14-H15-H16 -> -621.35 | F16: 14 | G16: 2015-05-30
D17: 0 | E17: =D63-H3-H4-H5-H6-H7-H8-H9-H10-H11-H12-H13-H14-H15-H16-H17 -> -621.35 | F17: 15 | G17: 2015-06-30
D18: 0 | E18: =D63-H3-H4-H5-H6-H7-H8-H9-H10-H11-H12-H13-H14-H15-H16-H17-H18 -> -621.35 | F18: 16 | G18: 2015-07-30
D19: 0 | E19: =D63-H3-H4-H5-H6-H7-H8-H9-H10-H11-H12-H13-H14-H15-H16-H17-H18-H19 -> -621.35 | F19: 17 | G19: 2015-08-30
D20: 0 | E20: =D63-H3-H4-H5-H6-H7-H8-H9-H10-H11-H12-H13-H14-H15-H16-H17-H18-H19-H20 -> -621.35 | F20: 18 | G20: 2015-09-30
D21: 0 | E21: =D63-H3-H4-H5-H6-H7-H8-H9-H10-H11-H12-H13-H14-H15-H16-H17-H18-H19-H20-H21 -> -621.35 | F21: 19 | G21: 2015-10-30
D22: 0 | E22: =D63-H3-H4-H5-H6-H7-H8-H9-H10-H11-H12-H13-H14-H15-H16-H17-H18-H19-H20-H21-H22 -> -621.35 | F22: 20 | G22: 2015-11-30
D23: 0 | E23: =D63-H3-H4-H5-H6-H7-H8-H9-H10-H11-H12-H13-H14-H15-H16-H17-H18-H19-H20-H21-H22-H23 -> -621.35 | F23: 21 | G23: 2015-12-30
D24: 0 | E24: =D63-H3-H4-H5-H6-H7-H8-H9-H10-H11-H12-H13-H14-H15-H16-H17-H18-H19-H20-H21-H22-H23-H24 -> -621.35 | F24: 22 | G24: 2016-01-30
D25: 0 | E25: =D63-H3-H4-H5-H6-H7-H8-H9-H10-H11-H12-H13-H14-H15-H16-H17-H18-H19-H20-H21-H22-H23-H24-H25 -> -621.35 | F25: 23 | G25: 2016-02-29
D26: 0 | E26: =D63-H3-H4-H5-H6-H7-H8-H9-H10-H11-H12-H13-H14-H15-H16-H17-H18-H19-H20-H21-H22-H23-H24-H25-H26 -> -621.35 | F26: 24 | G26: 2016-03-30
D27: 0 | E27: =D63-H3-H4-H5-H6-H7-H8-H9-H10-H11-H12-H13-H14-H15-H16-H17-H18-H19-H20-H21-H22-H23-H24-H25-H26-H27 -> -621.35 | F27: 25 | G27: 2016-04-30
D28: 0 | E28: =D63-H3-H4-H5-H6-H7-H8-H9-H10-H11-H12-H13-H14-H15-H16-H17-H18-H19-H20-H21-H22-H23-H24-H25-H26-H27-H28 -> -621.35 | F28: 26 | G28: 2016-05-30
D29: 0 | E29: =D63-H3-H4-H5-H6-H7-H8-H9-H10-H11-H12-H13-H14-H15-H16-H17-H18-H19-H20-H21-H22-H23-H24-H25-H26-H27-H28-H29 -> -621.35 | F29: 27 | G29: 2016-06-30
D30: 0 | E30: =D63-H3-H4-H5-H6-H7-H8-H9-H10-H11-H12-H13-H14-H15-H16-H17-H18-H19-H20-H21-H22-H23-H24-H25-H26-H27-H28-H29-H30 -> -621.35 | F30: 28 | G30: 2016-07-30
D31: 0 | E31: =D63-H3-H4-H5-H6-H7-H8-H9-H10-H11-H12-H13-H14-H15-H16-H17-H18-H19-H20-H21-H22-H23-H24-H25-H26-H27-H28-H29-H30-H31 -> -621.35 | F31: 29 | G31: 2016-08-30
D32: 0 | E32: =D63-H3-H4-H5-H6-H7-H8-H9-H10-H11-H12-H13-H14-H15-H16-H17-H18-H19-H20-H21-H22-H23-H24-H25-H26-H27-H28-H29-H30-H31-H32 -> -621.35 | F32: 30 | G32: 2016-09-30
D33: 0 | E33: =D63-H3-H4-H5-H6-H7-H8-H9-H10-H11-H12-H13-H14-H15-H16-H17-H18-H19-H20-H21-H22-H23-H24-H25-H26-H27-H28-H29-H30-H31-H32-H33 -> -621.35 | F33: 31 | G33: 2016-10-30
D34: 0 | E34: =D63-H3-H4-H5-H6-H7-H8-H9-H10-H11-H12-H13-H14-H15-H16-H17-H18-H19-H20-H21-H22-H23-H24-H25-H26-H27-H28-H29-H30-H31-H32-H33-H34 -> -621.35 | F34: 32 | G34: 2016-11-30
D35: 0 | E35: =D63-H3-H4-H5-H6-H7-H8-H9-H10-H11-H12-H13-H14-H15-H16-H17-H18-H19-H20-H21-H22-H23-H24-H25-H26-H27-H28-H29-H30-H31-H32-H33-H34-H35 -> -621.35 | F35: 33 | G35: 2016-12-30
D36: 0 | E36: =D63-H3-H4-H5-H6-H7-H8-H9-H10-H11-H12-H13-H14-H15-H16-H17-H18-H19-H20-H21-H22-H23-H24-H25-H26-H27-H28-H29-H30-H31-H32-H33-H34-H35-H36 -> -621.35 | F36: 34 | G36: 2017-01-30
D37: 0 | E37: =D63-H3-H4-H5-H6-H7-H8-H9-H10-H11-H12-H13-H14-H15-H16-H17-H18-H19-H20-H21-H22-H23-H24-H25-H26-H27-H28-H29-H30-H31-H32-H33-H34-H35-H36-H37 -> -621.35 | F37: 35 | G37: 2017-02-28
D38: 0 | E38: =D63-H3-H4-H5-H6-H7-H8-H9-H10-H11-H12-H13-H14-H15-H16-H17-H18-H19-H20-H21-H22-H23-H24-H25-H26-H27-H28-H29-H30-H31-H32-H33-H34-H35-H36-H37-H38 -> -621.35 | F38: 36 | G38: 2017-03-30
D39: 0 | E39: =D63-H3-H4-H5-H6-H7-H8-H9-H10-H11-H12-H13-H14-H15-H16-H17-H18-H19-H20-H21-H22-H23-H24-H25-H26-H27-H28-H29-H30-H31-H32-H33-H34-H35-H36-H37-H38-H39 -> -621.35 | F39: 37 | G39: 2017-04-30
D40: 0 | E40: =D63-H3-H4-H5-H6-H7-H8-H9-H10-H11-H12-H13-H14-H15-H16-H17-H18-H19-H20-H21-H22-H23-H24-H25-H26-H27-H28-H29-H30-H31-H32-H33-H34-H35-H36-H37-H38-H39-H40 -> -621.35 | F40: 38 | G40: 2017-05-30
D41: 0 | E41: =D63-H3-H4-H5-H6-H7-H8-H9-H10-H11-H12-H13-H14-H15-H16-H17-H18-H19-H20-H21-H22-H23-H24-H25-H26-H27-H28-H29-H30-H31-H32-H33-H34-H35-H36-H37-H38-H39-H40-H41 -> -621.35 | F41: 39 | G41: 2017-06-30
D42: 0 | E42: =D63-H3-H4-H5-H6-H7-H8-H9-H10-H11-H12-H13-H14-H15-H16-H17-H18-H19-H20-H21-H22-H23-H24-H25-H26-H27-H28-H29-H30-H31-H32-H33-H34-H35-H36-H37-H38-H39-H40-H41-H42 -> -621.35 | F42: 40 | G42: 2017-07-30
D43: 0 | E43: =D63-H3-H4-H5-H6-H7-H8-H9-H10-H11-H12-H13-H14-H15-H16-H17-H18-H19-H20-H21-H22-H23-H24-H25-H26-H27-H28-H29-H30-H31-H32-H33-H34-H35-H36-H37-H38-H39-H40-H41-H42-H43 -> -621.35 | F43: 41 | G43: 2017-08-30
D44: 0 | E44: =D63-H3-H4-H5-H6-H7-H8-H9-H10-H11-H12-H13-H14-H15-H16-H17-H18-H19-H20-H21-H22-H23-H24-H25-H26-H27-H28-H29-H30-H31-H32-H33-H34-H35-H36-H37-H38-H39-H40-H41-H42-H43-H44 -> -621.35 | F44: 42 | G44: 2017-09-30
D45: 0 | E45: =D63-H3-H4-H5-H6-H7-H8-H9-H10-H11-H12-H13-H14-H15-H16-H17-H18-H19-H20-H21-H22-H23-H24-H25-H26-H27-H28-H29-H30-H31-H32-H33-H34-H35-H36-H37-H38-H39-H40-H41-H42-H43-H44-H45 -> -621.35 | F45: 43 | G45: 2017-10-30
D46: 0 | E46: =D63-H3-H4-H5-H6-H7-H8-H9-H10-H11-H12-H13-H14-H15-H16-H17-H18-H19-H20-H21-H22-H23-H24-H25-H26-H27-H28-H29-H30-H31-H32-H33-H34-H35-H36-H37-H38-H39-H40-H41-H42-H43-H44-H45-H46 -> -621.35 | F46: 44 | G46: 2017-11-30
D47: 0 | E47: =D63-H3-H4-H5-H6-H7-H8-H9-H10-H11-H12-H13-H14-H15-H16-H17-H18-H19-H20-H21-H22-H23-H24-H25-H26-H27-H28-H29-H30-H31-H32-H33-H34-H35-H36-H37-H38-H39-H40-H41-H42-H43-H44-H45-H46-H47 -> -621.35 | F47: 45 | G47: 2017-12-30
D48: 0 | E48: =D63-H3-H4-H5-H6-H7-H8-H9-H10-H11-H12-H13-H14-H15-H16-H17-H18-H19-H20-H21-H22-H23-H24-H25-H26-H27-H28-H29-H30-H31-H32-H33-H34-H35-H36-H37-H38-H39-H40-H41-H42-H43-H44-H45-H46-H47-H48 -> -621.35 | F48: 46 | G48: 2018-01-30
D49: 0 | E49: =D63-H3-H4-H5-H6-H7-H8-H9-H10-H11-H12-H13-H14-H15-H16-H17-H18-H19-H20-H21-H22-H23-H24-H25-H26-H27-H28-H29-H30-H31-H32-H33-H34-H35-H36-H37-H38-H39-H40-H41-H42-H43-H44-H45-H46-H47-H48-H49 -> -621.35 | F49: 47 | G49: 2018-02-28
D50: 0 | E50: =D63-H3-H4-H5-H6-H7-H8-H9-H10-H11-H12-H13-H14-H15-H16-H17-H18-H19-H20-H21-H22-H23-H24-H25-H26-H27-H28-H29-H30-H31-H32-H33-H34-H35-H36-H37-H38-H39-H40-H41-H42-H43-H44-H45-H46-H47-H48-H49-H50 -> -621.35 | F50: 48 | G50: 2018-03-30
D51: 0 | E51: =D111 -> 0 | F51: 49 | G51: 2018-04-30
D52: 0 | E52: 0 | F52: 50 | G52: 2018-05-30
D53: 0 | E53: 0 | F53: 51 | G53: 2018-06-30
D54: 0 | E54: 0 | F54: 52 | G54: 2018-07-30
D55: 0 | E55: 0 | F55: 53 | G55: 2018-08-30
D56: 0 | E56: 0 | F56: 54 | G56: 2018-09-30
D57: 0 | E57: 0 | F57: 55 | G57: 2018-10-30
D58: 0 | E58: 0 | F58: 56 | G58: 2018-11-30
D59: 0 | E59: 0 | F59: 57 | G59: 2018-12-30
D60: 0 | E60: 0 | F60: 58 | G60: 2019-01-30
D61: 0 | E61: 0 | F61: 59 | G61: 2019-02-28
D62: 0 | E62: 0 | F62: 60 | G62: 2019-03-30
A63: TOTAL | B63: =SUM(B3:B62) -> 1792.35 | C63: =SUM(C3:C62) -> 0 | D63: =SUM(D3:D62) -> 1792.35 | G63: Total | H63: =SUM(H3:H62) -> 2413.7
A65: DADOS PARA DEPÓSITO E CONTATO
B66: DARF

Sheet Golden PIS div. ativa (2)
A1: PIS DÍVIDA ATIVA 23 PARC. VALOR DA PARCELA 514,57 | F1: N° | G1: Parcelam. feito 17/04/2014
A2: PIS | B2: VALOR | C2: JUROS | D2: TOTAL | E2: SALDO DEV. | G2: DATAS | H2: VLR. PARCELA | I2: PAGO DIA
B3: 11835.11 | D3: =SUM(B3:C3) -> 11835.11 | E3: =D63-H3 -> 11320.54 | F3: 1 | G3: 2014-04-30 | H3: 514.57 | I3: 2014-04-30
D4: =SUM(B4:C4) -> 0 | E4: =D63-H3-H4 -> 10801.8 | F4: 2 | G4: 2014-05-31 | H4: 518.74 | I4: 2014-05-30
D5: 0 | E5: =D63-H3-H4-H5 -> 10287.23 | F5: 3 | G5: 2014-06-30 | H5: 514.57 | J5: Não foi paga
D6: 0 | E6: =D63-H3-H4-H5-H6 -> 9759.87 | F6: 4 | G6: 2014-07-31 | H6: 527.36 | I6: 2014-07-31
D7: 0 | E7: =D63-H3-H4-H5-H6-H7 -> 9227.67 | F7: 5 | G7: 2014-08-31 | H7: 532.2 | J7: Não foi paga
D8: 0 | E8: =D63-H3-H4-H5-H6-H7-H8 -> 8713.1 | F8: 6 | G8: 2014-09-30 | H8: 514.57 | J8: Não foi paga
D9: 0 | E9: =D63-H3-H4-H5-H6-H7-H8-H9 -> 8198.53 | F9: 7 | G9: 2014-10-31 | H9: 514.57 | J9: Parc. Cancelado
D10: 0 | E10: =D63-H3-H4-H5-H6-H7-H8-H9-H10 -> 7683.96 | F10: 8 | G10: 2014-11-30 | H10: 514.57
D11: 0 | E11: =D63-H3-H4-H5-H6-H7-H8-H9-H10-H11 -> 7169.39 | F11: 9 | G11: 2014-12-31 | H11: 514.57
D12: 0 | E12: =D63-H3-H4-H5-H6-H7-H8-H9-H10-H11-H12 -> 6654.82 | F12: 10 | G12: 2015-01-31 | H12: 514.57
D13: 0 | E13: =D63-H3-H4-H5-H6-H7-H8-H9-H10-H11-H12-H13 -> 6140.25 | F13: 11 | G13: 2015-02-28 | H13: 514.57
D14: 0 | E14: =D63-H3-H4-H5-H6-H7-H8-H9-H10-H11-H12-H13-H14 -> 5625.68 | F14: 12 | G14: 2015-03-31 | H14: 514.57
D15: 0 | E15: =D63-H3-H4-H5-H6-H7-H8-H9-H10-H11-H12-H13-H14-H15 -> 5111.11 | F15: 13 | G15: 2015-04-30 | H15: 514.57
D16: 0 | E16: =D63-H3-H4-H5-H6-H7-H8-H9-H10-H11-H12-H13-H14-H15-H16 -> 4596.54 | F16: 14 | G16: 2015-05-31 | H16: 514.57
D17: 0 | E17: =D63-H3-H4-H5-H6-H7-H8-H9-H10-H11-H12-H13-H14-H15-H16-H17 -> 4081.97 | F17: 15 | G17: 2015-06-30 | H17: 514.57
D18: 0 | E18: =D63-H3-H4-H5-H6-H7-H8-H9-H10-H11-H12-H13-H14-H15-H16-H17-H18 -> 3567.4 | F18: 16 | G18: 2015-07-31 | H18: 514.57
D19: 0 | E19: =D63-H3-H4-H5-H6-H7-H8-H9-H10-H11-H12-H13-H14-H15-H16-H17-H18-H19 -> 3052.83 | F19: 17 | G19: 2015-08-31 | H19: 514.57
D20: 0 | E20: =D63-H3-H4-H5-H6-H7-H8-H9-H10-H11-H12-H13-H14-H15-H16-H17-H18-H19-H20 -> 2538.26 | F20: 18 | G20: 2015-09-30 | H20: 514.57
D21: 0 | E21: =D63-H3-H4-H5-H6-H7-H8-H9-H10-H11-H12-H13-H14-H15-H16-H17-H18-H19-H20-H21 -> 2023.69 | F21: 19 | G21: 2015-10-31 | H21: 514.57
D22: 0 | E22: =D63-H3-H4-H5-H6-H7-H8-H9-H10-H11-H12-H13-H14-H15-H16-H17-H18-H19-H20-H21-H22 -> 1509.12 | F22: 20 | G22: 2015-11-30 | H22: 514.57
D23: 0 | E23: =D63-H3-H4-H5-H6-H7-H8-H9-H10-H11-H12-H13-H14-H15-H16-H17-H18-H19-H20-H21-H22-H23 -> 994.55 | F23: 21 | G23: 2015-12-31 | H23: 514.57
D24: 0 | E24: =D63-H3-H4-H5-H6-H7-H8-H9-H10-H11-H12-H13-H14-H15-H16-H17-H18-H19-H20-H21-H22-H23-H24 -> 479.98 | F24: 22 | G24: 2016-01-31 | H24: 514.57
D25: 0 | E25: =D63-H3-H4-H5-H6-H7-H8-H9-H10-H11-H12-H13-H14-H15-H16-H17-H18-H19-H20-H21-H22-H23-H24-H25 -> -34.59 | F25: 23 | G25: 2016-02-29 | H25: 514.57
D26: 0 | E26: =D63-H3-H4-H5-H6-H7-H8-H9-H10-H11-H12-H13-H14-H15-H16-H17-H18-H19-H20-H21-H22-H23-H24-H25-H26 -> -34.59 | F26: 24 | G26: 2016-03-31
D27: 0 | E27: =D63-H3-H4-H5-H6-H7-H8-H9-H10-H11-H12-H13-H14-H15-H16-H17-H18-H19-H20-H21-H22-H23-H24-H25-H26-H27 -> -34.59 | F27: 25 | G27: 2016-04-30
D28: 0 | E28: =D63-H3-H4-H5-H6-H7-H8-H9-H10-H11-H12-H13-H14-H15-H16-H17-H18-H19-H20-H21-H22-H23-H24-H25-H26-H27-H28 -> -34.59 | F28: 26 | G28: 2016-05-31
D29: 0 | E29: =D63-H3-H4-H5-H6-H7-H8-H9-H10-H11-H12-H13-H14-H15-H16-H17-H18-H19-H20-H21-H22-H23-H24-H25-H26-H27-H28-H29 -> -34.59 | F29: 27 | G29: 2016-06-30
D30: 0 | E30: =D63-H3-H4-H5-H6-H7-H8-H9-H10-H11-H12-H13-H14-H15-H16-H17-H18-H19-H20-H21-H22-H23-H24-H25-H26-H27-H28-H29-H30 -> -34.59 | F30: 28 | G30: 2016-07-31
D31: 0 | E31: =D63-H3-H4-H5-H6-H7-H8-H9-H10-H11-H12-H13-H14-H15-H16-H17-H18-H19-H20-H21-H22-H23-H24-H25-H26-H27-H28-H29-H30-H31 -> -34.59 | F31: 29 | G31: 2016-08-31
D32: 0 | E32: =D63-H3-H4-H5-H6-H7-H8-H9-H10-H11-H12-H13-H14-H15-H16-H17-H18-H19-H20-H21-H22-H23-H24-H25-H26-H27-H28-H29-H30-H31-H32 -> -34.59 | F32: 30 | G32: 2016-09-30
D33: 0 | E33: =D63-H3-H4-H5-H6-H7-H8-H9-H10-H11-H12-H13-H14-H15-H16-H17-H18-H19-H20-H21-H22-H23-H24-H25-H26-H27-H28-H29-H30-H31-H32-H33 -> -34.59 | F33: 31 | G33: 2016-10-31
D34: 0 | E34: =D63-H3-H4-H5-H6-H7-H8-H9-H10-H11-H12-H13-H14-H15-H16-H17-H18-H19-H20-H21-H22-H23-H24-H25-H26-H27-H28-H29-H30-H31-H32-H33-H34 -> -34.59 | F34: 32 | G34: 2016-11-30
D35: 0 | E35: =D63-H3-H4-H5-H6-H7-H8-H9-H10-H11-H12-H13-H14-H15-H16-H17-H18-H19-H20-H21-H22-H23-H24-H25-H26-H27-H28-H29-H30-H31-H32-H33-H34-H35 -> -34.59 | F35: 33 | G35: 2016-12-31
D36: 0 | E36: =D63-H3-H4-H5-H6-H7-H8-H9-H10-H11-H12-H13-H14-H15-H16-H17-H18-H19-H20-H21-H22-H23-H24-H25-H26-H27-H28-H29-H30-H31-H32-H33-H34-H35-H36 -> -34.59 | F36: 34 | G36: 2017-01-31
D37: 0 | E37: =D63-H3-H4-H5-H6-H7-H8-H9-H10-H11-H12-H13-H14-H15-H16-H17-H18-H19-H20-H21-H22-H23-H24-H25-H26-H27-H28-H29-H30-H31-H32-H33-H34-H35-H36-H37 -> -34.59 | F37: 35 | G37: 2017-02-28
D38: 0 | E38: =D63-H3-H4-H5-H6-H7-H8-H9-H10-H11-H12-H13-H14-H15-H16-H17-H18-H19-H20-H21-H22-H23-H24-H25-H26-H27-H28-H29-H30-H31-H32-H33-H34-H35-H36-H37-H38 -> -34.59 | F38: 36 | G38: 2017-03-31
D39: 0 | E39: =D63-H3-H4-H5-H6-H7-H8-H9-H10-H11-H12-H13-H14-H15-H16-H17-H18-H19-H20-H21-H22-H23-H24-H25-H26-H27-H28-H29-H30-H31-H32-H33-H34-H35-H36-H37-H38-H39 -> -34.59 | F39: 37 | G39: 2017-04-30
D40: 0 | E40: =D63-H3-H4-H5-H6-H7-H8-H9-H10-H11-H12-H13-H14-H15-H16-H17-H18-H19-H20-H21-H22-H23-H24-H25-H26-H27-H28-H29-H30-H31-H32-H33-H34-H35-H36-H37-H38-H39-H40 -> -34.59 | F40: 38 | G40: 2017-05-31
D41: 0 | E41: =D63-H3-H4-H5-H6-H7-H8-H9-H10-H11-H12-H13-H14-H15-H16-H17-H18-H19-H20-H21-H22-H23-H24-H25-H26-H27-H28-H29-H30-H31-H32-H33-H34-H35-H36-H37-H38-H39-H40-H41 -> -34.59 | F41: 39 | G41: 2017-06-30
D42: 0 | E42: =D63-H3-H4-H5-H6-H7-H8-H9-H10-H11-H12-H13-H14-H15-H16-H17-H18-H19-H20-H21-H22-H23-H24-H25-H26-H27-H28-H29-H30-H31-H32-H33-H34-H35-H36-H37-H38-H39-H40-H41-H42 -> -34.59 | F42: 40 | G42: 2017-07-31
D43: 0 | E43: =D63-H3-H4-H5-H6-H7-H8-H9-H10-H11-H12-H13-H14-H15-H16-H17-H18-H19-H20-H21-H22-H23-H24-H25-H26-H27-H28-H29-H30-H31-H32-H33-H34-H35-H36-H37-H38-H39-H40-H41-H42-H43 -> -34.59 | F43: 41 | G43: 2017-08-31
D44: 0 | E44: =D63-H3-H4-H5-H6-H7-H8-H9-H10-H11-H12-H13-H14-H15-H16-H17-H18-H19-H20-H21-H22-H23-H24-H25-H26-H27-H28-H29-H30-H31-H32-H33-H34-H35-H36-H37-H38-H39-H40-H41-H42-H43-H44 -> -34.59 | F44: 42 | G44: 2017-09-30
D45: 0 | E45: =D63-H3-H4-H5-H6-H7-H8-H9-H10-H11-H12-H13-H14-H15-H16-H17-H18-H19-H20-H21-H22-H23-H24-H25-H26-H27-H28-H29-H30-H31-H32-H33-H34-H35-H36-H37-H38-H39-H40-H41-H42-H43-H44-H45 -> -34.59 | F45: 43 | G45: 2017-10-31
D46: 0 | E46: =D63-H3-H4-H5-H6-H7-H8-H9-H10-H11-H12-H13-H14-H15-H16-H17-H18-H19-H20-H21-H22-H23-H24-H25-H26-H27-H28-H29-H30-H31-H32-H33-H34-H35-H36-H37-H38-H39-H40-H41-H42-H43-H44-H45-H46 -> -34.59 | F46: 44 | G46: 2017-11-30
D47: 0 | E47: =D63-H3-H4-H5-H6-H7-H8-H9-H10-H11-H12-H13-H14-H15-H16-H17-H18-H19-H20-H21-H22-H23-H24-H25-H26-H27-H28-H29-H30-H31-H32-H33-H34-H35-H36-H37-H38-H39-H40-H41-H42-H43-H44-H45-H46-H47 -> -34.59 | F47: 45 | G47: 2017-12-31
D48: 0 | E48: =D63-H3-H4-H5-H6-H7-H8-H9-H10-H11-H12-H13-H14-H15-H16-H17-H18-H19-H20-H21-H22-H23-H24-H25-H26-H27-H28-H29-H30-H31-H32-H33-H34-H35-H36-H37-H38-H39-H40-H41-H42-H43-H44-H45-H46-H47-H48 -> -34.59 | F48: 46 | G48: 2018-01-31
D49: 0 | E49: =D63-H3-H4-H5-H6-H7-H8-H9-H10-H11-H12-H13-H14-H15-H16-H17-H18-H19-H20-H21-H22-H23-H24-H25-H26-H27-H28-H29-H30-H31-H32-H33-H34-H35-H36-H37-H38-H39-H40-H41-H42-H43-H44-H45-H46-H47-H48-H49 -> -34.59 | F49: 47 | G49: 2018-02-28
D50: 0 | E50: =D63-H3-H4-H5-H6-H7-H8-H9-H10-H11-H12-H13-H14-H15-H16-H17-H18-H19-H20-H21-H22-H23-H24-H25-H26-H27-H28-H29-H30-H31-H32-H33-H34-H35-H36-H37-H38-H39-H40-H41-H42-H43-H44-H45-H46-H47-H48-H49-H50 -> -34.59 | F50: 48 | G50: 2018-03-31
D51: 0 | E51: =D63-H3-H4-H5-H6-H7-H8-H9-H10-H11-H12-H13-H14-H15-H16-H17-H18-H19-H20-H21-H22-H23-H24-H25-H26-H27-H28-H29-H30-H31-H32-H33-H34-H35-H36-H37-H38-H39-H40-H41-H42-H43-H44-H45-H46-H47-H48-H49-H50-H51 -> -34.59 | F51: 49 | G51: 2018-04-30
D52: 0 | E52: =D63-H3-H4-H5-H6-H7-H8-H9-H10-H11-H12-H13-H14-H15-H16-H17-H18-H19-H20-H21-H22-H23-H24-H25-H26-H27-H28-H29-H30-H31-H32-H33-H34-H35-H36-H37-H38-H39-H40-H41-H42-H43-H44-H45-H46-H47-H48-H49-H50-H51-H52 -> -34.59 | F52: 50 | G52: 2018-05-31
D53: 0 | E53: =D63-H3-H4-H5-H6-H7-H8-H9-H10-H11-H12-H13-H14-H15-H16-H17-H18-H19-H20-H21-H22-H23-H24-H25-H26-H27-H28-H29-H30-H31-H32-H33-H34-H35-H36-H37-H38-H39-H40-H41-H42-H43-H44-H45-H46-H47-H48-H49-H50-H51-H52-H53 -> -34.59 | F53: 51 | G53: 2018-06-30
D54: 0 | E54: =D63-H3-H4-H5-H6-H7-H8-H9-H10-H11-H12-H13-H14-H15-H16-H17-H18-H19-H20-H21-H22-H23-H24-H25-H26-H27-H28-H29-H30-H31-H32-H33-H34-H35-H36-H37-H38-H39-H40-H41-H42-H43-H44-H45-H46-H47-H48-H49-H50-H51-H52-H53-H54 -> -34.59 | F54: 52 | G54: 2018-07-31
D55: 0 | E55: =D63-H3-H4-H5-H6-H7-H8-H9-H10-H11-H12-H13-H14-H15-H16-H17-H18-H19-H20-H21-H22-H23-H24-H25-H26-H27-H28-H29-H30-H31-H32-H33-H34-H35-H36-H37-H38-H39-H40-H41-H42-H43-H44-H45-H46-H47-H48-H49-H50-H51-H52-H53-H54-H55 -> -34.59 | F55: 53 | G55: 2018-08-31
D56: 0 | E56: =D63-H3-H4-H5-H6-H7-H8-H9-H10-H11-H12-H13-H14-H15-H16-H17-H18-H19-H20-H21-H22-H23-H24-H25-H26-H27-H28-H29-H30-H31-H32-H33-H34-H35-H36-H37-H38-H39-H40-H41-H42-H43-H44-H45-H46-H47-H48-H49-H50-H51-H52-H53-H54-H55-H56 -> -34.59 | F56: 54 | G56: 2018-09-30
D57: 0 | E57: =D63-H3-H4-H5-H6-H7-H8-H9-H10-H11-H12-H13-H14-H15-H16-H17-H18-H19-H20-H21-H22-H23-H24-H25-H26-H27-H28-H29-H30-H31-H32-H33-H34-H35-H36-H37-H38-H39-H40-H41-H42-H43-H44-H45-H46-H47-H48-H49-H50-H51-H52-H53-H54-H55-H56-H57 -> -34.59 | F57: 55 | G57: 2018-10-31
D58: 0 | E58: =D63-H3-H4-H5-H6-H7-H8-H9-H10-H11-H12-H13-H14-H15-H16-H17-H18-H19-H20-H21-H22-H23-H24-H25-H26-H27-H28-H29-H30-H31-H32-H33-H34-H35-H36-H37-H38-H39-H40-H41-H42-H43-H44-H45-H46-H47-H48-H49-H50-H51-H52-H53-H54-H55-H56-H57-H58 -> -34.59 | F58: 56 | G58: 2018-11-30
D59: 0 | E59: =D63-H3-H4-H5-H6-H7-H8-H9-H10-H11-H12-H13-H14-H15-H16-H17-H18-H19-H20-H21-H22-H23-H24-H25-H26-H27-H28-H29-H30-H31-H32-H33-H34-H35-H36-H37-H38-H39-H40-H41-H42-H43-H44-H45-H46-H47-H48-H49-H50-H51-H52-H53-H54-H55-H56-H57-H58-H59 -> -34.59 | F59: 57 | G59: 2018-12-31
D60: 0 | E60: =D63-H3-H4-H5-H6-H7-H8-H9-H10-H11-H12-H13-H14-H15-H16-H17-H18-H19-H20-H21-H22-H23-H24-H25-H26-H27-H28-H29-H30-H31-H32-H33-H34-H35-H36-H37-H38-H39-H40-H41-H42-H43-H44-H45-H46-H47-H48-H49-H50-H51-H52-H53-H54-H55-H56-H57-H58-H59-H60 -> -34.59 | F60: 58 | G60: 2019-01-31
D61: 0 | E61: =D63-H3-H4-H5-H6-H7-H8-H9-H10-H11-H12-H13-H14-H15-H16-H17-H18-H19-H20-H21-H22-H23-H24-H25-H26-H27-H28-H29-H30-H31-H32-H33-H34-H35-H36-H37-H38-H39-H40-H41-H42-H43-H44-H45-H46-H47-H48-H49-H50-H51-H52-H53-H54-H55-H56-H57-H58-H59-H60-H61 -> -34.59 | F61: 59 | G61: 2019-02-28
D62: 0 | E62: =D63-H3-H4-H5-H6-H7-H8-H9-H10-H11-H12-H13-H14-H15-H16-H17-H18-H19-H20-H21-H22-H23-H24-H25-H26-H27-H28-H29-H30-H31-H32-H33-H34-H35-H36-H37-H38-H39-H40-H41-H42-H43-H44-H45-H46-H47-H48-H49-H50-H51-H52-H53-H54-H55-H56-H57-H58-H59-H60-H61-H62 -> -34.59 | F62: 60 | G62: 2019-03-31
A63: TOTAL | B63: =SUM(B3:B62) -> 11835.11 | C63: =SUM(C3:C62) -> 0 | D63: =SUM(D3:D62) -> 11835.11 | G63: Total | H63: =SUM(H3:H62) -> 11869.7
A65: DADOS PARA DEPÓSITO E CONTATO
B66: DARF

Sheet Golden PIS div. ativa (3)
A1: PIS DÍVIDA ATIVA 17 PARC. VALOR DA PARCELA 525,60 | F1: N° | G1: Parcelam. feito 17/04/2014
A2: PIS | B2: VALOR | C2: JUROS | D2: TOTAL | E2: SALDO DEV. | G2: DATAS | H2: VLR. PARCELA | I2: PAGO DIA
B3: 8935.2 | D3: =SUM(B3:C3) -> 8935.2 | E3: =D63-H3 -> 8409.6 | F3: 1 | G3: 2014-04-30 | H3: 525.6 | I3: 2014-04-30
D4: =SUM(B4:C4) -> 0 | E4: =D63-H3-H4 -> 7879.73 | F4: 2 | G4: 2014-05-31 | H4: 529.87 | I4: 2014-05-30
D5: 0 | E5: =D63-H3-H4-H5 -> 7354.13 | F5: 3 | G5: 2014-06-30 | H5: 525.6 | J5: Não foi paga
D6: 0 | E6: =D63-H3-H4-H5-H6 -> 6815.48 | F6: 4 | G6: 2014-07-31 | H6: 538.65 | I6: 2014-07-31
D7: 0 | E7: =D63-H3-H4-H5-H6-H7 -> 6271.89 | F7: 5 | G7: 2014-08-31 | H7: 543.59 | J7: Não foi paga
D8: 0 | E8: =D63-H3-H4-H5-H6-H7-H8 -> 5746.29 | F8: 6 | G8: 2014-09-30 | H8: 525.6 | J8: Não foi paga
D9: 0 | E9: =D63-H3-H4-H5-H6-H7-H8-H9 -> 5220.69 | F9: 7 | G9: 2014-10-31 | H9: 525.6 | J9: Parc. cancelado
D10: 0 | E10: =D63-H3-H4-H5-H6-H7-H8-H9-H10 -> 4695.09 | F10: 8 | G10: 2014-11-30 | H10: 525.6
D11: 0 | E11: =D63-H3-H4-H5-H6-H7-H8-H9-H10-H11 -> 4169.49 | F11: 9 | G11: 2014-12-31 | H11: 525.6
D12: 0 | E12: =D63-H3-H4-H5-H6-H7-H8-H9-H10-H11-H12 -> 3643.89 | F12: 10 | G12: 2015-01-31 | H12: 525.6
D13: 0 | E13: =D63-H3-H4-H5-H6-H7-H8-H9-H10-H11-H12-H13 -> 3118.29 | F13: 11 | G13: 2015-02-28 | H13: 525.6
D14: 0 | E14: =D63-H3-H4-H5-H6-H7-H8-H9-H10-H11-H12-H13-H14 -> 2592.69 | F14: 12 | G14: 2015-03-31 | H14: 525.6
D15: 0 | E15: =D63-H3-H4-H5-H6-H7-H8-H9-H10-H11-H12-H13-H14-H15 -> 2067.09 | F15: 13 | G15: 2015-04-30 | H15: 525.6
D16: 0 | E16: =D63-H3-H4-H5-H6-H7-H8-H9-H10-H11-H12-H13-H14-H15-H16 -> 1541.49 | F16: 14 | G16: 2015-05-31 | H16: 525.6
D17: 0 | E17: =D63-H3-H4-H5-H6-H7-H8-H9-H10-H11-H12-H13-H14-H15-H16-H17 -> 1015.89 | F17: 15 | G17: 2015-06-30 | H17: 525.6
D18: 0 | E18: =D63-H3-H4-H5-H6-H7-H8-H9-H10-H11-H12-H13-H14-H15-H16-H17-H18 -> 490.29 | F18: 16 | G18: 2015-07-31 | H18: 525.6
D19: 0 | E19: =D63-H3-H4-H5-H6-H7-H8-H9-H10-H11-H12-H13-H14-H15-H16-H17-H18-H19 -> -35.31 | F19: 17 | G19: 2015-08-31 | H19: 525.6
D20: 0 | E20: =D63-H3-H4-H5-H6-H7-H8-H9-H10-H11-H12-H13-H14-H15-H16-H17-H18-H19-H20 -> -35.31 | F20: 18 | G20: 2015-09-30
D21: 0 | E21: =D63-H3-H4-H5-H6-H7-H8-H9-H10-H11-H12-H13-H14-H15-H16-H17-H18-H19-H20-H21 -> -35.31 | F21: 19 | G21: 2015-10-31
D22: 0 | E22: =D63-H3-H4-H5-H6-H7-H8-H9-H10-H11-H12-H13-H14-H15-H16-H17-H18-H19-H20-H21-H22 -> -35.31 | F22: 20 | G22: 2015-11-30
D23: 0 | E23: =D63-H3-H4-H5-H6-H7-H8-H9-H10-H11-H12-H13-H14-H15-H16-H17-H18-H19-H20-H21-H22-H23 -> -35.31 | F23: 21 | G23: 2015-12-31
D24: 0 | E24: =D63-H3-H4-H5-H6-H7-H8-H9-H10-H11-H12-H13-H14-H15-H16-H17-H18-H19-H20-H21-H22-H23-H24 -> -35.31 | F24: 22 | G24: 2016-01-31
D25: 0 | E25: =D63-H3-H4-H5-H6-H7-H8-H9-H10-H11-H12-H13-H14-H15-H16-H17-H18-H19-H20-H21-H22-H23-H24-H25 -> -35.31 | F25: 23 | G25: 2016-02-29
D26: 0 | E26: =D63-H3-H4-H5-H6-H7-H8-H9-H10-H11-H12-H13-H14-H15-H16-H17-H18-H19-H20-H21-H22-H23-H24-H25-H26 -> -35.31 | F26: 24 | G26: 2016-03-31
D27: 0 | E27: =D63-H3-H4-H5-H6-H7-H8-H9-H10-H11-H12-H13-H14-H15-H16-H17-H18-H19-H20-H21-H22-H23-H24-H25-H26-H27 -> -35.31 | F27: 25 | G27: 2016-04-30
D28: 0 | E28: =D63-H3-H4-H5-H6-H7-H8-H9-H10-H11-H12-H13-H14-H15-H16-H17-H18-H19-H20-H21-H22-H23-H24-H25-H26-H27-H28 -> -35.31 | F28: 26 | G28: 2016-05-31
D29: 0 | E29: =D63-H3-H4-H5-H6-H7-H8-H9-H10-H11-H12-H13-H14-H15-H16-H17-H18-H19-H20-H21-H22-H23-H24-H25-H26-H27-H28-H29 -> -35.31 | F29: 27 | G29: 2016-06-30
D30: 0 | E30: =D63-H3-H4-H5-H6-H7-H8-H9-H10-H11-H12-H13-H14-H15-H16-H17-H18-H19-H20-H21-H22-H23-H24-H25-H26-H27-H28-H29-H30 -> -35.31 | F30: 28 | G30: 2016-07-31
D31: 0 | E31: =D63-H3-H4-H5-H6-H7-H8-H9-H10-H11-H12-H13-H14-H15-H16-H17-H18-H19-H20-H21-H22-H23-H24-H25-H26-H27-H28-H29-H30-H31 -> -35.31 | F31: 29 | G31: 2016-08-31
D32: 0 | E32: =D63-H3-H4-H5-H6-H7-H8-H9-H10-H11-H12-H13-H14-H15-H16-H17-H18-H19-H20-H21-H22-H23-H24-H25-H26-H27-H28-H29-H30-H31-H32 -> -35.31 | F32: 30 | G32: 2016-09-30
D33: 0 | E33: =D63-H3-H4-H5-H6-H7-H8-H9-H10-H11-H12-H13-H14-H15-H16-H17-H18-H19-H20-H21-H22-H23-H24-H25-H26-H27-H28-H29-H30-H31-H32-H33 -> -35.31 | F33: 31 | G33: 2016-10-31
D34: 0 | E34: =D63-H3-H4-H5-H6-H7-H8-H9-H10-H11-H12-H13-H14-H15-H16-H17-H18-H19-H20-H21-H22-H23-H24-H25-H26-H27-H28-H29-H30-H31-H32-H33-H34 -> -35.31 | F34: 32 | G34: 2016-11-30
D35: 0 | E35: =D63-H3-H4-H5-H6-H7-H8-H9-H10-H11-H12-H13-H14-H15-H16-H17-H18-H19-H20-H21-H22-H23-H24-H25-H26-H27-H28-H29-H30-H31-H32-H33-H34-H35 -> -35.31 | F35: 33 | G35: 2016-12-31
D36: 0 | E36: =D63-H3-H4-H5-H6-H7-H8-H9-H10-H11-H12-H13-H14-H15-H16-H17-H18-H19-H20-H21-H22-H23-H24-H25-H26-H27-H28-H29-H30-H31-H32-H33-H34-H35-H36 -> -35.31 | F36: 34 | G36: 2017-01-31
D37: 0 | E37: =D63-H3-H4-H5-H6-H7-H8-H9-H10-H11-H12-H13-H14-H15-H16-H17-H18-H19-H20-H21-H22-H23-H24-H25-H26-H27-H28-H29-H30-H31-H32-H33-H34-H35-H36-H37 -> -35.31 | F37: 35 | G37: 2017-02-28
D38: 0 | E38: =D63-H3-H4-H5-H6-H7-H8-H9-H10-H11-H12-H13-H14-H15-H16-H17-H18-H19-H20-H21-H22-H23-H24-H25-H26-H27-H28-H29-H30-H31-H32-H33-H34-H35-H36-H37-H38 -> -35.31 | F38: 36 | G38: 2017-03-31
D39: 0 | E39: =D63-H3-H4-H5-H6-H7-H8-H9-H10-H11-H12-H13-H14-H15-H16-H17-H18-H19-H20-H21-H22-H23-H24-H25-H26-H27-H28-H29-H30-H31-H32-H33-H34-H35-H36-H37-H38-H39 -> -35.31 | F39: 37 | G39: 2017-04-30
D40: 0 | E40: =D63-H3-H4-H5-H6-H7-H8-H9-H10-H11-H12-H13-H14-H15-H16-H17-H18-H19-H20-H21-H22-H23-H24-H25-H26-H27-H28-H29-H30-H31-H32-H33-H34-H35-H36-H37-H38-H39-H40 -> -35.31 | F40: 38 | G40: 2017-05-31
D41: 0 | E41: =D63-H3-H4-H5-H6-H7-H8-H9-H10-H11-H12-H13-H14-H15-H16-H17-H18-H19-H20-H21-H22-H23-H24-H25-H26-H27-H28-H29-H30-H31-H32-H33-H34-H35-H36-H37-H38-H39-H40-H41 -> -35.31 | F41: 39 | G41: 2017-06-30
D42: 0 | E42: =D63-H3-H4-H5-H6-H7-H8-H9-H10-H11-H12-H13-H14-H15-H16-H17-H18-H19-H20-H21-H22-H23-H24-H25-H26-H27-H28-H29-H30-H31-H32-H33-H34-H35-H36-H37-H38-H39-H40-H41-H42 -> -35.31 | F42: 40 | G42: 2017-07-31
D43: 0 | E43: =D63-H3-H4-H5-H6-H7-H8-H9-H10-H11-H12-H13-H14-H15-H16-H17-H18-H19-H20-H21-H22-H23-H24-H25-H26-H27-H28-H29-H30-H31-H32-H33-H34-H35-H36-H37-H38-H39-H40-H41-H42-H43 -> -35.31 | F43: 41 | G43: 2017-08-31
D44: 0 | E44: =D63-H3-H4-H5-H6-H7-H8-H9-H10-H11-H12-H13-H14-H15-H16-H17-H18-H19-H20-H21-H22-H23-H24-H25-H26-H27-H28-H29-H30-H31-H32-H33-H34-H35-H36-H37-H38-H39-H40-H41-H42-H43-H44 -> -35.31 | F44: 42 | G44: 2017-09-30
D45: 0 | E45: =D63-H3-H4-H5-H6-H7-H8-H9-H10-H11-H12-H13-H14-H15-H16-H17-H18-H19-H20-H21-H22-H23-H24-H25-H26-H27-H28-H29-H30-H31-H32-H33-H34-H35-H36-H37-H38-H39-H40-H41-H42-H43-H44-H45 -> -35.31 | F45: 43 | G45: 2017-10-31
D46: 0 | E46: =D63-H3-H4-H5-H6-H7-H8-H9-H10-H11-H12-H13-H14-H15-H16-H17-H18-H19-H20-H21-H22-H23-H24-H25-H26-H27-H28-H29-H30-H31-H32-H33-H34-H35-H36-H37-H38-H39-H40-H41-H42-H43-H44-H45-H46 -> -35.31 | F46: 44 | G46: 2017-11-30
D47: 0 | E47: =D63-H3-H4-H5-H6-H7-H8-H9-H10-H11-H12-H13-H14-H15-H16-H17-H18-H19-H20-H21-H22-H23-H24-H25-H26-H27-H28-H29-H30-H31-H32-H33-H34-H35-H36-H37-H38-H39-H40-H41-H42-H43-H44-H45-H46-H47 -> -35.31 | F47: 45 | G47: 2017-12-31
D48: 0 | E48: =D63-H3-H4-H5-H6-H7-H8-H9-H10-H11-H12-H13-H14-H15-H16-H17-H18-H19-H20-H21-H22-H23-H24-H25-H26-H27-H28-H29-H30-H31-H32-H33-H34-H35-H36-H37-H38-H39-H40-H41-H42-H43-H44-H45-H46-H47-H48 -> -35.31 | F48: 46 | G48: 2018-01-31
D49: 0 | E49: =D63-H3-H4-H5-H6-H7-H8-H9-H10-H11-H12-H13-H14-H15-H16-H17-H18-H19-H20-H21-H22-H23-H24-H25-H26-H27-H28-H29-H30-H31-H32-H33-H34-H35-H36-H37-H38-H39-H40-H41-H42-H43-H44-H45-H46-H47-H48-H49 -> -35.31 | F49: 47 | G49: 2018-02-28
D50: 0 | E50: =D63-H3-H4-H5-H6-H7-H8-H9-H10-H11-H12-H13-H14-H15-H16-H17-H18-H19-H20-H21-H22-H23-H24-H25-H26-H27-H28-H29-H30-H31-H32-H33-H34-H35-H36-H37-H38-H39-H40-H41-H42-H43-H44-H45-H46-H47-H48-H49-H50 -> -35.31 | F50: 48 | G50: 2018-03-31
D51: 0 | E51: =D63-H3-H4-H5-H6-H7-H8-H9-H10-H11-H12-H13-H14-H15-H16-H17-H18-H19-H20-H21-H22-H23-H24-H25-H26-H27-H28-H29-H30-H31-H32-H33-H34-H35-H36-H37-H38-H39-H40-H41-H42-H43-H44-H45-H46-H47-H48-H49-H50-H51 -> -35.31 | F51: 49 | G51: 2018-04-30
D52: 0 | E52: =D63-H3-H4-H5-H6-H7-H8-H9-H10-H11-H12-H13-H14-H15-H16-H17-H18-H19-H20-H21-H22-H23-H24-H25-H26-H27-H28-H29-H30-H31-H32-H33-H34-H35-H36-H37-H38-H39-H40-H41-H42-H43-H44-H45-H46-H47-H48-H49-H50-H51-H52 -> -35.31 | F52: 50 | G52: 2018-05-31
D53: 0 | E53: =D63-H3-H4-H5-H6-H7-H8-H9-H10-H11-H12-H13-H14-H15-H16-H17-H18-H19-H20-H21-H22-H23-H24-H25-H26-H27-H28-H29-H30-H31-H32-H33-H34-H35-H36-H37-H38-H39-H40-H41-H42-H43-H44-H45-H46-H47-H48-H49-H50-H51-H52-H53 -> -35.31 | F53: 51 | G53: 2018-06-30
D54: 0 | E54: =D63-H3-H4-H5-H6-H7-H8-H9-H10-H11-H12-H13-H14-H15-H16-H17-H18-H19-H20-H21-H22-H23-H24-H25-H26-H27-H28-H29-H30-H31-H32-H33-H34-H35-H36-H37-H38-H39-H40-H41-H42-H43-H44-H45-H46-H47-H48-H49-H50-H51-H52-H53-H54 -> -35.31 | F54: 52 | G54: 2018-07-31
D55: 0 | E55: =D63-H3-H4-H5-H6-H7-H8-H9-H10-H11-H12-H13-H14-H15-H16-H17-H18-H19-H20-H21-H22-H23-H24-H25-H26-H27-H28-H29-H30-H31-H32-H33-H34-H35-H36-H37-H38-H39-H40-H41-H42-H43-H44-H45-H46-H47-H48-H49-H50-H51-H52-H53-H54-H55 -> -35.31 | F55: 53 | G55: 2018-08-31
D56: 0 | E56: =D63-H3-H4-H5-H6-H7-H8-H9-H10-H11-H12-H13-H14-H15-H16-H17-H18-H19-H20-H21-H22-H23-H24-H25-H26-H27-H28-H29-H30-H31-H32-H33-H34-H35-H36-H37-H38-H39-H40-H41-H42-H43-H44-H45-H46-H47-H48-H49-H50-H51-H52-H53-H54-H55-H56 -> -35.31 | F56: 54 | G56: 2018-09-30
D57: 0 | E57: =D63-H3-H4-H5-H6-H7-H8-H9-H10-H11-H12-H13-H14-H15-H16-H17-H18-H19-H20-H21-H22-H23-H24-H25-H26-H27-H28-H29-H30-H31-H32-H33-H34-H35-H36-H37-H38-H39-H40-H41-H42-H43-H44-H45-H46-H47-H48-H49-H50-H51-H52-H53-H54-H55-H56-H57 -> -35.31 | F57: 55 | G57: 2018-10-31
D58: 0 | E58: =D63-H3-H4-H5-H6-H7-H8-H9-H10-H11-H12-H13-H14-H15-H16-H17-H18-H19-H20-H21-H22-H23-H24-H25-H26-H27-H28-H29-H30-H31-H32-H33-H34-H35-H36-H37-H38-H39-H40-H41-H42-H43-H44-H45-H46-H47-H48-H49-H50-H51-H52-H53-H54-H55-H56-H57-H58 -> -35.31 | F58: 56 | G58: 2018-11-30
D59: 0 | E59: =D63-H3-H4-H5-H6-H7-H8-H9-H10-H11-H12-H13-H14-H15-H16-H17-H18-H19-H20-H21-H22-H23-H24-H25-H26-H27-H28-H29-H30-H31-H32-H33-H34-H35-H36-H37-H38-H39-H40-H41-H42-H43-H44-H45-H46-H47-H48-H49-H50-H51-H52-H53-H54-H55-H56-H57-H58-H59 -> -35.31 | F59: 57 | G59: 2018-12-31
D60: 0 | E60: =D63-H3-H4-H5-H6-H7-H8-H9-H10-H11-H12-H13-H14-H15-H16-H17-H18-H19-H20-H21-H22-H23-H24-H25-H26-H27-H28-H29-H30-H31-H32-H33-H34-H35-H36-H37-H38-H39-H40-H41-H42-H43-H44-H45-H46-H47-H48-H49-H50-H51-H52-H53-H54-H55-H56-H57-H58-H59-H60 -> -35.31 | F60: 58 | G60: 2019-01-31
D61: 0 | E61: =D63-H3-H4-H5-H6-H7-H8-H9-H10-H11-H12-H13-H14-H15-H16-H17-H18-H19-H20-H21-H22-H23-H24-H25-H26-H27-H28-H29-H30-H31-H32-H33-H34-H35-H36-H37-H38-H39-H40-H41-H42-H43-H44-H45-H46-H47-H48-H49-H50-H51-H52-H53-H54-H55-H56-H57-H58-H59-H60-H61 -> -35.31 | F61: 59 | G61: 2019-02-28
D62: 0 | E62: =D63-H3-H4-H5-H6-H7-H8-H9-H10-H11-H12-H13-H14-H15-H16-H17-H18-H19-H20-H21-H22-H23-H24-H25-H26-H27-H28-H29-H30-H31-H32-H33-H34-H35-H36-H37-H38-H39-H40-H41-H42-H43-H44-H45-H46-H47-H48-H49-H50-H51-H52-H53-H54-H55-H56-H57-H58-H59-H60-H61-H62 -> -35.31 | F62: 60 | G62: 2019-03-31
A63: TOTAL | B63: =SUM(B3:B62) -> 8935.2 | C63: =SUM(C3:C62) -> 0 | D63: =SUM(D3:D62) -> 8935.2 | G63: Total | H63: =SUM(H3:H62) -> 8970.51
A65: DADOS PARA DEPÓSITO E CONTATO
B66: DARF

Sheet Golden IRPJ div. ativa
A1: IRPJ DÍVIDA ATIVA 60 PARC. VALOR DA PARCELA 815,16 | F1: N° | G1: Parcelam. feito 17/04/2014
A2: IRPJ | B2: VALOR | C2: JUROS | D2: TOTAL | E2: SALDO DEV. | G2: DATAS | H2: VLR. PARCELA | I2: PAGO DIA
B3: 48909.6 | D3: =SUM(B3:C3) -> 48909.6 | E3: =D63-H3 -> 48094.44 | F3: 1 | G3: 2014-04-30 | H3: 815.16 | I3: 2014-04-30
D4: =SUM(B4:C4) -> 0 | E4: =D63-H3-H4 -> 47272.66 | F4: 2 | G4: 2014-05-31 | H4: 821.78 | I4: 2014-05-30
D5: 0 | E5: =D63-H3-H4-H5 -> 46457.5 | F5: 3 | G5: 2014-06-30 | H5: 815.16 | J5: Não foi pago
D6: 0 | E6: =D63-H3-H4-H5-H6 -> 45622.09 | F6: 4 | G6: 2014-07-31 | H6: 835.41 | I6: 2014-07-31
D7: 0 | E7: =D63-H3-H4-H5-H6-H7 -> 44779.01 | F7: 5 | G7: 2014-08-31 | H7: 843.08 | J7: Não foi pago
D8: 0 | E8: =D63-H3-H4-H5-H6-H7-H8 -> 43963.85 | F8: 6 | G8: 2014-09-30 | H8: 815.16 | J8: Não foi pago
D9: 0 | E9: =D63-H3-H4-H5-H6-H7-H8-H9 -> 43148.69 | F9: 7 | G9: 2014-10-31 | H9: 815.16 | J9: Parc. Cancelado
D10: 0 | E10: =D63-H3-H4-H5-H6-H7-H8-H9-H10 -> 42333.53 | F10: 8 | G10: 2014-11-30 | H10: 815.16
D11: 0 | E11: =D63-H3-H4-H5-H6-H7-H8-H9-H10-H11 -> 41518.37 | F11: 9 | G11: 2014-12-31 | H11: 815.16
D12: 0 | E12: =D63-H3-H4-H5-H6-H7-H8-H9-H10-H11-H12 -> 40703.21 | F12: 10 | G12: 2015-01-31 | H12: 815.16
D13: 0 | E13: =D63-H3-H4-H5-H6-H7-H8-H9-H10-H11-H12-H13 -> 39888.05 | F13: 11 | G13: 2015-02-28 | H13: 815.16
D14: 0 | E14: =D63-H3-H4-H5-H6-H7-H8-H9-H10-H11-H12-H13-H14 -> 39072.89 | F14: 12 | G14: 2015-03-31 | H14: 815.16
D15: 0 | E15: =D63-H3-H4-H5-H6-H7-H8-H9-H10-H11-H12-H13-H14-H15 -> 38257.73 | F15: 13 | G15: 2015-04-30 | H15: 815.16
D16: 0 | E16: =D63-H3-H4-H5-H6-H7-H8-H9-H10-H11-H12-H13-H14-H15-H16 -> 37442.57 | F16: 14 | G16: 2015-05-31 | H16: 815.16
D17: 0 | E17: =D63-H3-H4-H5-H6-H7-H8-H9-H10-H11-H12-H13-H14-H15-H16-H17 -> 36627.41 | F17: 15 | G17: 2015-06-30 | H17: 815.16
D18: 0 | E18: =D63-H3-H4-H5-H6-H7-H8-H9-H10-H11-H12-H13-H14-H15-H16-H17-H18 -> 35812.25 | F18: 16 | G18: 2015-07-31 | H18: 815.16
D19: 0 | E19: =D63-H3-H4-H5-H6-H7-H8-H9-H10-H11-H12-H13-H14-H15-H16-H17-H18-H19 -> 34997.09 | F19: 17 | G19: 2015-08-31 | H19: 815.16
D20: 0 | E20: =D63-H3-H4-H5-H6-H7-H8-H9-H10-H11-H12-H13-H14-H15-H16-H17-H18-H19-H20 -> 34181.93 | F20: 18 | G20: 2015-09-30 | H20: 815.16
D21: 0 | E21: =D63-H3-H4-H5-H6-H7-H8-H9-H10-H11-H12-H13-H14-H15-H16-H17-H18-H19-H20-H21 -> 33366.77 | F21: 19 | G21: 2015-10-31 | H21: 815.16
D22: 0 | E22: =D63-H3-H4-H5-H6-H7-H8-H9-H10-H11-H12-H13-H14-H15-H16-H17-H18-H19-H20-H21-H22 -> 32551.61 | F22: 20 | G22: 2015-11-30 | H22: 815.16
D23: 0 | E23: =D63-H3-H4-H5-H6-H7-H8-H9-H10-H11-H12-H13-H14-H15-H16-H17-H18-H19-H20-H21-H22-H23 -> 31736.45 | F23: 21 | G23: 2015-12-31 | H23: 815.16
D24: 0 | E24: =D63-H3-H4-H5-H6-H7-H8-H9-H10-H11-H12-H13-H14-H15-H16-H17-H18-H19-H20-H21-H22-H23-H24 -> 30921.29 | F24: 22 | G24: 2016-01-31 | H24: 815.16
D25: 0 | E25: =D63-H3-H4-H5-H6-H7-H8-H9-H10-H11-H12-H13-H14-H15-H16-H17-H18-H19-H20-H21-H22-H23-H24-H25 -> 30106.13 | F25: 23 | G25: 2016-02-29 | H25: 815.16
D26: 0 | E26: =D63-H3-H4-H5-H6-H7-H8-H9-H10-H11-H12-H13-H14-H15-H16-H17-H18-H19-H20-H21-H22-H23-H24-H25-H26 -> 29290.97 | F26: 24 | G26: 2016-03-31 | H26: 815.16
D27: 0 | E27: =D63-H3-H4-H5-H6-H7-H8-H9-H10-H11-H12-H13-H14-H15-H16-H17-H18-H19-H20-H21-H22-H23-H24-H25-H26-H27 -> 28475.81 | F27: 25 | G27: 2016-04-30 | H27: 815.16
D28: 0 | E28: =D63-H3-H4-H5-H6-H7-H8-H9-H10-H11-H12-H13-H14-H15-H16-H17-H18-H19-H20-H21-H22-H23-H24-H25-H26-H27-H28 -> 27660.65 | F28: 26 | G28: 2016-05-31 | H28: 815.16
D29: 0 | E29: =D63-H3-H4-H5-H6-H7-H8-H9-H10-H11-H12-H13-H14-H15-H16-H17-H18-H19-H20-H21-H22-H23-H24-H25-H26-H27-H28-H29 -> 26845.49 | F29: 27 | G29: 2016-06-30 | H29: 815.16
D30: 0 | E30: =D63-H3-H4-H5-H6-H7-H8-H9-H10-H11-H12-H13-H14-H15-H16-H17-H18-H19-H20-H21-H22-H23-H24-H25-H26-H27-H28-H29-H30 -> 26030.33 | F30: 28 | G30: 2016-07-31 | H30: 815.16
D31: 0 | E31: =D63-H3-H4-H5-H6-H7-H8-H9-H10-H11-H12-H13-H14-H15-H16-H17-H18-H19-H20-H21-H22-H23-H24-H25-H26-H27-H28-H29-H30-H31 -> 25215.17 | F31: 29 | G31: 2016-08-31 | H31: 815.16
D32: 0 | E32: =D63-H3-H4-H5-H6-H7-H8-H9-H10-H11-H12-H13-H14-H15-H16-H17-H18-H19-H20-H21-H22-H23-H24-H25-H26-H27-H28-H29-H30-H31-H32 -> 24400.01 | F32: 30 | G32: 2016-09-30 | H32: 815.16
D33: 0 | E33: =D63-H3-H4-H5-H6-H7-H8-H9-H10-H11-H12-H13-H14-H15-H16-H17-H18-H19-H20-H21-H22-H23-H24-H25-H26-H27-H28-H29-H30-H31-H32-H33 -> 23584.85 | F33: 31 | G33: 2016-10-31 | H33: 815.16
D34: 0 | E34: =D63-H3-H4-H5-H6-H7-H8-H9-H10-H11-H12-H13-H14-H15-H16-H17-H18-H19-H20-H21-H22-H23-H24-H25-H26-H27-H28-H29-H30-H31-H32-H33-H34 -> 22769.69 | F34: 32 | G34: 2016-11-30 | H34: 815.16
D35: 0 | E35: =D63-H3-H4-H5-H6-H7-H8-H9-H10-H11-H12-H13-H14-H15-H16-H17-H18-H19-H20-H21-H22-H23-H24-H25-H26-H27-H28-H29-H30-H31-H32-H33-H34-H35 -> 21954.53 | F35: 33 | G35: 2016-12-31 | H35: 815.16
D36: 0 | E36: =D63-H3-H4-H5-H6-H7-H8-H9-H10-H11-H12-H13-H14-H15-H16-H17-H18-H19-H20-H21-H22-H23-H24-H25-H26-H27-H28-H29-H30-H31-H32-H33-H34-H35-H36 -> 21139.37 | F36: 34 | G36: 2017-01-31 | H36: 815.16
D37: 0 | E37: =D63-H3-H4-H5-H6-H7-H8-H9-H10-H11-H12-H13-H14-H15-H16-H17-H18-H19-H20-H21-H22-H23-H24-H25-H26-H27-H28-H29-H30-H31-H32-H33-H34-H35-H36-H37 -> 20324.21 | F37: 35 | G37: 2017-02-28 | H37: 815.16
D38: 0 | E38: =D63-H3-H4-H5-H6-H7-H8-H9-H10-H11-H12-H13-H14-H15-H16-H17-H18-H19-H20-H21-H22-H23-H24-H25-H26-H27-H28-H29-H30-H31-H32-H33-H34-H35-H36-H37-H38 -> 19509.05 | F38: 36 | G38: 2017-03-31 | H38: 815.16
D39: 0 | E39: =D63-H3-H4-H5-H6-H7-H8-H9-H10-H11-H12-H13-H14-H15-H16-H17-H18-H19-H20-H21-H22-H23-H24-H25-H26-H27-H28-H29-H30-H31-H32-H33-H34-H35-H36-H37-H38-H39 -> 18693.89 | F39: 37 | G39: 2017-04-30 | H39: 815.16
D40: 0 | E40: =D63-H3-H4-H5-H6-H7-H8-H9-H10-H11-H12-H13-H14-H15-H16-H17-H18-H19-H20-H21-H22-H23-H24-H25-H26-H27-H28-H29-H30-H31-H32-H33-H34-H35-H36-H37-H38-H39-H40 -> 17878.73 | F40: 38 | G40: 2017-05-31 | H40: 815.16
D41: 0 | E41: =D63-H3-H4-H5-H6-H7-H8-H9-H10-H11-H12-H13-H14-H15-H16-H17-H18-H19-H20-H21-H22-H23-H24-H25-H26-H27-H28-H29-H30-H31-H32-H33-H34-H35-H36-H37-H38-H39-H40-H41 -> 17063.57 | F41: 39 | G41: 2017-06-30 | H41: 815.16
D42: 0 | E42: =D63-H3-H4-H5-H6-H7-H8-H9-H10-H11-H12-H13-H14-H15-H16-H17-H18-H19-H20-H21-H22-H23-H24-H25-H26-H27-H28-H29-H30-H31-H32-H33-H34-H35-H36-H37-H38-H39-H40-H41-H42 -> 16248.41 | F42: 40 | G42: 2017-07-31 | H42: 815.16
D43: 0 | E43: =D63-H3-H4-H5-H6-H7-H8-H9-H10-H11-H12-H13-H14-H15-H16-H17-H18-H19-H20-H21-H22-H23-H24-H25-H26-H27-H28-H29-H30-H31-H32-H33-H34-H35-H36-H37-H38-H39-H40-H41-H42-H43 -> 15433.25 | F43: 41 | G43: 2017-08-31 | H43: 815.16
D44: 0 | E44: =D63-H3-H4-H5-H6-H7-H8-H9-H10-H11-H12-H13-H14-H15-H16-H17-H18-H19-H20-H21-H22-H23-H24-H25-H26-H27-H28-H29-H30-H31-H32-H33-H34-H35-H36-H37-H38-H39-H40-H41-H42-H43-H44 -> 14618.09 | F44: 42 | G44: 2017-09-30 | H44: 815.16
D45: 0 | E45: =D63-H3-H4-H5-H6-H7-H8-H9-H10-H11-H12-H13-H14-H15-H16-H17-H18-H19-H20-H21-H22-H23-H24-H25-H26-H27-H28-H29-H30-H31-H32-H33-H34-H35-H36-H37-H38-H39-H40-H41-H42-H43-H44-H45 -> 13802.93 | F45: 43 | G45: 2017-10-31 | H45: 815.16
D46: 0 | E46: =D63-H3-H4-H5-H6-H7-H8-H9-H10-H11-H12-H13-H14-H15-H16-H17-H18-H19-H20-H21-H22-H23-H24-H25-H26-H27-H28-H29-H30-H31-H32-H33-H34-H35-H36-H37-H38-H39-H40-H41-H42-H43-H44-H45-H46 -> 12987.77 | F46: 44 | G46: 2017-11-30 | H46: 815.16
D47: 0 | E47: =D63-H3-H4-H5-H6-H7-H8-H9-H10-H11-H12-H13-H14-H15-H16-H17-H18-H19-H20-H21-H22-H23-H24-H25-H26-H27-H28-H29-H30-H31-H32-H33-H34-H35-H36-H37-H38-H39-H40-H41-H42-H43-H44-H45-H46-H47 -> 12172.61 | F47: 45 | G47: 2017-12-31 | H47: 815.16
D48: 0 | E48: =D63-H3-H4-H5-H6-H7-H8-H9-H10-H11-H12-H13-H14-H15-H16-H17-H18-H19-H20-H21-H22-H23-H24-H25-H26-H27-H28-H29-H30-H31-H32-H33-H34-H35-H36-H37-H38-H39-H40-H41-H42-H43-H44-H45-H46-H47-H48 -> 11357.45 | F48: 46 | G48: 2018-01-31 | H48: 815.16
D49: 0 | E49: =D63-H3-H4-H5-H6-H7-H8-H9-H10-H11-H12-H13-H14-H15-H16-H17-H18-H19-H20-H21-H22-H23-H24-H25-H26-H27-H28-H29-H30-H31-H32-H33-H34-H35-H36-H37-H38-H39-H40-H41-H42-H43-H44-H45-H46-H47-H48-H49 -> 10542.29 | F49: 47 | G49: 2018-02-28 | H49: 815.16
D50: 0 | E50: =D63-H3-H4-H5-H6-H7-H8-H9-H10-H11-H12-H13-H14-H15-H16-H17-H18-H19-H20-H21-H22-H23-H24-H25-H26-H27-H28-H29-H30-H31-H32-H33-H34-H35-H36-H37-H38-H39-H40-H41-H42-H43-H44-H45-H46-H47-H48-H49-H50 -> 9727.13 | F50: 48 | G50: 2018-03-31 | H50: 815.16
D51: 0 | E51: =D63-H3-H4-H5-H6-H7-H8-H9-H10-H11-H12-H13-H14-H15-H16-H17-H18-H19-H20-H21-H22-H23-H24-H25-H26-H27-H28-H29-H30-H31-H32-H33-H34-H35-H36-H37-H38-H39-H40-H41-H42-H43-H44-H45-H46-H47-H48-H49-H50-H51 -> 8911.97 | F51: 49 | G51: 2018-04-30 | H51: 815.16
D52: 0 | E52: =D63-H3-H4-H5-H6-H7-H8-H9-H10-H11-H12-H13-H14-H15-H16-H17-H18-H19-H20-H21-H22-H23-H24-H25-H26-H27-H28-H29-H30-H31-H32-H33-H34-H35-H36-H37-H38-H39-H40-H41-H42-H43-H44-H45-H46-H47-H48-H49-H50-H51-H52 -> 8096.81 | F52: 50 | G52: 2018-05-31 | H52: 815.16
D53: 0 | E53: =D63-H3-H4-H5-H6-H7-H8-H9-H10-H11-H12-H13-H14-H15-H16-H17-H18-H19-H20-H21-H22-H23-H24-H25-H26-H27-H28-H29-H30-H31-H32-H33-H34-H35-H36-H37-H38-H39-H40-H41-H42-H43-H44-H45-H46-H47-H48-H49-H50-H51-H52-H53 -> 7281.65 | F53: 51 | G53: 2018-06-30 | H53: 815.16
D54: 0 | E54: =D63-H3-H4-H5-H6-H7-H8-H9-H10-H11-H12-H13-H14-H15-H16-H17-H18-H19-H20-H21-H22-H23-H24-H25-H26-H27-H28-H29-H30-H31-H32-H33-H34-H35-H36-H37-H38-H39-H40-H41-H42-H43-H44-H45-H46-H47-H48-H49-H50-H51-H52-H53-H54 -> 6466.49 | F54: 52 | G54: 2018-07-31 | H54: 815.16
D55: 0 | E55: =D63-H3-H4-H5-H6-H7-H8-H9-H10-H11-H12-H13-H14-H15-H16-H17-H18-H19-H20-H21-H22-H23-H24-H25-H26-H27-H28-H29-H30-H31-H32-H33-H34-H35-H36-H37-H38-H39-H40-H41-H42-H43-H44-H45-H46-H47-H48-H49-H50-H51-H52-H53-H54-H55 -> 5651.33 | F55: 53 | G55: 2018-08-31 | H55: 815.16
D56: 0 | E56: =D63-H3-H4-H5-H6-H7-H8-H9-H10-H11-H12-H13-H14-H15-H16-H17-H18-H19-H20-H21-H22-H23-H24-H25-H26-H27-H28-H29-H30-H31-H32-H33-H34-H35-H36-H37-H38-H39-H40-H41-H42-H43-H44-H45-H46-H47-H48-H49-H50-H51-H52-H53-H54-H55-H56 -> 4836.17 | F56: 54 | G56: 2018-09-30 | H56: 815.16
D57: 0 | E57: =D63-H3-H4-H5-H6-H7-H8-H9-H10-H11-H12-H13-H14-H15-H16-H17-H18-H19-H20-H21-H22-H23-H24-H25-H26-H27-H28-H29-H30-H31-H32-H33-H34-H35-H36-H37-H38-H39-H40-H41-H42-H43-H44-H45-H46-H47-H48-H49-H50-H51-H52-H53-H54-H55-H56-H57 -> 4021.01 | F57: 55 | G57: 2018-10-31 | H57: 815.16
D58: 0 | E58: =D63-H3-H4-H5-H6-H7-H8-H9-H10-H11-H12-H13-H14-H15-H16-H17-H18-H19-H20-H21-H22-H23-H24-H25-H26-H27-H28-H29-H30-H31-H32-H33-H34-H35-H36-H37-H38-H39-H40-H41-H42-H43-H44-H45-H46-H47-H48-H49-H50-H51-H52-H53-H54-H55-H56-H57-H58 -> 3205.85 | F58: 56 | G58: 2018-11-30 | H58: 815.16
D59: 0 | E59: =D63-H3-H4-H5-H6-H7-H8-H9-H10-H11-H12-H13-H14-H15-H16-H17-H18-H19-H20-H21-H22-H23-H24-H25-H26-H27-H28-H29-H30-H31-H32-H33-H34-H35-H36-H37-H38-H39-H40-H41-H42-H43-H44-H45-H46-H47-H48-H49-H50-H51-H52-H53-H54-H55-H56-H57-H58-H59 -> 2390.69 | F59: 57 | G59: 2018-12-31 | H59: 815.16
D60: 0 | E60: =D63-H3-H4-H5-H6-H7-H8-H9-H10-H11-H12-H13-H14-H15-H16-H17-H18-H19-H20-H21-H22-H23-H24-H25-H26-H27-H28-H29-H30-H31-H32-H33-H34-H35-H36-H37-H38-H39-H40-H41-H42-H43-H44-H45-H46-H47-H48-H49-H50-H51-H52-H53-H54-H55-H56-H57-H58-H59-H60 -> 1575.53 | F60: 58 | G60: 2019-01-31 | H60: 815.16
D61: 0 | E61: =D63-H3-H4-H5-H6-H7-H8-H9-H10-H11-H12-H13-H14-H15-H16-H17-H18-H19-H20-H21-H22-H23-H24-H25-H26-H27-H28-H29-H30-H31-H32-H33-H34-H35-H36-H37-H38-H39-H40-H41-H42-H43-H44-H45-H46-H47-H48-H49-H50-H51-H52-H53-H54-H55-H56-H57-H58-H59-H60-H61 -> 760.37 | F61: 59 | G61: 2019-02-28 | H61: 815.16
D62: 0 | E62: =D63-H3-H4-H5-H6-H7-H8-H9-H10-H11-H12-H13-H14-H15-H16-H17-H18-H19-H20-H21-H22-H23-H24-H25-H26-H27-H28-H29-H30-H31-H32-H33-H34-H35-H36-H37-H38-H39-H40-H41-H42-H43-H44-H45-H46-H47-H48-H49-H50-H51-H52-H53-H54-H55-H56-H57-H58-H59-H60-H61-H62 -> -54.79 | F62: 60 | G62: 2019-03-31 | H62: 815.16
A63: TOTAL | B63: =SUM(B3:B62) -> 48909.6 | C63: =SUM(C3:C62) -> 0 | D63: =SUM(D3:D62) -> 48909.6 | G63: Total | H63: =SUM(H3:H62) -> 48964.39
A65: DADOS PARA DEPÓSITO E CONTATO
B66: DARF

Sheet Golden IRPJ div. ativa (2)
A1: IRPJ DÍVIDA ATIVA 60 PARC. VALOR DA PARCELA 757,33 | F1: N° | G1: Parcelam. feito 17/04/2014
A2: IRPJ | B2: VALOR | C2: JUROS | D2: TOTAL | E2: SALDO DEV. | G2: DATAS | H2: VLR. PARCELA | I2: PAGO DIA
B3: 45439.8 | D3: =SUM(B3:C3) -> 45439.8 | E3: =D63-H3 -> 44682.47 | F3: 1 | G3: 2014-04-30 | H3: 757.33 | I3: 2014-04-30
D4: =SUM(B4:C4) -> 0 | E4: =D63-H3-H4 -> 43918.99 | F4: 2 | G4: 2014-05-31 | H4: 763.48 | I4: 2014-05-30
D5: 0 | E5: =D63-H3-H4-H5 -> 43161.66 | F5: 3 | G5: 2014-06-30 | H5: 757.33 | J5: não foi pago
D6: 0 | E6: =D63-H3-H4-H5-H6 -> 42385.5 | F6: 4 | G6: 2014-07-31 | H6: 776.16 | I6: 2014-07-31
D7: 0 | E7: =D63-H3-H4-H5-H6-H7 -> 41602.22 | F7: 5 | G7: 2014-08-31 | H7: 783.28 | J7: não foi pago
D8: 0 | E8: =D63-H3-H4-H5-H6-H7-H8 -> 40844.89 | F8: 6 | G8: 2014-09-30 | H8: 757.33 | J8: não foi pago
D9: 0 | E9: =D63-H3-H4-H5-H6-H7-H8-H9 -> 40087.56 | F9: 7 | G9: 2014-10-31 | H9: 757.33 | J9: Parc. Cancelado
D10: 0 | E10: =D63-H3-H4-H5-H6-H7-H8-H9-H10 -> 39330.23 | F10: 8 | G10: 2014-11-30 | H10: 757.33
D11: 0 | E11: =D63-H3-H4-H5-H6-H7-H8-H9-H10-H11 -> 38572.9 | F11: 9 | G11: 2014-12-31 | H11: 757.33
D12: 0 | E12: =D63-H3-H4-H5-H6-H7-H8-H9-H10-H11-H12 -> 37815.57 | F12: 10 | G12: 2015-01-31 | H12: 757.33
D13: 0 | E13: =D63-H3-H4-H5-H6-H7-H8-H9-H10-H11-H12-H13 -> 37058.24 | F13: 11 | G13: 2015-02-28 | H13: 757.33
D14: 0 | E14: =D63-H3-H4-H5-H6-H7-H8-H9-H10-H11-H12-H13-H14 -> 36300.91 | F14: 12 | G14: 2015-03-31 | H14: 757.33
D15: 0 | E15: =D63-H3-H4-H5-H6-H7-H8-H9-H10-H11-H12-H13-H14-H15 -> 35543.58 | F15: 13 | G15: 2015-04-30 | H15: 757.33
D16: 0 | E16: =D63-H3-H4-H5-H6-H7-H8-H9-H10-H11-H12-H13-H14-H15-H16 -> 34786.25 | F16: 14 | G16: 2015-05-31 | H16: 757.33
D17: 0 | E17: =D63-H3-H4-H5-H6-H7-H8-H9-H10-H11-H12-H13-H14-H15-H16-H17 -> 34028.92 | F17: 15 | G17: 2015-06-30 | H17: 757.33
D18: 0 | E18: =D63-H3-H4-H5-H6-H7-H8-H9-H10-H11-H12-H13-H14-H15-H16-H17-H18 -> 33271.59 | F18: 16 | G18: 2015-07-31 | H18: 757.33
D19: 0 | E19: =D63-H3-H4-H5-H6-H7-H8-H9-H10-H11-H12-H13-H14-H15-H16-H17-H18-H19 -> 32514.26 | F19: 17 | G19: 2015-08-31 | H19: 757.33
D20: 0 | E20: =D63-H3-H4-H5-H6-H7-H8-H9-H10-H11-H12-H13-H14-H15-H16-H17-H18-H19-H20 -> 31756.93 | F20: 18 | G20: 2015-09-30 | H20: 757.33
D21: 0 | E21: =D63-H3-H4-H5-H6-H7-H8-H9-H10-H11-H12-H13-H14-H15-H16-H17-H18-H19-H20-H21 -> 30999.6 | F21: 19 | G21: 2015-10-31 | H21: 757.33
D22: 0 | E22: =D63-H3-H4-H5-H6-H7-H8-H9-H10-H11-H12-H13-H14-H15-H16-H17-H18-H19-H20-H21-H22 -> 30242.27 | F22: 20 | G22: 2015-11-30 | H22: 757.33
D23: 0 | E23: =D63-H3-H4-H5-H6-H7-H8-H9-H10-H11-H12-H13-H14-H15-H16-H17-H18-H19-H20-H21-H22-H23 -> 29484.94 | F23: 21 | G23: 2015-12-31 | H23: 757.33
D24: 0 | E24: =D63-H3-H4-H5-H6-H7-H8-H9-H10-H11-H12-H13-H14-H15-H16-H17-H18-H19-H20-H21-H22-H23-H24 -> 28727.61 | F24: 22 | G24: 2016-01-31 | H24: 757.33
D25: 0 | E25: =D63-H3-H4-H5-H6-H7-H8-H9-H10-H11-H12-H13-H14-H15-H16-H17-H18-H19-H20-H21-H22-H23-H24-H25 -> 27970.28 | F25: 23 | G25: 2016-02-29 | H25: 757.33
D26: 0 | E26: =D63-H3-H4-H5-H6-H7-H8-H9-H10-H11-H12-H13-H14-H15-H16-H17-H18-H19-H20-H21-H22-H23-H24-H25-H26 -> 27212.95 | F26: 24 | G26: 2016-03-31 | H26: 757.33
D27: 0 | E27: =D63-H3-H4-H5-H6-H7-H8-H9-H10-H11-H12-H13-H14-H15-H16-H17-H18-H19-H20-H21-H22-H23-H24-H25-H26-H27 -> 26455.62 | F27: 25 | G27: 2016-04-30 | H27: 757.33
D28: 0 | E28: =D63-H3-H4-H5-H6-H7-H8-H9-H10-H11-H12-H13-H14-H15-H16-H17-H18-H19-H20-H21-H22-H23-H24-H25-H26-H27-H28 -> 25698.29 | F28: 26 | G28: 2016-05-31 | H28: 757.33
D29: 0 | E29: =D63-H3-H4-H5-H6-H7-H8-H9-H10-H11-H12-H13-H14-H15-H16-H17-H18-H19-H20-H21-H22-H23-H24-H25-H26-H27-H28-H29 -> 24940.96 | F29: 27 | G29: 2016-06-30 | H29: 757.33
D30: 0 | E30: =D63-H3-H4-H5-H6-H7-H8-H9-H10-H11-H12-H13-H14-H15-H16-H17-H18-H19-H20-H21-H22-H23-H24-H25-H26-H27-H28-H29-H30 -> 24183.63 | F30: 28 | G30: 2016-07-31 | H30: 757.33
D31: 0 | E31: =D63-H3-H4-H5-H6-H7-H8-H9-H10-H11-H12-H13-H14-H15-H16-H17-H18-H19-H20-H21-H22-H23-H24-H25-H26-H27-H28-H29-H30-H31 -> 23426.3 | F31: 29 | G31: 2016-08-31 | H31: 757.33
D32: 0 | E32: =D63-H3-H4-H5-H6-H7-H8-H9-H10-H11-H12-H13-H14-H15-H16-H17-H18-H19-H20-H21-H22-H23-H24-H25-H26-H27-H28-H29-H30-H31-H32 -> 22668.97 | F32: 30 | G32: 2016-09-30 | H32: 757.33
D33: 0 | E33: =D63-H3-H4-H5-H6-H7-H8-H9-H10-H11-H12-H13-H14-H15-H16-H17-H18-H19-H20-H21-H22-H23-H24-H25-H26-H27-H28-H29-H30-H31-H32-H33 -> 21911.64 | F33: 31 | G33: 2016-10-31 | H33: 757.33
D34: 0 | E34: =D63-H3-H4-H5-H6-H7-H8-H9-H10-H11-H12-H13-H14-H15-H16-H17-H18-H19-H20-H21-H22-H23-H24-H25-H26-H27-H28-H29-H30-H31-H32-H33-H34 -> 21154.31 | F34: 32 | G34: 2016-11-30 | H34: 757.33
D35: 0 | E35: =D63-H3-H4-H5-H6-H7-H8-H9-H10-H11-H12-H13-H14-H15-H16-H17-H18-H19-H20-H21-H22-H23-H24-H25-H26-H27-H28-H29-H30-H31-H32-H33-H34-H35 -> 20396.98 | F35: 33 | G35: 2016-12-31 | H35: 757.33
D36: 0 | E36: =D63-H3-H4-H5-H6-H7-H8-H9-H10-H11-H12-H13-H14-H15-H16-H17-H18-H19-H20-H21-H22-H23-H24-H25-H26-H27-H28-H29-H30-H31-H32-H33-H34-H35-H36 -> 19639.65 | F36: 34 | G36: 2017-01-31 | H36: 757.33
D37: 0 | E37: =D63-H3-H4-H5-H6-H7-H8-H9-H10-H11-H12-H13-H14-H15-H16-H17-H18-H19-H20-H21-H22-H23-H24-H25-H26-H27-H28-H29-H30-H31-H32-H33-H34-H35-H36-H37 -> 18882.32 | F37: 35 | G37: 2017-02-28 | H37: 757.33
D38: 0 | E38: =D63-H3-H4-H5-H6-H7-H8-H9-H10-H11-H12-H13-H14-H15-H16-H17-H18-H19-H20-H21-H22-H23-H24-H25-H26-H27-H28-H29-H30-H31-H32-H33-H34-H35-H36-H37-H38 -> 18124.99 | F38: 36 | G38: 2017-03-31 | H38: 757.33
D39: 0 | E39: =D63-H3-H4-H5-H6-H7-H8-H9-H10-H11-H12-H13-H14-H15-H16-H17-H18-H19-H20-H21-H22-H23-H24-H25-H26-H27-H28-H29-H30-H31-H32-H33-H34-H35-H36-H37-H38-H39 -> 17367.66 | F39: 37 | G39: 2017-04-30 | H39: 757.33
D40: 0 | E40: =D63-H3-H4-H5-H6-H7-H8-H9-H10-H11-H12-H13-H14-H15-H16-H17-H18-H19-H20-H21-H22-H23-H24-H25-H26-H27-H28-H29-H30-H31-H32-H33-H34-H35-H36-H37-H38-H39-H40 -> 16610.33 | F40: 38 | G40: 2017-05-31 | H40: 757.33
D41: 0 | E41: =D63-H3-H4-H5-H6-H7-H8-H9-H10-H11-H12-H13-H14-H15-H16-H17-H18-H19-H20-H21-H22-H23-H24-H25-H26-H27-H28-H29-H30-H31-H32-H33-H34-H35-H36-H37-H38-H39-H40-H41 -> 15853 | F41: 39 | G41: 2017-06-30 | H41: 757.33
D42: 0 | E42: =D63-H3-H4-H5-H6-H7-H8-H9-H10-H11-H12-H13-H14-H15-H16-H17-H18-H19-H20-H21-H22-H23-H24-H25-H26-H27-H28-H29-H30-H31-H32-H33-H34-H35-H36-H37-H38-H39-H40-H41-H42 -> 15095.67 | F42: 40 | G42: 2017-07-31 | H42: 757.33
